Workbook

Sheet Big plot
A1: Flow-Density and Speed-Density graphs for theoretical flow-density-speed behavior, routine non-emergency traffic and evacuation traffic during Kincade Fire.
N85: Evacuation | P85: Routine | R85: Theoretical
N86: Density | O86: Flow | P86: Density | Q86: Flow | R86: Density | S86: Flow
N87: 0 | O87: 0 | P87: 0 | Q87: 0 | R87: 0 | S87: 0
N88: 35.04019274 | O88: 1748 | P88: 33.7010771 | Q88: 1824 | R88: =1900/(53.3*1.609347) -> 22.1501513 | S88: 1900
N89: 136.8129819 | O89: 392 | P89: 132.1260771 | Q89: 663 | R89: =109/1.609347 -> 67.7293337 | S89: 0
M91: k | N91: =(O88-O87)/(N88-N87) -> 49.88557035 | P91: =(Q88-Q87)/(P88-P87) -> 54.12289924 | R91: 85.7781951
M92: k | N92: =(O89-O88)/(N89-N88) -> -13.32379717 | P92: =(Q89-Q88)/(P89-P88) -> -11.79578359 | R92: -41.68569729
M95: m | N95: =O88-(N88*N91) -> 0 | P95: =Q88-(P88*P91) -> 0
M96: m | N96: =O88-(N88*N92) -> 2214.868421 | P96: =Q88-(P88*P92) -> 2221.530612 | R96: 2823.344502
M98: [0, xd ] | N98: y=49,88557x | P98: y=54,1229x | R98: y=85,778x
M99: [xd, max d] | N99: y=-13,2758x+2208,3 | P99: y=-11,7958x+2221,53 | R99: y=-41,686x+2823,3
M100: xd | N100: =N88 -> 35.04019274 | P100: =P88 -> 33.7010771 | R100: =1900/(53.3*1.609347) -> 22.1501513

Sheet Big plot data
A1: ='Evac US101-S loc 104'!A1 -> 5 Minutes | B1: ='Evac US101-S loc 104'!B1 -> Occupancy (%) | C1: ='Evac US101-S loc 104'!C1 -> Flow (Veh/5 Minutes) | D1: ='Evac US101-S loc 104'!D1 -> Speed (mph) | E1: ='Evac US101-S loc 104'!E1 -> # Lane Points | F1: ='Evac US101-S loc 104'!F1 -> % Observed | G1: ='Evac US101-S loc 104'!G1 -> Density (Veh/mile/lane) | H1: ='Evac US101-S loc 104'!H1 -> Flow (Veh/hour/lane) | I1: ='Evac US101-S loc 104'!I1 -> Speed (km/h) | J1: ='Evac US101-S loc 104'!J1 -> Density (veh/km/lane) | L1: ='Routine US101-S loc 104'!A1 -> 5 Minutes | M1: ='Routine US101-S loc 104'!B1 -> Occupancy (%) | N1: ='Routine US101-S loc 104'!C1 -> Flow (Veh/5 Minutes) | O1: ='Routine US101-S loc 104'!D1 -> Speed (mph) | P1: ='Routine US101-S loc 104'!E1 -> # Lane Points | Q1: ='Routine US101-S loc 104'!F1 -> % Observed | R1: ='Routine US101-S loc 104'!G1 -> Density (Veh/mile/lane) | S1: ='Routine US101-S loc 104'!H1 -> Flow (Veh/hour/lane) | T1: ='Routine US101-S loc 104'!I1 -> Speed (km/h) | U1: ='Routine US101-S loc 104'!J1 -> Density (veh/km/lane) | W1: Hour | X1: Occupancy (%) | Y1: Flow (Veh/Hour) | Z1: Speed (mph) | AA1: # Lane Points | AB1: % Observed | AC1: Density (Veh/mile/lane) | AD1: Flow (Veh/hour/lane) | AE1: Speed (km/h) | AF1: Density (veh/km/lane) | AH1: Hour | AI1: Occupancy (%) | AJ1: Flow (Veh/Hour) | AK1: Speed (mph) | AL1: # Lane Points | AM1: % Observed | AN1: Density (Veh/mile/lane) | AO1: Flow (Veh/hour/lane) | AP1: Speed (km/h) | AQ1: Density (veh/km/lane) | AS1: =Theoretical!G1 -> Density (vehicles/mile/lane) | AT1: =Theoretical!H1 -> Speed (mph) | AU1: =Theoretical!I1 -> Lanes | AV1: =Theoretical!J1 -> Flow (vehicles/hour) | AW1: =Theoretical!K1 -> Density (vehicles/km/lane) | AX1: =Theoretical!L1 -> Speed (km/h)
A2: ='Evac US101-S loc 104'!A2 -> 2019-10-26 | B2: ='Evac US101-S loc 104'!B2 -> 0.5 | C2: ='Evac US101-S loc 104'!C2 -> 18 | D2: ='Evac US101-S loc 104'!D2 -> 66.5 | E2: ='Evac US101-S loc 104'!E2 -> 2 | F2: ='Evac US101-S loc 104'!F2 -> 100 | G2: ='Evac US101-S loc 104'!G2 -> 1.795918367 | H2: ='Evac US101-S loc 104'!H2 -> 108 | I2: ='Evac US101-S loc 104'!I2 -> 107.02159 | J2: ='Evac US101-S loc 104'!J2 -> 1.115929705 | L2: ='Routine US101-S loc 104'!A2 -> 2019-10-16 | M2: ='Routine US101-S loc 104'!B2 -> 0.6 | N2: ='Routine US101-S loc 104'!C2 -> 19 | O2: ='Routine US101-S loc 104'!D2 -> 67.3 | P2: ='Routine US101-S loc 104'!E2 -> 2 | Q2: ='Routine US101-S loc 104'!F2 -> 100 | R2: ='Routine US101-S loc 104'!G2 -> 2.155102041 | S2: ='Routine US101-S loc 104'!H2 -> 114 | T2: ='Routine US101-S loc 104'!I2 -> 108.3090678 | U2: ='Routine US101-S loc 104'!J2 -> 1.339115646 | W2: ='Evac US101-S loc 104'!L2 -> 2019-10-26 | X2: ='Evac US101-S loc 104'!M2 -> 0.7 | Y2: ='Evac US101-S loc 104'!N2 -> 253 | Z2: ='Evac US101-S loc 104'!O2 -> 67 | AA2: ='Evac US101-S loc 104'!P2 -> 24 | AB2: ='Evac US101-S loc 104'!Q2 -> 100 | AC2: ='Evac US101-S loc 104'!R2 -> 2.514285714 | AD2: ='Evac US101-S loc 104'!S2 -> 126.5 | AE2: ='Evac US101-S loc 104'!T2 -> 107.8262637 | AF2: ='Evac US101-S loc 104'!U2 -> 1.562301587 | AH2: ='Routine US101-S loc 104'!L2 -> 2019-10-16 | AI2: ='Routine US101-S loc 104'!M2 -> 0.4 | AJ2: ='Routine US101-S loc 104'!N2 -> 127 | AK2: ='Routine US101-S loc 104'!O2 -> 66.6 | AL2: ='Routine US101-S loc 104'!P2 -> 24 | AM2: ='Routine US101-S loc 104'!Q2 -> 100 | AN2: ='Routine US101-S loc 104'!R2 -> 1.436734694 | AO2: ='Routine US101-S loc 104'!S2 -> 63.5 | AP2: ='Routine US101-S loc 104'!T2 -> 107.1825248 | AQ2: ='Routine US101-S loc 104'!U2 -> 0.8927437642 | AS2: =Theoretical!A2 -> 0 | AT2: =Theoretical!B2 -> 70 | AU2: =Theoretical!C2 -> 1 | AV2: =Theoretical!D2 -> 0 | AW2: =Theoretical!E2 -> 0 | AX2: =Theoretical!F2 -> 112.6543053
A3: ='Evac US101-S loc 104'!A3 -> 2019-10-26T00:05:00 | B3: ='Evac US101-S loc 104'!B3 -> 0.9 | C3: ='Evac US101-S loc 104'!C3 -> 31 | D3: ='Evac US101-S loc 104'!D3 -> 67.5 | E3: ='Evac US101-S loc 104'!E3 -> 2 | F3: ='Evac US101-S loc 104'!F3 -> 100 | G3: ='Evac US101-S loc 104'!G3 -> 3.232653061 | H3: ='Evac US101-S loc 104'!H3 -> 186 | I3: ='Evac US101-S loc 104'!I3 -> 108.6309373 | J3: ='Evac US101-S loc 104'!J3 -> 2.008673469 | L3: ='Routine US101-S loc 104'!A3 -> 2019-10-16T00:05:00 | M3: ='Routine US101-S loc 104'!B3 -> 0.5 | N3: ='Routine US101-S loc 104'!C3 -> 10 | O3: ='Routine US101-S loc 104'!D3 -> 66.2 | P3: ='Routine US101-S loc 104'!E3 -> 2 | Q3: ='Routine US101-S loc 104'!F3 -> 100 | R3: ='Routine US101-S loc 104'!G3 -> 1.795918367 | S3: ='Routine US101-S loc 104'!H3 -> 60 | T3: ='Routine US101-S loc 104'!I3 -> 106.5387859 | U3: ='Routine US101-S loc 104'!J3 -> 1.115929705 | W3: ='Evac US101-S loc 104'!L3 -> 2019-10-26T01:00:00 | X3: ='Evac US101-S loc 104'!M3 -> 0.4 | Y3: ='Evac US101-S loc 104'!N3 -> 136 | Z3: ='Evac US101-S loc 104'!O3 -> 66.5 | AA3: ='Evac US101-S loc 104'!P3 -> 24 | AB3: ='Evac US101-S loc 104'!Q3 -> 100 | AC3: ='Evac US101-S loc 104'!R3 -> 1.436734694 | AD3: ='Evac US101-S loc 104'!S3 -> 68 | AE3: ='Evac US101-S loc 104'!T3 -> 107.02159 | AF3: ='Evac US101-S loc 104'!U3 -> 0.8927437642 | AH3: ='Routine US101-S loc 104'!L3 -> 2019-10-16T01:00:00 | AI3: ='Routine US101-S loc 104'!M3 -> 0.4 | AJ3: ='Routine US101-S loc 104'!N3 -> 108 | AK3: ='Routine US101-S loc 104'!O3 -> 66.4 | AL3: ='Routine US101-S loc 104'!P3 -> 24 | AM3: ='Routine US101-S loc 104'!Q3 -> 100 | AN3: ='Routine US101-S loc 104'!R3 -> 1.436734694 | AO3: ='Routine US101-S loc 104'!S3 -> 54 | AP3: ='Routine US101-S loc 104'!T3 -> 106.8606553 | AQ3: ='Routine US101-S loc 104'!U3 -> 0.8927437642 | AS3: =Theoretical!A3 -> 1 | AT3: =Theoretical!B3 -> 69.35779817 | AU3: =Theoretical!C3 -> 1 | AV3: =Theoretical!D3 -> 69.35779817 | AW3: =Theoretical!E3 -> 0.6213699495 | AX3: =Theoretical!F3 -> 111.6207796
A4: ='Evac US101-S loc 104'!A4 -> 2019-10-26T00:10:00 | B4: ='Evac US101-S loc 104'!B4 -> 0.9 | C4: ='Evac US101-S loc 104'!C4 -> 29 | D4: ='Evac US101-S loc 104'!D4 -> 66.8 | E4: ='Evac US101-S loc 104'!E4 -> 2 | F4: ='Evac US101-S loc 104'!F4 -> 100 | G4: ='Evac US101-S loc 104'!G4 -> 3.232653061 | H4: ='Evac US101-S loc 104'!H4 -> 174 | I4: ='Evac US101-S loc 104'!I4 -> 107.5043942 | J4: ='Evac US101-S loc 104'!J4 -> 2.008673469 | L4: ='Routine US101-S loc 104'!A4 -> 2019-10-16T00:10:00 | M4: ='Routine US101-S loc 104'!B4 -> 0.5 | N4: ='Routine US101-S loc 104'!C4 -> 15 | O4: ='Routine US101-S loc 104'!D4 -> 67 | P4: ='Routine US101-S loc 104'!E4 -> 2 | Q4: ='Routine US101-S loc 104'!F4 -> 100 | R4: ='Routine US101-S loc 104'!G4 -> 1.795918367 | S4: ='Routine US101-S loc 104'!H4 -> 90 | T4: ='Routine US101-S loc 104'!I4 -> 107.8262637 | U4: ='Routine US101-S loc 104'!J4 -> 1.115929705 | W4: ='Evac US101-S loc 104'!L4 -> 2019-10-26T02:00:00 | X4: ='Evac US101-S loc 104'!M4 -> 0.3 | Y4: ='Evac US101-S loc 104'!N4 -> 121 | Z4: ='Evac US101-S loc 104'!O4 -> 66.7 | AA4: ='Evac US101-S loc 104'!P4 -> 24 | AB4: ='Evac US101-S loc 104'!Q4 -> 100 | AC4: ='Evac US101-S loc 104'!R4 -> 1.07755102 | AD4: ='Evac US101-S loc 104'!S4 -> 60.5 | AE4: ='Evac US101-S loc 104'!T4 -> 107.3434595 | AF4: ='Evac US101-S loc 104'!U4 -> 0.6695578231 | AH4: ='Routine US101-S loc 104'!L4 -> 2019-10-16T02:00:00 | AI4: ='Routine US101-S loc 104'!M4 -> 0.6 | AJ4: ='Routine US101-S loc 104'!N4 -> 152 | AK4: ='Routine US101-S loc 104'!O4 -> 66.6 | AL4: ='Routine US101-S loc 104'!P4 -> 24 | AM4: ='Routine US101-S loc 104'!Q4 -> 100 | AN4: ='Routine US101-S loc 104'!R4 -> 2.155102041 | AO4: ='Routine US101-S loc 104'!S4 -> 76 | AP4: ='Routine US101-S loc 104'!T4 -> 107.1825248 | AQ4: ='Routine US101-S loc 104'!U4 -> 1.339115646 | AS4: =Theoretical!A4 -> 2 | AT4: =Theoretical!B4 -> 68.71559633 | AU4: =Theoretical!C4 -> 1 | AV4: =Theoretical!D4 -> 137.4311927 | AW4: =Theoretical!E4 -> 1.242739899 | AX4: =Theoretical!F4 -> 110.5872538
A5: ='Evac US101-S loc 104'!A5 -> 2019-10-26T00:15:00 | B5: ='Evac US101-S loc 104'!B5 -> 1.1 | C5: ='Evac US101-S loc 104'!C5 -> 35 | D5: ='Evac US101-S loc 104'!D5 -> 67.5 | E5: ='Evac US101-S loc 104'!E5 -> 2 | F5: ='Evac US101-S loc 104'!F5 -> 100 | G5: ='Evac US101-S loc 104'!G5 -> 3.951020408 | H5: ='Evac US101-S loc 104'!H5 -> 210 | I5: ='Evac US101-S loc 104'!I5 -> 108.6309373 | J5: ='Evac US101-S loc 104'!J5 -> 2.455045351 | L5: ='Routine US101-S loc 104'!A5 -> 2019-10-16T00:15:00 | M5: ='Routine US101-S loc 104'!B5 -> 0.5 | N5: ='Routine US101-S loc 104'!C5 -> 16 | O5: ='Routine US101-S loc 104'!D5 -> 66.5 | P5: ='Routine US101-S loc 104'!E5 -> 2 | Q5: ='Routine US101-S loc 104'!F5 -> 100 | R5: ='Routine US101-S loc 104'!G5 -> 1.795918367 | S5: ='Routine US101-S loc 104'!H5 -> 96 | T5: ='Routine US101-S loc 104'!I5 -> 107.02159 | U5: ='Routine US101-S loc 104'!J5 -> 1.115929705 | W5: ='Evac US101-S loc 104'!L5 -> 2019-10-26T03:00:00 | X5: ='Evac US101-S loc 104'!M5 -> 0.3 | Y5: ='Evac US101-S loc 104'!N5 -> 80 | Z5: ='Evac US101-S loc 104'!O5 -> 66.1 | AA5: ='Evac US101-S loc 104'!P5 -> 24 | AB5: ='Evac US101-S loc 104'!Q5 -> 100 | AC5: ='Evac US101-S loc 104'!R5 -> 1.07755102 | AD5: ='Evac US101-S loc 104'!S5 -> 40 | AE5: ='Evac US101-S loc 104'!T5 -> 106.3778512 | AF5: ='Evac US101-S loc 104'!U5 -> 0.6695578231 | AH5: ='Routine US101-S loc 104'!L5 -> 2019-10-16T03:00:00 | AI5: ='Routine US101-S loc 104'!M5 -> 0.6 | AJ5: ='Routine US101-S loc 104'!N5 -> 159 | AK5: ='Routine US101-S loc 104'!O5 -> 66.5 | AL5: ='Routine US101-S loc 104'!P5 -> 24 | AM5: ='Routine US101-S loc 104'!Q5 -> 100 | AN5: ='Routine US101-S loc 104'!R5 -> 2.155102041 | AO5: ='Routine US101-S loc 104'!S5 -> 79.5 | AP5: ='Routine US101-S loc 104'!T5 -> 107.02159 | AQ5: ='Routine US101-S loc 104'!U5 -> 1.339115646 | AS5: =Theoretical!A5 -> 3 | AT5: =Theoretical!B5 -> 68.0733945 | AU5: =Theoretical!C5 -> 1 | AV5: =Theoretical!D5 -> 204.2201835 | AW5: =Theoretical!E5 -> 1.864109848 | AX5: =Theoretical!F5 -> 109.5537281
A6: ='Evac US101-S loc 104'!A6 -> 2019-10-26T00:20:00 | B6: ='Evac US101-S loc 104'!B6 -> 0.4 | C6: ='Evac US101-S loc 104'!C6 -> 10 | D6: ='Evac US101-S loc 104'!D6 -> 66.1 | E6: ='Evac US101-S loc 104'!E6 -> 2 | F6: ='Evac US101-S loc 104'!F6 -> 100 | G6: ='Evac US101-S loc 104'!G6 -> 1.436734694 | H6: ='Evac US101-S loc 104'!H6 -> 60 | I6: ='Evac US101-S loc 104'!I6 -> 106.3778512 | J6: ='Evac US101-S loc 104'!J6 -> 0.8927437642 | L6: ='Routine US101-S loc 104'!A6 -> 2019-10-16T00:20:00 | M6: ='Routine US101-S loc 104'!B6 -> 0.3 | N6: ='Routine US101-S loc 104'!C6 -> 11 | O6: ='Routine US101-S loc 104'!D6 -> 67.2 | P6: ='Routine US101-S loc 104'!E6 -> 2 | Q6: ='Routine US101-S loc 104'!F6 -> 100 | R6: ='Routine US101-S loc 104'!G6 -> 1.07755102 | S6: ='Routine US101-S loc 104'!H6 -> 66 | T6: ='Routine US101-S loc 104'!I6 -> 108.1481331 | U6: ='Routine US101-S loc 104'!J6 -> 0.6695578231 | W6: ='Evac US101-S loc 104'!L6 -> 2019-10-26T04:00:00 | X6: ='Evac US101-S loc 104'!M6 -> 0.4 | Y6: ='Evac US101-S loc 104'!N6 -> 136 | Z6: ='Evac US101-S loc 104'!O6 -> 66.6 | AA6: ='Evac US101-S loc 104'!P6 -> 24 | AB6: ='Evac US101-S loc 104'!Q6 -> 100 | AC6: ='Evac US101-S loc 104'!R6 -> 1.436734694 | AD6: ='Evac US101-S loc 104'!S6 -> 68 | AE6: ='Evac US101-S loc 104'!T6 -> 107.1825248 | AF6: ='Evac US101-S loc 104'!U6 -> 0.8927437642 | AH6: ='Routine US101-S loc 104'!L6 -> 2019-10-16T04:00:00 | AI6: ='Routine US101-S loc 104'!M6 -> 0.8 | AJ6: ='Routine US101-S loc 104'!N6 -> 257 | AK6: ='Routine US101-S loc 104'!O6 -> 67.1 | AL6: ='Routine US101-S loc 104'!P6 -> 24 | AM6: ='Routine US101-S loc 104'!Q6 -> 100 | AN6: ='Routine US101-S loc 104'!R6 -> 2.873469388 | AO6: ='Routine US101-S loc 104'!S6 -> 128.5 | AP6: ='Routine US101-S loc 104'!T6 -> 107.9871984 | AQ6: ='Routine US101-S loc 104'!U6 -> 1.785487528 | AS6: =Theoretical!A6 -> 4 | AT6: =Theoretical!B6 -> 67.43119266 | AU6: =Theoretical!C6 -> 1 | AV6: =Theoretical!D6 -> 269.7247706 | AW6: =Theoretical!E6 -> 2.485479798 | AX6: =Theoretical!F6 -> 108.5202024
A7: ='Evac US101-S loc 104'!A7 -> 2019-10-26T00:25:00 | B7: ='Evac US101-S loc 104'!B7 -> 0.7 | C7: ='Evac US101-S loc 104'!C7 -> 22 | D7: ='Evac US101-S loc 104'!D7 -> 66.4 | E7: ='Evac US101-S loc 104'!E7 -> 2 | F7: ='Evac US101-S loc 104'!F7 -> 100 | G7: ='Evac US101-S loc 104'!G7 -> 2.514285714 | H7: ='Evac US101-S loc 104'!H7 -> 132 | I7: ='Evac US101-S loc 104'!I7 -> 106.8606553 | J7: ='Evac US101-S loc 104'!J7 -> 1.562301587 | L7: ='Routine US101-S loc 104'!A7 -> 2019-10-16T00:25:00 | M7: ='Routine US101-S loc 104'!B7 -> 0.2 | N7: ='Routine US101-S loc 104'!C7 -> 5 | O7: ='Routine US101-S loc 104'!D7 -> 66.5 | P7: ='Routine US101-S loc 104'!E7 -> 2 | Q7: ='Routine US101-S loc 104'!F7 -> 100 | R7: ='Routine US101-S loc 104'!G7 -> 0.7183673469 | S7: ='Routine US101-S loc 104'!H7 -> 30 | T7: ='Routine US101-S loc 104'!I7 -> 107.02159 | U7: ='Routine US101-S loc 104'!J7 -> 0.4463718821 | W7: ='Evac US101-S loc 104'!L7 -> 2019-10-26T05:00:00 | X7: ='Evac US101-S loc 104'!M7 -> 0.8 | Y7: ='Evac US101-S loc 104'!N7 -> 270 | Z7: ='Evac US101-S loc 104'!O7 -> 65.7 | AA7: ='Evac US101-S loc 104'!P7 -> 24 | AB7: ='Evac US101-S loc 104'!Q7 -> 100 | AC7: ='Evac US101-S loc 104'!R7 -> 2.873469388 | AD7: ='Evac US101-S loc 104'!S7 -> 135 | AE7: ='Evac US101-S loc 104'!T7 -> 105.7341123 | AF7: ='Evac US101-S loc 104'!U7 -> 1.785487528 | AH7: ='Routine US101-S loc 104'!L7 -> 2019-10-16T05:00:00 | AI7: ='Routine US101-S loc 104'!M7 -> 1.9 | AJ7: ='Routine US101-S loc 104'!N7 -> 640 | AK7: ='Routine US101-S loc 104'!O7 -> 67.3 | AL7: ='Routine US101-S loc 104'!P7 -> 24 | AM7: ='Routine US101-S loc 104'!Q7 -> 100 | AN7: ='Routine US101-S loc 104'!R7 -> 6.824489796 | AO7: ='Routine US101-S loc 104'!S7 -> 320 | AP7: ='Routine US101-S loc 104'!T7 -> 108.3090678 | AQ7: ='Routine US101-S loc 104'!U7 -> 4.24053288 | AS7: =Theoretical!A7 -> 5 | AT7: =Theoretical!B7 -> 66.78899083 | AU7: =Theoretical!C7 -> 1 | AV7: =Theoretical!D7 -> 333.9449541 | AW7: =Theoretical!E7 -> 3.106849747 | AX7: =Theoretical!F7 -> 107.4866766
A8: ='Evac US101-S loc 104'!A8 -> 2019-10-26T00:30:00 | B8: ='Evac US101-S loc 104'!B8 -> 0.6 | C8: ='Evac US101-S loc 104'!C8 -> 20 | D8: ='Evac US101-S loc 104'!D8 -> 67.2 | E8: ='Evac US101-S loc 104'!E8 -> 2 | F8: ='Evac US101-S loc 104'!F8 -> 100 | G8: ='Evac US101-S loc 104'!G8 -> 2.155102041 | H8: ='Evac US101-S loc 104'!H8 -> 120 | I8: ='Evac US101-S loc 104'!I8 -> 108.1481331 | J8: ='Evac US101-S loc 104'!J8 -> 1.339115646 | L8: ='Routine US101-S loc 104'!A8 -> 2019-10-16T00:30:00 | M8: ='Routine US101-S loc 104'!B8 -> 0.4 | N8: ='Routine US101-S loc 104'!C8 -> 6 | O8: ='Routine US101-S loc 104'!D8 -> 66.6 | P8: ='Routine US101-S loc 104'!E8 -> 2 | Q8: ='Routine US101-S loc 104'!F8 -> 100 | R8: ='Routine US101-S loc 104'!G8 -> 1.436734694 | S8: ='Routine US101-S loc 104'!H8 -> 36 | T8: ='Routine US101-S loc 104'!I8 -> 107.1825248 | U8: ='Routine US101-S loc 104'!J8 -> 0.8927437642 | W8: ='Evac US101-S loc 104'!L8 -> 2019-10-26T06:00:00 | X8: ='Evac US101-S loc 104'!M8 -> 1.4 | Y8: ='Evac US101-S loc 104'!N8 -> 459 | Z8: ='Evac US101-S loc 104'!O8 -> 65.4 | AA8: ='Evac US101-S loc 104'!P8 -> 24 | AB8: ='Evac US101-S loc 104'!Q8 -> 100 | AC8: ='Evac US101-S loc 104'!R8 -> 5.028571429 | AD8: ='Evac US101-S loc 104'!S8 -> 229.5 | AE8: ='Evac US101-S loc 104'!T8 -> 105.2513081 | AF8: ='Evac US101-S loc 104'!U8 -> 3.124603175 | AH8: ='Routine US101-S loc 104'!L8 -> 2019-10-16T06:00:00 | AI8: ='Routine US101-S loc 104'!M8 -> 3.6 | AJ8: ='Routine US101-S loc 104'!N8 -> 1240 | AK8: ='Routine US101-S loc 104'!O8 -> 65.9 | AL8: ='Routine US101-S loc 104'!P8 -> 24 | AM8: ='Routine US101-S loc 104'!Q8 -> 100 | AN8: ='Routine US101-S loc 104'!R8 -> 12.93061224 | AO8: ='Routine US101-S loc 104'!S8 -> 620 | AP8: ='Routine US101-S loc 104'!T8 -> 106.0559817 | AQ8: ='Routine US101-S loc 104'!U8 -> 8.034693878 | AS8: =Theoretical!A8 -> 6 | AT8: =Theoretical!B8 -> 66.14678899 | AU8: =Theoretical!C8 -> 1 | AV8: =Theoretical!D8 -> 396.8807339 | AW8: =Theoretical!E8 -> 3.728219697 | AX8: =Theoretical!F8 -> 106.4531509
A9: ='Evac US101-S loc 104'!A9 -> 2019-10-26T00:35:00 | B9: ='Evac US101-S loc 104'!B9 -> 0.8 | C9: ='Evac US101-S loc 104'!C9 -> 29 | D9: ='Evac US101-S loc 104'!D9 -> 67.3 | E9: ='Evac US101-S loc 104'!E9 -> 2 | F9: ='Evac US101-S loc 104'!F9 -> 100 | G9: ='Evac US101-S loc 104'!G9 -> 2.873469388 | H9: ='Evac US101-S loc 104'!H9 -> 174 | I9: ='Evac US101-S loc 104'!I9 -> 108.3090678 | J9: ='Evac US101-S loc 104'!J9 -> 1.785487528 | L9: ='Routine US101-S loc 104'!A9 -> 2019-10-16T00:35:00 | M9: ='Routine US101-S loc 104'!B9 -> 0.2 | N9: ='Routine US101-S loc 104'!C9 -> 3 | O9: ='Routine US101-S loc 104'!D9 -> 66.6 | P9: ='Routine US101-S loc 104'!E9 -> 2 | Q9: ='Routine US101-S loc 104'!F9 -> 100 | R9: ='Routine US101-S loc 104'!G9 -> 0.7183673469 | S9: ='Routine US101-S loc 104'!H9 -> 18 | T9: ='Routine US101-S loc 104'!I9 -> 107.1825248 | U9: ='Routine US101-S loc 104'!J9 -> 0.4463718821 | W9: ='Evac US101-S loc 104'!L9 -> 2019-10-26T07:00:00 | X9: ='Evac US101-S loc 104'!M9 -> 2.1 | Y9: ='Evac US101-S loc 104'!N9 -> 754 | Z9: ='Evac US101-S loc 104'!O9 -> 66.7 | AA9: ='Evac US101-S loc 104'!P9 -> 24 | AB9: ='Evac US101-S loc 104'!Q9 -> 75 | AC9: ='Evac US101-S loc 104'!R9 -> 7.542857143 | AD9: ='Evac US101-S loc 104'!S9 -> 377 | AE9: ='Evac US101-S loc 104'!T9 -> 107.3434595 | AF9: ='Evac US101-S loc 104'!U9 -> 4.686904762 | AH9: ='Routine US101-S loc 104'!L9 -> 2019-10-16T07:00:00 | AI9: ='Routine US101-S loc 104'!M9 -> 5.6 | AJ9: ='Routine US101-S loc 104'!N9 -> 1891 | AK9: ='Routine US101-S loc 104'!O9 -> 65.7 | AL9: ='Routine US101-S loc 104'!P9 -> 24 | AM9: ='Routine US101-S loc 104'!Q9 -> 100 | AN9: ='Routine US101-S loc 104'!R9 -> 20.11428571 | AO9: ='Routine US101-S loc 104'!S9 -> 945.5 | AP9: ='Routine US101-S loc 104'!T9 -> 105.7341123 | AQ9: ='Routine US101-S loc 104'!U9 -> 12.4984127 | AS9: =Theoretical!A9 -> 7 | AT9: =Theoretical!B9 -> 65.50458716 | AU9: =Theoretical!C9 -> 1 | AV9: =Theoretical!D9 -> 458.5321101 | AW9: =Theoretical!E9 -> 4.349589646 | AX9: =Theoretical!F9 -> 105.4196252
A10: ='Evac US101-S loc 104'!A10 -> 2019-10-26T00:40:00 | B10: ='Evac US101-S loc 104'!B10 -> 0.4 | C10: ='Evac US101-S loc 104'!C10 -> 14 | D10: ='Evac US101-S loc 104'!D10 -> 66.7 | E10: ='Evac US101-S loc 104'!E10 -> 2 | F10: ='Evac US101-S loc 104'!F10 -> 100 | G10: ='Evac US101-S loc 104'!G10 -> 1.436734694 | H10: ='Evac US101-S loc 104'!H10 -> 84 | I10: ='Evac US101-S loc 104'!I10 -> 107.3434595 | J10: ='Evac US101-S loc 104'!J10 -> 0.8927437642 | L10: ='Routine US101-S loc 104'!A10 -> 2019-10-16T00:40:00 | M10: ='Routine US101-S loc 104'!B10 -> 0.4 | N10: ='Routine US101-S loc 104'!C10 -> 9 | O10: ='Routine US101-S loc 104'!D10 -> 65.9 | P10: ='Routine US101-S loc 104'!E10 -> 2 | Q10: ='Routine US101-S loc 104'!F10 -> 100 | R10: ='Routine US101-S loc 104'!G10 -> 1.436734694 | S10: ='Routine US101-S loc 104'!H10 -> 54 | T10: ='Routine US101-S loc 104'!I10 -> 106.0559817 | U10: ='Routine US101-S loc 104'!J10 -> 0.8927437642 | W10: ='Evac US101-S loc 104'!L10 -> 2019-10-26T08:00:00 | X10: ='Evac US101-S loc 104'!M10 -> 2.6 | Y10: ='Evac US101-S loc 104'!N10 -> 920 | Z10: ='Evac US101-S loc 104'!O10 -> 66.7 | AA10: ='Evac US101-S loc 104'!P10 -> 24 | AB10: ='Evac US101-S loc 104'!Q10 -> 66.7 | AC10: ='Evac US101-S loc 104'!R10 -> 9.33877551 | AD10: ='Evac US101-S loc 104'!S10 -> 460 | AE10: ='Evac US101-S loc 104'!T10 -> 107.3434595 | AF10: ='Evac US101-S loc 104'!U10 -> 5.802834467 | AH10: ='Routine US101-S loc 104'!L10 -> 2019-10-16T08:00:00 | AI10: ='Routine US101-S loc 104'!M10 -> 5.8 | AJ10: ='Routine US101-S loc 104'!N10 -> 1994 | AK10: ='Routine US101-S loc 104'!O10 -> 63.9 | AL10: ='Routine US101-S loc 104'!P10 -> 24 | AM10: ='Routine US101-S loc 104'!Q10 -> 100 | AN10: ='Routine US101-S loc 104'!R10 -> 20.83265306 | AO10: ='Routine US101-S loc 104'!S10 -> 997 | AP10: ='Routine US101-S loc 104'!T10 -> 102.8372873 | AQ10: ='Routine US101-S loc 104'!U10 -> 12.94478458 | AS10: =Theoretical!A10 -> 8 | AT10: =Theoretical!B10 -> 64.86238532 | AU10: =Theoretical!C10 -> 1 | AV10: =Theoretical!D10 -> 518.8990826 | AW10: =Theoretical!E10 -> 4.970959596 | AX10: =Theoretical!F10 -> 104.3860994
A11: ='Evac US101-S loc 104'!A11 -> 2019-10-26T00:45:00 | B11: ='Evac US101-S loc 104'!B11 -> 0.4 | C11: ='Evac US101-S loc 104'!C11 -> 16 | D11: ='Evac US101-S loc 104'!D11 -> 66.1 | E11: ='Evac US101-S loc 104'!E11 -> 2 | F11: ='Evac US101-S loc 104'!F11 -> 100 | G11: ='Evac US101-S loc 104'!G11 -> 1.436734694 | H11: ='Evac US101-S loc 104'!H11 -> 96 | I11: ='Evac US101-S loc 104'!I11 -> 106.3778512 | J11: ='Evac US101-S loc 104'!J11 -> 0.8927437642 | L11: ='Routine US101-S loc 104'!A11 -> 2019-10-16T00:45:00 | M11: ='Routine US101-S loc 104'!B11 -> 0.6 | N11: ='Routine US101-S loc 104'!C11 -> 16 | O11: ='Routine US101-S loc 104'!D11 -> 66.6 | P11: ='Routine US101-S loc 104'!E11 -> 2 | Q11: ='Routine US101-S loc 104'!F11 -> 100 | R11: ='Routine US101-S loc 104'!G11 -> 2.155102041 | S11: ='Routine US101-S loc 104'!H11 -> 96 | T11: ='Routine US101-S loc 104'!I11 -> 107.1825248 | U11: ='Routine US101-S loc 104'!J11 -> 1.339115646 | W11: ='Evac US101-S loc 104'!L11 -> 2019-10-26T09:00:00 | X11: ='Evac US101-S loc 104'!M11 -> 3.6 | Y11: ='Evac US101-S loc 104'!N11 -> 1306 | Z11: ='Evac US101-S loc 104'!O11 -> 66.2 | AA11: ='Evac US101-S loc 104'!P11 -> 24 | AB11: ='Evac US101-S loc 104'!Q11 -> 100 | AC11: ='Evac US101-S loc 104'!R11 -> 12.93061224 | AD11: ='Evac US101-S loc 104'!S11 -> 653 | AE11: ='Evac US101-S loc 104'!T11 -> 106.5387859 | AF11: ='Evac US101-S loc 104'!U11 -> 8.034693878 | AH11: ='Routine US101-S loc 104'!L11 -> 2019-10-16T09:00:00 | AI11: ='Routine US101-S loc 104'!M11 -> 5.1 | AJ11: ='Routine US101-S loc 104'!N11 -> 1707 | AK11: ='Routine US101-S loc 104'!O11 -> 62.6 | AL11: ='Routine US101-S loc 104'!P11 -> 24 | AM11: ='Routine US101-S loc 104'!Q11 -> 100 | AN11: ='Routine US101-S loc 104'!R11 -> 18.31836735 | AO11: ='Routine US101-S loc 104'!S11 -> 853.5 | AP11: ='Routine US101-S loc 104'!T11 -> 100.7451359 | AQ11: ='Routine US101-S loc 104'!U11 -> 11.38248299 | AS11: =Theoretical!A11 -> 9 | AT11: =Theoretical!B11 -> 64.22018349 | AU11: =Theoretical!C11 -> 1 | AV11: =Theoretical!D11 -> 577.9816514 | AW11: =Theoretical!E11 -> 5.592329545 | AX11: =Theoretical!F11 -> 103.3525737
A12: ='Evac US101-S loc 104'!A12 -> 2019-10-26T00:50:00 | B12: ='Evac US101-S loc 104'!B12 -> 0.4 | C12: ='Evac US101-S loc 104'!C12 -> 14 | D12: ='Evac US101-S loc 104'!D12 -> 68.5 | E12: ='Evac US101-S loc 104'!E12 -> 2 | F12: ='Evac US101-S loc 104'!F12 -> 100 | G12: ='Evac US101-S loc 104'!G12 -> 1.436734694 | H12: ='Evac US101-S loc 104'!H12 -> 84 | I12: ='Evac US101-S loc 104'!I12 -> 110.2402845 | J12: ='Evac US101-S loc 104'!J12 -> 0.8927437642 | L12: ='Routine US101-S loc 104'!A12 -> 2019-10-16T00:50:00 | M12: ='Routine US101-S loc 104'!B12 -> 0.4 | N12: ='Routine US101-S loc 104'!C12 -> 12 | O12: ='Routine US101-S loc 104'!D12 -> 65.9 | P12: ='Routine US101-S loc 104'!E12 -> 2 | Q12: ='Routine US101-S loc 104'!F12 -> 100 | R12: ='Routine US101-S loc 104'!G12 -> 1.436734694 | S12: ='Routine US101-S loc 104'!H12 -> 72 | T12: ='Routine US101-S loc 104'!I12 -> 106.0559817 | U12: ='Routine US101-S loc 104'!J12 -> 0.8927437642 | W12: ='Evac US101-S loc 104'!L12 -> 2019-10-26T10:00:00 | X12: ='Evac US101-S loc 104'!M12 -> 5.5 | Y12: ='Evac US101-S loc 104'!N12 -> 1982 | Z12: ='Evac US101-S loc 104'!O12 -> 65.1 | AA12: ='Evac US101-S loc 104'!P12 -> 24 | AB12: ='Evac US101-S loc 104'!Q12 -> 100 | AC12: ='Evac US101-S loc 104'!R12 -> 19.75510204 | AD12: ='Evac US101-S loc 104'!S12 -> 991 | AE12: ='Evac US101-S loc 104'!T12 -> 104.7685039 | AF12: ='Evac US101-S loc 104'!U12 -> 12.27522676 | AH12: ='Routine US101-S loc 104'!L12 -> 2019-10-16T10:00:00 | AI12: ='Routine US101-S loc 104'!M12 -> 4.9 | AJ12: ='Routine US101-S loc 104'!N12 -> 1633 | AK12: ='Routine US101-S loc 104'!O12 -> 61.8 | AL12: ='Routine US101-S loc 104'!P12 -> 24 | AM12: ='Routine US101-S loc 104'!Q12 -> 100 | AN12: ='Routine US101-S loc 104'!R12 -> 17.6 | AO12: ='Routine US101-S loc 104'!S12 -> 816.5 | AP12: ='Routine US101-S loc 104'!T12 -> 99.45765812 | AQ12: ='Routine US101-S loc 104'!U12 -> 10.93611111 | AS12: =Theoretical!A12 -> 10 | AT12: =Theoretical!B12 -> 63.57798165 | AU12: =Theoretical!C12 -> 1 | AV12: =Theoretical!D12 -> 635.7798165 | AW12: =Theoretical!E12 -> 6.213699495 | AX12: =Theoretical!F12 -> 102.3190479
A13: ='Evac US101-S loc 104'!A13 -> 2019-10-26T00:55:00 | B13: ='Evac US101-S loc 104'!B13 -> 0.5 | C13: ='Evac US101-S loc 104'!C13 -> 15 | D13: ='Evac US101-S loc 104'!D13 -> 67.1 | E13: ='Evac US101-S loc 104'!E13 -> 2 | F13: ='Evac US101-S loc 104'!F13 -> 100 | G13: ='Evac US101-S loc 104'!G13 -> 1.795918367 | H13: ='Evac US101-S loc 104'!H13 -> 90 | I13: ='Evac US101-S loc 104'!I13 -> 107.9871984 | J13: ='Evac US101-S loc 104'!J13 -> 1.115929705 | L13: ='Routine US101-S loc 104'!A13 -> 2019-10-16T00:55:00 | M13: ='Routine US101-S loc 104'!B13 -> 0.3 | N13: ='Routine US101-S loc 104'!C13 -> 5 | O13: ='Routine US101-S loc 104'!D13 -> 65.6 | P13: ='Routine US101-S loc 104'!E13 -> 2 | Q13: ='Routine US101-S loc 104'!F13 -> 100 | R13: ='Routine US101-S loc 104'!G13 -> 1.07755102 | S13: ='Routine US101-S loc 104'!H13 -> 30 | T13: ='Routine US101-S loc 104'!I13 -> 105.5731775 | U13: ='Routine US101-S loc 104'!J13 -> 0.6695578231 | W13: ='Evac US101-S loc 104'!L13 -> 2019-10-26T11:00:00 | X13: ='Evac US101-S loc 104'!M13 -> 10.2 | Y13: ='Evac US101-S loc 104'!N13 -> 2695 | Z13: ='Evac US101-S loc 104'!O13 -> 55.5 | AA13: ='Evac US101-S loc 104'!P13 -> 24 | AB13: ='Evac US101-S loc 104'!Q13 -> 100 | AC13: ='Evac US101-S loc 104'!R13 -> 36.63673469 | AD13: ='Evac US101-S loc 104'!S13 -> 1347.5 | AE13: ='Evac US101-S loc 104'!T13 -> 89.31877064 | AF13: ='Evac US101-S loc 104'!U13 -> 22.76496599 | AH13: ='Routine US101-S loc 104'!L13 -> 2019-10-16T11:00:00 | AI13: ='Routine US101-S loc 104'!M13 -> 4.9 | AJ13: ='Routine US101-S loc 104'!N13 -> 1589 | AK13: ='Routine US101-S loc 104'!O13 -> 61 | AL13: ='Routine US101-S loc 104'!P13 -> 24 | AM13: ='Routine US101-S loc 104'!Q13 -> 100 | AN13: ='Routine US101-S loc 104'!R13 -> 17.6 | AO13: ='Routine US101-S loc 104'!S13 -> 794.5 | AP13: ='Routine US101-S loc 104'!T13 -> 98.17018034 | AQ13: ='Routine US101-S loc 104'!U13 -> 10.93611111 | AS13: =Theoretical!A13 -> 11 | AT13: =Theoretical!B13 -> 62.93577982 | AU13: =Theoretical!C13 -> 1 | AV13: =Theoretical!D13 -> 692.293578 | AW13: =Theoretical!E13 -> 6.835069444 | AX13: =Theoretical!F13 -> 101.2855222
A14: ='Evac US101-S loc 104'!A14 -> 2019-10-26T01:00:00 | B14: ='Evac US101-S loc 104'!B14 -> 0.4 | C14: ='Evac US101-S loc 104'!C14 -> 14 | D14: ='Evac US101-S loc 104'!D14 -> 66.2 | E14: ='Evac US101-S loc 104'!E14 -> 2 | F14: ='Evac US101-S loc 104'!F14 -> 100 | G14: ='Evac US101-S loc 104'!G14 -> 1.436734694 | H14: ='Evac US101-S loc 104'!H14 -> 84 | I14: ='Evac US101-S loc 104'!I14 -> 106.5387859 | J14: ='Evac US101-S loc 104'!J14 -> 0.8927437642 | L14: ='Routine US101-S loc 104'!A14 -> 2019-10-16T01:00:00 | M14: ='Routine US101-S loc 104'!B14 -> 0.6 | N14: ='Routine US101-S loc 104'!C14 -> 13 | O14: ='Routine US101-S loc 104'!D14 -> 64.9 | P14: ='Routine US101-S loc 104'!E14 -> 2 | Q14: ='Routine US101-S loc 104'!F14 -> 100 | R14: ='Routine US101-S loc 104'!G14 -> 2.155102041 | S14: ='Routine US101-S loc 104'!H14 -> 78 | T14: ='Routine US101-S loc 104'!I14 -> 104.4466345 | U14: ='Routine US101-S loc 104'!J14 -> 1.339115646 | W14: ='Evac US101-S loc 104'!L14 -> 2019-10-26T12:00:00 | X14: ='Evac US101-S loc 104'!M14 -> 31.9 | Y14: ='Evac US101-S loc 104'!N14 -> 1825 | Z14: ='Evac US101-S loc 104'!O14 -> 12.1 | AA14: ='Evac US101-S loc 104'!P14 -> 24 | AB14: ='Evac US101-S loc 104'!Q14 -> 100 | AC14: ='Evac US101-S loc 104'!R14 -> 114.5795918 | AD14: ='Evac US101-S loc 104'!S14 -> 912.5 | AE14: ='Evac US101-S loc 104'!T14 -> 19.47310135 | AF14: ='Evac US101-S loc 104'!U14 -> 71.19631519 | AH14: ='Routine US101-S loc 104'!L14 -> 2019-10-16T12:00:00 | AI14: ='Routine US101-S loc 104'!M14 -> 5.3 | AJ14: ='Routine US101-S loc 104'!N14 -> 1805 | AK14: ='Routine US101-S loc 104'!O14 -> 63.2 | AL14: ='Routine US101-S loc 104'!P14 -> 24 | AM14: ='Routine US101-S loc 104'!Q14 -> 100 | AN14: ='Routine US101-S loc 104'!R14 -> 19.03673469 | AO14: ='Routine US101-S loc 104'!S14 -> 902.5 | AP14: ='Routine US101-S loc 104'!T14 -> 101.7107442 | AQ14: ='Routine US101-S loc 104'!U14 -> 11.82885488 | AS14: =Theoretical!A14 -> 12 | AT14: =Theoretical!B14 -> 62.29357798 | AU14: =Theoretical!C14 -> 1 | AV14: =Theoretical!D14 -> 747.5229358 | AW14: =Theoretical!E14 -> 7.456439394 | AX14: =Theoretical!F14 -> 100.2519965
A15: ='Evac US101-S loc 104'!A15 -> 2019-10-26T01:05:00 | B15: ='Evac US101-S loc 104'!B15 -> 0.2 | C15: ='Evac US101-S loc 104'!C15 -> 8 | D15: ='Evac US101-S loc 104'!D15 -> 68.2 | E15: ='Evac US101-S loc 104'!E15 -> 2 | F15: ='Evac US101-S loc 104'!F15 -> 100 | G15: ='Evac US101-S loc 104'!G15 -> 0.7183673469 | H15: ='Evac US101-S loc 104'!H15 -> 48 | I15: ='Evac US101-S loc 104'!I15 -> 109.7574803 | J15: ='Evac US101-S loc 104'!J15 -> 0.4463718821 | L15: ='Routine US101-S loc 104'!A15 -> 2019-10-16T01:05:00 | M15: ='Routine US101-S loc 104'!B15 -> 0.1 | N15: ='Routine US101-S loc 104'!C15 -> 4 | O15: ='Routine US101-S loc 104'!D15 -> 68 | P15: ='Routine US101-S loc 104'!E15 -> 2 | Q15: ='Routine US101-S loc 104'!F15 -> 100 | R15: ='Routine US101-S loc 104'!G15 -> 0.3591836735 | S15: ='Routine US101-S loc 104'!H15 -> 24 | T15: ='Routine US101-S loc 104'!I15 -> 109.4356109 | U15: ='Routine US101-S loc 104'!J15 -> 0.223185941 | W15: ='Evac US101-S loc 104'!L15 -> 2019-10-26T13:00:00 | X15: ='Evac US101-S loc 104'!M15 -> 35.7 | Y15: ='Evac US101-S loc 104'!N15 -> 1697 | Z15: ='Evac US101-S loc 104'!O15 -> 8.6 | AA15: ='Evac US101-S loc 104'!P15 -> 24 | AB15: ='Evac US101-S loc 104'!Q15 -> 100 | AC15: ='Evac US101-S loc 104'!R15 -> 128.2285714 | AD15: ='Evac US101-S loc 104'!S15 -> 848.5 | AE15: ='Evac US101-S loc 104'!T15 -> 13.84038608 | AF15: ='Evac US101-S loc 104'!U15 -> 79.67738095 | AH15: ='Routine US101-S loc 104'!L15 -> 2019-10-16T13:00:00 | AI15: ='Routine US101-S loc 104'!M15 -> 5.6 | AJ15: ='Routine US101-S loc 104'!N15 -> 1868 | AK15: ='Routine US101-S loc 104'!O15 -> 62.5 | AL15: ='Routine US101-S loc 104'!P15 -> 24 | AM15: ='Routine US101-S loc 104'!Q15 -> 100 | AN15: ='Routine US101-S loc 104'!R15 -> 20.11428571 | AO15: ='Routine US101-S loc 104'!S15 -> 934 | AP15: ='Routine US101-S loc 104'!T15 -> 100.5842012 | AQ15: ='Routine US101-S loc 104'!U15 -> 12.4984127 | AS15: =Theoretical!A15 -> 13 | AT15: =Theoretical!B15 -> 61.65137615 | AU15: =Theoretical!C15 -> 1 | AV15: =Theoretical!D15 -> 801.4678899 | AW15: =Theoretical!E15 -> 8.077809343 | AX15: =Theoretical!F15 -> 99.21847073
A16: ='Evac US101-S loc 104'!A16 -> 2019-10-26T01:10:00 | B16: ='Evac US101-S loc 104'!B16 -> 0.4 | C16: ='Evac US101-S loc 104'!C16 -> 12 | D16: ='Evac US101-S loc 104'!D16 -> 67.7 | E16: ='Evac US101-S loc 104'!E16 -> 2 | F16: ='Evac US101-S loc 104'!F16 -> 100 | G16: ='Evac US101-S loc 104'!G16 -> 1.436734694 | H16: ='Evac US101-S loc 104'!H16 -> 72 | I16: ='Evac US101-S loc 104'!I16 -> 108.9528067 | J16: ='Evac US101-S loc 104'!J16 -> 0.8927437642 | L16: ='Routine US101-S loc 104'!A16 -> 2019-10-16T01:10:00 | M16: ='Routine US101-S loc 104'!B16 -> 0.2 | N16: ='Routine US101-S loc 104'!C16 -> 7 | O16: ='Routine US101-S loc 104'!D16 -> 67 | P16: ='Routine US101-S loc 104'!E16 -> 2 | Q16: ='Routine US101-S loc 104'!F16 -> 100 | R16: ='Routine US101-S loc 104'!G16 -> 0.7183673469 | S16: ='Routine US101-S loc 104'!H16 -> 42 | T16: ='Routine US101-S loc 104'!I16 -> 107.8262637 | U16: ='Routine US101-S loc 104'!J16 -> 0.4463718821 | W16: ='Evac US101-S loc 104'!L16 -> 2019-10-26T14:00:00 | X16: ='Evac US101-S loc 104'!M16 -> 14.4 | Y16: ='Evac US101-S loc 104'!N16 -> 1335 | Z16: ='Evac US101-S loc 104'!O16 -> 17.3 | AA16: ='Evac US101-S loc 104'!P16 -> 24 | AB16: ='Evac US101-S loc 104'!Q16 -> 100 | AC16: ='Evac US101-S loc 104'!R16 -> 51.72244898 | AD16: ='Evac US101-S loc 104'!S16 -> 667.5 | AE16: ='Evac US101-S loc 104'!T16 -> 27.84170688 | AF16: ='Evac US101-S loc 104'!U16 -> 32.13877551 | AH16: ='Routine US101-S loc 104'!L16 -> 2019-10-16T14:00:00 | AI16: ='Routine US101-S loc 104'!M16 -> 6.1 | AJ16: ='Routine US101-S loc 104'!N16 -> 2063 | AK16: ='Routine US101-S loc 104'!O16 -> 60.8 | AL16: ='Routine US101-S loc 104'!P16 -> 24 | AM16: ='Routine US101-S loc 104'!Q16 -> 100 | AN16: ='Routine US101-S loc 104'!R16 -> 21.91020408 | AO16: ='Routine US101-S loc 104'!S16 -> 1031.5 | AP16: ='Routine US101-S loc 104'!T16 -> 97.8483109 | AQ16: ='Routine US101-S loc 104'!U16 -> 13.6143424 | AS16: =Theoretical!A16 -> 14 | AT16: =Theoretical!B16 -> 61.00917431 | AU16: =Theoretical!C16 -> 1 | AV16: =Theoretical!D16 -> 854.1284404 | AW16: =Theoretical!E16 -> 8.699179293 | AX16: =Theoretical!F16 -> 98.18494499
A17: ='Evac US101-S loc 104'!A17 -> 2019-10-26T01:15:00 | B17: ='Evac US101-S loc 104'!B17 -> 0.3 | C17: ='Evac US101-S loc 104'!C17 -> 9 | D17: ='Evac US101-S loc 104'!D17 -> 65.4 | E17: ='Evac US101-S loc 104'!E17 -> 2 | F17: ='Evac US101-S loc 104'!F17 -> 100 | G17: ='Evac US101-S loc 104'!G17 -> 1.07755102 | H17: ='Evac US101-S loc 104'!H17 -> 54 | I17: ='Evac US101-S loc 104'!I17 -> 105.2513081 | J17: ='Evac US101-S loc 104'!J17 -> 0.6695578231 | L17: ='Routine US101-S loc 104'!A17 -> 2019-10-16T01:15:00 | M17: ='Routine US101-S loc 104'!B17 -> 0.3 | N17: ='Routine US101-S loc 104'!C17 -> 8 | O17: ='Routine US101-S loc 104'!D17 -> 66.1 | P17: ='Routine US101-S loc 104'!E17 -> 2 | Q17: ='Routine US101-S loc 104'!F17 -> 100 | R17: ='Routine US101-S loc 104'!G17 -> 1.07755102 | S17: ='Routine US101-S loc 104'!H17 -> 48 | T17: ='Routine US101-S loc 104'!I17 -> 106.3778512 | U17: ='Routine US101-S loc 104'!J17 -> 0.6695578231 | W17: ='Evac US101-S loc 104'!L17 -> 2019-10-26T15:00:00 | X17: ='Evac US101-S loc 104'!M17 -> 2.9 | Y17: ='Evac US101-S loc 104'!N17 -> 1053 | Z17: ='Evac US101-S loc 104'!O17 -> 63.4 | AA17: ='Evac US101-S loc 104'!P17 -> 24 | AB17: ='Evac US101-S loc 104'!Q17 -> 100 | AC17: ='Evac US101-S loc 104'!R17 -> 10.41632653 | AD17: ='Evac US101-S loc 104'!S17 -> 526.5 | AE17: ='Evac US101-S loc 104'!T17 -> 102.0326137 | AF17: ='Evac US101-S loc 104'!U17 -> 6.47239229 | AH17: ='Routine US101-S loc 104'!L17 -> 2019-10-16T15:00:00 | AI17: ='Routine US101-S loc 104'!M17 -> 6.5 | AJ17: ='Routine US101-S loc 104'!N17 -> 2327 | AK17: ='Routine US101-S loc 104'!O17 -> 63.9 | AL17: ='Routine US101-S loc 104'!P17 -> 24 | AM17: ='Routine US101-S loc 104'!Q17 -> 100 | AN17: ='Routine US101-S loc 104'!R17 -> 23.34693878 | AO17: ='Routine US101-S loc 104'!S17 -> 1163.5 | AP17: ='Routine US101-S loc 104'!T17 -> 102.8372873 | AQ17: ='Routine US101-S loc 104'!U17 -> 14.50708617 | AS17: =Theoretical!A17 -> 15 | AT17: =Theoretical!B17 -> 60.36697248 | AU17: =Theoretical!C17 -> 1 | AV17: =Theoretical!D17 -> 905.5045872 | AW17: =Theoretical!E17 -> 9.320549242 | AX17: =Theoretical!F17 -> 97.15141926
A18: ='Evac US101-S loc 104'!A18 -> 2019-10-26T01:20:00 | B18: ='Evac US101-S loc 104'!B18 -> 0.6 | C18: ='Evac US101-S loc 104'!C18 -> 15 | D18: ='Evac US101-S loc 104'!D18 -> 66.1 | E18: ='Evac US101-S loc 104'!E18 -> 2 | F18: ='Evac US101-S loc 104'!F18 -> 100 | G18: ='Evac US101-S loc 104'!G18 -> 2.155102041 | H18: ='Evac US101-S loc 104'!H18 -> 90 | I18: ='Evac US101-S loc 104'!I18 -> 106.3778512 | J18: ='Evac US101-S loc 104'!J18 -> 1.339115646 | L18: ='Routine US101-S loc 104'!A18 -> 2019-10-16T01:20:00 | M18: ='Routine US101-S loc 104'!B18 -> 0.3 | N18: ='Routine US101-S loc 104'!C18 -> 6 | O18: ='Routine US101-S loc 104'!D18 -> 66.9 | P18: ='Routine US101-S loc 104'!E18 -> 2 | Q18: ='Routine US101-S loc 104'!F18 -> 100 | R18: ='Routine US101-S loc 104'!G18 -> 1.07755102 | S18: ='Routine US101-S loc 104'!H18 -> 36 | T18: ='Routine US101-S loc 104'!I18 -> 107.6653289 | U18: ='Routine US101-S loc 104'!J18 -> 0.6695578231 | W18: ='Evac US101-S loc 104'!L18 -> 2019-10-26T16:00:00 | X18: ='Evac US101-S loc 104'!M18 -> 2.2 | Y18: ='Evac US101-S loc 104'!N18 -> 806 | Z18: ='Evac US101-S loc 104'!O18 -> 65.4 | AA18: ='Evac US101-S loc 104'!P18 -> 24 | AB18: ='Evac US101-S loc 104'!Q18 -> 100 | AC18: ='Evac US101-S loc 104'!R18 -> 7.902040816 | AD18: ='Evac US101-S loc 104'!S18 -> 403 | AE18: ='Evac US101-S loc 104'!T18 -> 105.2513081 | AF18: ='Evac US101-S loc 104'!U18 -> 4.910090703 | AH18: ='Routine US101-S loc 104'!L18 -> 2019-10-16T16:00:00 | AI18: ='Routine US101-S loc 104'!M18 -> 6 | AJ18: ='Routine US101-S loc 104'!N18 -> 2233 | AK18: ='Routine US101-S loc 104'!O18 -> 66.3 | AL18: ='Routine US101-S loc 104'!P18 -> 24 | AM18: ='Routine US101-S loc 104'!Q18 -> 100 | AN18: ='Routine US101-S loc 104'!R18 -> 21.55102041 | AO18: ='Routine US101-S loc 104'!S18 -> 1116.5 | AP18: ='Routine US101-S loc 104'!T18 -> 106.6997206 | AQ18: ='Routine US101-S loc 104'!U18 -> 13.39115646 | AS18: =Theoretical!A18 -> 16 | AT18: =Theoretical!B18 -> 59.72477064 | AU18: =Theoretical!C18 -> 1 | AV18: =Theoretical!D18 -> 955.5963303 | AW18: =Theoretical!E18 -> 9.941919192 | AX18: =Theoretical!F18 -> 96.11789352
A19: ='Evac US101-S loc 104'!A19 -> 2019-10-26T01:25:00 | B19: ='Evac US101-S loc 104'!B19 -> 0.5 | C19: ='Evac US101-S loc 104'!C19 -> 13 | D19: ='Evac US101-S loc 104'!D19 -> 66.2 | E19: ='Evac US101-S loc 104'!E19 -> 2 | F19: ='Evac US101-S loc 104'!F19 -> 100 | G19: ='Evac US101-S loc 104'!G19 -> 1.795918367 | H19: ='Evac US101-S loc 104'!H19 -> 78 | I19: ='Evac US101-S loc 104'!I19 -> 106.5387859 | J19: ='Evac US101-S loc 104'!J19 -> 1.115929705 | L19: ='Routine US101-S loc 104'!A19 -> 2019-10-16T01:25:00 | M19: ='Routine US101-S loc 104'!B19 -> 0.3 | N19: ='Routine US101-S loc 104'!C19 -> 7 | O19: ='Routine US101-S loc 104'!D19 -> 66.6 | P19: ='Routine US101-S loc 104'!E19 -> 2 | Q19: ='Routine US101-S loc 104'!F19 -> 100 | R19: ='Routine US101-S loc 104'!G19 -> 1.07755102 | S19: ='Routine US101-S loc 104'!H19 -> 42 | T19: ='Routine US101-S loc 104'!I19 -> 107.1825248 | U19: ='Routine US101-S loc 104'!J19 -> 0.6695578231 | W19: ='Evac US101-S loc 104'!L19 -> 2019-10-26T17:00:00 | X19: ='Evac US101-S loc 104'!M19 -> 1.7 | Y19: ='Evac US101-S loc 104'!N19 -> 623 | Z19: ='Evac US101-S loc 104'!O19 -> 66.8 | AA19: ='Evac US101-S loc 104'!P19 -> 24 | AB19: ='Evac US101-S loc 104'!Q19 -> 100 | AC19: ='Evac US101-S loc 104'!R19 -> 6.106122449 | AD19: ='Evac US101-S loc 104'!S19 -> 311.5 | AE19: ='Evac US101-S loc 104'!T19 -> 107.5043942 | AF19: ='Evac US101-S loc 104'!U19 -> 3.794160998 | AH19: ='Routine US101-S loc 104'!L19 -> 2019-10-16T17:00:00 | AI19: ='Routine US101-S loc 104'!M19 -> 5.7 | AJ19: ='Routine US101-S loc 104'!N19 -> 2099 | AK19: ='Routine US101-S loc 104'!O19 -> 66 | AL19: ='Routine US101-S loc 104'!P19 -> 24 | AM19: ='Routine US101-S loc 104'!Q19 -> 100 | AN19: ='Routine US101-S loc 104'!R19 -> 20.47346939 | AO19: ='Routine US101-S loc 104'!S19 -> 1049.5 | AP19: ='Routine US101-S loc 104'!T19 -> 106.2169164 | AQ19: ='Routine US101-S loc 104'!U19 -> 12.72159864 | AS19: =Theoretical!A19 -> 17 | AT19: =Theoretical!B19 -> 59.08256881 | AU19: =Theoretical!C19 -> 1 | AV19: =Theoretical!D19 -> 1004.40367 | AW19: =Theoretical!E19 -> 10.56328914 | AX19: =Theoretical!F19 -> 95.08436778
A20: ='Evac US101-S loc 104'!A20 -> 2019-10-26T01:30:00 | B20: ='Evac US101-S loc 104'!B20 -> 0.4 | C20: ='Evac US101-S loc 104'!C20 -> 13 | D20: ='Evac US101-S loc 104'!D20 -> 66.6 | E20: ='Evac US101-S loc 104'!E20 -> 2 | F20: ='Evac US101-S loc 104'!F20 -> 100 | G20: ='Evac US101-S loc 104'!G20 -> 1.436734694 | H20: ='Evac US101-S loc 104'!H20 -> 78 | I20: ='Evac US101-S loc 104'!I20 -> 107.1825248 | J20: ='Evac US101-S loc 104'!J20 -> 0.8927437642 | L20: ='Routine US101-S loc 104'!A20 -> 2019-10-16T01:30:00 | M20: ='Routine US101-S loc 104'!B20 -> 0.5 | N20: ='Routine US101-S loc 104'!C20 -> 11 | O20: ='Routine US101-S loc 104'!D20 -> 65.5 | P20: ='Routine US101-S loc 104'!E20 -> 2 | Q20: ='Routine US101-S loc 104'!F20 -> 100 | R20: ='Routine US101-S loc 104'!G20 -> 1.795918367 | S20: ='Routine US101-S loc 104'!H20 -> 66 | T20: ='Routine US101-S loc 104'!I20 -> 105.4122428 | U20: ='Routine US101-S loc 104'!J20 -> 1.115929705 | W20: ='Evac US101-S loc 104'!L20 -> 2019-10-26T18:00:00 | X20: ='Evac US101-S loc 104'!M20 -> 1.8 | Y20: ='Evac US101-S loc 104'!N20 -> 633 | Z20: ='Evac US101-S loc 104'!O20 -> 65.3 | AA20: ='Evac US101-S loc 104'!P20 -> 24 | AB20: ='Evac US101-S loc 104'!Q20 -> 100 | AC20: ='Evac US101-S loc 104'!R20 -> 6.465306122 | AD20: ='Evac US101-S loc 104'!S20 -> 316.5 | AE20: ='Evac US101-S loc 104'!T20 -> 105.0903734 | AF20: ='Evac US101-S loc 104'!U20 -> 4.017346939 | AH20: ='Routine US101-S loc 104'!L20 -> 2019-10-16T18:00:00 | AI20: ='Routine US101-S loc 104'!M20 -> 3.8 | AJ20: ='Routine US101-S loc 104'!N20 -> 1403 | AK20: ='Routine US101-S loc 104'!O20 -> 68.1 | AL20: ='Routine US101-S loc 104'!P20 -> 24 | AM20: ='Routine US101-S loc 104'!Q20 -> 100 | AN20: ='Routine US101-S loc 104'!R20 -> 13.64897959 | AO20: ='Routine US101-S loc 104'!S20 -> 701.5 | AP20: ='Routine US101-S loc 104'!T20 -> 109.5965456 | AQ20: ='Routine US101-S loc 104'!U20 -> 8.48106576 | AS20: =Theoretical!A20 -> 18 | AT20: =Theoretical!B20 -> 58.44036697 | AU20: =Theoretical!C20 -> 1 | AV20: =Theoretical!D20 -> 1051.926606 | AW20: =Theoretical!E20 -> 11.18465909 | AX20: =Theoretical!F20 -> 94.05084205
A21: ='Evac US101-S loc 104'!A21 -> 2019-10-26T01:35:00 | B21: ='Evac US101-S loc 104'!B21 -> 0.4 | C21: ='Evac US101-S loc 104'!C21 -> 13 | D21: ='Evac US101-S loc 104'!D21 -> 67.5 | E21: ='Evac US101-S loc 104'!E21 -> 2 | F21: ='Evac US101-S loc 104'!F21 -> 100 | G21: ='Evac US101-S loc 104'!G21 -> 1.436734694 | H21: ='Evac US101-S loc 104'!H21 -> 78 | I21: ='Evac US101-S loc 104'!I21 -> 108.6309373 | J21: ='Evac US101-S loc 104'!J21 -> 0.8927437642 | L21: ='Routine US101-S loc 104'!A21 -> 2019-10-16T01:35:00 | M21: ='Routine US101-S loc 104'!B21 -> 0.6 | N21: ='Routine US101-S loc 104'!C21 -> 13 | O21: ='Routine US101-S loc 104'!D21 -> 66.6 | P21: ='Routine US101-S loc 104'!E21 -> 2 | Q21: ='Routine US101-S loc 104'!F21 -> 100 | R21: ='Routine US101-S loc 104'!G21 -> 2.155102041 | S21: ='Routine US101-S loc 104'!H21 -> 78 | T21: ='Routine US101-S loc 104'!I21 -> 107.1825248 | U21: ='Routine US101-S loc 104'!J21 -> 1.339115646 | W21: ='Evac US101-S loc 104'!L21 -> 2019-10-26T19:00:00 | X21: ='Evac US101-S loc 104'!M21 -> 1.7 | Y21: ='Evac US101-S loc 104'!N21 -> 615 | Z21: ='Evac US101-S loc 104'!O21 -> 64.6 | AA21: ='Evac US101-S loc 104'!P21 -> 24 | AB21: ='Evac US101-S loc 104'!Q21 -> 100 | AC21: ='Evac US101-S loc 104'!R21 -> 6.106122449 | AD21: ='Evac US101-S loc 104'!S21 -> 307.5 | AE21: ='Evac US101-S loc 104'!T21 -> 103.9638303 | AF21: ='Evac US101-S loc 104'!U21 -> 3.794160998 | AH21: ='Routine US101-S loc 104'!L21 -> 2019-10-16T19:00:00 | AI21: ='Routine US101-S loc 104'!M21 -> 2.7 | AJ21: ='Routine US101-S loc 104'!N21 -> 985 | AK21: ='Routine US101-S loc 104'!O21 -> 66.7 | AL21: ='Routine US101-S loc 104'!P21 -> 24 | AM21: ='Routine US101-S loc 104'!Q21 -> 100 | AN21: ='Routine US101-S loc 104'!R21 -> 9.697959184 | AO21: ='Routine US101-S loc 104'!S21 -> 492.5 | AP21: ='Routine US101-S loc 104'!T21 -> 107.3434595 | AQ21: ='Routine US101-S loc 104'!U21 -> 6.026020408 | AS21: =Theoretical!A21 -> 19 | AT21: =Theoretical!B21 -> 57.79816514 | AU21: =Theoretical!C21 -> 1 | AV21: =Theoretical!D21 -> 1098.165138 | AW21: =Theoretical!E21 -> 11.80602904 | AX21: =Theoretical!F21 -> 93.01731631
A22: ='Evac US101-S loc 104'!A22 -> 2019-10-26T01:40:00 | B22: ='Evac US101-S loc 104'!B22 -> 0.2 | C22: ='Evac US101-S loc 104'!C22 -> 4 | D22: ='Evac US101-S loc 104'!D22 -> 64.8 | E22: ='Evac US101-S loc 104'!E22 -> 2 | F22: ='Evac US101-S loc 104'!F22 -> 100 | G22: ='Evac US101-S loc 104'!G22 -> 0.7183673469 | H22: ='Evac US101-S loc 104'!H22 -> 24 | I22: ='Evac US101-S loc 104'!I22 -> 104.2856998 | J22: ='Evac US101-S loc 104'!J22 -> 0.4463718821 | L22: ='Routine US101-S loc 104'!A22 -> 2019-10-16T01:40:00 | M22: ='Routine US101-S loc 104'!B22 -> 0.4 | N22: ='Routine US101-S loc 104'!C22 -> 12 | O22: ='Routine US101-S loc 104'!D22 -> 66.8 | P22: ='Routine US101-S loc 104'!E22 -> 2 | Q22: ='Routine US101-S loc 104'!F22 -> 100 | R22: ='Routine US101-S loc 104'!G22 -> 1.436734694 | S22: ='Routine US101-S loc 104'!H22 -> 72 | T22: ='Routine US101-S loc 104'!I22 -> 107.5043942 | U22: ='Routine US101-S loc 104'!J22 -> 0.8927437642 | W22: ='Evac US101-S loc 104'!L22 -> 2019-10-26T20:00:00 | X22: ='Evac US101-S loc 104'!M22 -> 1.7 | Y22: ='Evac US101-S loc 104'!N22 -> 580 | Z22: ='Evac US101-S loc 104'!O22 -> 65 | AA22: ='Evac US101-S loc 104'!P22 -> 24 | AB22: ='Evac US101-S loc 104'!Q22 -> 100 | AC22: ='Evac US101-S loc 104'!R22 -> 6.106122449 | AD22: ='Evac US101-S loc 104'!S22 -> 290 | AE22: ='Evac US101-S loc 104'!T22 -> 104.6075692 | AF22: ='Evac US101-S loc 104'!U22 -> 3.794160998 | AH22: ='Routine US101-S loc 104'!L22 -> 2019-10-16T20:00:00 | AI22: ='Routine US101-S loc 104'!M22 -> 1.9 | AJ22: ='Routine US101-S loc 104'!N22 -> 697 | AK22: ='Routine US101-S loc 104'!O22 -> 66.6 | AL22: ='Routine US101-S loc 104'!P22 -> 24 | AM22: ='Routine US101-S loc 104'!Q22 -> 100 | AN22: ='Routine US101-S loc 104'!R22 -> 6.824489796 | AO22: ='Routine US101-S loc 104'!S22 -> 348.5 | AP22: ='Routine US101-S loc 104'!T22 -> 107.1825248 | AQ22: ='Routine US101-S loc 104'!U22 -> 4.24053288 | AS22: =Theoretical!A22 -> 20 | AT22: =Theoretical!B22 -> 57.1559633 | AU22: =Theoretical!C22 -> 1 | AV22: =Theoretical!D22 -> 1143.119266 | AW22: =Theoretical!E22 -> 12.42739899 | AX22: =Theoretical!F22 -> 91.98379057
A23: ='Evac US101-S loc 104'!A23 -> 2019-10-26T01:45:00 | B23: ='Evac US101-S loc 104'!B23 -> 0.5 | C23: ='Evac US101-S loc 104'!C23 -> 13 | D23: ='Evac US101-S loc 104'!D23 -> 65.3 | E23: ='Evac US101-S loc 104'!E23 -> 2 | F23: ='Evac US101-S loc 104'!F23 -> 100 | G23: ='Evac US101-S loc 104'!G23 -> 1.795918367 | H23: ='Evac US101-S loc 104'!H23 -> 78 | I23: ='Evac US101-S loc 104'!I23 -> 105.0903734 | J23: ='Evac US101-S loc 104'!J23 -> 1.115929705 | L23: ='Routine US101-S loc 104'!A23 -> 2019-10-16T01:45:00 | M23: ='Routine US101-S loc 104'!B23 -> 0.5 | N23: ='Routine US101-S loc 104'!C23 -> 13 | O23: ='Routine US101-S loc 104'!D23 -> 66.5 | P23: ='Routine US101-S loc 104'!E23 -> 2 | Q23: ='Routine US101-S loc 104'!F23 -> 100 | R23: ='Routine US101-S loc 104'!G23 -> 1.795918367 | S23: ='Routine US101-S loc 104'!H23 -> 78 | T23: ='Routine US101-S loc 104'!I23 -> 107.02159 | U23: ='Routine US101-S loc 104'!J23 -> 1.115929705 | W23: ='Evac US101-S loc 104'!L23 -> 2019-10-26T21:00:00 | X23: ='Evac US101-S loc 104'!M23 -> 1.3 | Y23: ='Evac US101-S loc 104'!N23 -> 497 | Z23: ='Evac US101-S loc 104'!O23 -> 66.2 | AA23: ='Evac US101-S loc 104'!P23 -> 24 | AB23: ='Evac US101-S loc 104'!Q23 -> 100 | AC23: ='Evac US101-S loc 104'!R23 -> 4.669387755 | AD23: ='Evac US101-S loc 104'!S23 -> 248.5 | AE23: ='Evac US101-S loc 104'!T23 -> 106.5387859 | AF23: ='Evac US101-S loc 104'!U23 -> 2.901417234 | AH23: ='Routine US101-S loc 104'!L23 -> 2019-10-16T21:00:00 | AI23: ='Routine US101-S loc 104'!M23 -> 1.3 | AJ23: ='Routine US101-S loc 104'!N23 -> 480 | AK23: ='Routine US101-S loc 104'!O23 -> 67.1 | AL23: ='Routine US101-S loc 104'!P23 -> 24 | AM23: ='Routine US101-S loc 104'!Q23 -> 100 | AN23: ='Routine US101-S loc 104'!R23 -> 4.669387755 | AO23: ='Routine US101-S loc 104'!S23 -> 240 | AP23: ='Routine US101-S loc 104'!T23 -> 107.9871984 | AQ23: ='Routine US101-S loc 104'!U23 -> 2.901417234 | AS23: =Theoretical!A23 -> 21 | AT23: =Theoretical!B23 -> 56.51376147 | AU23: =Theoretical!C23 -> 1 | AV23: =Theoretical!D23 -> 1186.788991 | AW23: =Theoretical!E23 -> 13.04876894 | AX23: =Theoretical!F23 -> 90.95026484
A24: ='Evac US101-S loc 104'!A24 -> 2019-10-26T01:50:00 | B24: ='Evac US101-S loc 104'!B24 -> 0.3 | C24: ='Evac US101-S loc 104'!C24 -> 11 | D24: ='Evac US101-S loc 104'!D24 -> 67.9 | E24: ='Evac US101-S loc 104'!E24 -> 2 | F24: ='Evac US101-S loc 104'!F24 -> 100 | G24: ='Evac US101-S loc 104'!G24 -> 1.07755102 | H24: ='Evac US101-S loc 104'!H24 -> 66 | I24: ='Evac US101-S loc 104'!I24 -> 109.2746761 | J24: ='Evac US101-S loc 104'!J24 -> 0.6695578231 | L24: ='Routine US101-S loc 104'!A24 -> 2019-10-16T01:50:00 | M24: ='Routine US101-S loc 104'!B24 -> 0.3 | N24: ='Routine US101-S loc 104'!C24 -> 6 | O24: ='Routine US101-S loc 104'!D24 -> 66.4 | P24: ='Routine US101-S loc 104'!E24 -> 2 | Q24: ='Routine US101-S loc 104'!F24 -> 100 | R24: ='Routine US101-S loc 104'!G24 -> 1.07755102 | S24: ='Routine US101-S loc 104'!H24 -> 36 | T24: ='Routine US101-S loc 104'!I24 -> 106.8606553 | U24: ='Routine US101-S loc 104'!J24 -> 0.6695578231 | W24: ='Evac US101-S loc 104'!L24 -> 2019-10-26T22:00:00 | X24: ='Evac US101-S loc 104'!M24 -> 1 | Y24: ='Evac US101-S loc 104'!N24 -> 365 | Z24: ='Evac US101-S loc 104'!O24 -> 66.2 | AA24: ='Evac US101-S loc 104'!P24 -> 24 | AB24: ='Evac US101-S loc 104'!Q24 -> 100 | AC24: ='Evac US101-S loc 104'!R24 -> 3.591836735 | AD24: ='Evac US101-S loc 104'!S24 -> 182.5 | AE24: ='Evac US101-S loc 104'!T24 -> 106.5387859 | AF24: ='Evac US101-S loc 104'!U24 -> 2.23185941 | AH24: ='Routine US101-S loc 104'!L24 -> 2019-10-16T22:00:00 | AI24: ='Routine US101-S loc 104'!M24 -> 0.8 | AJ24: ='Routine US101-S loc 104'!N24 -> 314 | AK24: ='Routine US101-S loc 104'!O24 -> 67.7 | AL24: ='Routine US101-S loc 104'!P24 -> 24 | AM24: ='Routine US101-S loc 104'!Q24 -> 100 | AN24: ='Routine US101-S loc 104'!R24 -> 2.873469388 | AO24: ='Routine US101-S loc 104'!S24 -> 157 | AP24: ='Routine US101-S loc 104'!T24 -> 108.9528067 | AQ24: ='Routine US101-S loc 104'!U24 -> 1.785487528 | AS24: =Theoretical!A24 -> 22 | AT24: =Theoretical!B24 -> 55.87155963 | AU24: =Theoretical!C24 -> 1 | AV24: =Theoretical!D24 -> 1229.174312 | AW24: =Theoretical!E24 -> 13.67013889 | AX24: =Theoretical!F24 -> 89.9167391
A25: ='Evac US101-S loc 104'!A25 -> 2019-10-26T01:55:00 | B25: ='Evac US101-S loc 104'!B25 -> 0.5 | C25: ='Evac US101-S loc 104'!C25 -> 11 | D25: ='Evac US101-S loc 104'!D25 -> 65.8 | E25: ='Evac US101-S loc 104'!E25 -> 2 | F25: ='Evac US101-S loc 104'!F25 -> 100 | G25: ='Evac US101-S loc 104'!G25 -> 1.795918367 | H25: ='Evac US101-S loc 104'!H25 -> 66 | I25: ='Evac US101-S loc 104'!I25 -> 105.895047 | J25: ='Evac US101-S loc 104'!J25 -> 1.115929705 | L25: ='Routine US101-S loc 104'!A25 -> 2019-10-16T01:55:00 | M25: ='Routine US101-S loc 104'!B25 -> 0.3 | N25: ='Routine US101-S loc 104'!C25 -> 8 | O25: ='Routine US101-S loc 104'!D25 -> 67.9 | P25: ='Routine US101-S loc 104'!E25 -> 2 | Q25: ='Routine US101-S loc 104'!F25 -> 100 | R25: ='Routine US101-S loc 104'!G25 -> 1.07755102 | S25: ='Routine US101-S loc 104'!H25 -> 48 | T25: ='Routine US101-S loc 104'!I25 -> 109.2746761 | U25: ='Routine US101-S loc 104'!J25 -> 0.6695578231 | W25: ='Evac US101-S loc 104'!L25 -> 2019-10-26T23:00:00 | X25: ='Evac US101-S loc 104'!M25 -> 0.7 | Y25: ='Evac US101-S loc 104'!N25 -> 254 | Z25: ='Evac US101-S loc 104'!O25 -> 66.6 | AA25: ='Evac US101-S loc 104'!P25 -> 24 | AB25: ='Evac US101-S loc 104'!Q25 -> 100 | AC25: ='Evac US101-S loc 104'!R25 -> 2.514285714 | AD25: ='Evac US101-S loc 104'!S25 -> 127 | AE25: ='Evac US101-S loc 104'!T25 -> 107.1825248 | AF25: ='Evac US101-S loc 104'!U25 -> 1.562301587 | AH25: ='Routine US101-S loc 104'!L25 -> 2019-10-16T23:00:00 | AI25: ='Routine US101-S loc 104'!M25 -> 0.6 | AJ25: ='Routine US101-S loc 104'!N25 -> 224 | AK25: ='Routine US101-S loc 104'!O25 -> 67.3 | AL25: ='Routine US101-S loc 104'!P25 -> 24 | AM25: ='Routine US101-S loc 104'!Q25 -> 100 | AN25: ='Routine US101-S loc 104'!R25 -> 2.155102041 | AO25: ='Routine US101-S loc 104'!S25 -> 112 | AP25: ='Routine US101-S loc 104'!T25 -> 108.3090678 | AQ25: ='Routine US101-S loc 104'!U25 -> 1.339115646 | AS25: =Theoretical!A25 -> 23 | AT25: =Theoretical!B25 -> 55.2293578 | AU25: =Theoretical!C25 -> 1 | AV25: =Theoretical!D25 -> 1270.275229 | AW25: =Theoretical!E25 -> 14.29150884 | AX25: =Theoretical!F25 -> 88.88321336
A26: ='Evac US101-S loc 104'!A26 -> 2019-10-26T02:00:00 | B26: ='Evac US101-S loc 104'!B26 -> 0.5 | C26: ='Evac US101-S loc 104'!C26 -> 15 | D26: ='Evac US101-S loc 104'!D26 -> 67.4 | E26: ='Evac US101-S loc 104'!E26 -> 2 | F26: ='Evac US101-S loc 104'!F26 -> 100 | G26: ='Evac US101-S loc 104'!G26 -> 1.795918367 | H26: ='Evac US101-S loc 104'!H26 -> 90 | I26: ='Evac US101-S loc 104'!I26 -> 108.4700025 | J26: ='Evac US101-S loc 104'!J26 -> 1.115929705 | L26: ='Routine US101-S loc 104'!A26 -> 2019-10-16T02:00:00 | M26: ='Routine US101-S loc 104'!B26 -> 0.3 | N26: ='Routine US101-S loc 104'!C26 -> 9 | O26: ='Routine US101-S loc 104'!D26 -> 68.5 | P26: ='Routine US101-S loc 104'!E26 -> 2 | Q26: ='Routine US101-S loc 104'!F26 -> 100 | R26: ='Routine US101-S loc 104'!G26 -> 1.07755102 | S26: ='Routine US101-S loc 104'!H26 -> 54 | T26: ='Routine US101-S loc 104'!I26 -> 110.2402845 | U26: ='Routine US101-S loc 104'!J26 -> 0.6695578231 | W26: ='Evac US101-S Hopper Ave 1'!L2 -> 10-23-2019 0:00 | X26: ='Evac US101-S Hopper Ave 1'!M2 -> 0.5 | Y26: ='Evac US101-S Hopper Ave 1'!N2 -> 238 | Z26: ='Evac US101-S Hopper Ave 1'!O2 -> 66.4 | AA26: ='Evac US101-S Hopper Ave 1'!P2 -> 36 | AB26: ='Evac US101-S Hopper Ave 1'!Q2 -> 100 | AC26: ='Evac US101-S Hopper Ave 1'!R2 -> 1.795918367 | AD26: ='Evac US101-S Hopper Ave 1'!S2 -> 79.33333333 | AE26: ='Evac US101-S Hopper Ave 1'!T2 -> 106.8606553 | AF26: ='Evac US101-S Hopper Ave 1'!U2 -> 1.115929705 | AH26: ='Routine US101-S Hopper Ave 1'!L2 -> 2019-10-16 | AI26: ='Routine US101-S Hopper Ave 1'!M2 -> 0.5 | AJ26: ='Routine US101-S Hopper Ave 1'!N2 -> 234 | AK26: ='Routine US101-S Hopper Ave 1'!O2 -> 66.5 | AL26: ='Routine US101-S Hopper Ave 1'!P2 -> 36 | AM26: ='Routine US101-S Hopper Ave 1'!Q2 -> 100 | AN26: ='Routine US101-S Hopper Ave 1'!R2 -> 1.795918367 | AO26: ='Routine US101-S Hopper Ave 1'!S2 -> 78 | AP26: ='Routine US101-S Hopper Ave 1'!T2 -> 107.02159 | AQ26: ='Routine US101-S Hopper Ave 1'!U2 -> 1.115929705 | AS26: =Theoretical!A26 -> 24 | AT26: =Theoretical!B26 -> 54.58715596 | AU26: =Theoretical!C26 -> 1 | AV26: =Theoretical!D26 -> 1310.091743 | AW26: =Theoretical!E26 -> 14.91287879 | AX26: =Theoretical!F26 -> 87.84968763
A27: ='Evac US101-S loc 104'!A27 -> 2019-10-26T02:05:00 | B27: ='Evac US101-S loc 104'!B27 -> 0.4 | C27: ='Evac US101-S loc 104'!C27 -> 11 | D27: ='Evac US101-S loc 104'!D27 -> 66.1 | E27: ='Evac US101-S loc 104'!E27 -> 2 | F27: ='Evac US101-S loc 104'!F27 -> 100 | G27: ='Evac US101-S loc 104'!G27 -> 1.436734694 | H27: ='Evac US101-S loc 104'!H27 -> 66 | I27: ='Evac US101-S loc 104'!I27 -> 106.3778512 | J27: ='Evac US101-S loc 104'!J27 -> 0.8927437642 | L27: ='Routine US101-S loc 104'!A27 -> 2019-10-16T02:05:00 | M27: ='Routine US101-S loc 104'!B27 -> 0.6 | N27: ='Routine US101-S loc 104'!C27 -> 14 | O27: ='Routine US101-S loc 104'!D27 -> 65.7 | P27: ='Routine US101-S loc 104'!E27 -> 2 | Q27: ='Routine US101-S loc 104'!F27 -> 100 | R27: ='Routine US101-S loc 104'!G27 -> 2.155102041 | S27: ='Routine US101-S loc 104'!H27 -> 84 | T27: ='Routine US101-S loc 104'!I27 -> 105.7341123 | U27: ='Routine US101-S loc 104'!J27 -> 1.339115646 | W27: ='Evac US101-S Hopper Ave 1'!L3 -> 10-23-2019 1:00 | X27: ='Evac US101-S Hopper Ave 1'!M3 -> 0.4 | Y27: ='Evac US101-S Hopper Ave 1'!N3 -> 138 | Z27: ='Evac US101-S Hopper Ave 1'!O3 -> 66.2 | AA27: ='Evac US101-S Hopper Ave 1'!P3 -> 36 | AB27: ='Evac US101-S Hopper Ave 1'!Q3 -> 100 | AC27: ='Evac US101-S Hopper Ave 1'!R3 -> 1.436734694 | AD27: ='Evac US101-S Hopper Ave 1'!S3 -> 46 | AE27: ='Evac US101-S Hopper Ave 1'!T3 -> 106.5387859 | AF27: ='Evac US101-S Hopper Ave 1'!U3 -> 0.8927437642 | AH27: ='Routine US101-S Hopper Ave 1'!L3 -> 2019-10-16T01:00:00 | AI27: ='Routine US101-S Hopper Ave 1'!M3 -> 0.4 | AJ27: ='Routine US101-S Hopper Ave 1'!N3 -> 158 | AK27: ='Routine US101-S Hopper Ave 1'!O3 -> 65.5 | AL27: ='Routine US101-S Hopper Ave 1'!P3 -> 36 | AM27: ='Routine US101-S Hopper Ave 1'!Q3 -> 100 | AN27: ='Routine US101-S Hopper Ave 1'!R3 -> 1.436734694 | AO27: ='Routine US101-S Hopper Ave 1'!S3 -> 52.66666667 | AP27: ='Routine US101-S Hopper Ave 1'!T3 -> 105.4122428 | AQ27: ='Routine US101-S Hopper Ave 1'!U3 -> 0.8927437642 | AS27: =Theoretical!A27 -> 25 | AT27: =Theoretical!B27 -> 53.94495413 | AU27: =Theoretical!C27 -> 1 | AV27: =Theoretical!D27 -> 1348.623853 | AW27: =Theoretical!E27 -> 15.53424874 | AX27: =Theoretical!F27 -> 86.81616189
A28: ='Evac US101-S loc 104'!A28 -> 2019-10-26T02:10:00 | B28: ='Evac US101-S loc 104'!B28 -> 0.2 | C28: ='Evac US101-S loc 104'!C28 -> 8 | D28: ='Evac US101-S loc 104'!D28 -> 66 | E28: ='Evac US101-S loc 104'!E28 -> 2 | F28: ='Evac US101-S loc 104'!F28 -> 100 | G28: ='Evac US101-S loc 104'!G28 -> 0.7183673469 | H28: ='Evac US101-S loc 104'!H28 -> 48 | I28: ='Evac US101-S loc 104'!I28 -> 106.2169164 | J28: ='Evac US101-S loc 104'!J28 -> 0.4463718821 | L28: ='Routine US101-S loc 104'!A28 -> 2019-10-16T02:10:00 | M28: ='Routine US101-S loc 104'!B28 -> 0.7 | N28: ='Routine US101-S loc 104'!C28 -> 19 | O28: ='Routine US101-S loc 104'!D28 -> 67 | P28: ='Routine US101-S loc 104'!E28 -> 2 | Q28: ='Routine US101-S loc 104'!F28 -> 100 | R28: ='Routine US101-S loc 104'!G28 -> 2.514285714 | S28: ='Routine US101-S loc 104'!H28 -> 114 | T28: ='Routine US101-S loc 104'!I28 -> 107.8262637 | U28: ='Routine US101-S loc 104'!J28 -> 1.562301587 | W28: ='Evac US101-S Hopper Ave 1'!L4 -> 10-23-2019 2:00 | X28: ='Evac US101-S Hopper Ave 1'!M4 -> 0.5 | Y28: ='Evac US101-S Hopper Ave 1'!N4 -> 182 | Z28: ='Evac US101-S Hopper Ave 1'!O4 -> 66.3 | AA28: ='Evac US101-S Hopper Ave 1'!P4 -> 36 | AB28: ='Evac US101-S Hopper Ave 1'!Q4 -> 100 | AC28: ='Evac US101-S Hopper Ave 1'!R4 -> 1.795918367 | AD28: ='Evac US101-S Hopper Ave 1'!S4 -> 60.66666667 | AE28: ='Evac US101-S Hopper Ave 1'!T4 -> 106.6997206 | AF28: ='Evac US101-S Hopper Ave 1'!U4 -> 1.115929705 | AH28: ='Routine US101-S Hopper Ave 1'!L4 -> 2019-10-16T02:00:00 | AI28: ='Routine US101-S Hopper Ave 1'!M4 -> 0.5 | AJ28: ='Routine US101-S Hopper Ave 1'!N4 -> 179 | AK28: ='Routine US101-S Hopper Ave 1'!O4 -> 66.3 | AL28: ='Routine US101-S Hopper Ave 1'!P4 -> 36 | AM28: ='Routine US101-S Hopper Ave 1'!Q4 -> 100 | AN28: ='Routine US101-S Hopper Ave 1'!R4 -> 1.795918367 | AO28: ='Routine US101-S Hopper Ave 1'!S4 -> 59.66666667 | AP28: ='Routine US101-S Hopper Ave 1'!T4 -> 106.6997206 | AQ28: ='Routine US101-S Hopper Ave 1'!U4 -> 1.115929705 | AS28: =Theoretical!A28 -> 26 | AT28: =Theoretical!B28 -> 53.30275229 | AU28: =Theoretical!C28 -> 1 | AV28: =Theoretical!D28 -> 1385.87156 | AW28: =Theoretical!E28 -> 16.15561869 | AX28: =Theoretical!F28 -> 85.78263615
A29: ='Evac US101-S loc 104'!A29 -> 2019-10-26T02:15:00 | B29: ='Evac US101-S loc 104'!B29 -> 0.5 | C29: ='Evac US101-S loc 104'!C29 -> 15 | D29: ='Evac US101-S loc 104'!D29 -> 67 | E29: ='Evac US101-S loc 104'!E29 -> 2 | F29: ='Evac US101-S loc 104'!F29 -> 100 | G29: ='Evac US101-S loc 104'!G29 -> 1.795918367 | H29: ='Evac US101-S loc 104'!H29 -> 90 | I29: ='Evac US101-S loc 104'!I29 -> 107.8262637 | J29: ='Evac US101-S loc 104'!J29 -> 1.115929705 | L29: ='Routine US101-S loc 104'!A29 -> 2019-10-16T02:15:00 | M29: ='Routine US101-S loc 104'!B29 -> 1.2 | N29: ='Routine US101-S loc 104'!C29 -> 23 | O29: ='Routine US101-S loc 104'!D29 -> 65.2 | P29: ='Routine US101-S loc 104'!E29 -> 2 | Q29: ='Routine US101-S loc 104'!F29 -> 100 | R29: ='Routine US101-S loc 104'!G29 -> 4.310204082 | S29: ='Routine US101-S loc 104'!H29 -> 138 | T29: ='Routine US101-S loc 104'!I29 -> 104.9294387 | U29: ='Routine US101-S loc 104'!J29 -> 2.678231293 | W29: ='Evac US101-S Hopper Ave 1'!L5 -> 10-23-2019 3:00 | X29: ='Evac US101-S Hopper Ave 1'!M5 -> 0.8 | Y29: ='Evac US101-S Hopper Ave 1'!N5 -> 276 | Z29: ='Evac US101-S Hopper Ave 1'!O5 -> 66.6 | AA29: ='Evac US101-S Hopper Ave 1'!P5 -> 36 | AB29: ='Evac US101-S Hopper Ave 1'!Q5 -> 100 | AC29: ='Evac US101-S Hopper Ave 1'!R5 -> 2.873469388 | AD29: ='Evac US101-S Hopper Ave 1'!S5 -> 92 | AE29: ='Evac US101-S Hopper Ave 1'!T5 -> 107.1825248 | AF29: ='Evac US101-S Hopper Ave 1'!U5 -> 1.785487528 | AH29: ='Routine US101-S Hopper Ave 1'!L5 -> 2019-10-16T03:00:00 | AI29: ='Routine US101-S Hopper Ave 1'!M5 -> 0.7 | AJ29: ='Routine US101-S Hopper Ave 1'!N5 -> 266 | AK29: ='Routine US101-S Hopper Ave 1'!O5 -> 66.8 | AL29: ='Routine US101-S Hopper Ave 1'!P5 -> 36 | AM29: ='Routine US101-S Hopper Ave 1'!Q5 -> 100 | AN29: ='Routine US101-S Hopper Ave 1'!R5 -> 2.514285714 | AO29: ='Routine US101-S Hopper Ave 1'!S5 -> 88.66666667 | AP29: ='Routine US101-S Hopper Ave 1'!T5 -> 107.5043942 | AQ29: ='Routine US101-S Hopper Ave 1'!U5 -> 1.562301587 | AS29: =Theoretical!A29 -> 27 | AT29: =Theoretical!B29 -> 52.66055046 | AU29: =Theoretical!C29 -> 1 | AV29: =Theoretical!D29 -> 1421.834862 | AW29: =Theoretical!E29 -> 16.77698864 | AX29: =Theoretical!F29 -> 84.74911042
A30: ='Evac US101-S loc 104'!A30 -> 2019-10-26T02:20:00 | B30: ='Evac US101-S loc 104'!B30 -> 0.7 | C30: ='Evac US101-S loc 104'!C30 -> 19 | D30: ='Evac US101-S loc 104'!D30 -> 66.9 | E30: ='Evac US101-S loc 104'!E30 -> 2 | F30: ='Evac US101-S loc 104'!F30 -> 100 | G30: ='Evac US101-S loc 104'!G30 -> 2.514285714 | H30: ='Evac US101-S loc 104'!H30 -> 114 | I30: ='Evac US101-S loc 104'!I30 -> 107.6653289 | J30: ='Evac US101-S loc 104'!J30 -> 1.562301587 | L30: ='Routine US101-S loc 104'!A30 -> 2019-10-16T02:20:00 | M30: ='Routine US101-S loc 104'!B30 -> 0.7 | N30: ='Routine US101-S loc 104'!C30 -> 10 | O30: ='Routine US101-S loc 104'!D30 -> 66.2 | P30: ='Routine US101-S loc 104'!E30 -> 2 | Q30: ='Routine US101-S loc 104'!F30 -> 100 | R30: ='Routine US101-S loc 104'!G30 -> 2.514285714 | S30: ='Routine US101-S loc 104'!H30 -> 60 | T30: ='Routine US101-S loc 104'!I30 -> 106.5387859 | U30: ='Routine US101-S loc 104'!J30 -> 1.562301587 | W30: ='Evac US101-S Hopper Ave 1'!L6 -> 10-23-2019 4:00 | X30: ='Evac US101-S Hopper Ave 1'!M6 -> 0.9 | Y30: ='Evac US101-S Hopper Ave 1'!N6 -> 334 | Z30: ='Evac US101-S Hopper Ave 1'!O6 -> 67.1 | AA30: ='Evac US101-S Hopper Ave 1'!P6 -> 36 | AB30: ='Evac US101-S Hopper Ave 1'!Q6 -> 100 | AC30: ='Evac US101-S Hopper Ave 1'!R6 -> 3.232653061 | AD30: ='Evac US101-S Hopper Ave 1'!S6 -> 111.3333333 | AE30: ='Evac US101-S Hopper Ave 1'!T6 -> 107.9871984 | AF30: ='Evac US101-S Hopper Ave 1'!U6 -> 2.008673469 | AH30: ='Routine US101-S Hopper Ave 1'!L6 -> 2019-10-16T04:00:00 | AI30: ='Routine US101-S Hopper Ave 1'!M6 -> 1.5 | AJ30: ='Routine US101-S Hopper Ave 1'!N6 -> 621 | AK30: ='Routine US101-S Hopper Ave 1'!O6 -> 67.4 | AL30: ='Routine US101-S Hopper Ave 1'!P6 -> 36 | AM30: ='Routine US101-S Hopper Ave 1'!Q6 -> 100 | AN30: ='Routine US101-S Hopper Ave 1'!R6 -> 5.387755102 | AO30: ='Routine US101-S Hopper Ave 1'!S6 -> 207 | AP30: ='Routine US101-S Hopper Ave 1'!T6 -> 108.4700025 | AQ30: ='Routine US101-S Hopper Ave 1'!U6 -> 3.347789116 | AS30: =Theoretical!A30 -> 28 | AT30: =Theoretical!B30 -> 52.01834862 | AU30: =Theoretical!C30 -> 1 | AV30: =Theoretical!D30 -> 1456.513761 | AW30: =Theoretical!E30 -> 17.39835859 | AX30: =Theoretical!F30 -> 83.71558468
A31: ='Evac US101-S loc 104'!A31 -> 2019-10-26T02:25:00 | B31: ='Evac US101-S loc 104'!B31 -> 0.3 | C31: ='Evac US101-S loc 104'!C31 -> 6 | D31: ='Evac US101-S loc 104'!D31 -> 64.4 | E31: ='Evac US101-S loc 104'!E31 -> 2 | F31: ='Evac US101-S loc 104'!F31 -> 100 | G31: ='Evac US101-S loc 104'!G31 -> 1.07755102 | H31: ='Evac US101-S loc 104'!H31 -> 36 | I31: ='Evac US101-S loc 104'!I31 -> 103.6419609 | J31: ='Evac US101-S loc 104'!J31 -> 0.6695578231 | L31: ='Routine US101-S loc 104'!A31 -> 2019-10-16T02:25:00 | M31: ='Routine US101-S loc 104'!B31 -> 0.2 | N31: ='Routine US101-S loc 104'!C31 -> 7 | O31: ='Routine US101-S loc 104'!D31 -> 68 | P31: ='Routine US101-S loc 104'!E31 -> 2 | Q31: ='Routine US101-S loc 104'!F31 -> 100 | R31: ='Routine US101-S loc 104'!G31 -> 0.7183673469 | S31: ='Routine US101-S loc 104'!H31 -> 42 | T31: ='Routine US101-S loc 104'!I31 -> 109.4356109 | U31: ='Routine US101-S loc 104'!J31 -> 0.4463718821 | W31: ='Evac US101-S Hopper Ave 1'!L7 -> 10-23-2019 5:00 | X31: ='Evac US101-S Hopper Ave 1'!M7 -> 1.7 | Y31: ='Evac US101-S Hopper Ave 1'!N7 -> 719 | Z31: ='Evac US101-S Hopper Ave 1'!O7 -> 68.1 | AA31: ='Evac US101-S Hopper Ave 1'!P7 -> 36 | AB31: ='Evac US101-S Hopper Ave 1'!Q7 -> 100 | AC31: ='Evac US101-S Hopper Ave 1'!R7 -> 6.106122449 | AD31: ='Evac US101-S Hopper Ave 1'!S7 -> 239.6666667 | AE31: ='Evac US101-S Hopper Ave 1'!T7 -> 109.5965456 | AF31: ='Evac US101-S Hopper Ave 1'!U7 -> 3.794160998 | AH31: ='Routine US101-S Hopper Ave 1'!L7 -> 2019-10-16T05:00:00 | AI31: ='Routine US101-S Hopper Ave 1'!M7 -> 2.5 | AJ31: ='Routine US101-S Hopper Ave 1'!N7 -> 1105 | AK31: ='Routine US101-S Hopper Ave 1'!O7 -> 68.6 | AL31: ='Routine US101-S Hopper Ave 1'!P7 -> 36 | AM31: ='Routine US101-S Hopper Ave 1'!Q7 -> 100 | AN31: ='Routine US101-S Hopper Ave 1'!R7 -> 8.979591837 | AO31: ='Routine US101-S Hopper Ave 1'!S7 -> 368.3333333 | AP31: ='Routine US101-S Hopper Ave 1'!T7 -> 110.4012192 | AQ31: ='Routine US101-S Hopper Ave 1'!U7 -> 5.579648526 | AS31: =Theoretical!A31 -> 29 | AT31: =Theoretical!B31 -> 51.37614679 | AU31: =Theoretical!C31 -> 1 | AV31: =Theoretical!D31 -> 1489.908257 | AW31: =Theoretical!E31 -> 18.01972854 | AX31: =Theoretical!F31 -> 82.68205894
A32: ='Evac US101-S loc 104'!A32 -> 2019-10-26T02:30:00 | B32: ='Evac US101-S loc 104'!B32 -> 0.3 | C32: ='Evac US101-S loc 104'!C32 -> 8 | D32: ='Evac US101-S loc 104'!D32 -> 65.7 | E32: ='Evac US101-S loc 104'!E32 -> 2 | F32: ='Evac US101-S loc 104'!F32 -> 100 | G32: ='Evac US101-S loc 104'!G32 -> 1.07755102 | H32: ='Evac US101-S loc 104'!H32 -> 48 | I32: ='Evac US101-S loc 104'!I32 -> 105.7341123 | J32: ='Evac US101-S loc 104'!J32 -> 0.6695578231 | L32: ='Routine US101-S loc 104'!A32 -> 2019-10-16T02:30:00 | M32: ='Routine US101-S loc 104'!B32 -> 0.6 | N32: ='Routine US101-S loc 104'!C32 -> 15 | O32: ='Routine US101-S loc 104'!D32 -> 67.6 | P32: ='Routine US101-S loc 104'!E32 -> 2 | Q32: ='Routine US101-S loc 104'!F32 -> 100 | R32: ='Routine US101-S loc 104'!G32 -> 2.155102041 | S32: ='Routine US101-S loc 104'!H32 -> 90 | T32: ='Routine US101-S loc 104'!I32 -> 108.791872 | U32: ='Routine US101-S loc 104'!J32 -> 1.339115646 | W32: ='Evac US101-S Hopper Ave 1'!L8 -> 10-23-2019 6:00 | X32: ='Evac US101-S Hopper Ave 1'!M8 -> 3.5 | Y32: ='Evac US101-S Hopper Ave 1'!N8 -> 1532 | Z32: ='Evac US101-S Hopper Ave 1'!O8 -> 67.7 | AA32: ='Evac US101-S Hopper Ave 1'!P8 -> 36 | AB32: ='Evac US101-S Hopper Ave 1'!Q8 -> 100 | AC32: ='Evac US101-S Hopper Ave 1'!R8 -> 12.57142857 | AD32: ='Evac US101-S Hopper Ave 1'!S8 -> 510.6666667 | AE32: ='Evac US101-S Hopper Ave 1'!T8 -> 108.9528067 | AF32: ='Evac US101-S Hopper Ave 1'!U8 -> 7.811507937 | AH32: ='Routine US101-S Hopper Ave 1'!L8 -> 2019-10-16T06:00:00 | AI32: ='Routine US101-S Hopper Ave 1'!M8 -> 4.1 | AJ32: ='Routine US101-S Hopper Ave 1'!N8 -> 1763 | AK32: ='Routine US101-S Hopper Ave 1'!O8 -> 66.7 | AL32: ='Routine US101-S Hopper Ave 1'!P8 -> 36 | AM32: ='Routine US101-S Hopper Ave 1'!Q8 -> 100 | AN32: ='Routine US101-S Hopper Ave 1'!R8 -> 14.72653061 | AO32: ='Routine US101-S Hopper Ave 1'!S8 -> 587.6666667 | AP32: ='Routine US101-S Hopper Ave 1'!T8 -> 107.3434595 | AQ32: ='Routine US101-S Hopper Ave 1'!U8 -> 9.150623583 | AS32: =Theoretical!A32 -> 30 | AT32: =Theoretical!B32 -> 50.73394495 | AU32: =Theoretical!C32 -> 1 | AV32: =Theoretical!D32 -> 1522.018349 | AW32: =Theoretical!E32 -> 18.64109848 | AX32: =Theoretical!F32 -> 81.64853321
A33: ='Evac US101-S loc 104'!A33 -> 2019-10-26T02:35:00 | B33: ='Evac US101-S loc 104'!B33 -> 0.2 | C33: ='Evac US101-S loc 104'!C33 -> 7 | D33: ='Evac US101-S loc 104'!D33 -> 66 | E33: ='Evac US101-S loc 104'!E33 -> 2 | F33: ='Evac US101-S loc 104'!F33 -> 100 | G33: ='Evac US101-S loc 104'!G33 -> 0.7183673469 | H33: ='Evac US101-S loc 104'!H33 -> 42 | I33: ='Evac US101-S loc 104'!I33 -> 106.2169164 | J33: ='Evac US101-S loc 104'!J33 -> 0.4463718821 | L33: ='Routine US101-S loc 104'!A33 -> 2019-10-16T02:35:00 | M33: ='Routine US101-S loc 104'!B33 -> 0.6 | N33: ='Routine US101-S loc 104'!C33 -> 13 | O33: ='Routine US101-S loc 104'!D33 -> 65.9 | P33: ='Routine US101-S loc 104'!E33 -> 2 | Q33: ='Routine US101-S loc 104'!F33 -> 100 | R33: ='Routine US101-S loc 104'!G33 -> 2.155102041 | S33: ='Routine US101-S loc 104'!H33 -> 78 | T33: ='Routine US101-S loc 104'!I33 -> 106.0559817 | U33: ='Routine US101-S loc 104'!J33 -> 1.339115646 | W33: ='Evac US101-S Hopper Ave 1'!L9 -> 10-23-2019 7:00 | X33: ='Evac US101-S Hopper Ave 1'!M9 -> 7.3 | Y33: ='Evac US101-S Hopper Ave 1'!N9 -> 2641 | Z33: ='Evac US101-S Hopper Ave 1'!O9 -> 59.1 | AA33: ='Evac US101-S Hopper Ave 1'!P9 -> 36 | AB33: ='Evac US101-S Hopper Ave 1'!Q9 -> 100 | AC33: ='Evac US101-S Hopper Ave 1'!R9 -> 26.22040816 | AD33: ='Evac US101-S Hopper Ave 1'!S9 -> 880.3333333 | AE33: ='Evac US101-S Hopper Ave 1'!T9 -> 95.11242062 | AF33: ='Evac US101-S Hopper Ave 1'!U9 -> 16.2925737 | AH33: ='Routine US101-S Hopper Ave 1'!L9 -> 2019-10-16T07:00:00 | AI33: ='Routine US101-S Hopper Ave 1'!M9 -> 7.7 | AJ33: ='Routine US101-S Hopper Ave 1'!N9 -> 2748 | AK33: ='Routine US101-S Hopper Ave 1'!O9 -> 58.5 | AL33: ='Routine US101-S Hopper Ave 1'!P9 -> 36 | AM33: ='Routine US101-S Hopper Ave 1'!Q9 -> 100 | AN33: ='Routine US101-S Hopper Ave 1'!R9 -> 27.65714286 | AO33: ='Routine US101-S Hopper Ave 1'!S9 -> 916 | AP33: ='Routine US101-S Hopper Ave 1'!T9 -> 94.14681229 | AQ33: ='Routine US101-S Hopper Ave 1'!U9 -> 17.18531746 | AS33: =Theoretical!A33 -> 31 | AT33: =Theoretical!B33 -> 50.09174312 | AU33: =Theoretical!C33 -> 1 | AV33: =Theoretical!D33 -> 1552.844037 | AW33: =Theoretical!E33 -> 19.26246843 | AX33: =Theoretical!F33 -> 80.61500747
A34: ='Evac US101-S loc 104'!A34 -> 2019-10-26T02:40:00 | B34: ='Evac US101-S loc 104'!B34 -> 0.3 | C34: ='Evac US101-S loc 104'!C34 -> 10 | D34: ='Evac US101-S loc 104'!D34 -> 67.6 | E34: ='Evac US101-S loc 104'!E34 -> 2 | F34: ='Evac US101-S loc 104'!F34 -> 100 | G34: ='Evac US101-S loc 104'!G34 -> 1.07755102 | H34: ='Evac US101-S loc 104'!H34 -> 60 | I34: ='Evac US101-S loc 104'!I34 -> 108.791872 | J34: ='Evac US101-S loc 104'!J34 -> 0.6695578231 | L34: ='Routine US101-S loc 104'!A34 -> 2019-10-16T02:40:00 | M34: ='Routine US101-S loc 104'!B34 -> 0.8 | N34: ='Routine US101-S loc 104'!C34 -> 13 | O34: ='Routine US101-S loc 104'!D34 -> 65.8 | P34: ='Routine US101-S loc 104'!E34 -> 2 | Q34: ='Routine US101-S loc 104'!F34 -> 100 | R34: ='Routine US101-S loc 104'!G34 -> 2.873469388 | S34: ='Routine US101-S loc 104'!H34 -> 78 | T34: ='Routine US101-S loc 104'!I34 -> 105.895047 | U34: ='Routine US101-S loc 104'!J34 -> 1.785487528 | W34: ='Evac US101-S Hopper Ave 1'!L10 -> 10-23-2019 8:00 | X34: ='Evac US101-S Hopper Ave 1'!M10 -> 7.5 | Y34: ='Evac US101-S Hopper Ave 1'!N10 -> 2629 | Z34: ='Evac US101-S Hopper Ave 1'!O10 -> 53.3 | AA34: ='Evac US101-S Hopper Ave 1'!P10 -> 36 | AB34: ='Evac US101-S Hopper Ave 1'!Q10 -> 100 | AC34: ='Evac US101-S Hopper Ave 1'!R10 -> 26.93877551 | AD34: ='Evac US101-S Hopper Ave 1'!S10 -> 876.3333333 | AE34: ='Evac US101-S Hopper Ave 1'!T10 -> 85.77820676 | AF34: ='Evac US101-S Hopper Ave 1'!U10 -> 16.73894558 | AH34: ='Routine US101-S Hopper Ave 1'!L10 -> 2019-10-16T08:00:00 | AI34: ='Routine US101-S Hopper Ave 1'!M10 -> 6.9 | AJ34: ='Routine US101-S Hopper Ave 1'!N10 -> 2731 | AK34: ='Routine US101-S Hopper Ave 1'!O10 -> 58.4 | AL34: ='Routine US101-S Hopper Ave 1'!P10 -> 36 | AM34: ='Routine US101-S Hopper Ave 1'!Q10 -> 100 | AN34: ='Routine US101-S Hopper Ave 1'!R10 -> 24.78367347 | AO34: ='Routine US101-S Hopper Ave 1'!S10 -> 910.3333333 | AP34: ='Routine US101-S Hopper Ave 1'!T10 -> 93.98587757 | AQ34: ='Routine US101-S Hopper Ave 1'!U10 -> 15.39982993 | AS34: =Theoretical!A34 -> 32 | AT34: =Theoretical!B34 -> 49.44954128 | AU34: =Theoretical!C34 -> 1 | AV34: =Theoretical!D34 -> 1582.385321 | AW34: =Theoretical!E34 -> 19.88383838 | AX34: =Theoretical!F34 -> 79.58148173
A35: ='Evac US101-S loc 104'!A35 -> 2019-10-26T02:45:00 | B35: ='Evac US101-S loc 104'!B35 -> 0.2 | C35: ='Evac US101-S loc 104'!C35 -> 4 | D35: ='Evac US101-S loc 104'!D35 -> 66.5 | E35: ='Evac US101-S loc 104'!E35 -> 2 | F35: ='Evac US101-S loc 104'!F35 -> 100 | G35: ='Evac US101-S loc 104'!G35 -> 0.7183673469 | H35: ='Evac US101-S loc 104'!H35 -> 24 | I35: ='Evac US101-S loc 104'!I35 -> 107.02159 | J35: ='Evac US101-S loc 104'!J35 -> 0.4463718821 | L35: ='Routine US101-S loc 104'!A35 -> 2019-10-16T02:45:00 | M35: ='Routine US101-S loc 104'!B35 -> 0.3 | N35: ='Routine US101-S loc 104'!C35 -> 10 | O35: ='Routine US101-S loc 104'!D35 -> 67 | P35: ='Routine US101-S loc 104'!E35 -> 2 | Q35: ='Routine US101-S loc 104'!F35 -> 100 | R35: ='Routine US101-S loc 104'!G35 -> 1.07755102 | S35: ='Routine US101-S loc 104'!H35 -> 60 | T35: ='Routine US101-S loc 104'!I35 -> 107.8262637 | U35: ='Routine US101-S loc 104'!J35 -> 0.6695578231 | W35: ='Evac US101-S Hopper Ave 1'!L11 -> 10-23-2019 9:00 | X35: ='Evac US101-S Hopper Ave 1'!M11 -> 5.9 | Y35: ='Evac US101-S Hopper Ave 1'!N11 -> 2453 | Z35: ='Evac US101-S Hopper Ave 1'!O11 -> 64.1 | AA35: ='Evac US101-S Hopper Ave 1'!P11 -> 36 | AB35: ='Evac US101-S Hopper Ave 1'!Q11 -> 100 | AC35: ='Evac US101-S Hopper Ave 1'!R11 -> 21.19183673 | AD35: ='Evac US101-S Hopper Ave 1'!S11 -> 817.6666667 | AE35: ='Evac US101-S Hopper Ave 1'!T11 -> 103.1591567 | AF35: ='Evac US101-S Hopper Ave 1'!U11 -> 13.16797052 | AH35: ='Routine US101-S Hopper Ave 1'!L11 -> 2019-10-16T09:00:00 | AI35: ='Routine US101-S Hopper Ave 1'!M11 -> 5.7 | AJ35: ='Routine US101-S Hopper Ave 1'!N11 -> 2399 | AK35: ='Routine US101-S Hopper Ave 1'!O11 -> 65.3 | AL35: ='Routine US101-S Hopper Ave 1'!P11 -> 36 | AM35: ='Routine US101-S Hopper Ave 1'!Q11 -> 100 | AN35: ='Routine US101-S Hopper Ave 1'!R11 -> 20.47346939 | AO35: ='Routine US101-S Hopper Ave 1'!S11 -> 799.6666667 | AP35: ='Routine US101-S Hopper Ave 1'!T11 -> 105.0903734 | AQ35: ='Routine US101-S Hopper Ave 1'!U11 -> 12.72159864 | AS35: =Theoretical!A35 -> 33 | AT35: =Theoretical!B35 -> 48.80733945 | AU35: =Theoretical!C35 -> 1 | AV35: =Theoretical!D35 -> 1610.642202 | AW35: =Theoretical!E35 -> 20.50520833 | AX35: =Theoretical!F35 -> 78.54795599
A36: ='Evac US101-S loc 104'!A36 -> 2019-10-26T02:50:00 | B36: ='Evac US101-S loc 104'!B36 -> 0.3 | C36: ='Evac US101-S loc 104'!C36 -> 10 | D36: ='Evac US101-S loc 104'!D36 -> 68.2 | E36: ='Evac US101-S loc 104'!E36 -> 2 | F36: ='Evac US101-S loc 104'!F36 -> 100 | G36: ='Evac US101-S loc 104'!G36 -> 1.07755102 | H36: ='Evac US101-S loc 104'!H36 -> 60 | I36: ='Evac US101-S loc 104'!I36 -> 109.7574803 | J36: ='Evac US101-S loc 104'!J36 -> 0.6695578231 | L36: ='Routine US101-S loc 104'!A36 -> 2019-10-16T02:50:00 | M36: ='Routine US101-S loc 104'!B36 -> 0.4 | N36: ='Routine US101-S loc 104'!C36 -> 7 | O36: ='Routine US101-S loc 104'!D36 -> 67.4 | P36: ='Routine US101-S loc 104'!E36 -> 2 | Q36: ='Routine US101-S loc 104'!F36 -> 100 | R36: ='Routine US101-S loc 104'!G36 -> 1.436734694 | S36: ='Routine US101-S loc 104'!H36 -> 42 | T36: ='Routine US101-S loc 104'!I36 -> 108.4700025 | U36: ='Routine US101-S loc 104'!J36 -> 0.8927437642 | W36: ='Evac US101-S Hopper Ave 1'!L12 -> 10-23-2019 10:00 | X36: ='Evac US101-S Hopper Ave 1'!M12 -> 5.1 | Y36: ='Evac US101-S Hopper Ave 1'!N12 -> 2206 | Z36: ='Evac US101-S Hopper Ave 1'!O12 -> 66.6 | AA36: ='Evac US101-S Hopper Ave 1'!P12 -> 36 | AB36: ='Evac US101-S Hopper Ave 1'!Q12 -> 100 | AC36: ='Evac US101-S Hopper Ave 1'!R12 -> 18.31836735 | AD36: ='Evac US101-S Hopper Ave 1'!S12 -> 735.3333333 | AE36: ='Evac US101-S Hopper Ave 1'!T12 -> 107.1825248 | AF36: ='Evac US101-S Hopper Ave 1'!U12 -> 11.38248299 | AH36: ='Routine US101-S Hopper Ave 1'!L12 -> 2019-10-16T10:00:00 | AI36: ='Routine US101-S Hopper Ave 1'!M12 -> 5.6 | AJ36: ='Routine US101-S Hopper Ave 1'!N12 -> 2324 | AK36: ='Routine US101-S Hopper Ave 1'!O12 -> 65.2 | AL36: ='Routine US101-S Hopper Ave 1'!P12 -> 36 | AM36: ='Routine US101-S Hopper Ave 1'!Q12 -> 100 | AN36: ='Routine US101-S Hopper Ave 1'!R12 -> 20.11428571 | AO36: ='Routine US101-S Hopper Ave 1'!S12 -> 774.6666667 | AP36: ='Routine US101-S Hopper Ave 1'!T12 -> 104.9294387 | AQ36: ='Routine US101-S Hopper Ave 1'!U12 -> 12.4984127 | AS36: =Theoretical!A36 -> 34 | AT36: =Theoretical!B36 -> 48.16513761 | AU36: =Theoretical!C36 -> 1 | AV36: =Theoretical!D36 -> 1637.614679 | AW36: =Theoretical!E36 -> 21.12657828 | AX36: =Theoretical!F36 -> 77.51443026
A37: ='Evac US101-S loc 104'!A37 -> 2019-10-26T02:55:00 | B37: ='Evac US101-S loc 104'!B37 -> 0.2 | C37: ='Evac US101-S loc 104'!C37 -> 8 | D37: ='Evac US101-S loc 104'!D37 -> 66.8 | E37: ='Evac US101-S loc 104'!E37 -> 2 | F37: ='Evac US101-S loc 104'!F37 -> 100 | G37: ='Evac US101-S loc 104'!G37 -> 0.7183673469 | H37: ='Evac US101-S loc 104'!H37 -> 48 | I37: ='Evac US101-S loc 104'!I37 -> 107.5043942 | J37: ='Evac US101-S loc 104'!J37 -> 0.4463718821 | L37: ='Routine US101-S loc 104'!A37 -> 2019-10-16T02:55:00 | M37: ='Routine US101-S loc 104'!B37 -> 0.5 | N37: ='Routine US101-S loc 104'!C37 -> 12 | O37: ='Routine US101-S loc 104'!D37 -> 67 | P37: ='Routine US101-S loc 104'!E37 -> 2 | Q37: ='Routine US101-S loc 104'!F37 -> 100 | R37: ='Routine US101-S loc 104'!G37 -> 1.795918367 | S37: ='Routine US101-S loc 104'!H37 -> 72 | T37: ='Routine US101-S loc 104'!I37 -> 107.8262637 | U37: ='Routine US101-S loc 104'!J37 -> 1.115929705 | W37: ='Evac US101-S Hopper Ave 1'!L13 -> 10-23-2019 11:00 | X37: ='Evac US101-S Hopper Ave 1'!M13 -> 5.5 | Y37: ='Evac US101-S Hopper Ave 1'!N13 -> 2276 | Z37: ='Evac US101-S Hopper Ave 1'!O13 -> 65 | AA37: ='Evac US101-S Hopper Ave 1'!P13 -> 36 | AB37: ='Evac US101-S Hopper Ave 1'!Q13 -> 100 | AC37: ='Evac US101-S Hopper Ave 1'!R13 -> 19.75510204 | AD37: ='Evac US101-S Hopper Ave 1'!S13 -> 758.6666667 | AE37: ='Evac US101-S Hopper Ave 1'!T13 -> 104.6075692 | AF37: ='Evac US101-S Hopper Ave 1'!U13 -> 12.27522676 | AH37: ='Routine US101-S Hopper Ave 1'!L13 -> 2019-10-16T11:00:00 | AI37: ='Routine US101-S Hopper Ave 1'!M13 -> 6.1 | AJ37: ='Routine US101-S Hopper Ave 1'!N13 -> 2447 | AK37: ='Routine US101-S Hopper Ave 1'!O13 -> 63.6 | AL37: ='Routine US101-S Hopper Ave 1'!P13 -> 36 | AM37: ='Routine US101-S Hopper Ave 1'!Q13 -> 100 | AN37: ='Routine US101-S Hopper Ave 1'!R13 -> 21.91020408 | AO37: ='Routine US101-S Hopper Ave 1'!S13 -> 815.6666667 | AP37: ='Routine US101-S Hopper Ave 1'!T13 -> 102.3544831 | AQ37: ='Routine US101-S Hopper Ave 1'!U13 -> 13.6143424 | AS37: =Theoretical!A37 -> 35 | AT37: =Theoretical!B37 -> 47.52293578 | AU37: =Theoretical!C37 -> 1 | AV37: =Theoretical!D37 -> 1663.302752 | AW37: =Theoretical!E37 -> 21.74794823 | AX37: =Theoretical!F37 -> 76.48090452
A38: ='Evac US101-S loc 104'!A38 -> 2019-10-26T03:00:00 | B38: ='Evac US101-S loc 104'!B38 -> 0.1 | C38: ='Evac US101-S loc 104'!C38 -> 5 | D38: ='Evac US101-S loc 104'!D38 -> 66.8 | E38: ='Evac US101-S loc 104'!E38 -> 2 | F38: ='Evac US101-S loc 104'!F38 -> 100 | G38: ='Evac US101-S loc 104'!G38 -> 0.3591836735 | H38: ='Evac US101-S loc 104'!H38 -> 30 | I38: ='Evac US101-S loc 104'!I38 -> 107.5043942 | J38: ='Evac US101-S loc 104'!J38 -> 0.223185941 | L38: ='Routine US101-S loc 104'!A38 -> 2019-10-16T03:00:00 | M38: ='Routine US101-S loc 104'!B38 -> 0.5 | N38: ='Routine US101-S loc 104'!C38 -> 14 | O38: ='Routine US101-S loc 104'!D38 -> 67.8 | P38: ='Routine US101-S loc 104'!E38 -> 2 | Q38: ='Routine US101-S loc 104'!F38 -> 100 | R38: ='Routine US101-S loc 104'!G38 -> 1.795918367 | S38: ='Routine US101-S loc 104'!H38 -> 84 | T38: ='Routine US101-S loc 104'!I38 -> 109.1137414 | U38: ='Routine US101-S loc 104'!J38 -> 1.115929705 | W38: ='Evac US101-S Hopper Ave 1'!L14 -> 10-23-2019 12:00 | X38: ='Evac US101-S Hopper Ave 1'!M14 -> 5.7 | Y38: ='Evac US101-S Hopper Ave 1'!N14 -> 2324 | Z38: ='Evac US101-S Hopper Ave 1'!O14 -> 64.4 | AA38: ='Evac US101-S Hopper Ave 1'!P14 -> 36 | AB38: ='Evac US101-S Hopper Ave 1'!Q14 -> 100 | AC38: ='Evac US101-S Hopper Ave 1'!R14 -> 20.47346939 | AD38: ='Evac US101-S Hopper Ave 1'!S14 -> 774.6666667 | AE38: ='Evac US101-S Hopper Ave 1'!T14 -> 103.6419609 | AF38: ='Evac US101-S Hopper Ave 1'!U14 -> 12.72159864 | AH38: ='Routine US101-S Hopper Ave 1'!L14 -> 2019-10-16T12:00:00 | AI38: ='Routine US101-S Hopper Ave 1'!M14 -> 5.7 | AJ38: ='Routine US101-S Hopper Ave 1'!N14 -> 2366 | AK38: ='Routine US101-S Hopper Ave 1'!O14 -> 65.3 | AL38: ='Routine US101-S Hopper Ave 1'!P14 -> 36 | AM38: ='Routine US101-S Hopper Ave 1'!Q14 -> 100 | AN38: ='Routine US101-S Hopper Ave 1'!R14 -> 20.47346939 | AO38: ='Routine US101-S Hopper Ave 1'!S14 -> 788.6666667 | AP38: ='Routine US101-S Hopper Ave 1'!T14 -> 105.0903734 | AQ38: ='Routine US101-S Hopper Ave 1'!U14 -> 12.72159864 | AS38: =Theoretical!A38 -> 36 | AT38: =Theoretical!B38 -> 46.88073394 | AU38: =Theoretical!C38 -> 1 | AV38: =Theoretical!D38 -> 1687.706422 | AW38: =Theoretical!E38 -> 22.36931818 | AX38: =Theoretical!F38 -> 75.44737878
A39: ='Evac US101-S loc 104'!A39 -> 2019-10-26T03:05:00 | B39: ='Evac US101-S loc 104'!B39 -> 0.1 | C39: ='Evac US101-S loc 104'!C39 -> 2 | D39: ='Evac US101-S loc 104'!D39 -> 65.3 | E39: ='Evac US101-S loc 104'!E39 -> 2 | F39: ='Evac US101-S loc 104'!F39 -> 100 | G39: ='Evac US101-S loc 104'!G39 -> 0.3591836735 | H39: ='Evac US101-S loc 104'!H39 -> 12 | I39: ='Evac US101-S loc 104'!I39 -> 105.0903734 | J39: ='Evac US101-S loc 104'!J39 -> 0.223185941 | L39: ='Routine US101-S loc 104'!A39 -> 2019-10-16T03:05:00 | M39: ='Routine US101-S loc 104'!B39 -> 0.3 | N39: ='Routine US101-S loc 104'!C39 -> 10 | O39: ='Routine US101-S loc 104'!D39 -> 66.8 | P39: ='Routine US101-S loc 104'!E39 -> 2 | Q39: ='Routine US101-S loc 104'!F39 -> 100 | R39: ='Routine US101-S loc 104'!G39 -> 1.07755102 | S39: ='Routine US101-S loc 104'!H39 -> 60 | T39: ='Routine US101-S loc 104'!I39 -> 107.5043942 | U39: ='Routine US101-S loc 104'!J39 -> 0.6695578231 | W39: ='Evac US101-S Hopper Ave 1'!L15 -> 10-23-2019 13:00 | X39: ='Evac US101-S Hopper Ave 1'!M15 -> 6 | Y39: ='Evac US101-S Hopper Ave 1'!N15 -> 2489 | Z39: ='Evac US101-S Hopper Ave 1'!O15 -> 64.8 | AA39: ='Evac US101-S Hopper Ave 1'!P15 -> 36 | AB39: ='Evac US101-S Hopper Ave 1'!Q15 -> 100 | AC39: ='Evac US101-S Hopper Ave 1'!R15 -> 21.55102041 | AD39: ='Evac US101-S Hopper Ave 1'!S15 -> 829.6666667 | AE39: ='Evac US101-S Hopper Ave 1'!T15 -> 104.2856998 | AF39: ='Evac US101-S Hopper Ave 1'!U15 -> 13.39115646 | AH39: ='Routine US101-S Hopper Ave 1'!L15 -> 2019-10-16T13:00:00 | AI39: ='Routine US101-S Hopper Ave 1'!M15 -> 6 | AJ39: ='Routine US101-S Hopper Ave 1'!N15 -> 2458 | AK39: ='Routine US101-S Hopper Ave 1'!O15 -> 64.4 | AL39: ='Routine US101-S Hopper Ave 1'!P15 -> 36 | AM39: ='Routine US101-S Hopper Ave 1'!Q15 -> 100 | AN39: ='Routine US101-S Hopper Ave 1'!R15 -> 21.55102041 | AO39: ='Routine US101-S Hopper Ave 1'!S15 -> 819.3333333 | AP39: ='Routine US101-S Hopper Ave 1'!T15 -> 103.6419609 | AQ39: ='Routine US101-S Hopper Ave 1'!U15 -> 13.39115646 | AS39: =Theoretical!A39 -> 37 | AT39: =Theoretical!B39 -> 46.23853211 | AU39: =Theoretical!C39 -> 1 | AV39: =Theoretical!D39 -> 1710.825688 | AW39: =Theoretical!E39 -> 22.99068813 | AX39: =Theoretical!F39 -> 74.41385305
A40: ='Evac US101-S loc 104'!A40 -> 2019-10-26T03:10:00 | B40: ='Evac US101-S loc 104'!B40 -> 0.1 | C40: ='Evac US101-S loc 104'!C40 -> 2 | D40: ='Evac US101-S loc 104'!D40 -> 64.9 | E40: ='Evac US101-S loc 104'!E40 -> 2 | F40: ='Evac US101-S loc 104'!F40 -> 100 | G40: ='Evac US101-S loc 104'!G40 -> 0.3591836735 | H40: ='Evac US101-S loc 104'!H40 -> 12 | I40: ='Evac US101-S loc 104'!I40 -> 104.4466345 | J40: ='Evac US101-S loc 104'!J40 -> 0.223185941 | L40: ='Routine US101-S loc 104'!A40 -> 2019-10-16T03:10:00 | M40: ='Routine US101-S loc 104'!B40 -> 0.6 | N40: ='Routine US101-S loc 104'!C40 -> 11 | O40: ='Routine US101-S loc 104'!D40 -> 66.6 | P40: ='Routine US101-S loc 104'!E40 -> 2 | Q40: ='Routine US101-S loc 104'!F40 -> 100 | R40: ='Routine US101-S loc 104'!G40 -> 2.155102041 | S40: ='Routine US101-S loc 104'!H40 -> 66 | T40: ='Routine US101-S loc 104'!I40 -> 107.1825248 | U40: ='Routine US101-S loc 104'!J40 -> 1.339115646 | W40: ='Evac US101-S Hopper Ave 1'!L16 -> 10-23-2019 14:00 | X40: ='Evac US101-S Hopper Ave 1'!M16 -> 7 | Y40: ='Evac US101-S Hopper Ave 1'!N16 -> 2908 | Z40: ='Evac US101-S Hopper Ave 1'!O16 -> 64.4 | AA40: ='Evac US101-S Hopper Ave 1'!P16 -> 36 | AB40: ='Evac US101-S Hopper Ave 1'!Q16 -> 100 | AC40: ='Evac US101-S Hopper Ave 1'!R16 -> 25.14285714 | AD40: ='Evac US101-S Hopper Ave 1'!S16 -> 969.3333333 | AE40: ='Evac US101-S Hopper Ave 1'!T16 -> 103.6419609 | AF40: ='Evac US101-S Hopper Ave 1'!U16 -> 15.62301587 | AH40: ='Routine US101-S Hopper Ave 1'!L16 -> 2019-10-16T14:00:00 | AI40: ='Routine US101-S Hopper Ave 1'!M16 -> 6.6 | AJ40: ='Routine US101-S Hopper Ave 1'!N16 -> 2756 | AK40: ='Routine US101-S Hopper Ave 1'!O16 -> 64.6 | AL40: ='Routine US101-S Hopper Ave 1'!P16 -> 36 | AM40: ='Routine US101-S Hopper Ave 1'!Q16 -> 100 | AN40: ='Routine US101-S Hopper Ave 1'!R16 -> 23.70612245 | AO40: ='Routine US101-S Hopper Ave 1'!S16 -> 918.6666667 | AP40: ='Routine US101-S Hopper Ave 1'!T16 -> 103.9638303 | AQ40: ='Routine US101-S Hopper Ave 1'!U16 -> 14.73027211 | AS40: =Theoretical!A40 -> 38 | AT40: =Theoretical!B40 -> 45.59633028 | AU40: =Theoretical!C40 -> 1 | AV40: =Theoretical!D40 -> 1732.66055 | AW40: =Theoretical!E40 -> 23.61205808 | AX40: =Theoretical!F40 -> 73.38032731
A41: ='Evac US101-S loc 104'!A41 -> 2019-10-26T03:15:00 | B41: ='Evac US101-S loc 104'!B41 -> 0.5 | C41: ='Evac US101-S loc 104'!C41 -> 10 | D41: ='Evac US101-S loc 104'!D41 -> 66.7 | E41: ='Evac US101-S loc 104'!E41 -> 2 | F41: ='Evac US101-S loc 104'!F41 -> 100 | G41: ='Evac US101-S loc 104'!G41 -> 1.795918367 | H41: ='Evac US101-S loc 104'!H41 -> 60 | I41: ='Evac US101-S loc 104'!I41 -> 107.3434595 | J41: ='Evac US101-S loc 104'!J41 -> 1.115929705 | L41: ='Routine US101-S loc 104'!A41 -> 2019-10-16T03:15:00 | M41: ='Routine US101-S loc 104'!B41 -> 0.6 | N41: ='Routine US101-S loc 104'!C41 -> 17 | O41: ='Routine US101-S loc 104'!D41 -> 67.3 | P41: ='Routine US101-S loc 104'!E41 -> 2 | Q41: ='Routine US101-S loc 104'!F41 -> 100 | R41: ='Routine US101-S loc 104'!G41 -> 2.155102041 | S41: ='Routine US101-S loc 104'!H41 -> 102 | T41: ='Routine US101-S loc 104'!I41 -> 108.3090678 | U41: ='Routine US101-S loc 104'!J41 -> 1.339115646 | W41: ='Evac US101-S Hopper Ave 1'!L17 -> 10-23-2019 15:00 | X41: ='Evac US101-S Hopper Ave 1'!M17 -> 15.6 | Y41: ='Evac US101-S Hopper Ave 1'!N17 -> 2718 | Z41: ='Evac US101-S Hopper Ave 1'!O17 -> 41.9 | AA41: ='Evac US101-S Hopper Ave 1'!P17 -> 36 | AB41: ='Evac US101-S Hopper Ave 1'!Q17 -> 100 | AC41: ='Evac US101-S Hopper Ave 1'!R17 -> 56.03265306 | AD41: ='Evac US101-S Hopper Ave 1'!S17 -> 906 | AE41: ='Evac US101-S Hopper Ave 1'!T17 -> 67.43164846 | AF41: ='Evac US101-S Hopper Ave 1'!U17 -> 34.8170068 | AH41: ='Routine US101-S Hopper Ave 1'!L17 -> 2019-10-16T15:00:00 | AI41: ='Routine US101-S Hopper Ave 1'!M17 -> 13.7 | AJ41: ='Routine US101-S Hopper Ave 1'!N17 -> 2846 | AK41: ='Routine US101-S Hopper Ave 1'!O17 -> 45.7 | AL41: ='Routine US101-S Hopper Ave 1'!P17 -> 36 | AM41: ='Routine US101-S Hopper Ave 1'!Q17 -> 100 | AN41: ='Routine US101-S Hopper Ave 1'!R17 -> 49.20816327 | AO41: ='Routine US101-S Hopper Ave 1'!S17 -> 948.6666667 | AP41: ='Routine US101-S Hopper Ave 1'!T17 -> 73.54716789 | AQ41: ='Routine US101-S Hopper Ave 1'!U17 -> 30.57647392 | AS41: =Theoretical!A41 -> 39 | AT41: =Theoretical!B41 -> 44.95412844 | AU41: =Theoretical!C41 -> 1 | AV41: =Theoretical!D41 -> 1753.211009 | AW41: =Theoretical!E41 -> 24.23342803 | AX41: =Theoretical!F41 -> 72.34680157
A42: ='Evac US101-S loc 104'!A42 -> 2019-10-26T03:20:00 | B42: ='Evac US101-S loc 104'!B42 -> 0.2 | C42: ='Evac US101-S loc 104'!C42 -> 6 | D42: ='Evac US101-S loc 104'!D42 -> 67 | E42: ='Evac US101-S loc 104'!E42 -> 2 | F42: ='Evac US101-S loc 104'!F42 -> 100 | G42: ='Evac US101-S loc 104'!G42 -> 0.7183673469 | H42: ='Evac US101-S loc 104'!H42 -> 36 | I42: ='Evac US101-S loc 104'!I42 -> 107.8262637 | J42: ='Evac US101-S loc 104'!J42 -> 0.4463718821 | L42: ='Routine US101-S loc 104'!A42 -> 2019-10-16T03:20:00 | M42: ='Routine US101-S loc 104'!B42 -> 0.5 | N42: ='Routine US101-S loc 104'!C42 -> 12 | O42: ='Routine US101-S loc 104'!D42 -> 65.6 | P42: ='Routine US101-S loc 104'!E42 -> 2 | Q42: ='Routine US101-S loc 104'!F42 -> 100 | R42: ='Routine US101-S loc 104'!G42 -> 1.795918367 | S42: ='Routine US101-S loc 104'!H42 -> 72 | T42: ='Routine US101-S loc 104'!I42 -> 105.5731775 | U42: ='Routine US101-S loc 104'!J42 -> 1.115929705 | W42: ='Evac US101-S Hopper Ave 1'!L18 -> 10-23-2019 16:00 | X42: ='Evac US101-S Hopper Ave 1'!M18 -> 26.7 | Y42: ='Evac US101-S Hopper Ave 1'!N18 -> 2414 | Z42: ='Evac US101-S Hopper Ave 1'!O18 -> 27.3 | AA42: ='Evac US101-S Hopper Ave 1'!P18 -> 36 | AB42: ='Evac US101-S Hopper Ave 1'!Q18 -> 100 | AC42: ='Evac US101-S Hopper Ave 1'!R18 -> 95.90204082 | AD42: ='Evac US101-S Hopper Ave 1'!S18 -> 804.6666667 | AE42: ='Evac US101-S Hopper Ave 1'!T18 -> 43.93517907 | AF42: ='Evac US101-S Hopper Ave 1'!U18 -> 59.59064626 | AH42: ='Routine US101-S Hopper Ave 1'!L18 -> 2019-10-16T16:00:00 | AI42: ='Routine US101-S Hopper Ave 1'!M18 -> 21.9 | AJ42: ='Routine US101-S Hopper Ave 1'!N18 -> 2481 | AK42: ='Routine US101-S Hopper Ave 1'!O18 -> 29.1 | AL42: ='Routine US101-S Hopper Ave 1'!P18 -> 36 | AM42: ='Routine US101-S Hopper Ave 1'!Q18 -> 100 | AN42: ='Routine US101-S Hopper Ave 1'!R18 -> 78.66122449 | AO42: ='Routine US101-S Hopper Ave 1'!S18 -> 827 | AP42: ='Routine US101-S Hopper Ave 1'!T18 -> 46.83200406 | AQ42: ='Routine US101-S Hopper Ave 1'!U18 -> 48.87772109 | AS42: =Theoretical!A42 -> 40 | AT42: =Theoretical!B42 -> 44.31192661 | AU42: =Theoretical!C42 -> 1 | AV42: =Theoretical!D42 -> 1772.477064 | AW42: =Theoretical!E42 -> 24.85479798 | AX42: =Theoretical!F42 -> 71.31327584
A43: ='Evac US101-S loc 104'!A43 -> 2019-10-26T03:25:00 | B43: ='Evac US101-S loc 104'!B43 -> 0.5 | C43: ='Evac US101-S loc 104'!C43 -> 8 | D43: ='Evac US101-S loc 104'!D43 -> 66.7 | E43: ='Evac US101-S loc 104'!E43 -> 2 | F43: ='Evac US101-S loc 104'!F43 -> 100 | G43: ='Evac US101-S loc 104'!G43 -> 1.795918367 | H43: ='Evac US101-S loc 104'!H43 -> 48 | I43: ='Evac US101-S loc 104'!I43 -> 107.3434595 | J43: ='Evac US101-S loc 104'!J43 -> 1.115929705 | L43: ='Routine US101-S loc 104'!A43 -> 2019-10-16T03:25:00 | M43: ='Routine US101-S loc 104'!B43 -> 0.4 | N43: ='Routine US101-S loc 104'!C43 -> 12 | O43: ='Routine US101-S loc 104'!D43 -> 67.3 | P43: ='Routine US101-S loc 104'!E43 -> 2 | Q43: ='Routine US101-S loc 104'!F43 -> 100 | R43: ='Routine US101-S loc 104'!G43 -> 1.436734694 | S43: ='Routine US101-S loc 104'!H43 -> 72 | T43: ='Routine US101-S loc 104'!I43 -> 108.3090678 | U43: ='Routine US101-S loc 104'!J43 -> 0.8927437642 | W43: ='Evac US101-S Hopper Ave 1'!L19 -> 10-23-2019 17:00 | X43: ='Evac US101-S Hopper Ave 1'!M19 -> 27 | Y43: ='Evac US101-S Hopper Ave 1'!N19 -> 2238 | Z43: ='Evac US101-S Hopper Ave 1'!O19 -> 25.8 | AA43: ='Evac US101-S Hopper Ave 1'!P19 -> 36 | AB43: ='Evac US101-S Hopper Ave 1'!Q19 -> 100 | AC43: ='Evac US101-S Hopper Ave 1'!R19 -> 96.97959184 | AD43: ='Evac US101-S Hopper Ave 1'!S19 -> 746 | AE43: ='Evac US101-S Hopper Ave 1'!T19 -> 41.52115824 | AF43: ='Evac US101-S Hopper Ave 1'!U19 -> 60.26020408 | AH43: ='Routine US101-S Hopper Ave 1'!L19 -> 2019-10-16T17:00:00 | AI43: ='Routine US101-S Hopper Ave 1'!M19 -> 24.2 | AJ43: ='Routine US101-S Hopper Ave 1'!N19 -> 2319 | AK43: ='Routine US101-S Hopper Ave 1'!O19 -> 28.5 | AL43: ='Routine US101-S Hopper Ave 1'!P19 -> 36 | AM43: ='Routine US101-S Hopper Ave 1'!Q19 -> 100 | AN43: ='Routine US101-S Hopper Ave 1'!R19 -> 86.92244898 | AO43: ='Routine US101-S Hopper Ave 1'!S19 -> 773 | AP43: ='Routine US101-S Hopper Ave 1'!T19 -> 45.86639573 | AQ43: ='Routine US101-S Hopper Ave 1'!U19 -> 54.01099773 | AS43: =Theoretical!A43 -> 41 | AT43: =Theoretical!B43 -> 43.66972477 | AU43: =Theoretical!C43 -> 1 | AV43: =Theoretical!D43 -> 1790.458716 | AW43: =Theoretical!E43 -> 25.47616793 | AX43: =Theoretical!F43 -> 70.2797501
A44: ='Evac US101-S loc 104'!A44 -> 2019-10-26T03:30:00 | B44: ='Evac US101-S loc 104'!B44 -> 0.3 | C44: ='Evac US101-S loc 104'!C44 -> 11 | D44: ='Evac US101-S loc 104'!D44 -> 66.7 | E44: ='Evac US101-S loc 104'!E44 -> 2 | F44: ='Evac US101-S loc 104'!F44 -> 100 | G44: ='Evac US101-S loc 104'!G44 -> 1.07755102 | H44: ='Evac US101-S loc 104'!H44 -> 66 | I44: ='Evac US101-S loc 104'!I44 -> 107.3434595 | J44: ='Evac US101-S loc 104'!J44 -> 0.6695578231 | L44: ='Routine US101-S loc 104'!A44 -> 2019-10-16T03:30:00 | M44: ='Routine US101-S loc 104'!B44 -> 1 | N44: ='Routine US101-S loc 104'!C44 -> 13 | O44: ='Routine US101-S loc 104'!D44 -> 64.6 | P44: ='Routine US101-S loc 104'!E44 -> 2 | Q44: ='Routine US101-S loc 104'!F44 -> 100 | R44: ='Routine US101-S loc 104'!G44 -> 3.591836735 | S44: ='Routine US101-S loc 104'!H44 -> 78 | T44: ='Routine US101-S loc 104'!I44 -> 103.9638303 | U44: ='Routine US101-S loc 104'!J44 -> 2.23185941 | W44: ='Evac US101-S Hopper Ave 1'!L20 -> 10-23-2019 18:00 | X44: ='Evac US101-S Hopper Ave 1'!M20 -> 6.5 | Y44: ='Evac US101-S Hopper Ave 1'!N20 -> 2044 | Z44: ='Evac US101-S Hopper Ave 1'!O20 -> 49.2 | AA44: ='Evac US101-S Hopper Ave 1'!P20 -> 36 | AB44: ='Evac US101-S Hopper Ave 1'!Q20 -> 100 | AC44: ='Evac US101-S Hopper Ave 1'!R20 -> 23.34693878 | AD44: ='Evac US101-S Hopper Ave 1'!S20 -> 681.3333333 | AE44: ='Evac US101-S Hopper Ave 1'!T20 -> 79.17988316 | AF44: ='Evac US101-S Hopper Ave 1'!U20 -> 14.50708617 | AH44: ='Routine US101-S Hopper Ave 1'!L20 -> 2019-10-16T18:00:00 | AI44: ='Routine US101-S Hopper Ave 1'!M20 -> 7.7 | AJ44: ='Routine US101-S Hopper Ave 1'!N20 -> 2230 | AK44: ='Routine US101-S Hopper Ave 1'!O20 -> 47.2 | AL44: ='Routine US101-S Hopper Ave 1'!P20 -> 36 | AM44: ='Routine US101-S Hopper Ave 1'!Q20 -> 100 | AN44: ='Routine US101-S Hopper Ave 1'!R20 -> 27.65714286 | AO44: ='Routine US101-S Hopper Ave 1'!S20 -> 743.3333333 | AP44: ='Routine US101-S Hopper Ave 1'!T20 -> 75.96118872 | AQ44: ='Routine US101-S Hopper Ave 1'!U20 -> 17.18531746 | AS44: =Theoretical!A44 -> 42 | AT44: =Theoretical!B44 -> 43.02752294 | AU44: =Theoretical!C44 -> 1 | AV44: =Theoretical!D44 -> 1807.155963 | AW44: =Theoretical!E44 -> 26.09753788 | AX44: =Theoretical!F44 -> 69.24622436
A45: ='Evac US101-S loc 104'!A45 -> 2019-10-26T03:35:00 | B45: ='Evac US101-S loc 104'!B45 -> 0.4 | C45: ='Evac US101-S loc 104'!C45 -> 6 | D45: ='Evac US101-S loc 104'!D45 -> 65.4 | E45: ='Evac US101-S loc 104'!E45 -> 2 | F45: ='Evac US101-S loc 104'!F45 -> 100 | G45: ='Evac US101-S loc 104'!G45 -> 1.436734694 | H45: ='Evac US101-S loc 104'!H45 -> 36 | I45: ='Evac US101-S loc 104'!I45 -> 105.2513081 | J45: ='Evac US101-S loc 104'!J45 -> 0.8927437642 | L45: ='Routine US101-S loc 104'!A45 -> 2019-10-16T03:35:00 | M45: ='Routine US101-S loc 104'!B45 -> 0.5 | N45: ='Routine US101-S loc 104'!C45 -> 10 | O45: ='Routine US101-S loc 104'!D45 -> 65.5 | P45: ='Routine US101-S loc 104'!E45 -> 2 | Q45: ='Routine US101-S loc 104'!F45 -> 100 | R45: ='Routine US101-S loc 104'!G45 -> 1.795918367 | S45: ='Routine US101-S loc 104'!H45 -> 60 | T45: ='Routine US101-S loc 104'!I45 -> 105.4122428 | U45: ='Routine US101-S loc 104'!J45 -> 1.115929705 | W45: ='Evac US101-S Hopper Ave 1'!L21 -> 10-23-2019 19:00 | X45: ='Evac US101-S Hopper Ave 1'!M21 -> 3.4 | Y45: ='Evac US101-S Hopper Ave 1'!N21 -> 1565 | Z45: ='Evac US101-S Hopper Ave 1'!O21 -> 67.7 | AA45: ='Evac US101-S Hopper Ave 1'!P21 -> 36 | AB45: ='Evac US101-S Hopper Ave 1'!Q21 -> 100 | AC45: ='Evac US101-S Hopper Ave 1'!R21 -> 12.2122449 | AD45: ='Evac US101-S Hopper Ave 1'!S21 -> 521.6666667 | AE45: ='Evac US101-S Hopper Ave 1'!T21 -> 108.9528067 | AF45: ='Evac US101-S Hopper Ave 1'!U21 -> 7.588321995 | AH45: ='Routine US101-S Hopper Ave 1'!L21 -> 2019-10-16T19:00:00 | AI45: ='Routine US101-S Hopper Ave 1'!M21 -> 3.5 | AJ45: ='Routine US101-S Hopper Ave 1'!N21 -> 1625 | AK45: ='Routine US101-S Hopper Ave 1'!O21 -> 68.8 | AL45: ='Routine US101-S Hopper Ave 1'!P21 -> 36 | AM45: ='Routine US101-S Hopper Ave 1'!Q21 -> 100 | AN45: ='Routine US101-S Hopper Ave 1'!R21 -> 12.57142857 | AO45: ='Routine US101-S Hopper Ave 1'!S21 -> 541.6666667 | AP45: ='Routine US101-S Hopper Ave 1'!T21 -> 110.7230886 | AQ45: ='Routine US101-S Hopper Ave 1'!U21 -> 7.811507937 | AS45: =Theoretical!A45 -> 43 | AT45: =Theoretical!B45 -> 42.3853211 | AU45: =Theoretical!C45 -> 1 | AV45: =Theoretical!D45 -> 1822.568807 | AW45: =Theoretical!E45 -> 26.71890783 | AX45: =Theoretical!F45 -> 68.21269863
A46: ='Evac US101-S loc 104'!A46 -> 2019-10-26T03:40:00 | B46: ='Evac US101-S loc 104'!B46 -> 0.6 | C46: ='Evac US101-S loc 104'!C46 -> 11 | D46: ='Evac US101-S loc 104'!D46 -> 63.8 | E46: ='Evac US101-S loc 104'!E46 -> 2 | F46: ='Evac US101-S loc 104'!F46 -> 100 | G46: ='Evac US101-S loc 104'!G46 -> 2.155102041 | H46: ='Evac US101-S loc 104'!H46 -> 66 | I46: ='Evac US101-S loc 104'!I46 -> 102.6763526 | J46: ='Evac US101-S loc 104'!J46 -> 1.339115646 | L46: ='Routine US101-S loc 104'!A46 -> 2019-10-16T03:40:00 | M46: ='Routine US101-S loc 104'!B46 -> 0.5 | N46: ='Routine US101-S loc 104'!C46 -> 11 | O46: ='Routine US101-S loc 104'!D46 -> 65.8 | P46: ='Routine US101-S loc 104'!E46 -> 2 | Q46: ='Routine US101-S loc 104'!F46 -> 100 | R46: ='Routine US101-S loc 104'!G46 -> 1.795918367 | S46: ='Routine US101-S loc 104'!H46 -> 66 | T46: ='Routine US101-S loc 104'!I46 -> 105.895047 | U46: ='Routine US101-S loc 104'!J46 -> 1.115929705 | W46: ='Evac US101-S Hopper Ave 1'!L22 -> 10-23-2019 20:00 | X46: ='Evac US101-S Hopper Ave 1'!M22 -> 2.7 | Y46: ='Evac US101-S Hopper Ave 1'!N22 -> 1234 | Z46: ='Evac US101-S Hopper Ave 1'!O22 -> 67.5 | AA46: ='Evac US101-S Hopper Ave 1'!P22 -> 36 | AB46: ='Evac US101-S Hopper Ave 1'!Q22 -> 100 | AC46: ='Evac US101-S Hopper Ave 1'!R22 -> 9.697959184 | AD46: ='Evac US101-S Hopper Ave 1'!S22 -> 411.3333333 | AE46: ='Evac US101-S Hopper Ave 1'!T22 -> 108.6309373 | AF46: ='Evac US101-S Hopper Ave 1'!U22 -> 6.026020408 | AH46: ='Routine US101-S Hopper Ave 1'!L22 -> 2019-10-16T20:00:00 | AI46: ='Routine US101-S Hopper Ave 1'!M22 -> 2.7 | AJ46: ='Routine US101-S Hopper Ave 1'!N22 -> 1264 | AK46: ='Routine US101-S Hopper Ave 1'!O22 -> 67.6 | AL46: ='Routine US101-S Hopper Ave 1'!P22 -> 36 | AM46: ='Routine US101-S Hopper Ave 1'!Q22 -> 100 | AN46: ='Routine US101-S Hopper Ave 1'!R22 -> 9.697959184 | AO46: ='Routine US101-S Hopper Ave 1'!S22 -> 421.3333333 | AP46: ='Routine US101-S Hopper Ave 1'!T22 -> 108.791872 | AQ46: ='Routine US101-S Hopper Ave 1'!U22 -> 6.026020408 | AS46: =Theoretical!A46 -> 44 | AT46: =Theoretical!B46 -> 41.74311927 | AU46: =Theoretical!C46 -> 1 | AV46: =Theoretical!D46 -> 1836.697248 | AW46: =Theoretical!E46 -> 27.34027778 | AX46: =Theoretical!F46 -> 67.17917289
A47: ='Evac US101-S loc 104'!A47 -> 2019-10-26T03:45:00 | B47: ='Evac US101-S loc 104'!B47 -> 0.1 | C47: ='Evac US101-S loc 104'!C47 -> 4 | D47: ='Evac US101-S loc 104'!D47 -> 66.2 | E47: ='Evac US101-S loc 104'!E47 -> 2 | F47: ='Evac US101-S loc 104'!F47 -> 100 | G47: ='Evac US101-S loc 104'!G47 -> 0.3591836735 | H47: ='Evac US101-S loc 104'!H47 -> 24 | I47: ='Evac US101-S loc 104'!I47 -> 106.5387859 | J47: ='Evac US101-S loc 104'!J47 -> 0.223185941 | L47: ='Routine US101-S loc 104'!A47 -> 2019-10-16T03:45:00 | M47: ='Routine US101-S loc 104'!B47 -> 0.4 | N47: ='Routine US101-S loc 104'!C47 -> 11 | O47: ='Routine US101-S loc 104'!D47 -> 66.9 | P47: ='Routine US101-S loc 104'!E47 -> 2 | Q47: ='Routine US101-S loc 104'!F47 -> 100 | R47: ='Routine US101-S loc 104'!G47 -> 1.436734694 | S47: ='Routine US101-S loc 104'!H47 -> 66 | T47: ='Routine US101-S loc 104'!I47 -> 107.6653289 | U47: ='Routine US101-S loc 104'!J47 -> 0.8927437642 | W47: ='Evac US101-S Hopper Ave 1'!L23 -> 10-23-2019 21:00 | X47: ='Evac US101-S Hopper Ave 1'!M23 -> 2 | Y47: ='Evac US101-S Hopper Ave 1'!N23 -> 958 | Z47: ='Evac US101-S Hopper Ave 1'!O23 -> 67.7 | AA47: ='Evac US101-S Hopper Ave 1'!P23 -> 36 | AB47: ='Evac US101-S Hopper Ave 1'!Q23 -> 100 | AC47: ='Evac US101-S Hopper Ave 1'!R23 -> 7.183673469 | AD47: ='Evac US101-S Hopper Ave 1'!S23 -> 319.3333333 | AE47: ='Evac US101-S Hopper Ave 1'!T23 -> 108.9528067 | AF47: ='Evac US101-S Hopper Ave 1'!U23 -> 4.463718821 | AH47: ='Routine US101-S Hopper Ave 1'!L23 -> 2019-10-16T21:00:00 | AI47: ='Routine US101-S Hopper Ave 1'!M23 -> 1.9 | AJ47: ='Routine US101-S Hopper Ave 1'!N23 -> 891 | AK47: ='Routine US101-S Hopper Ave 1'!O23 -> 67.8 | AL47: ='Routine US101-S Hopper Ave 1'!P23 -> 36 | AM47: ='Routine US101-S Hopper Ave 1'!Q23 -> 100 | AN47: ='Routine US101-S Hopper Ave 1'!R23 -> 6.824489796 | AO47: ='Routine US101-S Hopper Ave 1'!S23 -> 297 | AP47: ='Routine US101-S Hopper Ave 1'!T23 -> 109.1137414 | AQ47: ='Routine US101-S Hopper Ave 1'!U23 -> 4.24053288 | AS47: =Theoretical!A47 -> 45 | AT47: =Theoretical!B47 -> 41.10091743 | AU47: =Theoretical!C47 -> 1 | AV47: =Theoretical!D47 -> 1849.541284 | AW47: =Theoretical!E47 -> 27.96164773 | AX47: =Theoretical!F47 -> 66.14564715
A48: ='Evac US101-S loc 104'!A48 -> 2019-10-26T03:50:00 | B48: ='Evac US101-S loc 104'!B48 -> 0.2 | C48: ='Evac US101-S loc 104'!C48 -> 8 | D48: ='Evac US101-S loc 104'!D48 -> 68 | E48: ='Evac US101-S loc 104'!E48 -> 2 | F48: ='Evac US101-S loc 104'!F48 -> 100 | G48: ='Evac US101-S loc 104'!G48 -> 0.7183673469 | H48: ='Evac US101-S loc 104'!H48 -> 48 | I48: ='Evac US101-S loc 104'!I48 -> 109.4356109 | J48: ='Evac US101-S loc 104'!J48 -> 0.4463718821 | L48: ='Routine US101-S loc 104'!A48 -> 2019-10-16T03:50:00 | M48: ='Routine US101-S loc 104'!B48 -> 0.5 | N48: ='Routine US101-S loc 104'!C48 -> 12 | O48: ='Routine US101-S loc 104'!D48 -> 66.9 | P48: ='Routine US101-S loc 104'!E48 -> 2 | Q48: ='Routine US101-S loc 104'!F48 -> 100 | R48: ='Routine US101-S loc 104'!G48 -> 1.795918367 | S48: ='Routine US101-S loc 104'!H48 -> 72 | T48: ='Routine US101-S loc 104'!I48 -> 107.6653289 | U48: ='Routine US101-S loc 104'!J48 -> 1.115929705 | W48: ='Evac US101-S Hopper Ave 1'!L24 -> 10-23-2019 22:00 | X48: ='Evac US101-S Hopper Ave 1'!M24 -> 1.8 | Y48: ='Evac US101-S Hopper Ave 1'!N24 -> 832 | Z48: ='Evac US101-S Hopper Ave 1'!O24 -> 66.7 | AA48: ='Evac US101-S Hopper Ave 1'!P24 -> 36 | AB48: ='Evac US101-S Hopper Ave 1'!Q24 -> 100 | AC48: ='Evac US101-S Hopper Ave 1'!R24 -> 6.465306122 | AD48: ='Evac US101-S Hopper Ave 1'!S24 -> 277.3333333 | AE48: ='Evac US101-S Hopper Ave 1'!T24 -> 107.3434595 | AF48: ='Evac US101-S Hopper Ave 1'!U24 -> 4.017346939 | AH48: ='Routine US101-S Hopper Ave 1'!L24 -> 2019-10-16T22:00:00 | AI48: ='Routine US101-S Hopper Ave 1'!M24 -> 1.5 | AJ48: ='Routine US101-S Hopper Ave 1'!N24 -> 727 | AK48: ='Routine US101-S Hopper Ave 1'!O24 -> 67.5 | AL48: ='Routine US101-S Hopper Ave 1'!P24 -> 36 | AM48: ='Routine US101-S Hopper Ave 1'!Q24 -> 100 | AN48: ='Routine US101-S Hopper Ave 1'!R24 -> 5.387755102 | AO48: ='Routine US101-S Hopper Ave 1'!S24 -> 242.3333333 | AP48: ='Routine US101-S Hopper Ave 1'!T24 -> 108.6309373 | AQ48: ='Routine US101-S Hopper Ave 1'!U24 -> 3.347789116 | AS48: =Theoretical!A48 -> 46 | AT48: =Theoretical!B48 -> 40.4587156 | AU48: =Theoretical!C48 -> 1 | AV48: =Theoretical!D48 -> 1861.100917 | AW48: =Theoretical!E48 -> 28.58301768 | AX48: =Theoretical!F48 -> 65.11212142
A49: ='Evac US101-S loc 104'!A49 -> 2019-10-26T03:55:00 | B49: ='Evac US101-S loc 104'!B49 -> 0.4 | C49: ='Evac US101-S loc 104'!C49 -> 7 | D49: ='Evac US101-S loc 104'!D49 -> 65.5 | E49: ='Evac US101-S loc 104'!E49 -> 2 | F49: ='Evac US101-S loc 104'!F49 -> 100 | G49: ='Evac US101-S loc 104'!G49 -> 1.436734694 | H49: ='Evac US101-S loc 104'!H49 -> 42 | I49: ='Evac US101-S loc 104'!I49 -> 105.4122428 | J49: ='Evac US101-S loc 104'!J49 -> 0.8927437642 | L49: ='Routine US101-S loc 104'!A49 -> 2019-10-16T03:55:00 | M49: ='Routine US101-S loc 104'!B49 -> 1.3 | N49: ='Routine US101-S loc 104'!C49 -> 26 | O49: ='Routine US101-S loc 104'!D49 -> 66.4 | P49: ='Routine US101-S loc 104'!E49 -> 2 | Q49: ='Routine US101-S loc 104'!F49 -> 100 | R49: ='Routine US101-S loc 104'!G49 -> 4.669387755 | S49: ='Routine US101-S loc 104'!H49 -> 156 | T49: ='Routine US101-S loc 104'!I49 -> 106.8606553 | U49: ='Routine US101-S loc 104'!J49 -> 2.901417234 | W49: ='Evac US101-S Hopper Ave 1'!L25 -> 10-23-2019 23:00 | X49: ='Evac US101-S Hopper Ave 1'!M25 -> 1.8 | Y49: ='Evac US101-S Hopper Ave 1'!N25 -> 846 | Z49: ='Evac US101-S Hopper Ave 1'!O25 -> 65.7 | AA49: ='Evac US101-S Hopper Ave 1'!P25 -> 36 | AB49: ='Evac US101-S Hopper Ave 1'!Q25 -> 100 | AC49: ='Evac US101-S Hopper Ave 1'!R25 -> 6.465306122 | AD49: ='Evac US101-S Hopper Ave 1'!S25 -> 282 | AE49: ='Evac US101-S Hopper Ave 1'!T25 -> 105.7341123 | AF49: ='Evac US101-S Hopper Ave 1'!U25 -> 4.017346939 | AH49: ='Routine US101-S Hopper Ave 1'!L25 -> 2019-10-16T23:00:00 | AI49: ='Routine US101-S Hopper Ave 1'!M25 -> 0.9 | AJ49: ='Routine US101-S Hopper Ave 1'!N25 -> 447 | AK49: ='Routine US101-S Hopper Ave 1'!O25 -> 67.4 | AL49: ='Routine US101-S Hopper Ave 1'!P25 -> 36 | AM49: ='Routine US101-S Hopper Ave 1'!Q25 -> 100 | AN49: ='Routine US101-S Hopper Ave 1'!R25 -> 3.232653061 | AO49: ='Routine US101-S Hopper Ave 1'!S25 -> 149 | AP49: ='Routine US101-S Hopper Ave 1'!T25 -> 108.4700025 | AQ49: ='Routine US101-S Hopper Ave 1'!U25 -> 2.008673469 | AS49: =Theoretical!A49 -> 47 | AT49: =Theoretical!B49 -> 39.81651376 | AU49: =Theoretical!C49 -> 1 | AV49: =Theoretical!D49 -> 1871.376147 | AW49: =Theoretical!E49 -> 29.20438763 | AX49: =Theoretical!F49 -> 64.07859568
A50: ='Evac US101-S loc 104'!A50 -> 2019-10-26T04:00:00 | B50: ='Evac US101-S loc 104'!B50 -> 0.2 | C50: ='Evac US101-S loc 104'!C50 -> 6 | D50: ='Evac US101-S loc 104'!D50 -> 67.1 | E50: ='Evac US101-S loc 104'!E50 -> 2 | F50: ='Evac US101-S loc 104'!F50 -> 100 | G50: ='Evac US101-S loc 104'!G50 -> 0.7183673469 | H50: ='Evac US101-S loc 104'!H50 -> 36 | I50: ='Evac US101-S loc 104'!I50 -> 107.9871984 | J50: ='Evac US101-S loc 104'!J50 -> 0.4463718821 | L50: ='Routine US101-S loc 104'!A50 -> 2019-10-16T04:00:00 | M50: ='Routine US101-S loc 104'!B50 -> 0.6 | N50: ='Routine US101-S loc 104'!C50 -> 17 | O50: ='Routine US101-S loc 104'!D50 -> 66.1 | P50: ='Routine US101-S loc 104'!E50 -> 2 | Q50: ='Routine US101-S loc 104'!F50 -> 100 | R50: ='Routine US101-S loc 104'!G50 -> 2.155102041 | S50: ='Routine US101-S loc 104'!H50 -> 102 | T50: ='Routine US101-S loc 104'!I50 -> 106.3778512 | U50: ='Routine US101-S loc 104'!J50 -> 1.339115646 | W50: ='Evac US101-S Hopper Ave 2'!L2 -> 2019-10-25 | X50: ='Evac US101-S Hopper Ave 2'!M2 -> 0.6 | Y50: ='Evac US101-S Hopper Ave 2'!N2 -> 250 | Z50: ='Evac US101-S Hopper Ave 2'!O2 -> 66.3 | AA50: ='Evac US101-S Hopper Ave 2'!P2 -> 36 | AB50: ='Evac US101-S Hopper Ave 2'!Q2 -> 100 | AC50: ='Evac US101-S Hopper Ave 2'!R2 -> 2.155102041 | AD50: ='Evac US101-S Hopper Ave 2'!S2 -> 83.33333333 | AE50: ='Evac US101-S Hopper Ave 2'!T2 -> 106.6997206 | AF50: ='Evac US101-S Hopper Ave 2'!U2 -> 1.339115646 | AH50: ='Routine US101-S Hopper Ave 1'!L26 -> 2019-10-17 | AI50: ='Routine US101-S Hopper Ave 1'!M26 -> 0.5 | AJ50: ='Routine US101-S Hopper Ave 1'!N26 -> 224 | AK50: ='Routine US101-S Hopper Ave 1'!O26 -> 66.5 | AL50: ='Routine US101-S Hopper Ave 1'!P26 -> 36 | AM50: ='Routine US101-S Hopper Ave 1'!Q26 -> 100 | AN50: ='Routine US101-S Hopper Ave 1'!R26 -> 1.795918367 | AO50: ='Routine US101-S Hopper Ave 1'!S26 -> 74.66666667 | AP50: ='Routine US101-S Hopper Ave 1'!T26 -> 107.02159 | AQ50: ='Routine US101-S Hopper Ave 1'!U26 -> 1.115929705 | AS50: =Theoretical!A50 -> 48 | AT50: =Theoretical!B50 -> 39.17431193 | AU50: =Theoretical!C50 -> 1 | AV50: =Theoretical!D50 -> 1880.366972 | AW50: =Theoretical!E50 -> 29.82575758 | AX50: =Theoretical!F50 -> 63.04506994
A51: ='Evac US101-S loc 104'!A51 -> 2019-10-26T04:05:00 | B51: ='Evac US101-S loc 104'!B51 -> 0.3 | C51: ='Evac US101-S loc 104'!C51 -> 8 | D51: ='Evac US101-S loc 104'!D51 -> 65.8 | E51: ='Evac US101-S loc 104'!E51 -> 2 | F51: ='Evac US101-S loc 104'!F51 -> 100 | G51: ='Evac US101-S loc 104'!G51 -> 1.07755102 | H51: ='Evac US101-S loc 104'!H51 -> 48 | I51: ='Evac US101-S loc 104'!I51 -> 105.895047 | J51: ='Evac US101-S loc 104'!J51 -> 0.6695578231 | L51: ='Routine US101-S loc 104'!A51 -> 2019-10-16T04:05:00 | M51: ='Routine US101-S loc 104'!B51 -> 0.8 | N51: ='Routine US101-S loc 104'!C51 -> 16 | O51: ='Routine US101-S loc 104'!D51 -> 65.9 | P51: ='Routine US101-S loc 104'!E51 -> 2 | Q51: ='Routine US101-S loc 104'!F51 -> 100 | R51: ='Routine US101-S loc 104'!G51 -> 2.873469388 | S51: ='Routine US101-S loc 104'!H51 -> 96 | T51: ='Routine US101-S loc 104'!I51 -> 106.0559817 | U51: ='Routine US101-S loc 104'!J51 -> 1.785487528 | W51: ='Evac US101-S Hopper Ave 2'!L3 -> 2019-10-25T01:00:00 | X51: ='Evac US101-S Hopper Ave 2'!M3 -> 0.5 | Y51: ='Evac US101-S Hopper Ave 2'!N3 -> 197 | Z51: ='Evac US101-S Hopper Ave 2'!O3 -> 66.2 | AA51: ='Evac US101-S Hopper Ave 2'!P3 -> 36 | AB51: ='Evac US101-S Hopper Ave 2'!Q3 -> 100 | AC51: ='Evac US101-S Hopper Ave 2'!R3 -> 1.795918367 | AD51: ='Evac US101-S Hopper Ave 2'!S3 -> 65.66666667 | AE51: ='Evac US101-S Hopper Ave 2'!T3 -> 106.5387859 | AF51: ='Evac US101-S Hopper Ave 2'!U3 -> 1.115929705 | AH51: ='Routine US101-S Hopper Ave 1'!L27 -> 2019-10-17T01:00:00 | AI51: ='Routine US101-S Hopper Ave 1'!M27 -> 0 | AJ51: ='Routine US101-S Hopper Ave 1'!N27 -> 0 | AK51: ='Routine US101-S Hopper Ave 1'!O27 -> 68.1 | AL51: ='Routine US101-S Hopper Ave 1'!P27 -> 36 | AM51: ='Routine US101-S Hopper Ave 1'!Q27 -> 100 | AN51: ='Routine US101-S Hopper Ave 1'!R27 -> 0 | AO51: ='Routine US101-S Hopper Ave 1'!S27 -> 0 | AP51: ='Routine US101-S Hopper Ave 1'!T27 -> 109.5965456 | AQ51: ='Routine US101-S Hopper Ave 1'!U27 -> 0 | AS51: =Theoretical!A51 -> 49 | AT51: =Theoretical!B51 -> 38.53211009 | AU51: =Theoretical!C51 -> 1 | AV51: =Theoretical!D51 -> 1888.073394 | AW51: =Theoretical!E51 -> 30.44712753 | AX51: =Theoretical!F51 -> 62.01154421
A52: ='Evac US101-S loc 104'!A52 -> 2019-10-26T04:10:00 | B52: ='Evac US101-S loc 104'!B52 -> 0.4 | C52: ='Evac US101-S loc 104'!C52 -> 10 | D52: ='Evac US101-S loc 104'!D52 -> 66.8 | E52: ='Evac US101-S loc 104'!E52 -> 2 | F52: ='Evac US101-S loc 104'!F52 -> 100 | G52: ='Evac US101-S loc 104'!G52 -> 1.436734694 | H52: ='Evac US101-S loc 104'!H52 -> 60 | I52: ='Evac US101-S loc 104'!I52 -> 107.5043942 | J52: ='Evac US101-S loc 104'!J52 -> 0.8927437642 | L52: ='Routine US101-S loc 104'!A52 -> 2019-10-16T04:10:00 | M52: ='Routine US101-S loc 104'!B52 -> 0.6 | N52: ='Routine US101-S loc 104'!C52 -> 14 | O52: ='Routine US101-S loc 104'!D52 -> 65.5 | P52: ='Routine US101-S loc 104'!E52 -> 2 | Q52: ='Routine US101-S loc 104'!F52 -> 100 | R52: ='Routine US101-S loc 104'!G52 -> 2.155102041 | S52: ='Routine US101-S loc 104'!H52 -> 84 | T52: ='Routine US101-S loc 104'!I52 -> 105.4122428 | U52: ='Routine US101-S loc 104'!J52 -> 1.339115646 | W52: ='Evac US101-S Hopper Ave 2'!L4 -> 2019-10-25T02:00:00 | X52: ='Evac US101-S Hopper Ave 2'!M4 -> 0.6 | Y52: ='Evac US101-S Hopper Ave 2'!N4 -> 179 | Z52: ='Evac US101-S Hopper Ave 2'!O4 -> 65.5 | AA52: ='Evac US101-S Hopper Ave 2'!P4 -> 36 | AB52: ='Evac US101-S Hopper Ave 2'!Q4 -> 100 | AC52: ='Evac US101-S Hopper Ave 2'!R4 -> 2.155102041 | AD52: ='Evac US101-S Hopper Ave 2'!S4 -> 59.66666667 | AE52: ='Evac US101-S Hopper Ave 2'!T4 -> 105.4122428 | AF52: ='Evac US101-S Hopper Ave 2'!U4 -> 1.339115646 | AH52: ='Routine US101-S Hopper Ave 1'!L28 -> 2019-10-17T02:00:00 | AI52: ='Routine US101-S Hopper Ave 1'!M28 -> 0 | AJ52: ='Routine US101-S Hopper Ave 1'!N28 -> 0 | AK52: ='Routine US101-S Hopper Ave 1'!O28 -> 68.1 | AL52: ='Routine US101-S Hopper Ave 1'!P28 -> 36 | AM52: ='Routine US101-S Hopper Ave 1'!Q28 -> 100 | AN52: ='Routine US101-S Hopper Ave 1'!R28 -> 0 | AO52: ='Routine US101-S Hopper Ave 1'!S28 -> 0 | AP52: ='Routine US101-S Hopper Ave 1'!T28 -> 109.5965456 | AQ52: ='Routine US101-S Hopper Ave 1'!U28 -> 0 | AS52: =Theoretical!A52 -> 50 | AT52: =Theoretical!B52 -> 37.88990826 | AU52: =Theoretical!C52 -> 1 | AV52: =Theoretical!D52 -> 1894.495413 | AW52: =Theoretical!E52 -> 31.06849747 | AX52: =Theoretical!F52 -> 60.97801847
A53: ='Evac US101-S loc 104'!A53 -> 2019-10-26T04:15:00 | B53: ='Evac US101-S loc 104'!B53 -> 0.5 | C53: ='Evac US101-S loc 104'!C53 -> 9 | D53: ='Evac US101-S loc 104'!D53 -> 65 | E53: ='Evac US101-S loc 104'!E53 -> 2 | F53: ='Evac US101-S loc 104'!F53 -> 100 | G53: ='Evac US101-S loc 104'!G53 -> 1.795918367 | H53: ='Evac US101-S loc 104'!H53 -> 54 | I53: ='Evac US101-S loc 104'!I53 -> 104.6075692 | J53: ='Evac US101-S loc 104'!J53 -> 1.115929705 | L53: ='Routine US101-S loc 104'!A53 -> 2019-10-16T04:15:00 | M53: ='Routine US101-S loc 104'!B53 -> 1 | N53: ='Routine US101-S loc 104'!C53 -> 22 | O53: ='Routine US101-S loc 104'!D53 -> 66.1 | P53: ='Routine US101-S loc 104'!E53 -> 2 | Q53: ='Routine US101-S loc 104'!F53 -> 100 | R53: ='Routine US101-S loc 104'!G53 -> 3.591836735 | S53: ='Routine US101-S loc 104'!H53 -> 132 | T53: ='Routine US101-S loc 104'!I53 -> 106.3778512 | U53: ='Routine US101-S loc 104'!J53 -> 2.23185941 | W53: ='Evac US101-S Hopper Ave 2'!L5 -> 2019-10-25T03:00:00 | X53: ='Evac US101-S Hopper Ave 2'!M5 -> 0.7 | Y53: ='Evac US101-S Hopper Ave 2'!N5 -> 265 | Z53: ='Evac US101-S Hopper Ave 2'!O5 -> 66.5 | AA53: ='Evac US101-S Hopper Ave 2'!P5 -> 36 | AB53: ='Evac US101-S Hopper Ave 2'!Q5 -> 100 | AC53: ='Evac US101-S Hopper Ave 2'!R5 -> 2.514285714 | AD53: ='Evac US101-S Hopper Ave 2'!S5 -> 88.33333333 | AE53: ='Evac US101-S Hopper Ave 2'!T5 -> 107.02159 | AF53: ='Evac US101-S Hopper Ave 2'!U5 -> 1.562301587 | AH53: ='Routine US101-S Hopper Ave 1'!L29 -> 2019-10-17T03:00:00 | AI53: ='Routine US101-S Hopper Ave 1'!M29 -> 0 | AJ53: ='Routine US101-S Hopper Ave 1'!N29 -> 0 | AK53: ='Routine US101-S Hopper Ave 1'!O29 -> 68.1 | AL53: ='Routine US101-S Hopper Ave 1'!P29 -> 36 | AM53: ='Routine US101-S Hopper Ave 1'!Q29 -> 100 | AN53: ='Routine US101-S Hopper Ave 1'!R29 -> 0 | AO53: ='Routine US101-S Hopper Ave 1'!S29 -> 0 | AP53: ='Routine US101-S Hopper Ave 1'!T29 -> 109.5965456 | AQ53: ='Routine US101-S Hopper Ave 1'!U29 -> 0 | AS53: =Theoretical!A53 -> 51 | AT53: =Theoretical!B53 -> 37.24770642 | AU53: =Theoretical!C53 -> 1 | AV53: =Theoretical!D53 -> 1899.633028 | AW53: =Theoretical!E53 -> 31.68986742 | AX53: =Theoretical!F53 -> 59.94449273
A54: ='Evac US101-S loc 104'!A54 -> 2019-10-26T04:20:00 | B54: ='Evac US101-S loc 104'!B54 -> 0.5 | C54: ='Evac US101-S loc 104'!C54 -> 13 | D54: ='Evac US101-S loc 104'!D54 -> 67 | E54: ='Evac US101-S loc 104'!E54 -> 2 | F54: ='Evac US101-S loc 104'!F54 -> 100 | G54: ='Evac US101-S loc 104'!G54 -> 1.795918367 | H54: ='Evac US101-S loc 104'!H54 -> 78 | I54: ='Evac US101-S loc 104'!I54 -> 107.8262637 | J54: ='Evac US101-S loc 104'!J54 -> 1.115929705 | L54: ='Routine US101-S loc 104'!A54 -> 2019-10-16T04:20:00 | M54: ='Routine US101-S loc 104'!B54 -> 0.8 | N54: ='Routine US101-S loc 104'!C54 -> 25 | O54: ='Routine US101-S loc 104'!D54 -> 67.3 | P54: ='Routine US101-S loc 104'!E54 -> 2 | Q54: ='Routine US101-S loc 104'!F54 -> 100 | R54: ='Routine US101-S loc 104'!G54 -> 2.873469388 | S54: ='Routine US101-S loc 104'!H54 -> 150 | T54: ='Routine US101-S loc 104'!I54 -> 108.3090678 | U54: ='Routine US101-S loc 104'!J54 -> 1.785487528 | W54: ='Evac US101-S Hopper Ave 2'!L6 -> 2019-10-25T04:00:00 | X54: ='Evac US101-S Hopper Ave 2'!M6 -> 1.4 | Y54: ='Evac US101-S Hopper Ave 2'!N6 -> 540 | Z54: ='Evac US101-S Hopper Ave 2'!O6 -> 66.8 | AA54: ='Evac US101-S Hopper Ave 2'!P6 -> 36 | AB54: ='Evac US101-S Hopper Ave 2'!Q6 -> 100 | AC54: ='Evac US101-S Hopper Ave 2'!R6 -> 5.028571429 | AD54: ='Evac US101-S Hopper Ave 2'!S6 -> 180 | AE54: ='Evac US101-S Hopper Ave 2'!T6 -> 107.5043942 | AF54: ='Evac US101-S Hopper Ave 2'!U6 -> 3.124603175 | AH54: ='Routine US101-S Hopper Ave 1'!L30 -> 2019-10-17T04:00:00 | AI54: ='Routine US101-S Hopper Ave 1'!M30 -> 0 | AJ54: ='Routine US101-S Hopper Ave 1'!N30 -> 0 | AK54: ='Routine US101-S Hopper Ave 1'!O30 -> 68.1 | AL54: ='Routine US101-S Hopper Ave 1'!P30 -> 36 | AM54: ='Routine US101-S Hopper Ave 1'!Q30 -> 100 | AN54: ='Routine US101-S Hopper Ave 1'!R30 -> 0 | AO54: ='Routine US101-S Hopper Ave 1'!S30 -> 0 | AP54: ='Routine US101-S Hopper Ave 1'!T30 -> 109.5965456 | AQ54: ='Routine US101-S Hopper Ave 1'!U30 -> 0 | AS54: =Theoretical!A54 -> 52 | AT54: =Theoretical!B54 -> 36.60550459 | AU54: =Theoretical!C54 -> 1 | AV54: =Theoretical!D54 -> 1903.486239 | AW54: =Theoretical!E54 -> 32.31123737 | AX54: =Theoretical!F54 -> 58.910967
A55: ='Evac US101-S loc 104'!A55 -> 2019-10-26T04:25:00 | B55: ='Evac US101-S loc 104'!B55 -> 0.6 | C55: ='Evac US101-S loc 104'!C55 -> 14 | D55: ='Evac US101-S loc 104'!D55 -> 67.2 | E55: ='Evac US101-S loc 104'!E55 -> 2 | F55: ='Evac US101-S loc 104'!F55 -> 100 | G55: ='Evac US101-S loc 104'!G55 -> 2.155102041 | H55: ='Evac US101-S loc 104'!H55 -> 84 | I55: ='Evac US101-S loc 104'!I55 -> 108.1481331 | J55: ='Evac US101-S loc 104'!J55 -> 1.339115646 | L55: ='Routine US101-S loc 104'!A55 -> 2019-10-16T04:25:00 | M55: ='Routine US101-S loc 104'!B55 -> 0.9 | N55: ='Routine US101-S loc 104'!C55 -> 20 | O55: ='Routine US101-S loc 104'!D55 -> 67 | P55: ='Routine US101-S loc 104'!E55 -> 2 | Q55: ='Routine US101-S loc 104'!F55 -> 100 | R55: ='Routine US101-S loc 104'!G55 -> 3.232653061 | S55: ='Routine US101-S loc 104'!H55 -> 120 | T55: ='Routine US101-S loc 104'!I55 -> 107.8262637 | U55: ='Routine US101-S loc 104'!J55 -> 2.008673469 | W55: ='Evac US101-S Hopper Ave 2'!L7 -> 2019-10-25T05:00:00 | X55: ='Evac US101-S Hopper Ave 2'!M7 -> 2.4 | Y55: ='Evac US101-S Hopper Ave 2'!N7 -> 1017 | Z55: ='Evac US101-S Hopper Ave 2'!O7 -> 67.5 | AA55: ='Evac US101-S Hopper Ave 2'!P7 -> 36 | AB55: ='Evac US101-S Hopper Ave 2'!Q7 -> 100 | AC55: ='Evac US101-S Hopper Ave 2'!R7 -> 8.620408163 | AD55: ='Evac US101-S Hopper Ave 2'!S7 -> 339 | AE55: ='Evac US101-S Hopper Ave 2'!T7 -> 108.6309373 | AF55: ='Evac US101-S Hopper Ave 2'!U7 -> 5.356462585 | AH55: ='Routine US101-S Hopper Ave 1'!L31 -> 2019-10-17T05:00:00 | AI55: ='Routine US101-S Hopper Ave 1'!M31 -> 1.8 | AJ55: ='Routine US101-S Hopper Ave 1'!N31 -> 794 | AK55: ='Routine US101-S Hopper Ave 1'!O31 -> 67.8 | AL55: ='Routine US101-S Hopper Ave 1'!P31 -> 36 | AM55: ='Routine US101-S Hopper Ave 1'!Q31 -> 41.7 | AN55: ='Routine US101-S Hopper Ave 1'!R31 -> 6.465306122 | AO55: ='Routine US101-S Hopper Ave 1'!S31 -> 264.6666667 | AP55: ='Routine US101-S Hopper Ave 1'!T31 -> 109.1137414 | AQ55: ='Routine US101-S Hopper Ave 1'!U31 -> 4.017346939 | AS55: =Theoretical!A55 -> 53 | AT55: =Theoretical!B55 -> 35.96330275 | AU55: =Theoretical!C55 -> 1 | AV55: =Theoretical!D55 -> 1906.055046 | AW55: =Theoretical!E55 -> 32.93260732 | AX55: =Theoretical!F55 -> 57.87744126
A56: ='Evac US101-S loc 104'!A56 -> 2019-10-26T04:30:00 | B56: ='Evac US101-S loc 104'!B56 -> 0.5 | C56: ='Evac US101-S loc 104'!C56 -> 10 | D56: ='Evac US101-S loc 104'!D56 -> 66 | E56: ='Evac US101-S loc 104'!E56 -> 2 | F56: ='Evac US101-S loc 104'!F56 -> 100 | G56: ='Evac US101-S loc 104'!G56 -> 1.795918367 | H56: ='Evac US101-S loc 104'!H56 -> 60 | I56: ='Evac US101-S loc 104'!I56 -> 106.2169164 | J56: ='Evac US101-S loc 104'!J56 -> 1.115929705 | L56: ='Routine US101-S loc 104'!A56 -> 2019-10-16T04:30:00 | M56: ='Routine US101-S loc 104'!B56 -> 0.8 | N56: ='Routine US101-S loc 104'!C56 -> 18 | O56: ='Routine US101-S loc 104'!D56 -> 66.6 | P56: ='Routine US101-S loc 104'!E56 -> 2 | Q56: ='Routine US101-S loc 104'!F56 -> 100 | R56: ='Routine US101-S loc 104'!G56 -> 2.873469388 | S56: ='Routine US101-S loc 104'!H56 -> 108 | T56: ='Routine US101-S loc 104'!I56 -> 107.1825248 | U56: ='Routine US101-S loc 104'!J56 -> 1.785487528 | W56: ='Evac US101-S Hopper Ave 2'!L8 -> 2019-10-25T06:00:00 | X56: ='Evac US101-S Hopper Ave 2'!M8 -> 3.3 | Y56: ='Evac US101-S Hopper Ave 2'!N8 -> 1463 | Z56: ='Evac US101-S Hopper Ave 2'!O8 -> 68.1 | AA56: ='Evac US101-S Hopper Ave 2'!P8 -> 36 | AB56: ='Evac US101-S Hopper Ave 2'!Q8 -> 100 | AC56: ='Evac US101-S Hopper Ave 2'!R8 -> 11.85306122 | AD56: ='Evac US101-S Hopper Ave 2'!S8 -> 487.6666667 | AE56: ='Evac US101-S Hopper Ave 2'!T8 -> 109.5965456 | AF56: ='Evac US101-S Hopper Ave 2'!U8 -> 7.365136054 | AH56: ='Routine US101-S Hopper Ave 1'!L32 -> 2019-10-17T06:00:00 | AI56: ='Routine US101-S Hopper Ave 1'!M32 -> 3.9 | AJ56: ='Routine US101-S Hopper Ave 1'!N32 -> 1719 | AK56: ='Routine US101-S Hopper Ave 1'!O32 -> 68.4 | AL56: ='Routine US101-S Hopper Ave 1'!P32 -> 36 | AM56: ='Routine US101-S Hopper Ave 1'!Q32 -> 0 | AN56: ='Routine US101-S Hopper Ave 1'!R32 -> 14.00816327 | AO56: ='Routine US101-S Hopper Ave 1'!S32 -> 573 | AP56: ='Routine US101-S Hopper Ave 1'!T32 -> 110.0793498 | AQ56: ='Routine US101-S Hopper Ave 1'!U32 -> 8.704251701 | AS56: =Theoretical!A56 -> 54 | AT56: =Theoretical!B56 -> 35.32110092 | AU56: =Theoretical!C56 -> 1 | AV56: =Theoretical!D56 -> 1907.33945 | AW56: =Theoretical!E56 -> 33.55397727 | AX56: =Theoretical!F56 -> 56.84391552
A57: ='Evac US101-S loc 104'!A57 -> 2019-10-26T04:35:00 | B57: ='Evac US101-S loc 104'!B57 -> 0.4 | C57: ='Evac US101-S loc 104'!C57 -> 11 | D57: ='Evac US101-S loc 104'!D57 -> 65.6 | E57: ='Evac US101-S loc 104'!E57 -> 2 | F57: ='Evac US101-S loc 104'!F57 -> 100 | G57: ='Evac US101-S loc 104'!G57 -> 1.436734694 | H57: ='Evac US101-S loc 104'!H57 -> 66 | I57: ='Evac US101-S loc 104'!I57 -> 105.5731775 | J57: ='Evac US101-S loc 104'!J57 -> 0.8927437642 | L57: ='Routine US101-S loc 104'!A57 -> 2019-10-16T04:35:00 | M57: ='Routine US101-S loc 104'!B57 -> 0.9 | N57: ='Routine US101-S loc 104'!C57 -> 21 | O57: ='Routine US101-S loc 104'!D57 -> 67.2 | P57: ='Routine US101-S loc 104'!E57 -> 2 | Q57: ='Routine US101-S loc 104'!F57 -> 100 | R57: ='Routine US101-S loc 104'!G57 -> 3.232653061 | S57: ='Routine US101-S loc 104'!H57 -> 126 | T57: ='Routine US101-S loc 104'!I57 -> 108.1481331 | U57: ='Routine US101-S loc 104'!J57 -> 2.008673469 | W57: ='Evac US101-S Hopper Ave 2'!L9 -> 2019-10-25T07:00:00 | X57: ='Evac US101-S Hopper Ave 2'!M9 -> 6.2 | Y57: ='Evac US101-S Hopper Ave 2'!N9 -> 2569 | Z57: ='Evac US101-S Hopper Ave 2'!O9 -> 61.3 | AA57: ='Evac US101-S Hopper Ave 2'!P9 -> 36 | AB57: ='Evac US101-S Hopper Ave 2'!Q9 -> 100 | AC57: ='Evac US101-S Hopper Ave 2'!R9 -> 22.26938776 | AD57: ='Evac US101-S Hopper Ave 2'!S9 -> 856.3333333 | AE57: ='Evac US101-S Hopper Ave 2'!T9 -> 98.65298451 | AF57: ='Evac US101-S Hopper Ave 2'!U9 -> 13.83752834 | AH57: ='Routine US101-S Hopper Ave 1'!L33 -> 2019-10-17T07:00:00 | AI57: ='Routine US101-S Hopper Ave 1'!M33 -> 6.9 | AJ57: ='Routine US101-S Hopper Ave 1'!N33 -> 2903 | AK57: ='Routine US101-S Hopper Ave 1'!O33 -> 62.4 | AL57: ='Routine US101-S Hopper Ave 1'!P33 -> 36 | AM57: ='Routine US101-S Hopper Ave 1'!Q33 -> 0 | AN57: ='Routine US101-S Hopper Ave 1'!R33 -> 24.78367347 | AO57: ='Routine US101-S Hopper Ave 1'!S33 -> 967.6666667 | AP57: ='Routine US101-S Hopper Ave 1'!T33 -> 100.4232664 | AQ57: ='Routine US101-S Hopper Ave 1'!U33 -> 15.39982993 | AS57: =Theoretical!A57 -> 55 | AT57: =Theoretical!B57 -> 34.67889908 | AU57: =Theoretical!C57 -> 1 | AV57: =Theoretical!D57 -> 1907.33945 | AW57: =Theoretical!E57 -> 34.17534722 | AX57: =Theoretical!F57 -> 55.81038979
A58: ='Evac US101-S loc 104'!A58 -> 2019-10-26T04:40:00 | B58: ='Evac US101-S loc 104'!B58 -> 0.4 | C58: ='Evac US101-S loc 104'!C58 -> 13 | D58: ='Evac US101-S loc 104'!D58 -> 66.3 | E58: ='Evac US101-S loc 104'!E58 -> 2 | F58: ='Evac US101-S loc 104'!F58 -> 100 | G58: ='Evac US101-S loc 104'!G58 -> 1.436734694 | H58: ='Evac US101-S loc 104'!H58 -> 78 | I58: ='Evac US101-S loc 104'!I58 -> 106.6997206 | J58: ='Evac US101-S loc 104'!J58 -> 0.8927437642 | L58: ='Routine US101-S loc 104'!A58 -> 2019-10-16T04:40:00 | M58: ='Routine US101-S loc 104'!B58 -> 0.4 | N58: ='Routine US101-S loc 104'!C58 -> 12 | O58: ='Routine US101-S loc 104'!D58 -> 67.5 | P58: ='Routine US101-S loc 104'!E58 -> 2 | Q58: ='Routine US101-S loc 104'!F58 -> 100 | R58: ='Routine US101-S loc 104'!G58 -> 1.436734694 | S58: ='Routine US101-S loc 104'!H58 -> 72 | T58: ='Routine US101-S loc 104'!I58 -> 108.6309373 | U58: ='Routine US101-S loc 104'!J58 -> 0.8927437642 | W58: ='Evac US101-S Hopper Ave 2'!L10 -> 2019-10-25T08:00:00 | X58: ='Evac US101-S Hopper Ave 2'!M10 -> 6.8 | Y58: ='Evac US101-S Hopper Ave 2'!N10 -> 2555 | Z58: ='Evac US101-S Hopper Ave 2'!O10 -> 55.7 | AA58: ='Evac US101-S Hopper Ave 2'!P10 -> 36 | AB58: ='Evac US101-S Hopper Ave 2'!Q10 -> 100 | AC58: ='Evac US101-S Hopper Ave 2'!R10 -> 24.4244898 | AD58: ='Evac US101-S Hopper Ave 2'!S10 -> 851.6666667 | AE58: ='Evac US101-S Hopper Ave 2'!T10 -> 89.64064008 | AF58: ='Evac US101-S Hopper Ave 2'!U10 -> 15.17664399 | AH58: ='Routine US101-S Hopper Ave 1'!L34 -> 2019-10-17T08:00:00 | AI58: ='Routine US101-S Hopper Ave 1'!M34 -> 6.5 | AJ58: ='Routine US101-S Hopper Ave 1'!N34 -> 2659 | AK58: ='Routine US101-S Hopper Ave 1'!O34 -> 61.2 | AL58: ='Routine US101-S Hopper Ave 1'!P34 -> 36 | AM58: ='Routine US101-S Hopper Ave 1'!Q34 -> 0 | AN58: ='Routine US101-S Hopper Ave 1'!R34 -> 23.34693878 | AO58: ='Routine US101-S Hopper Ave 1'!S34 -> 886.3333333 | AP58: ='Routine US101-S Hopper Ave 1'!T34 -> 98.49204978 | AQ58: ='Routine US101-S Hopper Ave 1'!U34 -> 14.50708617 | AS58: =Theoretical!A58 -> 56 | AT58: =Theoretical!B58 -> 34.03669725 | AU58: =Theoretical!C58 -> 1 | AV58: =Theoretical!D58 -> 1906.055046 | AW58: =Theoretical!E58 -> 34.79671717 | AX58: =Theoretical!F58 -> 54.77686405
A59: ='Evac US101-S loc 104'!A59 -> 2019-10-26T04:45:00 | B59: ='Evac US101-S loc 104'!B59 -> 0.6 | C59: ='Evac US101-S loc 104'!C59 -> 16 | D59: ='Evac US101-S loc 104'!D59 -> 67.2 | E59: ='Evac US101-S loc 104'!E59 -> 2 | F59: ='Evac US101-S loc 104'!F59 -> 100 | G59: ='Evac US101-S loc 104'!G59 -> 2.155102041 | H59: ='Evac US101-S loc 104'!H59 -> 96 | I59: ='Evac US101-S loc 104'!I59 -> 108.1481331 | J59: ='Evac US101-S loc 104'!J59 -> 1.339115646 | L59: ='Routine US101-S loc 104'!A59 -> 2019-10-16T04:45:00 | M59: ='Routine US101-S loc 104'!B59 -> 1.2 | N59: ='Routine US101-S loc 104'!C59 -> 36 | O59: ='Routine US101-S loc 104'!D59 -> 68.2 | P59: ='Routine US101-S loc 104'!E59 -> 2 | Q59: ='Routine US101-S loc 104'!F59 -> 100 | R59: ='Routine US101-S loc 104'!G59 -> 4.310204082 | S59: ='Routine US101-S loc 104'!H59 -> 216 | T59: ='Routine US101-S loc 104'!I59 -> 109.7574803 | U59: ='Routine US101-S loc 104'!J59 -> 2.678231293 | W59: ='Evac US101-S Hopper Ave 2'!L11 -> 2019-10-25T09:00:00 | X59: ='Evac US101-S Hopper Ave 2'!M11 -> 5.7 | Y59: ='Evac US101-S Hopper Ave 2'!N11 -> 2381 | Z59: ='Evac US101-S Hopper Ave 2'!O11 -> 64.9 | AA59: ='Evac US101-S Hopper Ave 2'!P11 -> 36 | AB59: ='Evac US101-S Hopper Ave 2'!Q11 -> 100 | AC59: ='Evac US101-S Hopper Ave 2'!R11 -> 20.47346939 | AD59: ='Evac US101-S Hopper Ave 2'!S11 -> 793.6666667 | AE59: ='Evac US101-S Hopper Ave 2'!T11 -> 104.4466345 | AF59: ='Evac US101-S Hopper Ave 2'!U11 -> 12.72159864 | AH59: ='Routine US101-S Hopper Ave 1'!L35 -> 2019-10-17T09:00:00 | AI59: ='Routine US101-S Hopper Ave 1'!M35 -> 5.8 | AJ59: ='Routine US101-S Hopper Ave 1'!N35 -> 2454 | AK59: ='Routine US101-S Hopper Ave 1'!O35 -> 62.6 | AL59: ='Routine US101-S Hopper Ave 1'!P35 -> 36 | AM59: ='Routine US101-S Hopper Ave 1'!Q35 -> 0 | AN59: ='Routine US101-S Hopper Ave 1'!R35 -> 20.83265306 | AO59: ='Routine US101-S Hopper Ave 1'!S35 -> 818 | AP59: ='Routine US101-S Hopper Ave 1'!T35 -> 100.7451359 | AQ59: ='Routine US101-S Hopper Ave 1'!U35 -> 12.94478458 | AS59: =Theoretical!A59 -> 57 | AT59: =Theoretical!B59 -> 33.39449541 | AU59: =Theoretical!C59 -> 1 | AV59: =Theoretical!D59 -> 1903.486239 | AW59: =Theoretical!E59 -> 35.41808712 | AX59: =Theoretical!F59 -> 53.74333831
A60: ='Evac US101-S loc 104'!A60 -> 2019-10-26T04:50:00 | B60: ='Evac US101-S loc 104'!B60 -> 0.3 | C60: ='Evac US101-S loc 104'!C60 -> 12 | D60: ='Evac US101-S loc 104'!D60 -> 67.3 | E60: ='Evac US101-S loc 104'!E60 -> 2 | F60: ='Evac US101-S loc 104'!F60 -> 100 | G60: ='Evac US101-S loc 104'!G60 -> 1.07755102 | H60: ='Evac US101-S loc 104'!H60 -> 72 | I60: ='Evac US101-S loc 104'!I60 -> 108.3090678 | J60: ='Evac US101-S loc 104'!J60 -> 0.6695578231 | L60: ='Routine US101-S loc 104'!A60 -> 2019-10-16T04:50:00 | M60: ='Routine US101-S loc 104'!B60 -> 0.6 | N60: ='Routine US101-S loc 104'!C60 -> 20 | O60: ='Routine US101-S loc 104'!D60 -> 68.9 | P60: ='Routine US101-S loc 104'!E60 -> 2 | Q60: ='Routine US101-S loc 104'!F60 -> 100 | R60: ='Routine US101-S loc 104'!G60 -> 2.155102041 | S60: ='Routine US101-S loc 104'!H60 -> 120 | T60: ='Routine US101-S loc 104'!I60 -> 110.8840234 | U60: ='Routine US101-S loc 104'!J60 -> 1.339115646 | W60: ='Evac US101-S Hopper Ave 2'!L12 -> 2019-10-25T10:00:00 | X60: ='Evac US101-S Hopper Ave 2'!M12 -> 5.5 | Y60: ='Evac US101-S Hopper Ave 2'!N12 -> 2288 | Z60: ='Evac US101-S Hopper Ave 2'!O12 -> 64.9 | AA60: ='Evac US101-S Hopper Ave 2'!P12 -> 36 | AB60: ='Evac US101-S Hopper Ave 2'!Q12 -> 100 | AC60: ='Evac US101-S Hopper Ave 2'!R12 -> 19.75510204 | AD60: ='Evac US101-S Hopper Ave 2'!S12 -> 762.6666667 | AE60: ='Evac US101-S Hopper Ave 2'!T12 -> 104.4466345 | AF60: ='Evac US101-S Hopper Ave 2'!U12 -> 12.27522676 | AH60: ='Routine US101-S Hopper Ave 1'!L36 -> 2019-10-17T10:00:00 | AI60: ='Routine US101-S Hopper Ave 1'!M36 -> 5.6 | AJ60: ='Routine US101-S Hopper Ave 1'!N36 -> 2340 | AK60: ='Routine US101-S Hopper Ave 1'!O36 -> 64.5 | AL60: ='Routine US101-S Hopper Ave 1'!P36 -> 36 | AM60: ='Routine US101-S Hopper Ave 1'!Q36 -> 66.7 | AN60: ='Routine US101-S Hopper Ave 1'!R36 -> 20.11428571 | AO60: ='Routine US101-S Hopper Ave 1'!S36 -> 780 | AP60: ='Routine US101-S Hopper Ave 1'!T36 -> 103.8028956 | AQ60: ='Routine US101-S Hopper Ave 1'!U36 -> 12.4984127 | AS60: =Theoretical!A60 -> 58 | AT60: =Theoretical!B60 -> 32.75229358 | AU60: =Theoretical!C60 -> 1 | AV60: =Theoretical!D60 -> 1899.633028 | AW60: =Theoretical!E60 -> 36.03945707 | AX60: =Theoretical!F60 -> 52.70981258
A61: ='Evac US101-S loc 104'!A61 -> 2019-10-26T04:55:00 | B61: ='Evac US101-S loc 104'!B61 -> 0.5 | C61: ='Evac US101-S loc 104'!C61 -> 14 | D61: ='Evac US101-S loc 104'!D61 -> 67.3 | E61: ='Evac US101-S loc 104'!E61 -> 2 | F61: ='Evac US101-S loc 104'!F61 -> 100 | G61: ='Evac US101-S loc 104'!G61 -> 1.795918367 | H61: ='Evac US101-S loc 104'!H61 -> 84 | I61: ='Evac US101-S loc 104'!I61 -> 108.3090678 | J61: ='Evac US101-S loc 104'!J61 -> 1.115929705 | L61: ='Routine US101-S loc 104'!A61 -> 2019-10-16T04:55:00 | M61: ='Routine US101-S loc 104'!B61 -> 1.5 | N61: ='Routine US101-S loc 104'!C61 -> 36 | O61: ='Routine US101-S loc 104'!D61 -> 67.4 | P61: ='Routine US101-S loc 104'!E61 -> 2 | Q61: ='Routine US101-S loc 104'!F61 -> 100 | R61: ='Routine US101-S loc 104'!G61 -> 5.387755102 | S61: ='Routine US101-S loc 104'!H61 -> 216 | T61: ='Routine US101-S loc 104'!I61 -> 108.4700025 | U61: ='Routine US101-S loc 104'!J61 -> 3.347789116 | W61: ='Evac US101-S Hopper Ave 2'!L13 -> 2019-10-25T11:00:00 | X61: ='Evac US101-S Hopper Ave 2'!M13 -> 5.5 | Y61: ='Evac US101-S Hopper Ave 2'!N13 -> 2246 | Z61: ='Evac US101-S Hopper Ave 2'!O13 -> 64.2 | AA61: ='Evac US101-S Hopper Ave 2'!P13 -> 36 | AB61: ='Evac US101-S Hopper Ave 2'!Q13 -> 100 | AC61: ='Evac US101-S Hopper Ave 2'!R13 -> 19.75510204 | AD61: ='Evac US101-S Hopper Ave 2'!S13 -> 748.6666667 | AE61: ='Evac US101-S Hopper Ave 2'!T13 -> 103.3200914 | AF61: ='Evac US101-S Hopper Ave 2'!U13 -> 12.27522676 | AH61: ='Routine US101-S Hopper Ave 1'!L37 -> 2019-10-17T11:00:00 | AI61: ='Routine US101-S Hopper Ave 1'!M37 -> 6.1 | AJ61: ='Routine US101-S Hopper Ave 1'!N37 -> 2539 | AK61: ='Routine US101-S Hopper Ave 1'!O37 -> 64.8 | AL61: ='Routine US101-S Hopper Ave 1'!P37 -> 36 | AM61: ='Routine US101-S Hopper Ave 1'!Q37 -> 100 | AN61: ='Routine US101-S Hopper Ave 1'!R37 -> 21.91020408 | AO61: ='Routine US101-S Hopper Ave 1'!S37 -> 846.3333333 | AP61: ='Routine US101-S Hopper Ave 1'!T37 -> 104.2856998 | AQ61: ='Routine US101-S Hopper Ave 1'!U37 -> 13.6143424 | AS61: =Theoretical!A61 -> 59 | AT61: =Theoretical!B61 -> 32.11009174 | AU61: =Theoretical!C61 -> 1 | AV61: =Theoretical!D61 -> 1894.495413 | AW61: =Theoretical!E61 -> 36.66082702 | AX61: =Theoretical!F61 -> 51.67628684
A62: ='Evac US101-S loc 104'!A62 -> 2019-10-26T05:00:00 | B62: ='Evac US101-S loc 104'!B62 -> 0.4 | C62: ='Evac US101-S loc 104'!C62 -> 13 | D62: ='Evac US101-S loc 104'!D62 -> 67.6 | E62: ='Evac US101-S loc 104'!E62 -> 2 | F62: ='Evac US101-S loc 104'!F62 -> 100 | G62: ='Evac US101-S loc 104'!G62 -> 1.436734694 | H62: ='Evac US101-S loc 104'!H62 -> 78 | I62: ='Evac US101-S loc 104'!I62 -> 108.791872 | J62: ='Evac US101-S loc 104'!J62 -> 0.8927437642 | L62: ='Routine US101-S loc 104'!A62 -> 2019-10-16T05:00:00 | M62: ='Routine US101-S loc 104'!B62 -> 1.1 | N62: ='Routine US101-S loc 104'!C62 -> 20 | O62: ='Routine US101-S loc 104'!D62 -> 65.6 | P62: ='Routine US101-S loc 104'!E62 -> 2 | Q62: ='Routine US101-S loc 104'!F62 -> 100 | R62: ='Routine US101-S loc 104'!G62 -> 3.951020408 | S62: ='Routine US101-S loc 104'!H62 -> 120 | T62: ='Routine US101-S loc 104'!I62 -> 105.5731775 | U62: ='Routine US101-S loc 104'!J62 -> 2.455045351 | W62: ='Evac US101-S Hopper Ave 2'!L14 -> 2019-10-25T12:00:00 | X62: ='Evac US101-S Hopper Ave 2'!M14 -> 5.7 | Y62: ='Evac US101-S Hopper Ave 2'!N14 -> 2466 | Z62: ='Evac US101-S Hopper Ave 2'!O14 -> 64.5 | AA62: ='Evac US101-S Hopper Ave 2'!P14 -> 36 | AB62: ='Evac US101-S Hopper Ave 2'!Q14 -> 100 | AC62: ='Evac US101-S Hopper Ave 2'!R14 -> 20.47346939 | AD62: ='Evac US101-S Hopper Ave 2'!S14 -> 822 | AE62: ='Evac US101-S Hopper Ave 2'!T14 -> 103.8028956 | AF62: ='Evac US101-S Hopper Ave 2'!U14 -> 12.72159864 | AH62: ='Routine US101-S Hopper Ave 1'!L38 -> 2019-10-17T12:00:00 | AI62: ='Routine US101-S Hopper Ave 1'!M38 -> 5.7 | AJ62: ='Routine US101-S Hopper Ave 1'!N38 -> 2367 | AK62: ='Routine US101-S Hopper Ave 1'!O38 -> 65.1 | AL62: ='Routine US101-S Hopper Ave 1'!P38 -> 36 | AM62: ='Routine US101-S Hopper Ave 1'!Q38 -> 100 | AN62: ='Routine US101-S Hopper Ave 1'!R38 -> 20.47346939 | AO62: ='Routine US101-S Hopper Ave 1'!S38 -> 789 | AP62: ='Routine US101-S Hopper Ave 1'!T38 -> 104.7685039 | AQ62: ='Routine US101-S Hopper Ave 1'!U38 -> 12.72159864 | AS62: =Theoretical!A62 -> 60 | AT62: =Theoretical!B62 -> 31.46788991 | AU62: =Theoretical!C62 -> 1 | AV62: =Theoretical!D62 -> 1888.073394 | AW62: =Theoretical!E62 -> 37.28219697 | AX62: =Theoretical!F62 -> 50.6427611
A63: ='Evac US101-S loc 104'!A63 -> 2019-10-26T05:05:00 | B63: ='Evac US101-S loc 104'!B63 -> 0.4 | C63: ='Evac US101-S loc 104'!C63 -> 9 | D63: ='Evac US101-S loc 104'!D63 -> 67.1 | E63: ='Evac US101-S loc 104'!E63 -> 2 | F63: ='Evac US101-S loc 104'!F63 -> 100 | G63: ='Evac US101-S loc 104'!G63 -> 1.436734694 | H63: ='Evac US101-S loc 104'!H63 -> 54 | I63: ='Evac US101-S loc 104'!I63 -> 107.9871984 | J63: ='Evac US101-S loc 104'!J63 -> 0.8927437642 | L63: ='Routine US101-S loc 104'!A63 -> 2019-10-16T05:05:00 | M63: ='Routine US101-S loc 104'!B63 -> 1.6 | N63: ='Routine US101-S loc 104'!C63 -> 38 | O63: ='Routine US101-S loc 104'!D63 -> 64.4 | P63: ='Routine US101-S loc 104'!E63 -> 2 | Q63: ='Routine US101-S loc 104'!F63 -> 100 | R63: ='Routine US101-S loc 104'!G63 -> 5.746938776 | S63: ='Routine US101-S loc 104'!H63 -> 228 | T63: ='Routine US101-S loc 104'!I63 -> 103.6419609 | U63: ='Routine US101-S loc 104'!J63 -> 3.570975057 | W63: ='Evac US101-S Hopper Ave 2'!L15 -> 2019-10-25T13:00:00 | X63: ='Evac US101-S Hopper Ave 2'!M15 -> 6.2 | Y63: ='Evac US101-S Hopper Ave 2'!N15 -> 2660 | Z63: ='Evac US101-S Hopper Ave 2'!O15 -> 64.1 | AA63: ='Evac US101-S Hopper Ave 2'!P15 -> 36 | AB63: ='Evac US101-S Hopper Ave 2'!Q15 -> 100 | AC63: ='Evac US101-S Hopper Ave 2'!R15 -> 22.26938776 | AD63: ='Evac US101-S Hopper Ave 2'!S15 -> 886.6666667 | AE63: ='Evac US101-S Hopper Ave 2'!T15 -> 103.1591567 | AF63: ='Evac US101-S Hopper Ave 2'!U15 -> 13.83752834 | AH63: ='Routine US101-S Hopper Ave 1'!L39 -> 2019-10-17T13:00:00 | AI63: ='Routine US101-S Hopper Ave 1'!M39 -> 5.7 | AJ63: ='Routine US101-S Hopper Ave 1'!N39 -> 2366 | AK63: ='Routine US101-S Hopper Ave 1'!O39 -> 62.7 | AL63: ='Routine US101-S Hopper Ave 1'!P39 -> 36 | AM63: ='Routine US101-S Hopper Ave 1'!Q39 -> 100 | AN63: ='Routine US101-S Hopper Ave 1'!R39 -> 20.47346939 | AO63: ='Routine US101-S Hopper Ave 1'!S39 -> 788.6666667 | AP63: ='Routine US101-S Hopper Ave 1'!T39 -> 100.9060706 | AQ63: ='Routine US101-S Hopper Ave 1'!U39 -> 12.72159864 | AS63: =Theoretical!A63 -> 61 | AT63: =Theoretical!B63 -> 30.82568807 | AU63: =Theoretical!C63 -> 1 | AV63: =Theoretical!D63 -> 1880.366972 | AW63: =Theoretical!E63 -> 37.90356692 | AX63: =Theoretical!F63 -> 49.60923537
A64: ='Evac US101-S loc 104'!A64 -> 2019-10-26T05:10:00 | B64: ='Evac US101-S loc 104'!B64 -> 0.4 | C64: ='Evac US101-S loc 104'!C64 -> 13 | D64: ='Evac US101-S loc 104'!D64 -> 67.7 | E64: ='Evac US101-S loc 104'!E64 -> 2 | F64: ='Evac US101-S loc 104'!F64 -> 100 | G64: ='Evac US101-S loc 104'!G64 -> 1.436734694 | H64: ='Evac US101-S loc 104'!H64 -> 78 | I64: ='Evac US101-S loc 104'!I64 -> 108.9528067 | J64: ='Evac US101-S loc 104'!J64 -> 0.8927437642 | L64: ='Routine US101-S loc 104'!A64 -> 2019-10-16T05:10:00 | M64: ='Routine US101-S loc 104'!B64 -> 0.7 | N64: ='Routine US101-S loc 104'!C64 -> 20 | O64: ='Routine US101-S loc 104'!D64 -> 66.3 | P64: ='Routine US101-S loc 104'!E64 -> 2 | Q64: ='Routine US101-S loc 104'!F64 -> 100 | R64: ='Routine US101-S loc 104'!G64 -> 2.514285714 | S64: ='Routine US101-S loc 104'!H64 -> 120 | T64: ='Routine US101-S loc 104'!I64 -> 106.6997206 | U64: ='Routine US101-S loc 104'!J64 -> 1.562301587 | W64: ='Evac US101-S Hopper Ave 2'!L16 -> 2019-10-25T14:00:00 | X64: ='Evac US101-S Hopper Ave 2'!M16 -> 7.3 | Y64: ='Evac US101-S Hopper Ave 2'!N16 -> 3072 | Z64: ='Evac US101-S Hopper Ave 2'!O16 -> 60.3 | AA64: ='Evac US101-S Hopper Ave 2'!P16 -> 36 | AB64: ='Evac US101-S Hopper Ave 2'!Q16 -> 100 | AC64: ='Evac US101-S Hopper Ave 2'!R16 -> 26.22040816 | AD64: ='Evac US101-S Hopper Ave 2'!S16 -> 1024 | AE64: ='Evac US101-S Hopper Ave 2'!T16 -> 97.04363729 | AF64: ='Evac US101-S Hopper Ave 2'!U16 -> 16.2925737 | AH64: ='Routine US101-S Hopper Ave 1'!L40 -> 2019-10-17T14:00:00 | AI64: ='Routine US101-S Hopper Ave 1'!M40 -> 7.1 | AJ64: ='Routine US101-S Hopper Ave 1'!N40 -> 2988 | AK64: ='Routine US101-S Hopper Ave 1'!O40 -> 62.9 | AL64: ='Routine US101-S Hopper Ave 1'!P40 -> 36 | AM64: ='Routine US101-S Hopper Ave 1'!Q40 -> 100 | AN64: ='Routine US101-S Hopper Ave 1'!R40 -> 25.50204082 | AO64: ='Routine US101-S Hopper Ave 1'!S40 -> 996 | AP64: ='Routine US101-S Hopper Ave 1'!T40 -> 101.2279401 | AQ64: ='Routine US101-S Hopper Ave 1'!U40 -> 15.84620181 | AS64: =Theoretical!A64 -> 62 | AT64: =Theoretical!B64 -> 30.18348624 | AU64: =Theoretical!C64 -> 1 | AV64: =Theoretical!D64 -> 1871.376147 | AW64: =Theoretical!E64 -> 38.52493687 | AX64: =Theoretical!F64 -> 48.57570963
A65: ='Evac US101-S loc 104'!A65 -> 2019-10-26T05:15:00 | B65: ='Evac US101-S loc 104'!B65 -> 0.4 | C65: ='Evac US101-S loc 104'!C65 -> 14 | D65: ='Evac US101-S loc 104'!D65 -> 67.3 | E65: ='Evac US101-S loc 104'!E65 -> 2 | F65: ='Evac US101-S loc 104'!F65 -> 100 | G65: ='Evac US101-S loc 104'!G65 -> 1.436734694 | H65: ='Evac US101-S loc 104'!H65 -> 84 | I65: ='Evac US101-S loc 104'!I65 -> 108.3090678 | J65: ='Evac US101-S loc 104'!J65 -> 0.8927437642 | L65: ='Routine US101-S loc 104'!A65 -> 2019-10-16T05:15:00 | M65: ='Routine US101-S loc 104'!B65 -> 1.6 | N65: ='Routine US101-S loc 104'!C65 -> 39 | O65: ='Routine US101-S loc 104'!D65 -> 66.9 | P65: ='Routine US101-S loc 104'!E65 -> 2 | Q65: ='Routine US101-S loc 104'!F65 -> 100 | R65: ='Routine US101-S loc 104'!G65 -> 5.746938776 | S65: ='Routine US101-S loc 104'!H65 -> 234 | T65: ='Routine US101-S loc 104'!I65 -> 107.6653289 | U65: ='Routine US101-S loc 104'!J65 -> 3.570975057 | W65: ='Evac US101-S Hopper Ave 2'!L17 -> 2019-10-25T15:00:00 | X65: ='Evac US101-S Hopper Ave 2'!M17 -> 13.7 | Y65: ='Evac US101-S Hopper Ave 2'!N17 -> 2660 | Z65: ='Evac US101-S Hopper Ave 2'!O17 -> 38.1 | AA65: ='Evac US101-S Hopper Ave 2'!P17 -> 36 | AB65: ='Evac US101-S Hopper Ave 2'!Q17 -> 100 | AC65: ='Evac US101-S Hopper Ave 2'!R17 -> 49.20816327 | AD65: ='Evac US101-S Hopper Ave 2'!S17 -> 886.6666667 | AE65: ='Evac US101-S Hopper Ave 2'!T17 -> 61.31612903 | AF65: ='Evac US101-S Hopper Ave 2'!U17 -> 30.57647392 | AH65: ='Routine US101-S Hopper Ave 1'!L41 -> 2019-10-17T15:00:00 | AI65: ='Routine US101-S Hopper Ave 1'!M41 -> 7.2 | AJ65: ='Routine US101-S Hopper Ave 1'!N41 -> 2556 | AK65: ='Routine US101-S Hopper Ave 1'!O41 -> 55.3 | AL65: ='Routine US101-S Hopper Ave 1'!P41 -> 36 | AM65: ='Routine US101-S Hopper Ave 1'!Q41 -> 100 | AN65: ='Routine US101-S Hopper Ave 1'!R41 -> 25.86122449 | AO65: ='Routine US101-S Hopper Ave 1'!S41 -> 852 | AP65: ='Routine US101-S Hopper Ave 1'!T41 -> 88.99690119 | AQ65: ='Routine US101-S Hopper Ave 1'!U41 -> 16.06938776 | AS65: =Theoretical!A65 -> 63 | AT65: =Theoretical!B65 -> 29.5412844 | AU65: =Theoretical!C65 -> 1 | AV65: =Theoretical!D65 -> 1861.100917 | AW65: =Theoretical!E65 -> 39.14630682 | AX65: =Theoretical!F65 -> 47.54218389
A66: ='Evac US101-S loc 104'!A66 -> 2019-10-26T05:20:00 | B66: ='Evac US101-S loc 104'!B66 -> 0.6 | C66: ='Evac US101-S loc 104'!C66 -> 19 | D66: ='Evac US101-S loc 104'!D66 -> 67.7 | E66: ='Evac US101-S loc 104'!E66 -> 2 | F66: ='Evac US101-S loc 104'!F66 -> 100 | G66: ='Evac US101-S loc 104'!G66 -> 2.155102041 | H66: ='Evac US101-S loc 104'!H66 -> 114 | I66: ='Evac US101-S loc 104'!I66 -> 108.9528067 | J66: ='Evac US101-S loc 104'!J66 -> 1.339115646 | L66: ='Routine US101-S loc 104'!A66 -> 2019-10-16T05:20:00 | M66: ='Routine US101-S loc 104'!B66 -> 2.1 | N66: ='Routine US101-S loc 104'!C66 -> 54 | O66: ='Routine US101-S loc 104'!D66 -> 65.5 | P66: ='Routine US101-S loc 104'!E66 -> 2 | Q66: ='Routine US101-S loc 104'!F66 -> 100 | R66: ='Routine US101-S loc 104'!G66 -> 7.542857143 | S66: ='Routine US101-S loc 104'!H66 -> 324 | T66: ='Routine US101-S loc 104'!I66 -> 105.4122428 | U66: ='Routine US101-S loc 104'!J66 -> 4.686904762 | W66: ='Evac US101-S Hopper Ave 2'!L18 -> 2019-10-25T16:00:00 | X66: ='Evac US101-S Hopper Ave 2'!M18 -> 25.4 | Y66: ='Evac US101-S Hopper Ave 2'!N18 -> 2604 | Z66: ='Evac US101-S Hopper Ave 2'!O18 -> 24.4 | AA66: ='Evac US101-S Hopper Ave 2'!P18 -> 36 | AB66: ='Evac US101-S Hopper Ave 2'!Q18 -> 100 | AC66: ='Evac US101-S Hopper Ave 2'!R18 -> 91.23265306 | AD66: ='Evac US101-S Hopper Ave 2'!S18 -> 868 | AE66: ='Evac US101-S Hopper Ave 2'!T18 -> 39.26807214 | AF66: ='Evac US101-S Hopper Ave 2'!U18 -> 56.68922902 | AH66: ='Routine US101-S Hopper Ave 1'!L42 -> 2019-10-17T16:00:00 | AI66: ='Routine US101-S Hopper Ave 1'!M42 -> 27.9 | AJ66: ='Routine US101-S Hopper Ave 1'!N42 -> 2409 | AK66: ='Routine US101-S Hopper Ave 1'!O42 -> 24.4 | AL66: ='Routine US101-S Hopper Ave 1'!P42 -> 36 | AM66: ='Routine US101-S Hopper Ave 1'!Q42 -> 100 | AN66: ='Routine US101-S Hopper Ave 1'!R42 -> 100.2122449 | AO66: ='Routine US101-S Hopper Ave 1'!S42 -> 803 | AP66: ='Routine US101-S Hopper Ave 1'!T42 -> 39.26807214 | AQ66: ='Routine US101-S Hopper Ave 1'!U42 -> 62.26887755 | AS66: =Theoretical!A66 -> 64 | AT66: =Theoretical!B66 -> 28.89908257 | AU66: =Theoretical!C66 -> 1 | AV66: =Theoretical!D66 -> 1849.541284 | AW66: =Theoretical!E66 -> 39.76767677 | AX66: =Theoretical!F66 -> 46.50865815
A67: ='Evac US101-S loc 104'!A67 -> 2019-10-26T05:25:00 | B67: ='Evac US101-S loc 104'!B67 -> 0.4 | C67: ='Evac US101-S loc 104'!C67 -> 15 | D67: ='Evac US101-S loc 104'!D67 -> 67.2 | E67: ='Evac US101-S loc 104'!E67 -> 2 | F67: ='Evac US101-S loc 104'!F67 -> 100 | G67: ='Evac US101-S loc 104'!G67 -> 1.436734694 | H67: ='Evac US101-S loc 104'!H67 -> 90 | I67: ='Evac US101-S loc 104'!I67 -> 108.1481331 | J67: ='Evac US101-S loc 104'!J67 -> 0.8927437642 | L67: ='Routine US101-S loc 104'!A67 -> 2019-10-16T05:25:00 | M67: ='Routine US101-S loc 104'!B67 -> 1.6 | N67: ='Routine US101-S loc 104'!C67 -> 45 | O67: ='Routine US101-S loc 104'!D67 -> 66 | P67: ='Routine US101-S loc 104'!E67 -> 2 | Q67: ='Routine US101-S loc 104'!F67 -> 100 | R67: ='Routine US101-S loc 104'!G67 -> 5.746938776 | S67: ='Routine US101-S loc 104'!H67 -> 270 | T67: ='Routine US101-S loc 104'!I67 -> 106.2169164 | U67: ='Routine US101-S loc 104'!J67 -> 3.570975057 | W67: ='Evac US101-S Hopper Ave 2'!L19 -> 2019-10-25T17:00:00 | X67: ='Evac US101-S Hopper Ave 2'!M19 -> 14.8 | Y67: ='Evac US101-S Hopper Ave 2'!N19 -> 2281 | Z67: ='Evac US101-S Hopper Ave 2'!O19 -> 33.4 | AA67: ='Evac US101-S Hopper Ave 2'!P19 -> 36 | AB67: ='Evac US101-S Hopper Ave 2'!Q19 -> 100 | AC67: ='Evac US101-S Hopper Ave 2'!R19 -> 53.15918367 | AD67: ='Evac US101-S Hopper Ave 2'!S19 -> 760.3333333 | AE67: ='Evac US101-S Hopper Ave 2'!T19 -> 53.7521971 | AF67: ='Evac US101-S Hopper Ave 2'!U19 -> 33.03151927 | AH67: ='Routine US101-S Hopper Ave 1'!L43 -> 2019-10-17T17:00:00 | AI67: ='Routine US101-S Hopper Ave 1'!M43 -> 26.6 | AJ67: ='Routine US101-S Hopper Ave 1'!N43 -> 2367 | AK67: ='Routine US101-S Hopper Ave 1'!O43 -> 26.7 | AL67: ='Routine US101-S Hopper Ave 1'!P43 -> 36 | AM67: ='Routine US101-S Hopper Ave 1'!Q43 -> 100 | AN67: ='Routine US101-S Hopper Ave 1'!R43 -> 95.54285714 | AO67: ='Routine US101-S Hopper Ave 1'!S43 -> 789 | AP67: ='Routine US101-S Hopper Ave 1'!T43 -> 42.96957074 | AQ67: ='Routine US101-S Hopper Ave 1'!U43 -> 59.36746032 | AS67: =Theoretical!A67 -> 65 | AT67: =Theoretical!B67 -> 28.25688073 | AU67: =Theoretical!C67 -> 1 | AV67: =Theoretical!D67 -> 1836.697248 | AW67: =Theoretical!E67 -> 40.38904672 | AX67: =Theoretical!F67 -> 45.47513242
A68: ='Evac US101-S loc 104'!A68 -> 2019-10-26T05:30:00 | B68: ='Evac US101-S loc 104'!B68 -> 0.7 | C68: ='Evac US101-S loc 104'!C68 -> 21 | D68: ='Evac US101-S loc 104'!D68 -> 67.6 | E68: ='Evac US101-S loc 104'!E68 -> 2 | F68: ='Evac US101-S loc 104'!F68 -> 100 | G68: ='Evac US101-S loc 104'!G68 -> 2.514285714 | H68: ='Evac US101-S loc 104'!H68 -> 126 | I68: ='Evac US101-S loc 104'!I68 -> 108.791872 | J68: ='Evac US101-S loc 104'!J68 -> 1.562301587 | L68: ='Routine US101-S loc 104'!A68 -> 2019-10-16T05:30:00 | M68: ='Routine US101-S loc 104'!B68 -> 1.7 | N68: ='Routine US101-S loc 104'!C68 -> 56 | O68: ='Routine US101-S loc 104'!D68 -> 68.4 | P68: ='Routine US101-S loc 104'!E68 -> 2 | Q68: ='Routine US101-S loc 104'!F68 -> 100 | R68: ='Routine US101-S loc 104'!G68 -> 6.106122449 | S68: ='Routine US101-S loc 104'!H68 -> 336 | T68: ='Routine US101-S loc 104'!I68 -> 110.0793498 | U68: ='Routine US101-S loc 104'!J68 -> 3.794160998 | W68: ='Evac US101-S Hopper Ave 2'!L20 -> 2019-10-25T18:00:00 | X68: ='Evac US101-S Hopper Ave 2'!M20 -> 4.6 | Y68: ='Evac US101-S Hopper Ave 2'!N20 -> 2097 | Z68: ='Evac US101-S Hopper Ave 2'!O20 -> 65 | AA68: ='Evac US101-S Hopper Ave 2'!P20 -> 36 | AB68: ='Evac US101-S Hopper Ave 2'!Q20 -> 100 | AC68: ='Evac US101-S Hopper Ave 2'!R20 -> 16.52244898 | AD68: ='Evac US101-S Hopper Ave 2'!S20 -> 699 | AE68: ='Evac US101-S Hopper Ave 2'!T20 -> 104.6075692 | AF68: ='Evac US101-S Hopper Ave 2'!U20 -> 10.26655329 | AH68: ='Routine US101-S Hopper Ave 1'!L44 -> 2019-10-17T18:00:00 | AI68: ='Routine US101-S Hopper Ave 1'!M44 -> 7 | AJ68: ='Routine US101-S Hopper Ave 1'!N44 -> 2331 | AK68: ='Routine US101-S Hopper Ave 1'!O44 -> 48.2 | AL68: ='Routine US101-S Hopper Ave 1'!P44 -> 36 | AM68: ='Routine US101-S Hopper Ave 1'!Q44 -> 100 | AN68: ='Routine US101-S Hopper Ave 1'!R44 -> 25.14285714 | AO68: ='Routine US101-S Hopper Ave 1'!S44 -> 777 | AP68: ='Routine US101-S Hopper Ave 1'!T44 -> 77.57053594 | AQ68: ='Routine US101-S Hopper Ave 1'!U44 -> 15.62301587 | AS68: =Theoretical!A68 -> 66 | AT68: =Theoretical!B68 -> 27.6146789 | AU68: =Theoretical!C68 -> 1 | AV68: =Theoretical!D68 -> 1822.568807 | AW68: =Theoretical!E68 -> 41.01041667 | AX68: =Theoretical!F68 -> 44.44160668
A69: ='Evac US101-S loc 104'!A69 -> 2019-10-26T05:35:00 | B69: ='Evac US101-S loc 104'!B69 -> 1.2 | C69: ='Evac US101-S loc 104'!C69 -> 33 | D69: ='Evac US101-S loc 104'!D69 -> 66.4 | E69: ='Evac US101-S loc 104'!E69 -> 2 | F69: ='Evac US101-S loc 104'!F69 -> 100 | G69: ='Evac US101-S loc 104'!G69 -> 4.310204082 | H69: ='Evac US101-S loc 104'!H69 -> 198 | I69: ='Evac US101-S loc 104'!I69 -> 106.8606553 | J69: ='Evac US101-S loc 104'!J69 -> 2.678231293 | L69: ='Routine US101-S loc 104'!A69 -> 2019-10-16T05:35:00 | M69: ='Routine US101-S loc 104'!B69 -> 1.9 | N69: ='Routine US101-S loc 104'!C69 -> 55 | O69: ='Routine US101-S loc 104'!D69 -> 67.6 | P69: ='Routine US101-S loc 104'!E69 -> 2 | Q69: ='Routine US101-S loc 104'!F69 -> 100 | R69: ='Routine US101-S loc 104'!G69 -> 6.824489796 | S69: ='Routine US101-S loc 104'!H69 -> 330 | T69: ='Routine US101-S loc 104'!I69 -> 108.791872 | U69: ='Routine US101-S loc 104'!J69 -> 4.24053288 | W69: ='Evac US101-S Hopper Ave 2'!L21 -> 2019-10-25T19:00:00 | X69: ='Evac US101-S Hopper Ave 2'!M21 -> 3.8 | Y69: ='Evac US101-S Hopper Ave 2'!N21 -> 1751 | Z69: ='Evac US101-S Hopper Ave 2'!O21 -> 66.4 | AA69: ='Evac US101-S Hopper Ave 2'!P21 -> 36 | AB69: ='Evac US101-S Hopper Ave 2'!Q21 -> 100 | AC69: ='Evac US101-S Hopper Ave 2'!R21 -> 13.64897959 | AD69: ='Evac US101-S Hopper Ave 2'!S21 -> 583.6666667 | AE69: ='Evac US101-S Hopper Ave 2'!T21 -> 106.8606553 | AF69: ='Evac US101-S Hopper Ave 2'!U21 -> 8.48106576 | AH69: ='Routine US101-S Hopper Ave 1'!L45 -> 2019-10-17T19:00:00 | AI69: ='Routine US101-S Hopper Ave 1'!M45 -> 3.5 | AJ69: ='Routine US101-S Hopper Ave 1'!N45 -> 1561 | AK69: ='Routine US101-S Hopper Ave 1'!O45 -> 65.7 | AL69: ='Routine US101-S Hopper Ave 1'!P45 -> 36 | AM69: ='Routine US101-S Hopper Ave 1'!Q45 -> 100 | AN69: ='Routine US101-S Hopper Ave 1'!R45 -> 12.57142857 | AO69: ='Routine US101-S Hopper Ave 1'!S45 -> 520.3333333 | AP69: ='Routine US101-S Hopper Ave 1'!T45 -> 105.7341123 | AQ69: ='Routine US101-S Hopper Ave 1'!U45 -> 7.811507937 | AS69: =Theoretical!A69 -> 67 | AT69: =Theoretical!B69 -> 26.97247706 | AU69: =Theoretical!C69 -> 1 | AV69: =Theoretical!D69 -> 1807.155963 | AW69: =Theoretical!E69 -> 41.63178662 | AX69: =Theoretical!F69 -> 43.40808094
A70: ='Evac US101-S loc 104'!A70 -> 2019-10-26T05:40:00 | B70: ='Evac US101-S loc 104'!B70 -> 2.2 | C70: ='Evac US101-S loc 104'!C70 -> 53 | D70: ='Evac US101-S loc 104'!D70 -> 62.1 | E70: ='Evac US101-S loc 104'!E70 -> 2 | F70: ='Evac US101-S loc 104'!F70 -> 100 | G70: ='Evac US101-S loc 104'!G70 -> 7.902040816 | H70: ='Evac US101-S loc 104'!H70 -> 318 | I70: ='Evac US101-S loc 104'!I70 -> 99.94046228 | J70: ='Evac US101-S loc 104'!J70 -> 4.910090703 | L70: ='Routine US101-S loc 104'!A70 -> 2019-10-16T05:40:00 | M70: ='Routine US101-S loc 104'!B70 -> 2.2 | N70: ='Routine US101-S loc 104'!C70 -> 70 | O70: ='Routine US101-S loc 104'!D70 -> 68.7 | P70: ='Routine US101-S loc 104'!E70 -> 2 | Q70: ='Routine US101-S loc 104'!F70 -> 100 | R70: ='Routine US101-S loc 104'!G70 -> 7.902040816 | S70: ='Routine US101-S loc 104'!H70 -> 420 | T70: ='Routine US101-S loc 104'!I70 -> 110.5621539 | U70: ='Routine US101-S loc 104'!J70 -> 4.910090703 | W70: ='Evac US101-S Hopper Ave 2'!L22 -> 2019-10-25T20:00:00 | X70: ='Evac US101-S Hopper Ave 2'!M22 -> 2.8 | Y70: ='Evac US101-S Hopper Ave 2'!N22 -> 1318 | Z70: ='Evac US101-S Hopper Ave 2'!O22 -> 67.3 | AA70: ='Evac US101-S Hopper Ave 2'!P22 -> 36 | AB70: ='Evac US101-S Hopper Ave 2'!Q22 -> 100 | AC70: ='Evac US101-S Hopper Ave 2'!R22 -> 10.05714286 | AD70: ='Evac US101-S Hopper Ave 2'!S22 -> 439.3333333 | AE70: ='Evac US101-S Hopper Ave 2'!T22 -> 108.3090678 | AF70: ='Evac US101-S Hopper Ave 2'!U22 -> 6.249206349 | AH70: ='Routine US101-S Hopper Ave 1'!L46 -> 2019-10-17T20:00:00 | AI70: ='Routine US101-S Hopper Ave 1'!M46 -> 2.6 | AJ70: ='Routine US101-S Hopper Ave 1'!N46 -> 1229 | AK70: ='Routine US101-S Hopper Ave 1'!O46 -> 67.7 | AL70: ='Routine US101-S Hopper Ave 1'!P46 -> 36 | AM70: ='Routine US101-S Hopper Ave 1'!Q46 -> 100 | AN70: ='Routine US101-S Hopper Ave 1'!R46 -> 9.33877551 | AO70: ='Routine US101-S Hopper Ave 1'!S46 -> 409.6666667 | AP70: ='Routine US101-S Hopper Ave 1'!T46 -> 108.9528067 | AQ70: ='Routine US101-S Hopper Ave 1'!U46 -> 5.802834467 | AS70: =Theoretical!A70 -> 68 | AT70: =Theoretical!B70 -> 26.33027523 | AU70: =Theoretical!C70 -> 1 | AV70: =Theoretical!D70 -> 1790.458716 | AW70: =Theoretical!E70 -> 42.25315657 | AX70: =Theoretical!F70 -> 42.37455521
A71: ='Evac US101-S loc 104'!A71 -> 2019-10-26T05:45:00 | B71: ='Evac US101-S loc 104'!B71 -> 1.2 | C71: ='Evac US101-S loc 104'!C71 -> 34 | D71: ='Evac US101-S loc 104'!D71 -> 64.3 | E71: ='Evac US101-S loc 104'!E71 -> 2 | F71: ='Evac US101-S loc 104'!F71 -> 100 | G71: ='Evac US101-S loc 104'!G71 -> 4.310204082 | H71: ='Evac US101-S loc 104'!H71 -> 204 | I71: ='Evac US101-S loc 104'!I71 -> 103.4810262 | J71: ='Evac US101-S loc 104'!J71 -> 2.678231293 | L71: ='Routine US101-S loc 104'!A71 -> 2019-10-16T05:45:00 | M71: ='Routine US101-S loc 104'!B71 -> 3.1 | N71: ='Routine US101-S loc 104'!C71 -> 90 | O71: ='Routine US101-S loc 104'!D71 -> 67.7 | P71: ='Routine US101-S loc 104'!E71 -> 2 | Q71: ='Routine US101-S loc 104'!F71 -> 100 | R71: ='Routine US101-S loc 104'!G71 -> 11.13469388 | S71: ='Routine US101-S loc 104'!H71 -> 540 | T71: ='Routine US101-S loc 104'!I71 -> 108.9528067 | U71: ='Routine US101-S loc 104'!J71 -> 6.918764172 | W71: ='Evac US101-S Hopper Ave 2'!L23 -> 2019-10-25T21:00:00 | X71: ='Evac US101-S Hopper Ave 2'!M23 -> 2.5 | Y71: ='Evac US101-S Hopper Ave 2'!N23 -> 1183 | Z71: ='Evac US101-S Hopper Ave 2'!O23 -> 67.8 | AA71: ='Evac US101-S Hopper Ave 2'!P23 -> 36 | AB71: ='Evac US101-S Hopper Ave 2'!Q23 -> 100 | AC71: ='Evac US101-S Hopper Ave 2'!R23 -> 8.979591837 | AD71: ='Evac US101-S Hopper Ave 2'!S23 -> 394.3333333 | AE71: ='Evac US101-S Hopper Ave 2'!T23 -> 109.1137414 | AF71: ='Evac US101-S Hopper Ave 2'!U23 -> 5.579648526 | AH71: ='Routine US101-S Hopper Ave 1'!L47 -> 2019-10-17T21:00:00 | AI71: ='Routine US101-S Hopper Ave 1'!M47 -> 2.3 | AJ71: ='Routine US101-S Hopper Ave 1'!N47 -> 1115 | AK71: ='Routine US101-S Hopper Ave 1'!O47 -> 67.1 | AL71: ='Routine US101-S Hopper Ave 1'!P47 -> 36 | AM71: ='Routine US101-S Hopper Ave 1'!Q47 -> 100 | AN71: ='Routine US101-S Hopper Ave 1'!R47 -> 8.26122449 | AO71: ='Routine US101-S Hopper Ave 1'!S47 -> 371.6666667 | AP71: ='Routine US101-S Hopper Ave 1'!T47 -> 107.9871984 | AQ71: ='Routine US101-S Hopper Ave 1'!U47 -> 5.133276644 | AS71: =Theoretical!A71 -> 69 | AT71: =Theoretical!B71 -> 25.68807339 | AU71: =Theoretical!C71 -> 1 | AV71: =Theoretical!D71 -> 1772.477064 | AW71: =Theoretical!E71 -> 42.87452652 | AX71: =Theoretical!F71 -> 41.34102947
A72: ='Evac US101-S loc 104'!A72 -> 2019-10-26T05:50:00 | B72: ='Evac US101-S loc 104'!B72 -> 1.1 | C72: ='Evac US101-S loc 104'!C72 -> 32 | D72: ='Evac US101-S loc 104'!D72 -> 66.6 | E72: ='Evac US101-S loc 104'!E72 -> 2 | F72: ='Evac US101-S loc 104'!F72 -> 100 | G72: ='Evac US101-S loc 104'!G72 -> 3.951020408 | H72: ='Evac US101-S loc 104'!H72 -> 192 | I72: ='Evac US101-S loc 104'!I72 -> 107.1825248 | J72: ='Evac US101-S loc 104'!J72 -> 2.455045351 | L72: ='Routine US101-S loc 104'!A72 -> 2019-10-16T05:50:00 | M72: ='Routine US101-S loc 104'!B72 -> 3 | N72: ='Routine US101-S loc 104'!C72 -> 90 | O72: ='Routine US101-S loc 104'!D72 -> 68.4 | P72: ='Routine US101-S loc 104'!E72 -> 2 | Q72: ='Routine US101-S loc 104'!F72 -> 100 | R72: ='Routine US101-S loc 104'!G72 -> 10.7755102 | S72: ='Routine US101-S loc 104'!H72 -> 540 | T72: ='Routine US101-S loc 104'!I72 -> 110.0793498 | U72: ='Routine US101-S loc 104'!J72 -> 6.695578231 | W72: ='Evac US101-S Hopper Ave 2'!L24 -> 2019-10-25T22:00:00 | X72: ='Evac US101-S Hopper Ave 2'!M24 -> 2 | Y72: ='Evac US101-S Hopper Ave 2'!N24 -> 986 | Z72: ='Evac US101-S Hopper Ave 2'!O24 -> 68 | AA72: ='Evac US101-S Hopper Ave 2'!P24 -> 36 | AB72: ='Evac US101-S Hopper Ave 2'!Q24 -> 100 | AC72: ='Evac US101-S Hopper Ave 2'!R24 -> 7.183673469 | AD72: ='Evac US101-S Hopper Ave 2'!S24 -> 328.6666667 | AE72: ='Evac US101-S Hopper Ave 2'!T24 -> 109.4356109 | AF72: ='Evac US101-S Hopper Ave 2'!U24 -> 4.463718821 | AH72: ='Routine US101-S Hopper Ave 1'!L48 -> 2019-10-17T22:00:00 | AI72: ='Routine US101-S Hopper Ave 1'!M48 -> 1.7 | AJ72: ='Routine US101-S Hopper Ave 1'!N48 -> 845 | AK72: ='Routine US101-S Hopper Ave 1'!O48 -> 67.5 | AL72: ='Routine US101-S Hopper Ave 1'!P48 -> 36 | AM72: ='Routine US101-S Hopper Ave 1'!Q48 -> 100 | AN72: ='Routine US101-S Hopper Ave 1'!R48 -> 6.106122449 | AO72: ='Routine US101-S Hopper Ave 1'!S48 -> 281.6666667 | AP72: ='Routine US101-S Hopper Ave 1'!T48 -> 108.6309373 | AQ72: ='Routine US101-S Hopper Ave 1'!U48 -> 3.794160998 | AS72: =Theoretical!A72 -> 70 | AT72: =Theoretical!B72 -> 25.04587156 | AU72: =Theoretical!C72 -> 1 | AV72: =Theoretical!D72 -> 1753.211009 | AW72: =Theoretical!E72 -> 43.49589646 | AX72: =Theoretical!F72 -> 40.30750373
A73: ='Evac US101-S loc 104'!A73 -> 2019-10-26T05:55:00 | B73: ='Evac US101-S loc 104'!B73 -> 0.4 | C73: ='Evac US101-S loc 104'!C73 -> 14 | D73: ='Evac US101-S loc 104'!D73 -> 67.1 | E73: ='Evac US101-S loc 104'!E73 -> 2 | F73: ='Evac US101-S loc 104'!F73 -> 100 | G73: ='Evac US101-S loc 104'!G73 -> 1.436734694 | H73: ='Evac US101-S loc 104'!H73 -> 84 | I73: ='Evac US101-S loc 104'!I73 -> 107.9871984 | J73: ='Evac US101-S loc 104'!J73 -> 0.8927437642 | L73: ='Routine US101-S loc 104'!A73 -> 2019-10-16T05:55:00 | M73: ='Routine US101-S loc 104'!B73 -> 2.1 | N73: ='Routine US101-S loc 104'!C73 -> 63 | O73: ='Routine US101-S loc 104'!D73 -> 68.3 | P73: ='Routine US101-S loc 104'!E73 -> 2 | Q73: ='Routine US101-S loc 104'!F73 -> 100 | R73: ='Routine US101-S loc 104'!G73 -> 7.542857143 | S73: ='Routine US101-S loc 104'!H73 -> 378 | T73: ='Routine US101-S loc 104'!I73 -> 109.918415 | U73: ='Routine US101-S loc 104'!J73 -> 4.686904762 | W73: ='Evac US101-S Hopper Ave 2'!L25 -> 2019-10-25T23:00:00 | X73: ='Evac US101-S Hopper Ave 2'!M25 -> 1.6 | Y73: ='Evac US101-S Hopper Ave 2'!N25 -> 769 | Z73: ='Evac US101-S Hopper Ave 2'!O25 -> 67.6 | AA73: ='Evac US101-S Hopper Ave 2'!P25 -> 36 | AB73: ='Evac US101-S Hopper Ave 2'!Q25 -> 100 | AC73: ='Evac US101-S Hopper Ave 2'!R25 -> 5.746938776 | AD73: ='Evac US101-S Hopper Ave 2'!S25 -> 256.3333333 | AE73: ='Evac US101-S Hopper Ave 2'!T25 -> 108.791872 | AF73: ='Evac US101-S Hopper Ave 2'!U25 -> 3.570975057 | AH73: ='Routine US101-S Hopper Ave 1'!L49 -> 2019-10-17T23:00:00 | AI73: ='Routine US101-S Hopper Ave 1'!M49 -> 1.1 | AJ73: ='Routine US101-S Hopper Ave 1'!N49 -> 501 | AK73: ='Routine US101-S Hopper Ave 1'!O49 -> 67 | AL73: ='Routine US101-S Hopper Ave 1'!P49 -> 36 | AM73: ='Routine US101-S Hopper Ave 1'!Q49 -> 100 | AN73: ='Routine US101-S Hopper Ave 1'!R49 -> 3.951020408 | AO73: ='Routine US101-S Hopper Ave 1'!S49 -> 167 | AP73: ='Routine US101-S Hopper Ave 1'!T49 -> 107.8262637 | AQ73: ='Routine US101-S Hopper Ave 1'!U49 -> 2.455045351 | AS73: =Theoretical!A73 -> 71 | AT73: =Theoretical!B73 -> 24.40366972 | AU73: =Theoretical!C73 -> 1 | AV73: =Theoretical!D73 -> 1732.66055 | AW73: =Theoretical!E73 -> 44.11726641 | AX73: =Theoretical!F73 -> 39.273978
A74: ='Evac US101-S loc 104'!A74 -> 2019-10-26T06:00:00 | B74: ='Evac US101-S loc 104'!B74 -> 1.1 | C74: ='Evac US101-S loc 104'!C74 -> 34 | D74: ='Evac US101-S loc 104'!D74 -> 67.7 | E74: ='Evac US101-S loc 104'!E74 -> 2 | F74: ='Evac US101-S loc 104'!F74 -> 100 | G74: ='Evac US101-S loc 104'!G74 -> 3.951020408 | H74: ='Evac US101-S loc 104'!H74 -> 204 | I74: ='Evac US101-S loc 104'!I74 -> 108.9528067 | J74: ='Evac US101-S loc 104'!J74 -> 2.455045351 | L74: ='Routine US101-S loc 104'!A74 -> 2019-10-16T06:00:00 | M74: ='Routine US101-S loc 104'!B74 -> 2.6 | N74: ='Routine US101-S loc 104'!C74 -> 72 | O74: ='Routine US101-S loc 104'!D74 -> 66.7 | P74: ='Routine US101-S loc 104'!E74 -> 2 | Q74: ='Routine US101-S loc 104'!F74 -> 100 | R74: ='Routine US101-S loc 104'!G74 -> 9.33877551 | S74: ='Routine US101-S loc 104'!H74 -> 432 | T74: ='Routine US101-S loc 104'!I74 -> 107.3434595 | U74: ='Routine US101-S loc 104'!J74 -> 5.802834467 | W74: ='Evac US101-N loc 78'!L2 -> 2019-10-23 | X74: ='Evac US101-N loc 78'!M2 -> 3 | Y74: ='Evac US101-N loc 78'!N2 -> 880 | Z74: ='Evac US101-N loc 78'!O2 -> 65.3 | AA74: ='Evac US101-N loc 78'!P2 -> 36 | AB74: ='Evac US101-N loc 78'!Q2 -> 0 | AC74: ='Evac US101-N loc 78'!R2 -> 10.7755102 | AD74: ='Evac US101-N loc 78'!S2 -> 293.3333333 | AE74: ='Evac US101-N loc 78'!T2 -> 105.0903734 | AF74: ='Evac US101-N loc 78'!U2 -> 6.695578231 | AH74: ='Routine US101-S Hopper Ave 2'!L2 -> 2019-10-21 | AI74: ='Routine US101-S Hopper Ave 2'!M2 -> 0.5 | AJ74: ='Routine US101-S Hopper Ave 2'!N2 -> 238 | AK74: ='Routine US101-S Hopper Ave 2'!O2 -> 66.9 | AL74: ='Routine US101-S Hopper Ave 2'!P2 -> 36 | AM74: ='Routine US101-S Hopper Ave 2'!Q2 -> 100 | AN74: ='Routine US101-S Hopper Ave 2'!R2 -> 1.795918367 | AO74: ='Routine US101-S Hopper Ave 2'!S2 -> 79.33333333 | AP74: ='Routine US101-S Hopper Ave 2'!T2 -> 107.6653289 | AQ74: ='Routine US101-S Hopper Ave 2'!U2 -> 1.115929705 | AS74: =Theoretical!A74 -> 72 | AT74: =Theoretical!B74 -> 23.76146789 | AU74: =Theoretical!C74 -> 1 | AV74: =Theoretical!D74 -> 1710.825688 | AW74: =Theoretical!E74 -> 44.73863636 | AX74: =Theoretical!F74 -> 38.24045226
A75: ='Evac US101-S loc 104'!A75 -> 2019-10-26T06:05:00 | B75: ='Evac US101-S loc 104'!B75 -> 2.1 | C75: ='Evac US101-S loc 104'!C75 -> 48 | D75: ='Evac US101-S loc 104'!D75 -> 62.6 | E75: ='Evac US101-S loc 104'!E75 -> 2 | F75: ='Evac US101-S loc 104'!F75 -> 100 | G75: ='Evac US101-S loc 104'!G75 -> 7.542857143 | H75: ='Evac US101-S loc 104'!H75 -> 288 | I75: ='Evac US101-S loc 104'!I75 -> 100.7451359 | J75: ='Evac US101-S loc 104'!J75 -> 4.686904762 | L75: ='Routine US101-S loc 104'!A75 -> 2019-10-16T06:05:00 | M75: ='Routine US101-S loc 104'!B75 -> 2.3 | N75: ='Routine US101-S loc 104'!C75 -> 54 | O75: ='Routine US101-S loc 104'!D75 -> 63.5 | P75: ='Routine US101-S loc 104'!E75 -> 2 | Q75: ='Routine US101-S loc 104'!F75 -> 100 | R75: ='Routine US101-S loc 104'!G75 -> 8.26122449 | S75: ='Routine US101-S loc 104'!H75 -> 324 | T75: ='Routine US101-S loc 104'!I75 -> 102.1935484 | U75: ='Routine US101-S loc 104'!J75 -> 5.133276644 | W75: ='Evac US101-N loc 78'!L3 -> 2019-10-23T01:00:00 | X75: ='Evac US101-N loc 78'!M3 -> 2.7 | Y75: ='Evac US101-N loc 78'!N3 -> 743 | Z75: ='Evac US101-N loc 78'!O3 -> 65 | AA75: ='Evac US101-N loc 78'!P3 -> 36 | AB75: ='Evac US101-N loc 78'!Q3 -> 0 | AC75: ='Evac US101-N loc 78'!R3 -> 9.697959184 | AD75: ='Evac US101-N loc 78'!S3 -> 247.6666667 | AE75: ='Evac US101-N loc 78'!T3 -> 104.6075692 | AF75: ='Evac US101-N loc 78'!U3 -> 6.026020408 | AH75: ='Routine US101-S Hopper Ave 2'!L3 -> 2019-10-21T01:00:00 | AI75: ='Routine US101-S Hopper Ave 2'!M3 -> 0.3 | AJ75: ='Routine US101-S Hopper Ave 2'!N3 -> 130 | AK75: ='Routine US101-S Hopper Ave 2'!O3 -> 66.3 | AL75: ='Routine US101-S Hopper Ave 2'!P3 -> 36 | AM75: ='Routine US101-S Hopper Ave 2'!Q3 -> 100 | AN75: ='Routine US101-S Hopper Ave 2'!R3 -> 1.07755102 | AO75: ='Routine US101-S Hopper Ave 2'!S3 -> 43.33333333 | AP75: ='Routine US101-S Hopper Ave 2'!T3 -> 106.6997206 | AQ75: ='Routine US101-S Hopper Ave 2'!U3 -> 0.6695578231 | AS75: =Theoretical!A75 -> 73 | AT75: =Theoretical!B75 -> 23.11926606 | AU75: =Theoretical!C75 -> 1 | AV75: =Theoretical!D75 -> 1687.706422 | AW75: =Theoretical!E75 -> 45.36000631 | AX75: =Theoretical!F75 -> 37.20692652
A76: ='Evac US101-S loc 104'!A76 -> 2019-10-26T06:10:00 | B76: ='Evac US101-S loc 104'!B76 -> 1.2 | C76: ='Evac US101-S loc 104'!C76 -> 22 | D76: ='Evac US101-S loc 104'!D76 -> 63.2 | E76: ='Evac US101-S loc 104'!E76 -> 2 | F76: ='Evac US101-S loc 104'!F76 -> 100 | G76: ='Evac US101-S loc 104'!G76 -> 4.310204082 | H76: ='Evac US101-S loc 104'!H76 -> 132 | I76: ='Evac US101-S loc 104'!I76 -> 101.7107442 | J76: ='Evac US101-S loc 104'!J76 -> 2.678231293 | L76: ='Routine US101-S loc 104'!A76 -> 2019-10-16T06:10:00 | M76: ='Routine US101-S loc 104'!B76 -> 4 | N76: ='Routine US101-S loc 104'!C76 -> 99 | O76: ='Routine US101-S loc 104'!D76 -> 62.4 | P76: ='Routine US101-S loc 104'!E76 -> 2 | Q76: ='Routine US101-S loc 104'!F76 -> 100 | R76: ='Routine US101-S loc 104'!G76 -> 14.36734694 | S76: ='Routine US101-S loc 104'!H76 -> 594 | T76: ='Routine US101-S loc 104'!I76 -> 100.4232664 | U76: ='Routine US101-S loc 104'!J76 -> 8.927437642 | W76: ='Evac US101-N loc 78'!L4 -> 2019-10-23T02:00:00 | X76: ='Evac US101-N loc 78'!M4 -> 2.8 | Y76: ='Evac US101-N loc 78'!N4 -> 736 | Z76: ='Evac US101-N loc 78'!O4 -> 65.1 | AA76: ='Evac US101-N loc 78'!P4 -> 36 | AB76: ='Evac US101-N loc 78'!Q4 -> 0 | AC76: ='Evac US101-N loc 78'!R4 -> 10.05714286 | AD76: ='Evac US101-N loc 78'!S4 -> 245.3333333 | AE76: ='Evac US101-N loc 78'!T4 -> 104.7685039 | AF76: ='Evac US101-N loc 78'!U4 -> 6.249206349 | AH76: ='Routine US101-S Hopper Ave 2'!L4 -> 2019-10-21T02:00:00 | AI76: ='Routine US101-S Hopper Ave 2'!M4 -> 0.5 | AJ76: ='Routine US101-S Hopper Ave 2'!N4 -> 168 | AK76: ='Routine US101-S Hopper Ave 2'!O4 -> 66.3 | AL76: ='Routine US101-S Hopper Ave 2'!P4 -> 36 | AM76: ='Routine US101-S Hopper Ave 2'!Q4 -> 100 | AN76: ='Routine US101-S Hopper Ave 2'!R4 -> 1.795918367 | AO76: ='Routine US101-S Hopper Ave 2'!S4 -> 56 | AP76: ='Routine US101-S Hopper Ave 2'!T4 -> 106.6997206 | AQ76: ='Routine US101-S Hopper Ave 2'!U4 -> 1.115929705 | AS76: =Theoretical!A76 -> 74 | AT76: =Theoretical!B76 -> 22.47706422 | AU76: =Theoretical!C76 -> 1 | AV76: =Theoretical!D76 -> 1663.302752 | AW76: =Theoretical!E76 -> 45.98137626 | AX76: =Theoretical!F76 -> 36.17340079
A77: ='Evac US101-S loc 104'!A77 -> 2019-10-26T06:15:00 | B77: ='Evac US101-S loc 104'!B77 -> 0.8 | C77: ='Evac US101-S loc 104'!C77 -> 22 | D77: ='Evac US101-S loc 104'!D77 -> 66.1 | E77: ='Evac US101-S loc 104'!E77 -> 2 | F77: ='Evac US101-S loc 104'!F77 -> 100 | G77: ='Evac US101-S loc 104'!G77 -> 2.873469388 | H77: ='Evac US101-S loc 104'!H77 -> 132 | I77: ='Evac US101-S loc 104'!I77 -> 106.3778512 | J77: ='Evac US101-S loc 104'!J77 -> 1.785487528 | L77: ='Routine US101-S loc 104'!A77 -> 2019-10-16T06:15:00 | M77: ='Routine US101-S loc 104'!B77 -> 2.8 | N77: ='Routine US101-S loc 104'!C77 -> 76 | O77: ='Routine US101-S loc 104'!D77 -> 63.1 | P77: ='Routine US101-S loc 104'!E77 -> 2 | Q77: ='Routine US101-S loc 104'!F77 -> 100 | R77: ='Routine US101-S loc 104'!G77 -> 10.05714286 | S77: ='Routine US101-S loc 104'!H77 -> 456 | T77: ='Routine US101-S loc 104'!I77 -> 101.5498095 | U77: ='Routine US101-S loc 104'!J77 -> 6.249206349 | W77: ='Evac US101-N loc 78'!L5 -> 2019-10-23T03:00:00 | X77: ='Evac US101-N loc 78'!M5 -> 2.7 | Y77: ='Evac US101-N loc 78'!N5 -> 736 | Z77: ='Evac US101-N loc 78'!O5 -> 65.2 | AA77: ='Evac US101-N loc 78'!P5 -> 36 | AB77: ='Evac US101-N loc 78'!Q5 -> 0 | AC77: ='Evac US101-N loc 78'!R5 -> 9.697959184 | AD77: ='Evac US101-N loc 78'!S5 -> 245.3333333 | AE77: ='Evac US101-N loc 78'!T5 -> 104.9294387 | AF77: ='Evac US101-N loc 78'!U5 -> 6.026020408 | AH77: ='Routine US101-S Hopper Ave 2'!L5 -> 2019-10-21T03:00:00 | AI77: ='Routine US101-S Hopper Ave 2'!M5 -> 0.7 | AJ77: ='Routine US101-S Hopper Ave 2'!N5 -> 258 | AK77: ='Routine US101-S Hopper Ave 2'!O5 -> 66.5 | AL77: ='Routine US101-S Hopper Ave 2'!P5 -> 36 | AM77: ='Routine US101-S Hopper Ave 2'!Q5 -> 100 | AN77: ='Routine US101-S Hopper Ave 2'!R5 -> 2.514285714 | AO77: ='Routine US101-S Hopper Ave 2'!S5 -> 86 | AP77: ='Routine US101-S Hopper Ave 2'!T5 -> 107.02159 | AQ77: ='Routine US101-S Hopper Ave 2'!U5 -> 1.562301587 | AS77: =Theoretical!A77 -> 75 | AT77: =Theoretical!B77 -> 21.83486239 | AU77: =Theoretical!C77 -> 1 | AV77: =Theoretical!D77 -> 1637.614679 | AW77: =Theoretical!E77 -> 46.60274621 | AX77: =Theoretical!F77 -> 35.13987505
A78: ='Evac US101-S loc 104'!A78 -> 2019-10-26T06:20:00 | B78: ='Evac US101-S loc 104'!B78 -> 1 | C78: ='Evac US101-S loc 104'!C78 -> 26 | D78: ='Evac US101-S loc 104'!D78 -> 65.2 | E78: ='Evac US101-S loc 104'!E78 -> 2 | F78: ='Evac US101-S loc 104'!F78 -> 100 | G78: ='Evac US101-S loc 104'!G78 -> 3.591836735 | H78: ='Evac US101-S loc 104'!H78 -> 156 | I78: ='Evac US101-S loc 104'!I78 -> 104.9294387 | J78: ='Evac US101-S loc 104'!J78 -> 2.23185941 | L78: ='Routine US101-S loc 104'!A78 -> 2019-10-16T06:20:00 | M78: ='Routine US101-S loc 104'!B78 -> 2.9 | N78: ='Routine US101-S loc 104'!C78 -> 93 | O78: ='Routine US101-S loc 104'!D78 -> 67.7 | P78: ='Routine US101-S loc 104'!E78 -> 2 | Q78: ='Routine US101-S loc 104'!F78 -> 100 | R78: ='Routine US101-S loc 104'!G78 -> 10.41632653 | S78: ='Routine US101-S loc 104'!H78 -> 558 | T78: ='Routine US101-S loc 104'!I78 -> 108.9528067 | U78: ='Routine US101-S loc 104'!J78 -> 6.47239229 | W78: ='Evac US101-N loc 78'!L6 -> 2019-10-23T04:00:00 | X78: ='Evac US101-N loc 78'!M6 -> 3.2 | Y78: ='Evac US101-N loc 78'!N6 -> 891 | Z78: ='Evac US101-N loc 78'!O6 -> 64.9 | AA78: ='Evac US101-N loc 78'!P6 -> 36 | AB78: ='Evac US101-N loc 78'!Q6 -> 0 | AC78: ='Evac US101-N loc 78'!R6 -> 11.49387755 | AD78: ='Evac US101-N loc 78'!S6 -> 297 | AE78: ='Evac US101-N loc 78'!T6 -> 104.4466345 | AF78: ='Evac US101-N loc 78'!U6 -> 7.141950113 | AH78: ='Routine US101-S Hopper Ave 2'!L6 -> 2019-10-21T04:00:00 | AI78: ='Routine US101-S Hopper Ave 2'!M6 -> 1.4 | AJ78: ='Routine US101-S Hopper Ave 2'!N6 -> 568 | AK78: ='Routine US101-S Hopper Ave 2'!O6 -> 67.3 | AL78: ='Routine US101-S Hopper Ave 2'!P6 -> 36 | AM78: ='Routine US101-S Hopper Ave 2'!Q6 -> 100 | AN78: ='Routine US101-S Hopper Ave 2'!R6 -> 5.028571429 | AO78: ='Routine US101-S Hopper Ave 2'!S6 -> 189.3333333 | AP78: ='Routine US101-S Hopper Ave 2'!T6 -> 108.3090678 | AQ78: ='Routine US101-S Hopper Ave 2'!U6 -> 3.124603175 | AS78: =Theoretical!A78 -> 76 | AT78: =Theoretical!B78 -> 21.19266055 | AU78: =Theoretical!C78 -> 1 | AV78: =Theoretical!D78 -> 1610.642202 | AW78: =Theoretical!E78 -> 47.22411616 | AX78: =Theoretical!F78 -> 34.10634931
A79: ='Evac US101-S loc 104'!A79 -> 2019-10-26T06:25:00 | B79: ='Evac US101-S loc 104'!B79 -> 2 | C79: ='Evac US101-S loc 104'!C79 -> 46 | D79: ='Evac US101-S loc 104'!D79 -> 62.1 | E79: ='Evac US101-S loc 104'!E79 -> 2 | F79: ='Evac US101-S loc 104'!F79 -> 100 | G79: ='Evac US101-S loc 104'!G79 -> 7.183673469 | H79: ='Evac US101-S loc 104'!H79 -> 276 | I79: ='Evac US101-S loc 104'!I79 -> 99.94046228 | J79: ='Evac US101-S loc 104'!J79 -> 4.463718821 | L79: ='Routine US101-S loc 104'!A79 -> 2019-10-16T06:25:00 | M79: ='Routine US101-S loc 104'!B79 -> 2.8 | N79: ='Routine US101-S loc 104'!C79 -> 80 | O79: ='Routine US101-S loc 104'!D79 -> 67.3 | P79: ='Routine US101-S loc 104'!E79 -> 2 | Q79: ='Routine US101-S loc 104'!F79 -> 100 | R79: ='Routine US101-S loc 104'!G79 -> 10.05714286 | S79: ='Routine US101-S loc 104'!H79 -> 480 | T79: ='Routine US101-S loc 104'!I79 -> 108.3090678 | U79: ='Routine US101-S loc 104'!J79 -> 6.249206349 | W79: ='Evac US101-N loc 78'!L7 -> 2019-10-23T05:00:00 | X79: ='Evac US101-N loc 78'!M7 -> 4.2 | Y79: ='Evac US101-N loc 78'!N7 -> 1182 | Z79: ='Evac US101-N loc 78'!O7 -> 65.5 | AA79: ='Evac US101-N loc 78'!P7 -> 36 | AB79: ='Evac US101-N loc 78'!Q7 -> 0 | AC79: ='Evac US101-N loc 78'!R7 -> 15.08571429 | AD79: ='Evac US101-N loc 78'!S7 -> 394 | AE79: ='Evac US101-N loc 78'!T7 -> 105.4122428 | AF79: ='Evac US101-N loc 78'!U7 -> 9.373809524 | AH79: ='Routine US101-S Hopper Ave 2'!L7 -> 2019-10-21T05:00:00 | AI79: ='Routine US101-S Hopper Ave 2'!M7 -> 2.4 | AJ79: ='Routine US101-S Hopper Ave 2'!N7 -> 1057 | AK79: ='Routine US101-S Hopper Ave 2'!O7 -> 68.7 | AL79: ='Routine US101-S Hopper Ave 2'!P7 -> 36 | AM79: ='Routine US101-S Hopper Ave 2'!Q7 -> 100 | AN79: ='Routine US101-S Hopper Ave 2'!R7 -> 8.620408163 | AO79: ='Routine US101-S Hopper Ave 2'!S7 -> 352.3333333 | AP79: ='Routine US101-S Hopper Ave 2'!T7 -> 110.5621539 | AQ79: ='Routine US101-S Hopper Ave 2'!U7 -> 5.356462585 | AS79: =Theoretical!A79 -> 77 | AT79: =Theoretical!B79 -> 20.55045872 | AU79: =Theoretical!C79 -> 1 | AV79: =Theoretical!D79 -> 1582.385321 | AW79: =Theoretical!E79 -> 47.84548611 | AX79: =Theoretical!F79 -> 33.07282358
A80: ='Evac US101-S loc 104'!A80 -> 2019-10-26T06:30:00 | B80: ='Evac US101-S loc 104'!B80 -> 0.9 | C80: ='Evac US101-S loc 104'!C80 -> 30 | D80: ='Evac US101-S loc 104'!D80 -> 65.8 | E80: ='Evac US101-S loc 104'!E80 -> 2 | F80: ='Evac US101-S loc 104'!F80 -> 100 | G80: ='Evac US101-S loc 104'!G80 -> 3.232653061 | H80: ='Evac US101-S loc 104'!H80 -> 180 | I80: ='Evac US101-S loc 104'!I80 -> 105.895047 | J80: ='Evac US101-S loc 104'!J80 -> 2.008673469 | L80: ='Routine US101-S loc 104'!A80 -> 2019-10-16T06:30:00 | M80: ='Routine US101-S loc 104'!B80 -> 3.1 | N80: ='Routine US101-S loc 104'!C80 -> 86 | O80: ='Routine US101-S loc 104'!D80 -> 66 | P80: ='Routine US101-S loc 104'!E80 -> 2 | Q80: ='Routine US101-S loc 104'!F80 -> 100 | R80: ='Routine US101-S loc 104'!G80 -> 11.13469388 | S80: ='Routine US101-S loc 104'!H80 -> 516 | T80: ='Routine US101-S loc 104'!I80 -> 106.2169164 | U80: ='Routine US101-S loc 104'!J80 -> 6.918764172 | W80: ='Evac US101-N loc 78'!L8 -> 2019-10-23T06:00:00 | X80: ='Evac US101-N loc 78'!M8 -> 6.8 | Y80: ='Evac US101-N loc 78'!N8 -> 2207 | Z80: ='Evac US101-N loc 78'!O8 -> 60.7 | AA80: ='Evac US101-N loc 78'!P8 -> 36 | AB80: ='Evac US101-N loc 78'!Q8 -> 0 | AC80: ='Evac US101-N loc 78'!R8 -> 24.4244898 | AD80: ='Evac US101-N loc 78'!S8 -> 735.6666667 | AE80: ='Evac US101-N loc 78'!T8 -> 97.68737617 | AF80: ='Evac US101-N loc 78'!U8 -> 15.17664399 | AH80: ='Routine US101-S Hopper Ave 2'!L8 -> 2019-10-21T06:00:00 | AI80: ='Routine US101-S Hopper Ave 2'!M8 -> 3.8 | AJ80: ='Routine US101-S Hopper Ave 2'!N8 -> 1730 | AK80: ='Routine US101-S Hopper Ave 2'!O8 -> 69.7 | AL80: ='Routine US101-S Hopper Ave 2'!P8 -> 36 | AM80: ='Routine US101-S Hopper Ave 2'!Q8 -> 100 | AN80: ='Routine US101-S Hopper Ave 2'!R8 -> 13.64897959 | AO80: ='Routine US101-S Hopper Ave 2'!S8 -> 576.6666667 | AP80: ='Routine US101-S Hopper Ave 2'!T8 -> 112.1715011 | AQ80: ='Routine US101-S Hopper Ave 2'!U8 -> 8.48106576 | AS80: =Theoretical!A80 -> 78 | AT80: =Theoretical!B80 -> 19.90825688 | AU80: =Theoretical!C80 -> 1 | AV80: =Theoretical!D80 -> 1552.844037 | AW80: =Theoretical!E80 -> 48.46685606 | AX80: =Theoretical!F80 -> 32.03929784
A81: ='Evac US101-S loc 104'!A81 -> 2019-10-26T06:35:00 | B81: ='Evac US101-S loc 104'!B81 -> 2.1 | C81: ='Evac US101-S loc 104'!C81 -> 55 | D81: ='Evac US101-S loc 104'!D81 -> 64.6 | E81: ='Evac US101-S loc 104'!E81 -> 2 | F81: ='Evac US101-S loc 104'!F81 -> 100 | G81: ='Evac US101-S loc 104'!G81 -> 7.542857143 | H81: ='Evac US101-S loc 104'!H81 -> 330 | I81: ='Evac US101-S loc 104'!I81 -> 103.9638303 | J81: ='Evac US101-S loc 104'!J81 -> 4.686904762 | L81: ='Routine US101-S loc 104'!A81 -> 2019-10-16T06:35:00 | M81: ='Routine US101-S loc 104'!B81 -> 5 | N81: ='Routine US101-S loc 104'!C81 -> 145 | O81: ='Routine US101-S loc 104'!D81 -> 66.4 | P81: ='Routine US101-S loc 104'!E81 -> 2 | Q81: ='Routine US101-S loc 104'!F81 -> 100 | R81: ='Routine US101-S loc 104'!G81 -> 17.95918367 | S81: ='Routine US101-S loc 104'!H81 -> 870 | T81: ='Routine US101-S loc 104'!I81 -> 106.8606553 | U81: ='Routine US101-S loc 104'!J81 -> 11.15929705 | W81: ='Evac US101-N loc 78'!L9 -> 2019-10-23T07:00:00 | X81: ='Evac US101-N loc 78'!M9 -> 13 | Y81: ='Evac US101-N loc 78'!N9 -> 3098 | Z81: ='Evac US101-N loc 78'!O9 -> 47.3 | AA81: ='Evac US101-N loc 78'!P9 -> 36 | AB81: ='Evac US101-N loc 78'!Q9 -> 0 | AC81: ='Evac US101-N loc 78'!R9 -> 46.69387755 | AD81: ='Evac US101-N loc 78'!S9 -> 1032.666667 | AE81: ='Evac US101-N loc 78'!T9 -> 76.12212344 | AF81: ='Evac US101-N loc 78'!U9 -> 29.01417234 | AH81: ='Routine US101-S Hopper Ave 2'!L9 -> 2019-10-21T07:00:00 | AI81: ='Routine US101-S Hopper Ave 2'!M9 -> 6.7 | AJ81: ='Routine US101-S Hopper Ave 2'!N9 -> 2841 | AK81: ='Routine US101-S Hopper Ave 2'!O9 -> 63.1 | AL81: ='Routine US101-S Hopper Ave 2'!P9 -> 36 | AM81: ='Routine US101-S Hopper Ave 2'!Q9 -> 100 | AN81: ='Routine US101-S Hopper Ave 2'!R9 -> 24.06530612 | AO81: ='Routine US101-S Hopper Ave 2'!S9 -> 947 | AP81: ='Routine US101-S Hopper Ave 2'!T9 -> 101.5498095 | AQ81: ='Routine US101-S Hopper Ave 2'!U9 -> 14.95345805 | AS81: =Theoretical!A81 -> 79 | AT81: =Theoretical!B81 -> 19.26605505 | AU81: =Theoretical!C81 -> 1 | AV81: =Theoretical!D81 -> 1522.018349 | AW81: =Theoretical!E81 -> 49.08822601 | AX81: =Theoretical!F81 -> 31.0057721
A82: ='Evac US101-S loc 104'!A82 -> 2019-10-26T06:40:00 | B82: ='Evac US101-S loc 104'!B82 -> 1.7 | C82: ='Evac US101-S loc 104'!C82 -> 51 | D82: ='Evac US101-S loc 104'!D82 -> 66.6 | E82: ='Evac US101-S loc 104'!E82 -> 2 | F82: ='Evac US101-S loc 104'!F82 -> 100 | G82: ='Evac US101-S loc 104'!G82 -> 6.106122449 | H82: ='Evac US101-S loc 104'!H82 -> 306 | I82: ='Evac US101-S loc 104'!I82 -> 107.1825248 | J82: ='Evac US101-S loc 104'!J82 -> 3.794160998 | L82: ='Routine US101-S loc 104'!A82 -> 2019-10-16T06:40:00 | M82: ='Routine US101-S loc 104'!B82 -> 3.9 | N82: ='Routine US101-S loc 104'!C82 -> 113 | O82: ='Routine US101-S loc 104'!D82 -> 66.2 | P82: ='Routine US101-S loc 104'!E82 -> 2 | Q82: ='Routine US101-S loc 104'!F82 -> 100 | R82: ='Routine US101-S loc 104'!G82 -> 14.00816327 | S82: ='Routine US101-S loc 104'!H82 -> 678 | T82: ='Routine US101-S loc 104'!I82 -> 106.5387859 | U82: ='Routine US101-S loc 104'!J82 -> 8.704251701 | W82: ='Evac US101-N loc 78'!L10 -> 2019-10-23T08:00:00 | X82: ='Evac US101-N loc 78'!M10 -> 10.8 | Y82: ='Evac US101-N loc 78'!N10 -> 2591 | Z82: ='Evac US101-N loc 78'!O10 -> 50 | AA82: ='Evac US101-N loc 78'!P10 -> 36 | AB82: ='Evac US101-N loc 78'!Q10 -> 0 | AC82: ='Evac US101-N loc 78'!R10 -> 38.79183673 | AD82: ='Evac US101-N loc 78'!S10 -> 863.6666667 | AE82: ='Evac US101-N loc 78'!T10 -> 80.46736093 | AF82: ='Evac US101-N loc 78'!U10 -> 24.10408163 | AH82: ='Routine US101-S Hopper Ave 2'!L10 -> 2019-10-21T08:00:00 | AI82: ='Routine US101-S Hopper Ave 2'!M10 -> 6.7 | AJ82: ='Routine US101-S Hopper Ave 2'!N10 -> 2745 | AK82: ='Routine US101-S Hopper Ave 2'!O10 -> 60.9 | AL82: ='Routine US101-S Hopper Ave 2'!P10 -> 36 | AM82: ='Routine US101-S Hopper Ave 2'!Q10 -> 100 | AN82: ='Routine US101-S Hopper Ave 2'!R10 -> 24.06530612 | AO82: ='Routine US101-S Hopper Ave 2'!S10 -> 915 | AP82: ='Routine US101-S Hopper Ave 2'!T10 -> 98.00924562 | AQ82: ='Routine US101-S Hopper Ave 2'!U10 -> 14.95345805 | AS82: =Theoretical!A82 -> 80 | AT82: =Theoretical!B82 -> 18.62385321 | AU82: =Theoretical!C82 -> 1 | AV82: =Theoretical!D82 -> 1489.908257 | AW82: =Theoretical!E82 -> 49.70959596 | AX82: =Theoretical!F82 -> 29.97224637
A83: ='Evac US101-S loc 104'!A83 -> 2019-10-26T06:45:00 | B83: ='Evac US101-S loc 104'!B83 -> 1.2 | C83: ='Evac US101-S loc 104'!C83 -> 38 | D83: ='Evac US101-S loc 104'!D83 -> 68.1 | E83: ='Evac US101-S loc 104'!E83 -> 2 | F83: ='Evac US101-S loc 104'!F83 -> 100 | G83: ='Evac US101-S loc 104'!G83 -> 4.310204082 | H83: ='Evac US101-S loc 104'!H83 -> 228 | I83: ='Evac US101-S loc 104'!I83 -> 109.5965456 | J83: ='Evac US101-S loc 104'!J83 -> 2.678231293 | L83: ='Routine US101-S loc 104'!A83 -> 2019-10-16T06:45:00 | M83: ='Routine US101-S loc 104'!B83 -> 4.8 | N83: ='Routine US101-S loc 104'!C83 -> 138 | O83: ='Routine US101-S loc 104'!D83 -> 66.5 | P83: ='Routine US101-S loc 104'!E83 -> 2 | Q83: ='Routine US101-S loc 104'!F83 -> 100 | R83: ='Routine US101-S loc 104'!G83 -> 17.24081633 | S83: ='Routine US101-S loc 104'!H83 -> 828 | T83: ='Routine US101-S loc 104'!I83 -> 107.02159 | U83: ='Routine US101-S loc 104'!J83 -> 10.71292517 | W83: ='Evac US101-N loc 78'!L11 -> 2019-10-23T09:00:00 | X83: ='Evac US101-N loc 78'!M11 -> 7.9 | Y83: ='Evac US101-N loc 78'!N11 -> 2554 | Z83: ='Evac US101-N loc 78'!O11 -> 57.2 | AA83: ='Evac US101-N loc 78'!P11 -> 36 | AB83: ='Evac US101-N loc 78'!Q11 -> 0 | AC83: ='Evac US101-N loc 78'!R11 -> 28.3755102 | AD83: ='Evac US101-N loc 78'!S11 -> 851.3333333 | AE83: ='Evac US101-N loc 78'!T11 -> 92.05466091 | AF83: ='Evac US101-N loc 78'!U11 -> 17.63168934 | AH83: ='Routine US101-S Hopper Ave 2'!L11 -> 2019-10-21T09:00:00 | AI83: ='Routine US101-S Hopper Ave 2'!M11 -> 5.5 | AJ83: ='Routine US101-S Hopper Ave 2'!N11 -> 2301 | AK83: ='Routine US101-S Hopper Ave 2'!O11 -> 62.4 | AL83: ='Routine US101-S Hopper Ave 2'!P11 -> 36 | AM83: ='Routine US101-S Hopper Ave 2'!Q11 -> 100 | AN83: ='Routine US101-S Hopper Ave 2'!R11 -> 19.75510204 | AO83: ='Routine US101-S Hopper Ave 2'!S11 -> 767 | AP83: ='Routine US101-S Hopper Ave 2'!T11 -> 100.4232664 | AQ83: ='Routine US101-S Hopper Ave 2'!U11 -> 12.27522676 | AS83: =Theoretical!A83 -> 81 | AT83: =Theoretical!B83 -> 17.98165138 | AU83: =Theoretical!C83 -> 1 | AV83: =Theoretical!D83 -> 1456.513761 | AW83: =Theoretical!E83 -> 50.33096591 | AX83: =Theoretical!F83 -> 28.93872063
A84: ='Evac US101-S loc 104'!A84 -> 2019-10-26T06:50:00 | B84: ='Evac US101-S loc 104'!B84 -> 1.3 | C84: ='Evac US101-S loc 104'!C84 -> 42 | D84: ='Evac US101-S loc 104'!D84 -> 67.4 | E84: ='Evac US101-S loc 104'!E84 -> 2 | F84: ='Evac US101-S loc 104'!F84 -> 100 | G84: ='Evac US101-S loc 104'!G84 -> 4.669387755 | H84: ='Evac US101-S loc 104'!H84 -> 252 | I84: ='Evac US101-S loc 104'!I84 -> 108.4700025 | J84: ='Evac US101-S loc 104'!J84 -> 2.901417234 | L84: ='Routine US101-S loc 104'!A84 -> 2019-10-16T06:50:00 | M84: ='Routine US101-S loc 104'!B84 -> 5.3 | N84: ='Routine US101-S loc 104'!C84 -> 163 | O84: ='Routine US101-S loc 104'!D84 -> 67.5 | P84: ='Routine US101-S loc 104'!E84 -> 2 | Q84: ='Routine US101-S loc 104'!F84 -> 100 | R84: ='Routine US101-S loc 104'!G84 -> 19.03673469 | S84: ='Routine US101-S loc 104'!H84 -> 978 | T84: ='Routine US101-S loc 104'!I84 -> 108.6309373 | U84: ='Routine US101-S loc 104'!J84 -> 11.82885488 | W84: ='Evac US101-N loc 78'!L12 -> 2019-10-23T10:00:00 | X84: ='Evac US101-N loc 78'!M12 -> 8 | Y84: ='Evac US101-N loc 78'!N12 -> 2771 | Z84: ='Evac US101-N loc 78'!O12 -> 58.4 | AA84: ='Evac US101-N loc 78'!P12 -> 36 | AB84: ='Evac US101-N loc 78'!Q12 -> 0 | AC84: ='Evac US101-N loc 78'!R12 -> 28.73469388 | AD84: ='Evac US101-N loc 78'!S12 -> 923.6666667 | AE84: ='Evac US101-N loc 78'!T12 -> 93.98587757 | AF84: ='Evac US101-N loc 78'!U12 -> 17.85487528 | AH84: ='Routine US101-S Hopper Ave 2'!L12 -> 2019-10-21T10:00:00 | AI84: ='Routine US101-S Hopper Ave 2'!M12 -> 5.6 | AJ84: ='Routine US101-S Hopper Ave 2'!N12 -> 2327 | AK84: ='Routine US101-S Hopper Ave 2'!O12 -> 64.5 | AL84: ='Routine US101-S Hopper Ave 2'!P12 -> 36 | AM84: ='Routine US101-S Hopper Ave 2'!Q12 -> 100 | AN84: ='Routine US101-S Hopper Ave 2'!R12 -> 20.11428571 | AO84: ='Routine US101-S Hopper Ave 2'!S12 -> 775.6666667 | AP84: ='Routine US101-S Hopper Ave 2'!T12 -> 103.8028956 | AQ84: ='Routine US101-S Hopper Ave 2'!U12 -> 12.4984127 | AS84: =Theoretical!A84 -> 82 | AT84: =Theoretical!B84 -> 17.33944954 | AU84: =Theoretical!C84 -> 1 | AV84: =Theoretical!D84 -> 1421.834862 | AW84: =Theoretical!E84 -> 50.95233586 | AX84: =Theoretical!F84 -> 27.90519489
A85: ='Evac US101-S loc 104'!A85 -> 2019-10-26T06:55:00 | B85: ='Evac US101-S loc 104'!B85 -> 1.7 | C85: ='Evac US101-S loc 104'!C85 -> 45 | D85: ='Evac US101-S loc 104'!D85 -> 67.1 | E85: ='Evac US101-S loc 104'!E85 -> 2 | F85: ='Evac US101-S loc 104'!F85 -> 100 | G85: ='Evac US101-S loc 104'!G85 -> 6.106122449 | H85: ='Evac US101-S loc 104'!H85 -> 270 | I85: ='Evac US101-S loc 104'!I85 -> 107.9871984 | J85: ='Evac US101-S loc 104'!J85 -> 3.794160998 | L85: ='Routine US101-S loc 104'!A85 -> 2019-10-16T06:55:00 | M85: ='Routine US101-S loc 104'!B85 -> 4.3 | N85: ='Routine US101-S loc 104'!C85 -> 121 | O85: ='Routine US101-S loc 104'!D85 -> 65.7 | P85: ='Routine US101-S loc 104'!E85 -> 2 | Q85: ='Routine US101-S loc 104'!F85 -> 100 | R85: ='Routine US101-S loc 104'!G85 -> 15.44489796 | S85: ='Routine US101-S loc 104'!H85 -> 726 | T85: ='Routine US101-S loc 104'!I85 -> 105.7341123 | U85: ='Routine US101-S loc 104'!J85 -> 9.596995465 | W85: ='Evac US101-N loc 78'!L13 -> 2019-10-23T11:00:00 | X85: ='Evac US101-N loc 78'!M13 -> 8.4 | Y85: ='Evac US101-N loc 78'!N13 -> 3049 | Z85: ='Evac US101-N loc 78'!O13 -> 58.6 | AA85: ='Evac US101-N loc 78'!P13 -> 36 | AB85: ='Evac US101-N loc 78'!Q13 -> 0 | AC85: ='Evac US101-N loc 78'!R13 -> 30.17142857 | AD85: ='Evac US101-N loc 78'!S13 -> 1016.333333 | AE85: ='Evac US101-N loc 78'!T13 -> 94.30774702 | AF85: ='Evac US101-N loc 78'!U13 -> 18.74761905 | AH85: ='Routine US101-S Hopper Ave 2'!L13 -> 2019-10-21T11:00:00 | AI85: ='Routine US101-S Hopper Ave 2'!M13 -> 5.4 | AJ85: ='Routine US101-S Hopper Ave 2'!N13 -> 2230 | AK85: ='Routine US101-S Hopper Ave 2'!O13 -> 65.1 | AL85: ='Routine US101-S Hopper Ave 2'!P13 -> 36 | AM85: ='Routine US101-S Hopper Ave 2'!Q13 -> 100 | AN85: ='Routine US101-S Hopper Ave 2'!R13 -> 19.39591837 | AO85: ='Routine US101-S Hopper Ave 2'!S13 -> 743.3333333 | AP85: ='Routine US101-S Hopper Ave 2'!T13 -> 104.7685039 | AQ85: ='Routine US101-S Hopper Ave 2'!U13 -> 12.05204082 | AS85: =Theoretical!A85 -> 83 | AT85: =Theoretical!B85 -> 16.69724771 | AU85: =Theoretical!C85 -> 1 | AV85: =Theoretical!D85 -> 1385.87156 | AW85: =Theoretical!E85 -> 51.57370581 | AX85: =Theoretical!F85 -> 26.87166916
A86: ='Evac US101-S loc 104'!A86 -> 2019-10-26T07:00:00 | B86: ='Evac US101-S loc 104'!B86 -> 1.5 | C86: ='Evac US101-S loc 104'!C86 -> 38 | D86: ='Evac US101-S loc 104'!D86 -> 65.7 | E86: ='Evac US101-S loc 104'!E86 -> 2 | F86: ='Evac US101-S loc 104'!F86 -> 100 | G86: ='Evac US101-S loc 104'!G86 -> 5.387755102 | H86: ='Evac US101-S loc 104'!H86 -> 228 | I86: ='Evac US101-S loc 104'!I86 -> 105.7341123 | J86: ='Evac US101-S loc 104'!J86 -> 3.347789116 | L86: ='Routine US101-S loc 104'!A86 -> 2019-10-16T07:00:00 | M86: ='Routine US101-S loc 104'!B86 -> 4.2 | N86: ='Routine US101-S loc 104'!C86 -> 112 | O86: ='Routine US101-S loc 104'!D86 -> 64.4 | P86: ='Routine US101-S loc 104'!E86 -> 2 | Q86: ='Routine US101-S loc 104'!F86 -> 100 | R86: ='Routine US101-S loc 104'!G86 -> 15.08571429 | S86: ='Routine US101-S loc 104'!H86 -> 672 | T86: ='Routine US101-S loc 104'!I86 -> 103.6419609 | U86: ='Routine US101-S loc 104'!J86 -> 9.373809524 | W86: ='Evac US101-N loc 78'!L14 -> 2019-10-23T12:00:00 | X86: ='Evac US101-N loc 78'!M14 -> 8.4 | Y86: ='Evac US101-N loc 78'!N14 -> 3147 | Z86: ='Evac US101-N loc 78'!O14 -> 59.6 | AA86: ='Evac US101-N loc 78'!P14 -> 36 | AB86: ='Evac US101-N loc 78'!Q14 -> 0 | AC86: ='Evac US101-N loc 78'!R14 -> 30.17142857 | AD86: ='Evac US101-N loc 78'!S14 -> 1049 | AE86: ='Evac US101-N loc 78'!T14 -> 95.91709423 | AF86: ='Evac US101-N loc 78'!U14 -> 18.74761905 | AH86: ='Routine US101-S Hopper Ave 2'!L14 -> 2019-10-21T12:00:00 | AI86: ='Routine US101-S Hopper Ave 2'!M14 -> 5.2 | AJ86: ='Routine US101-S Hopper Ave 2'!N14 -> 2183 | AK86: ='Routine US101-S Hopper Ave 2'!O14 -> 65 | AL86: ='Routine US101-S Hopper Ave 2'!P14 -> 36 | AM86: ='Routine US101-S Hopper Ave 2'!Q14 -> 100 | AN86: ='Routine US101-S Hopper Ave 2'!R14 -> 18.67755102 | AO86: ='Routine US101-S Hopper Ave 2'!S14 -> 727.6666667 | AP86: ='Routine US101-S Hopper Ave 2'!T14 -> 104.6075692 | AQ86: ='Routine US101-S Hopper Ave 2'!U14 -> 11.60566893 | AS86: =Theoretical!A86 -> 84 | AT86: =Theoretical!B86 -> 16.05504587 | AU86: =Theoretical!C86 -> 1 | AV86: =Theoretical!D86 -> 1348.623853 | AW86: =Theoretical!E86 -> 52.19507576 | AX86: =Theoretical!F86 -> 25.83814342
A87: ='Evac US101-S loc 104'!A87 -> 2019-10-26T07:05:00 | B87: ='Evac US101-S loc 104'!B87 -> 1.9 | C87: ='Evac US101-S loc 104'!C87 -> 55 | D87: ='Evac US101-S loc 104'!D87 -> 66.2 | E87: ='Evac US101-S loc 104'!E87 -> 2 | F87: ='Evac US101-S loc 104'!F87 -> 100 | G87: ='Evac US101-S loc 104'!G87 -> 6.824489796 | H87: ='Evac US101-S loc 104'!H87 -> 330 | I87: ='Evac US101-S loc 104'!I87 -> 106.5387859 | J87: ='Evac US101-S loc 104'!J87 -> 4.24053288 | L87: ='Routine US101-S loc 104'!A87 -> 2019-10-16T07:05:00 | M87: ='Routine US101-S loc 104'!B87 -> 4.2 | N87: ='Routine US101-S loc 104'!C87 -> 130 | O87: ='Routine US101-S loc 104'!D87 -> 66.8 | P87: ='Routine US101-S loc 104'!E87 -> 2 | Q87: ='Routine US101-S loc 104'!F87 -> 100 | R87: ='Routine US101-S loc 104'!G87 -> 15.08571429 | S87: ='Routine US101-S loc 104'!H87 -> 780 | T87: ='Routine US101-S loc 104'!I87 -> 107.5043942 | U87: ='Routine US101-S loc 104'!J87 -> 9.373809524 | W87: ='Evac US101-N loc 78'!L15 -> 2019-10-23T13:00:00 | X87: ='Evac US101-N loc 78'!M15 -> 8 | Y87: ='Evac US101-N loc 78'!N15 -> 2947 | Z87: ='Evac US101-N loc 78'!O15 -> 60.5 | AA87: ='Evac US101-N loc 78'!P15 -> 36 | AB87: ='Evac US101-N loc 78'!Q15 -> 0 | AC87: ='Evac US101-N loc 78'!R15 -> 28.73469388 | AD87: ='Evac US101-N loc 78'!S15 -> 982.3333333 | AE87: ='Evac US101-N loc 78'!T15 -> 97.36550673 | AF87: ='Evac US101-N loc 78'!U15 -> 17.85487528 | AH87: ='Routine US101-S Hopper Ave 2'!L15 -> 2019-10-21T13:00:00 | AI87: ='Routine US101-S Hopper Ave 2'!M15 -> 5.6 | AJ87: ='Routine US101-S Hopper Ave 2'!N15 -> 2329 | AK87: ='Routine US101-S Hopper Ave 2'!O15 -> 65.3 | AL87: ='Routine US101-S Hopper Ave 2'!P15 -> 36 | AM87: ='Routine US101-S Hopper Ave 2'!Q15 -> 100 | AN87: ='Routine US101-S Hopper Ave 2'!R15 -> 20.11428571 | AO87: ='Routine US101-S Hopper Ave 2'!S15 -> 776.3333333 | AP87: ='Routine US101-S Hopper Ave 2'!T15 -> 105.0903734 | AQ87: ='Routine US101-S Hopper Ave 2'!U15 -> 12.4984127 | AS87: =Theoretical!A87 -> 85 | AT87: =Theoretical!B87 -> 15.41284404 | AU87: =Theoretical!C87 -> 1 | AV87: =Theoretical!D87 -> 1310.091743 | AW87: =Theoretical!E87 -> 52.81644571 | AX87: =Theoretical!F87 -> 24.80461768
A88: ='Evac US101-S loc 104'!A88 -> 2019-10-26T07:10:00 | B88: ='Evac US101-S loc 104'!B88 -> 1.8 | C88: ='Evac US101-S loc 104'!C88 -> 59 | D88: ='Evac US101-S loc 104'!D88 -> 67.8 | E88: ='Evac US101-S loc 104'!E88 -> 2 | F88: ='Evac US101-S loc 104'!F88 -> 100 | G88: ='Evac US101-S loc 104'!G88 -> 6.465306122 | H88: ='Evac US101-S loc 104'!H88 -> 354 | I88: ='Evac US101-S loc 104'!I88 -> 109.1137414 | J88: ='Evac US101-S loc 104'!J88 -> 4.017346939 | L88: ='Routine US101-S loc 104'!A88 -> 2019-10-16T07:10:00 | M88: ='Routine US101-S loc 104'!B88 -> 5 | N88: ='Routine US101-S loc 104'!C88 -> 146 | O88: ='Routine US101-S loc 104'!D88 -> 67 | P88: ='Routine US101-S loc 104'!E88 -> 2 | Q88: ='Routine US101-S loc 104'!F88 -> 100 | R88: ='Routine US101-S loc 104'!G88 -> 17.95918367 | S88: ='Routine US101-S loc 104'!H88 -> 876 | T88: ='Routine US101-S loc 104'!I88 -> 107.8262637 | U88: ='Routine US101-S loc 104'!J88 -> 11.15929705 | W88: ='Evac US101-N loc 78'!L16 -> 2019-10-23T14:00:00 | X88: ='Evac US101-N loc 78'!M16 -> 8.5 | Y88: ='Evac US101-N loc 78'!N16 -> 3259 | Z88: ='Evac US101-N loc 78'!O16 -> 60.5 | AA88: ='Evac US101-N loc 78'!P16 -> 36 | AB88: ='Evac US101-N loc 78'!Q16 -> 0 | AC88: ='Evac US101-N loc 78'!R16 -> 30.53061224 | AD88: ='Evac US101-N loc 78'!S16 -> 1086.333333 | AE88: ='Evac US101-N loc 78'!T16 -> 97.36550673 | AF88: ='Evac US101-N loc 78'!U16 -> 18.97080499 | AH88: ='Routine US101-S Hopper Ave 2'!L16 -> 2019-10-21T14:00:00 | AI88: ='Routine US101-S Hopper Ave 2'!M16 -> 6.7 | AJ88: ='Routine US101-S Hopper Ave 2'!N16 -> 2791 | AK88: ='Routine US101-S Hopper Ave 2'!O16 -> 63 | AL88: ='Routine US101-S Hopper Ave 2'!P16 -> 36 | AM88: ='Routine US101-S Hopper Ave 2'!Q16 -> 100 | AN88: ='Routine US101-S Hopper Ave 2'!R16 -> 24.06530612 | AO88: ='Routine US101-S Hopper Ave 2'!S16 -> 930.3333333 | AP88: ='Routine US101-S Hopper Ave 2'!T16 -> 101.3888748 | AQ88: ='Routine US101-S Hopper Ave 2'!U16 -> 14.95345805 | AS88: =Theoretical!A88 -> 86 | AT88: =Theoretical!B88 -> 14.7706422 | AU88: =Theoretical!C88 -> 1 | AV88: =Theoretical!D88 -> 1270.275229 | AW88: =Theoretical!E88 -> 53.43781566 | AX88: =Theoretical!F88 -> 23.77109195
A89: ='Evac US101-S loc 104'!A89 -> 2019-10-26T07:15:00 | B89: ='Evac US101-S loc 104'!B89 -> 1.8 | C89: ='Evac US101-S loc 104'!C89 -> 55 | D89: ='Evac US101-S loc 104'!D89 -> 67.1 | E89: ='Evac US101-S loc 104'!E89 -> 2 | F89: ='Evac US101-S loc 104'!F89 -> 100 | G89: ='Evac US101-S loc 104'!G89 -> 6.465306122 | H89: ='Evac US101-S loc 104'!H89 -> 330 | I89: ='Evac US101-S loc 104'!I89 -> 107.9871984 | J89: ='Evac US101-S loc 104'!J89 -> 4.017346939 | L89: ='Routine US101-S loc 104'!A89 -> 2019-10-16T07:15:00 | M89: ='Routine US101-S loc 104'!B89 -> 4.6 | N89: ='Routine US101-S loc 104'!C89 -> 139 | O89: ='Routine US101-S loc 104'!D89 -> 67.9 | P89: ='Routine US101-S loc 104'!E89 -> 2 | Q89: ='Routine US101-S loc 104'!F89 -> 100 | R89: ='Routine US101-S loc 104'!G89 -> 16.52244898 | S89: ='Routine US101-S loc 104'!H89 -> 834 | T89: ='Routine US101-S loc 104'!I89 -> 109.2746761 | U89: ='Routine US101-S loc 104'!J89 -> 10.26655329 | W89: ='Evac US101-N loc 78'!L17 -> 2019-10-23T15:00:00 | X89: ='Evac US101-N loc 78'!M17 -> 10.5 | Y89: ='Evac US101-N loc 78'!N17 -> 3585 | Z89: ='Evac US101-N loc 78'!O17 -> 55.9 | AA89: ='Evac US101-N loc 78'!P17 -> 36 | AB89: ='Evac US101-N loc 78'!Q17 -> 0 | AC89: ='Evac US101-N loc 78'!R17 -> 37.71428571 | AD89: ='Evac US101-N loc 78'!S17 -> 1195 | AE89: ='Evac US101-N loc 78'!T17 -> 89.96250953 | AF89: ='Evac US101-N loc 78'!U17 -> 23.43452381 | AH89: ='Routine US101-S Hopper Ave 2'!L17 -> 2019-10-21T15:00:00 | AI89: ='Routine US101-S Hopper Ave 2'!M17 -> 13.6 | AJ89: ='Routine US101-S Hopper Ave 2'!N17 -> 2515 | AK89: ='Routine US101-S Hopper Ave 2'!O17 -> 44.8 | AL89: ='Routine US101-S Hopper Ave 2'!P17 -> 36 | AM89: ='Routine US101-S Hopper Ave 2'!Q17 -> 100 | AN89: ='Routine US101-S Hopper Ave 2'!R17 -> 48.84897959 | AO89: ='Routine US101-S Hopper Ave 2'!S17 -> 838.3333333 | AP89: ='Routine US101-S Hopper Ave 2'!T17 -> 72.0987554 | AQ89: ='Routine US101-S Hopper Ave 2'!U17 -> 30.35328798 | AS89: =Theoretical!A89 -> 87 | AT89: =Theoretical!B89 -> 14.12844037 | AU89: =Theoretical!C89 -> 1 | AV89: =Theoretical!D89 -> 1229.174312 | AW89: =Theoretical!E89 -> 54.05918561 | AX89: =Theoretical!F89 -> 22.73756621
A90: ='Evac US101-S loc 104'!A90 -> 2019-10-26T07:20:00 | B90: ='Evac US101-S loc 104'!B90 -> 1.1 | C90: ='Evac US101-S loc 104'!C90 -> 35 | D90: ='Evac US101-S loc 104'!D90 -> 67.8 | E90: ='Evac US101-S loc 104'!E90 -> 2 | F90: ='Evac US101-S loc 104'!F90 -> 100 | G90: ='Evac US101-S loc 104'!G90 -> 3.951020408 | H90: ='Evac US101-S loc 104'!H90 -> 210 | I90: ='Evac US101-S loc 104'!I90 -> 109.1137414 | J90: ='Evac US101-S loc 104'!J90 -> 2.455045351 | L90: ='Routine US101-S loc 104'!A90 -> 2019-10-16T07:20:00 | M90: ='Routine US101-S loc 104'!B90 -> 5.1 | N90: ='Routine US101-S loc 104'!C90 -> 147 | O90: ='Routine US101-S loc 104'!D90 -> 67.4 | P90: ='Routine US101-S loc 104'!E90 -> 2 | Q90: ='Routine US101-S loc 104'!F90 -> 100 | R90: ='Routine US101-S loc 104'!G90 -> 18.31836735 | S90: ='Routine US101-S loc 104'!H90 -> 882 | T90: ='Routine US101-S loc 104'!I90 -> 108.4700025 | U90: ='Routine US101-S loc 104'!J90 -> 11.38248299 | W90: ='Evac US101-N loc 78'!L18 -> 2019-10-23T16:00:00 | X90: ='Evac US101-N loc 78'!M18 -> 14.2 | Y90: ='Evac US101-N loc 78'!N18 -> 3149 | Z90: ='Evac US101-N loc 78'!O18 -> 43.4 | AA90: ='Evac US101-N loc 78'!P18 -> 36 | AB90: ='Evac US101-N loc 78'!Q18 -> 0 | AC90: ='Evac US101-N loc 78'!R18 -> 51.00408163 | AD90: ='Evac US101-N loc 78'!S18 -> 1049.666667 | AE90: ='Evac US101-N loc 78'!T18 -> 69.84566929 | AF90: ='Evac US101-N loc 78'!U18 -> 31.69240363 | AH90: ='Routine US101-S Hopper Ave 2'!L18 -> 2019-10-21T16:00:00 | AI90: ='Routine US101-S Hopper Ave 2'!M18 -> 16.8 | AJ90: ='Routine US101-S Hopper Ave 2'!N18 -> 2605 | AK90: ='Routine US101-S Hopper Ave 2'!O18 -> 31.3 | AL90: ='Routine US101-S Hopper Ave 2'!P18 -> 36 | AM90: ='Routine US101-S Hopper Ave 2'!Q18 -> 100 | AN90: ='Routine US101-S Hopper Ave 2'!R18 -> 60.34285714 | AO90: ='Routine US101-S Hopper Ave 2'!S18 -> 868.3333333 | AP90: ='Routine US101-S Hopper Ave 2'!T18 -> 50.37256795 | AQ90: ='Routine US101-S Hopper Ave 2'!U18 -> 37.4952381 | AS90: =Theoretical!A90 -> 88 | AT90: =Theoretical!B90 -> 13.48623853 | AU90: =Theoretical!C90 -> 1 | AV90: =Theoretical!D90 -> 1186.788991 | AW90: =Theoretical!E90 -> 54.68055556 | AX90: =Theoretical!F90 -> 21.70404047
A91: ='Evac US101-S loc 104'!A91 -> 2019-10-26T07:25:00 | B91: ='Evac US101-S loc 104'!B91 -> 2.5 | C91: ='Evac US101-S loc 104'!C91 -> 71 | D91: ='Evac US101-S loc 104'!D91 -> 66.9 | E91: ='Evac US101-S loc 104'!E91 -> 2 | F91: ='Evac US101-S loc 104'!F91 -> 100 | G91: ='Evac US101-S loc 104'!G91 -> 8.979591837 | H91: ='Evac US101-S loc 104'!H91 -> 426 | I91: ='Evac US101-S loc 104'!I91 -> 107.6653289 | J91: ='Evac US101-S loc 104'!J91 -> 5.579648526 | L91: ='Routine US101-S loc 104'!A91 -> 2019-10-16T07:25:00 | M91: ='Routine US101-S loc 104'!B91 -> 5.1 | N91: ='Routine US101-S loc 104'!C91 -> 152 | O91: ='Routine US101-S loc 104'!D91 -> 68 | P91: ='Routine US101-S loc 104'!E91 -> 2 | Q91: ='Routine US101-S loc 104'!F91 -> 100 | R91: ='Routine US101-S loc 104'!G91 -> 18.31836735 | S91: ='Routine US101-S loc 104'!H91 -> 912 | T91: ='Routine US101-S loc 104'!I91 -> 109.4356109 | U91: ='Routine US101-S loc 104'!J91 -> 11.38248299 | W91: ='Evac US101-N loc 78'!L19 -> 2019-10-23T17:00:00 | X91: ='Evac US101-N loc 78'!M19 -> 17.6 | Y91: ='Evac US101-N loc 78'!N19 -> 3206 | Z91: ='Evac US101-N loc 78'!O19 -> 36.2 | AA91: ='Evac US101-N loc 78'!P19 -> 36 | AB91: ='Evac US101-N loc 78'!Q19 -> 0 | AC91: ='Evac US101-N loc 78'!R19 -> 63.21632653 | AD91: ='Evac US101-N loc 78'!S19 -> 1068.666667 | AE91: ='Evac US101-N loc 78'!T19 -> 58.25836932 | AF91: ='Evac US101-N loc 78'!U19 -> 39.28072562 | AH91: ='Routine US101-S Hopper Ave 2'!L19 -> 2019-10-21T17:00:00 | AI91: ='Routine US101-S Hopper Ave 2'!M19 -> 14.1 | AJ91: ='Routine US101-S Hopper Ave 2'!N19 -> 2453 | AK91: ='Routine US101-S Hopper Ave 2'!O19 -> 33.5 | AL91: ='Routine US101-S Hopper Ave 2'!P19 -> 36 | AM91: ='Routine US101-S Hopper Ave 2'!Q19 -> 100 | AN91: ='Routine US101-S Hopper Ave 2'!R19 -> 50.64489796 | AO91: ='Routine US101-S Hopper Ave 2'!S19 -> 817.6666667 | AP91: ='Routine US101-S Hopper Ave 2'!T19 -> 53.91313183 | AQ91: ='Routine US101-S Hopper Ave 2'!U19 -> 31.46921769 | AS91: =Theoretical!A91 -> 89 | AT91: =Theoretical!B91 -> 12.8440367 | AU91: =Theoretical!C91 -> 1 | AV91: =Theoretical!D91 -> 1143.119266 | AW91: =Theoretical!E91 -> 55.30192551 | AX91: =Theoretical!F91 -> 20.67051474
A92: ='Evac US101-S loc 104'!A92 -> 2019-10-26T07:30:00 | B92: ='Evac US101-S loc 104'!B92 -> 2.1 | C92: ='Evac US101-S loc 104'!C92 -> 64 | D92: ='Evac US101-S loc 104'!D92 -> 67.3 | E92: ='Evac US101-S loc 104'!E92 -> 2 | F92: ='Evac US101-S loc 104'!F92 -> 100 | G92: ='Evac US101-S loc 104'!G92 -> 7.542857143 | H92: ='Evac US101-S loc 104'!H92 -> 384 | I92: ='Evac US101-S loc 104'!I92 -> 108.3090678 | J92: ='Evac US101-S loc 104'!J92 -> 4.686904762 | L92: ='Routine US101-S loc 104'!A92 -> 2019-10-16T07:30:00 | M92: ='Routine US101-S loc 104'!B92 -> 6.4 | N92: ='Routine US101-S loc 104'!C92 -> 166 | O92: ='Routine US101-S loc 104'!D92 -> 65.9 | P92: ='Routine US101-S loc 104'!E92 -> 2 | Q92: ='Routine US101-S loc 104'!F92 -> 100 | R92: ='Routine US101-S loc 104'!G92 -> 22.9877551 | S92: ='Routine US101-S loc 104'!H92 -> 996 | T92: ='Routine US101-S loc 104'!I92 -> 106.0559817 | U92: ='Routine US101-S loc 104'!J92 -> 14.28390023 | W92: ='Evac US101-N loc 78'!L20 -> 2019-10-23T18:00:00 | X92: ='Evac US101-N loc 78'!M20 -> 10.8 | Y92: ='Evac US101-N loc 78'!N20 -> 3086 | Z92: ='Evac US101-N loc 78'!O20 -> 47.8 | AA92: ='Evac US101-N loc 78'!P20 -> 36 | AB92: ='Evac US101-N loc 78'!Q20 -> 0 | AC92: ='Evac US101-N loc 78'!R20 -> 38.79183673 | AD92: ='Evac US101-N loc 78'!S20 -> 1028.666667 | AE92: ='Evac US101-N loc 78'!T20 -> 76.92679705 | AF92: ='Evac US101-N loc 78'!U20 -> 24.10408163 | AH92: ='Routine US101-S Hopper Ave 2'!L20 -> 2019-10-21T18:00:00 | AI92: ='Routine US101-S Hopper Ave 2'!M20 -> 4.5 | AJ92: ='Routine US101-S Hopper Ave 2'!N20 -> 2074 | AK92: ='Routine US101-S Hopper Ave 2'!O20 -> 66 | AL92: ='Routine US101-S Hopper Ave 2'!P20 -> 36 | AM92: ='Routine US101-S Hopper Ave 2'!Q20 -> 100 | AN92: ='Routine US101-S Hopper Ave 2'!R20 -> 16.16326531 | AO92: ='Routine US101-S Hopper Ave 2'!S20 -> 691.3333333 | AP92: ='Routine US101-S Hopper Ave 2'!T20 -> 106.2169164 | AQ92: ='Routine US101-S Hopper Ave 2'!U20 -> 10.04336735 | AS92: =Theoretical!A92 -> 90 | AT92: =Theoretical!B92 -> 12.20183486 | AU92: =Theoretical!C92 -> 1 | AV92: =Theoretical!D92 -> 1098.165138 | AW92: =Theoretical!E92 -> 55.92329545 | AX92: =Theoretical!F92 -> 19.636989
A93: ='Evac US101-S loc 104'!A93 -> 2019-10-26T07:35:00 | B93: ='Evac US101-S loc 104'!B93 -> 2.4 | C93: ='Evac US101-S loc 104'!C93 -> 68 | D93: ='Evac US101-S loc 104'!D93 -> 66.1 | E93: ='Evac US101-S loc 104'!E93 -> 2 | F93: ='Evac US101-S loc 104'!F93 -> 100 | G93: ='Evac US101-S loc 104'!G93 -> 8.620408163 | H93: ='Evac US101-S loc 104'!H93 -> 408 | I93: ='Evac US101-S loc 104'!I93 -> 106.3778512 | J93: ='Evac US101-S loc 104'!J93 -> 5.356462585 | L93: ='Routine US101-S loc 104'!A93 -> 2019-10-16T07:35:00 | M93: ='Routine US101-S loc 104'!B93 -> 5.6 | N93: ='Routine US101-S loc 104'!C93 -> 154 | O93: ='Routine US101-S loc 104'!D93 -> 64.2 | P93: ='Routine US101-S loc 104'!E93 -> 2 | Q93: ='Routine US101-S loc 104'!F93 -> 100 | R93: ='Routine US101-S loc 104'!G93 -> 20.11428571 | S93: ='Routine US101-S loc 104'!H93 -> 924 | T93: ='Routine US101-S loc 104'!I93 -> 103.3200914 | U93: ='Routine US101-S loc 104'!J93 -> 12.4984127 | W93: ='Evac US101-N loc 78'!L21 -> 2019-10-23T19:00:00 | X93: ='Evac US101-N loc 78'!M21 -> 6.3 | Y93: ='Evac US101-N loc 78'!N21 -> 2490 | Z93: ='Evac US101-N loc 78'!O21 -> 64.1 | AA93: ='Evac US101-N loc 78'!P21 -> 36 | AB93: ='Evac US101-N loc 78'!Q21 -> 0 | AC93: ='Evac US101-N loc 78'!R21 -> 22.62857143 | AD93: ='Evac US101-N loc 78'!S21 -> 830 | AE93: ='Evac US101-N loc 78'!T21 -> 103.1591567 | AF93: ='Evac US101-N loc 78'!U21 -> 14.06071429 | AH93: ='Routine US101-S Hopper Ave 2'!L21 -> 2019-10-21T19:00:00 | AI93: ='Routine US101-S Hopper Ave 2'!M21 -> 3.6 | AJ93: ='Routine US101-S Hopper Ave 2'!N21 -> 1668 | AK93: ='Routine US101-S Hopper Ave 2'!O21 -> 68 | AL93: ='Routine US101-S Hopper Ave 2'!P21 -> 36 | AM93: ='Routine US101-S Hopper Ave 2'!Q21 -> 100 | AN93: ='Routine US101-S Hopper Ave 2'!R21 -> 12.93061224 | AO93: ='Routine US101-S Hopper Ave 2'!S21 -> 556 | AP93: ='Routine US101-S Hopper Ave 2'!T21 -> 109.4356109 | AQ93: ='Routine US101-S Hopper Ave 2'!U21 -> 8.034693878 | AS93: =Theoretical!A93 -> 91 | AT93: =Theoretical!B93 -> 11.55963303 | AU93: =Theoretical!C93 -> 1 | AV93: =Theoretical!D93 -> 1051.926606 | AW93: =Theoretical!E93 -> 56.5446654 | AX93: =Theoretical!F93 -> 18.60346326
A94: ='Evac US101-S loc 104'!A94 -> 2019-10-26T07:40:00 | B94: ='Evac US101-S loc 104'!B94 -> 2.3 | C94: ='Evac US101-S loc 104'!C94 -> 80 | D94: ='Evac US101-S loc 104'!D94 -> 69.1 | E94: ='Evac US101-S loc 104'!E94 -> 2 | F94: ='Evac US101-S loc 104'!F94 -> 100 | G94: ='Evac US101-S loc 104'!G94 -> 8.26122449 | H94: ='Evac US101-S loc 104'!H94 -> 480 | I94: ='Evac US101-S loc 104'!I94 -> 111.2058928 | J94: ='Evac US101-S loc 104'!J94 -> 5.133276644 | L94: ='Routine US101-S loc 104'!A94 -> 2019-10-16T07:40:00 | M94: ='Routine US101-S loc 104'!B94 -> 6.8 | N94: ='Routine US101-S loc 104'!C94 -> 196 | O94: ='Routine US101-S loc 104'!D94 -> 65.4 | P94: ='Routine US101-S loc 104'!E94 -> 2 | Q94: ='Routine US101-S loc 104'!F94 -> 100 | R94: ='Routine US101-S loc 104'!G94 -> 24.4244898 | S94: ='Routine US101-S loc 104'!H94 -> 1176 | T94: ='Routine US101-S loc 104'!I94 -> 105.2513081 | U94: ='Routine US101-S loc 104'!J94 -> 15.17664399 | W94: ='Evac US101-N loc 78'!L22 -> 2019-10-23T20:00:00 | X94: ='Evac US101-N loc 78'!M22 -> 5.6 | Y94: ='Evac US101-N loc 78'!N22 -> 2258 | Z94: ='Evac US101-N loc 78'!O22 -> 65.4 | AA94: ='Evac US101-N loc 78'!P22 -> 36 | AB94: ='Evac US101-N loc 78'!Q22 -> 0 | AC94: ='Evac US101-N loc 78'!R22 -> 20.11428571 | AD94: ='Evac US101-N loc 78'!S22 -> 752.6666667 | AE94: ='Evac US101-N loc 78'!T22 -> 105.2513081 | AF94: ='Evac US101-N loc 78'!U22 -> 12.4984127 | AH94: ='Routine US101-S Hopper Ave 2'!L22 -> 2019-10-21T20:00:00 | AI94: ='Routine US101-S Hopper Ave 2'!M22 -> 2.5 | AJ94: ='Routine US101-S Hopper Ave 2'!N22 -> 1160 | AK94: ='Routine US101-S Hopper Ave 2'!O22 -> 67.8 | AL94: ='Routine US101-S Hopper Ave 2'!P22 -> 36 | AM94: ='Routine US101-S Hopper Ave 2'!Q22 -> 100 | AN94: ='Routine US101-S Hopper Ave 2'!R22 -> 8.979591837 | AO94: ='Routine US101-S Hopper Ave 2'!S22 -> 386.6666667 | AP94: ='Routine US101-S Hopper Ave 2'!T22 -> 109.1137414 | AQ94: ='Routine US101-S Hopper Ave 2'!U22 -> 5.579648526 | AS94: =Theoretical!A94 -> 92 | AT94: =Theoretical!B94 -> 10.91743119 | AU94: =Theoretical!C94 -> 1 | AV94: =Theoretical!D94 -> 1004.40367 | AW94: =Theoretical!E94 -> 57.16603535 | AX94: =Theoretical!F94 -> 17.56993753
A95: ='Evac US101-S loc 104'!A95 -> 2019-10-26T07:45:00 | B95: ='Evac US101-S loc 104'!B95 -> 2.8 | C95: ='Evac US101-S loc 104'!C95 -> 81 | D95: ='Evac US101-S loc 104'!D95 -> 65.7 | E95: ='Evac US101-S loc 104'!E95 -> 2 | F95: ='Evac US101-S loc 104'!F95 -> 0 | G95: ='Evac US101-S loc 104'!G95 -> 10.05714286 | H95: ='Evac US101-S loc 104'!H95 -> 486 | I95: ='Evac US101-S loc 104'!I95 -> 105.7341123 | J95: ='Evac US101-S loc 104'!J95 -> 6.249206349 | L95: ='Routine US101-S loc 104'!A95 -> 2019-10-16T07:45:00 | M95: ='Routine US101-S loc 104'!B95 -> 6.5 | N95: ='Routine US101-S loc 104'!C95 -> 178 | O95: ='Routine US101-S loc 104'!D95 -> 64.7 | P95: ='Routine US101-S loc 104'!E95 -> 2 | Q95: ='Routine US101-S loc 104'!F95 -> 100 | R95: ='Routine US101-S loc 104'!G95 -> 23.34693878 | S95: ='Routine US101-S loc 104'!H95 -> 1068 | T95: ='Routine US101-S loc 104'!I95 -> 104.124765 | U95: ='Routine US101-S loc 104'!J95 -> 14.50708617 | W95: ='Evac US101-N loc 78'!L23 -> 2019-10-23T21:00:00 | X95: ='Evac US101-N loc 78'!M23 -> 5 | Y95: ='Evac US101-N loc 78'!N23 -> 1974 | Z95: ='Evac US101-N loc 78'!O23 -> 65.1 | AA95: ='Evac US101-N loc 78'!P23 -> 36 | AB95: ='Evac US101-N loc 78'!Q23 -> 0 | AC95: ='Evac US101-N loc 78'!R23 -> 17.95918367 | AD95: ='Evac US101-N loc 78'!S23 -> 658 | AE95: ='Evac US101-N loc 78'!T23 -> 104.7685039 | AF95: ='Evac US101-N loc 78'!U23 -> 11.15929705 | AH95: ='Routine US101-S Hopper Ave 2'!L23 -> 2019-10-21T21:00:00 | AI95: ='Routine US101-S Hopper Ave 2'!M23 -> 1.8 | AJ95: ='Routine US101-S Hopper Ave 2'!N23 -> 854 | AK95: ='Routine US101-S Hopper Ave 2'!O23 -> 67.7 | AL95: ='Routine US101-S Hopper Ave 2'!P23 -> 36 | AM95: ='Routine US101-S Hopper Ave 2'!Q23 -> 100 | AN95: ='Routine US101-S Hopper Ave 2'!R23 -> 6.465306122 | AO95: ='Routine US101-S Hopper Ave 2'!S23 -> 284.6666667 | AP95: ='Routine US101-S Hopper Ave 2'!T23 -> 108.9528067 | AQ95: ='Routine US101-S Hopper Ave 2'!U23 -> 4.017346939 | AS95: =Theoretical!A95 -> 93 | AT95: =Theoretical!B95 -> 10.27522936 | AU95: =Theoretical!C95 -> 1 | AV95: =Theoretical!D95 -> 955.5963303 | AW95: =Theoretical!E95 -> 57.7874053 | AX95: =Theoretical!F95 -> 16.53641179
A96: ='Evac US101-S loc 104'!A96 -> 2019-10-26T07:50:00 | B96: ='Evac US101-S loc 104'!B96 -> 2.3 | C96: ='Evac US101-S loc 104'!C96 -> 72 | D96: ='Evac US101-S loc 104'!D96 -> 66.4 | E96: ='Evac US101-S loc 104'!E96 -> 2 | F96: ='Evac US101-S loc 104'!F96 -> 0 | G96: ='Evac US101-S loc 104'!G96 -> 8.26122449 | H96: ='Evac US101-S loc 104'!H96 -> 432 | I96: ='Evac US101-S loc 104'!I96 -> 106.8606553 | J96: ='Evac US101-S loc 104'!J96 -> 5.133276644 | L96: ='Routine US101-S loc 104'!A96 -> 2019-10-16T07:50:00 | M96: ='Routine US101-S loc 104'!B96 -> 7.9 | N96: ='Routine US101-S loc 104'!C96 -> 219 | O96: ='Routine US101-S loc 104'!D96 -> 64.2 | P96: ='Routine US101-S loc 104'!E96 -> 2 | Q96: ='Routine US101-S loc 104'!F96 -> 100 | R96: ='Routine US101-S loc 104'!G96 -> 28.3755102 | S96: ='Routine US101-S loc 104'!H96 -> 1314 | T96: ='Routine US101-S loc 104'!I96 -> 103.3200914 | U96: ='Routine US101-S loc 104'!J96 -> 17.63168934 | W96: ='Evac US101-N loc 78'!L24 -> 2019-10-23T22:00:00 | X96: ='Evac US101-N loc 78'!M24 -> 4.5 | Y96: ='Evac US101-N loc 78'!N24 -> 1657 | Z96: ='Evac US101-N loc 78'!O24 -> 64.5 | AA96: ='Evac US101-N loc 78'!P24 -> 36 | AB96: ='Evac US101-N loc 78'!Q24 -> 0 | AC96: ='Evac US101-N loc 78'!R24 -> 16.16326531 | AD96: ='Evac US101-N loc 78'!S24 -> 552.3333333 | AE96: ='Evac US101-N loc 78'!T24 -> 103.8028956 | AF96: ='Evac US101-N loc 78'!U24 -> 10.04336735 | AH96: ='Routine US101-S Hopper Ave 2'!L24 -> 2019-10-21T22:00:00 | AI96: ='Routine US101-S Hopper Ave 2'!M24 -> 1.4 | AJ96: ='Routine US101-S Hopper Ave 2'!N24 -> 655 | AK96: ='Routine US101-S Hopper Ave 2'!O24 -> 67 | AL96: ='Routine US101-S Hopper Ave 2'!P24 -> 36 | AM96: ='Routine US101-S Hopper Ave 2'!Q24 -> 100 | AN96: ='Routine US101-S Hopper Ave 2'!R24 -> 5.028571429 | AO96: ='Routine US101-S Hopper Ave 2'!S24 -> 218.3333333 | AP96: ='Routine US101-S Hopper Ave 2'!T24 -> 107.8262637 | AQ96: ='Routine US101-S Hopper Ave 2'!U24 -> 3.124603175 | AS96: =Theoretical!A96 -> 94 | AT96: =Theoretical!B96 -> 9.633027523 | AU96: =Theoretical!C96 -> 1 | AV96: =Theoretical!D96 -> 905.5045872 | AW96: =Theoretical!E96 -> 58.40877525 | AX96: =Theoretical!F96 -> 15.50288605
A97: ='Evac US101-S loc 104'!A97 -> 2019-10-26T07:55:00 | B97: ='Evac US101-S loc 104'!B97 -> 2.8 | C97: ='Evac US101-S loc 104'!C97 -> 76 | D97: ='Evac US101-S loc 104'!D97 -> 65 | E97: ='Evac US101-S loc 104'!E97 -> 2 | F97: ='Evac US101-S loc 104'!F97 -> 0 | G97: ='Evac US101-S loc 104'!G97 -> 10.05714286 | H97: ='Evac US101-S loc 104'!H97 -> 456 | I97: ='Evac US101-S loc 104'!I97 -> 104.6075692 | J97: ='Evac US101-S loc 104'!J97 -> 6.249206349 | L97: ='Routine US101-S loc 104'!A97 -> 2019-10-16T07:55:00 | M97: ='Routine US101-S loc 104'!B97 -> 5.4 | N97: ='Routine US101-S loc 104'!C97 -> 152 | O97: ='Routine US101-S loc 104'!D97 -> 64.3 | P97: ='Routine US101-S loc 104'!E97 -> 2 | Q97: ='Routine US101-S loc 104'!F97 -> 100 | R97: ='Routine US101-S loc 104'!G97 -> 19.39591837 | S97: ='Routine US101-S loc 104'!H97 -> 912 | T97: ='Routine US101-S loc 104'!I97 -> 103.4810262 | U97: ='Routine US101-S loc 104'!J97 -> 12.05204082 | W97: ='Evac US101-N loc 78'!L25 -> 2019-10-23T23:00:00 | X97: ='Evac US101-N loc 78'!M25 -> 4 | Y97: ='Evac US101-N loc 78'!N25 -> 1377 | Z97: ='Evac US101-N loc 78'!O25 -> 64.1 | AA97: ='Evac US101-N loc 78'!P25 -> 36 | AB97: ='Evac US101-N loc 78'!Q25 -> 0 | AC97: ='Evac US101-N loc 78'!R25 -> 14.36734694 | AD97: ='Evac US101-N loc 78'!S25 -> 459 | AE97: ='Evac US101-N loc 78'!T25 -> 103.1591567 | AF97: ='Evac US101-N loc 78'!U25 -> 8.927437642 | AH97: ='Routine US101-S Hopper Ave 2'!L25 -> 2019-10-21T23:00:00 | AI97: ='Routine US101-S Hopper Ave 2'!M25 -> 0.9 | AJ97: ='Routine US101-S Hopper Ave 2'!N25 -> 436 | AK97: ='Routine US101-S Hopper Ave 2'!O25 -> 66.9 | AL97: ='Routine US101-S Hopper Ave 2'!P25 -> 36 | AM97: ='Routine US101-S Hopper Ave 2'!Q25 -> 100 | AN97: ='Routine US101-S Hopper Ave 2'!R25 -> 3.232653061 | AO97: ='Routine US101-S Hopper Ave 2'!S25 -> 145.3333333 | AP97: ='Routine US101-S Hopper Ave 2'!T25 -> 107.6653289 | AQ97: ='Routine US101-S Hopper Ave 2'!U25 -> 2.008673469 | AS97: =Theoretical!A97 -> 95 | AT97: =Theoretical!B97 -> 8.990825688 | AU97: =Theoretical!C97 -> 1 | AV97: =Theoretical!D97 -> 854.1284404 | AW97: =Theoretical!E97 -> 59.0301452 | AX97: =Theoretical!F97 -> 14.46936031
A98: ='Evac US101-S loc 104'!A98 -> 2019-10-26T08:00:00 | B98: ='Evac US101-S loc 104'!B98 -> 2.1 | C98: ='Evac US101-S loc 104'!C98 -> 61 | D98: ='Evac US101-S loc 104'!D98 -> 65.6 | E98: ='Evac US101-S loc 104'!E98 -> 2 | F98: ='Evac US101-S loc 104'!F98 -> 0 | G98: ='Evac US101-S loc 104'!G98 -> 7.542857143 | H98: ='Evac US101-S loc 104'!H98 -> 366 | I98: ='Evac US101-S loc 104'!I98 -> 105.5731775 | J98: ='Evac US101-S loc 104'!J98 -> 4.686904762 | L98: ='Routine US101-S loc 104'!A98 -> 2019-10-16T08:00:00 | M98: ='Routine US101-S loc 104'!B98 -> 7.8 | N98: ='Routine US101-S loc 104'!C98 -> 218 | O98: ='Routine US101-S loc 104'!D98 -> 63.3 | P98: ='Routine US101-S loc 104'!E98 -> 2 | Q98: ='Routine US101-S loc 104'!F98 -> 100 | R98: ='Routine US101-S loc 104'!G98 -> 28.01632653 | S98: ='Routine US101-S loc 104'!H98 -> 1308 | T98: ='Routine US101-S loc 104'!I98 -> 101.8716789 | U98: ='Routine US101-S loc 104'!J98 -> 17.4085034 | W98: ='Evac US101-S loc 78'!L2 -> 2019-10-27 | X98: ='Evac US101-S loc 78'!M2 -> 4.7 | Y98: ='Evac US101-S loc 78'!N2 -> 1903 | Z98: ='Evac US101-S loc 78'!O2 -> 62.5 | AA98: ='Evac US101-S loc 78'!P2 -> 36 | AB98: ='Evac US101-S loc 78'!Q2 -> 0 | AC98: ='Evac US101-S loc 78'!R2 -> 16.88163265 | AD98: ='Evac US101-S loc 78'!S2 -> 634.3333333 | AE98: ='Evac US101-S loc 78'!T2 -> 100.5842012 | AF98: ='Evac US101-S loc 78'!U2 -> 10.48973923 | AH98: ='Routine US101-S Hopper Ave 2'!L26 -> 2019-10-22 | AI98: ='Routine US101-S Hopper Ave 2'!M26 -> 0.6 | AJ98: ='Routine US101-S Hopper Ave 2'!N26 -> 230 | AK98: ='Routine US101-S Hopper Ave 2'!O26 -> 66.3 | AL98: ='Routine US101-S Hopper Ave 2'!P26 -> 36 | AM98: ='Routine US101-S Hopper Ave 2'!Q26 -> 100 | AN98: ='Routine US101-S Hopper Ave 2'!R26 -> 2.155102041 | AO98: ='Routine US101-S Hopper Ave 2'!S26 -> 76.66666667 | AP98: ='Routine US101-S Hopper Ave 2'!T26 -> 106.6997206 | AQ98: ='Routine US101-S Hopper Ave 2'!U26 -> 1.339115646 | AS98: =Theoretical!A98 -> 96 | AT98: =Theoretical!B98 -> 8.348623853 | AU98: =Theoretical!C98 -> 1 | AV98: =Theoretical!D98 -> 801.4678899 | AW98: =Theoretical!E98 -> 59.65151515 | AX98: =Theoretical!F98 -> 13.43583458
A99: ='Evac US101-S loc 104'!A99 -> 2019-10-26T08:05:00 | B99: ='Evac US101-S loc 104'!B99 -> 2.4 | C99: ='Evac US101-S loc 104'!C99 -> 73 | D99: ='Evac US101-S loc 104'!D99 -> 67.1 | E99: ='Evac US101-S loc 104'!E99 -> 2 | F99: ='Evac US101-S loc 104'!F99 -> 0 | G99: ='Evac US101-S loc 104'!G99 -> 8.620408163 | H99: ='Evac US101-S loc 104'!H99 -> 438 | I99: ='Evac US101-S loc 104'!I99 -> 107.9871984 | J99: ='Evac US101-S loc 104'!J99 -> 5.356462585 | L99: ='Routine US101-S loc 104'!A99 -> 2019-10-16T08:05:00 | M99: ='Routine US101-S loc 104'!B99 -> 7 | N99: ='Routine US101-S loc 104'!C99 -> 215 | O99: ='Routine US101-S loc 104'!D99 -> 64.6 | P99: ='Routine US101-S loc 104'!E99 -> 2 | Q99: ='Routine US101-S loc 104'!F99 -> 100 | R99: ='Routine US101-S loc 104'!G99 -> 25.14285714 | S99: ='Routine US101-S loc 104'!H99 -> 1290 | T99: ='Routine US101-S loc 104'!I99 -> 103.9638303 | U99: ='Routine US101-S loc 104'!J99 -> 15.62301587 | W99: ='Evac US101-S loc 78'!L3 -> 2019-10-27T01:00:00 | X99: ='Evac US101-S loc 78'!M3 -> 2.8 | Y99: ='Evac US101-S loc 78'!N3 -> 897 | Z99: ='Evac US101-S loc 78'!O3 -> 63.3 | AA99: ='Evac US101-S loc 78'!P3 -> 36 | AB99: ='Evac US101-S loc 78'!Q3 -> 0 | AC99: ='Evac US101-S loc 78'!R3 -> 10.05714286 | AD99: ='Evac US101-S loc 78'!S3 -> 299 | AE99: ='Evac US101-S loc 78'!T3 -> 101.8716789 | AF99: ='Evac US101-S loc 78'!U3 -> 6.249206349 | AH99: ='Routine US101-S Hopper Ave 2'!L27 -> 2019-10-22T01:00:00 | AI99: ='Routine US101-S Hopper Ave 2'!M27 -> 0.4 | AJ99: ='Routine US101-S Hopper Ave 2'!N27 -> 162 | AK99: ='Routine US101-S Hopper Ave 2'!O27 -> 66.5 | AL99: ='Routine US101-S Hopper Ave 2'!P27 -> 36 | AM99: ='Routine US101-S Hopper Ave 2'!Q27 -> 100 | AN99: ='Routine US101-S Hopper Ave 2'!R27 -> 1.436734694 | AO99: ='Routine US101-S Hopper Ave 2'!S27 -> 54 | AP99: ='Routine US101-S Hopper Ave 2'!T27 -> 107.02159 | AQ99: ='Routine US101-S Hopper Ave 2'!U27 -> 0.8927437642 | AS99: =Theoretical!A99 -> 97 | AT99: =Theoretical!B99 -> 7.706422018 | AU99: =Theoretical!C99 -> 1 | AV99: =Theoretical!D99 -> 747.5229358 | AW99: =Theoretical!E99 -> 60.2728851 | AX99: =Theoretical!F99 -> 12.40230884
A100: ='Evac US101-S loc 104'!A100 -> 2019-10-26T08:10:00 | B100: ='Evac US101-S loc 104'!B100 -> 2.2 | C100: ='Evac US101-S loc 104'!C100 -> 69 | D100: ='Evac US101-S loc 104'!D100 -> 67.4 | E100: ='Evac US101-S loc 104'!E100 -> 2 | F100: ='Evac US101-S loc 104'!F100 -> 0 | G100: ='Evac US101-S loc 104'!G100 -> 7.902040816 | H100: ='Evac US101-S loc 104'!H100 -> 414 | I100: ='Evac US101-S loc 104'!I100 -> 108.4700025 | J100: ='Evac US101-S loc 104'!J100 -> 4.910090703 | L100: ='Routine US101-S loc 104'!A100 -> 2019-10-16T08:10:00 | M100: ='Routine US101-S loc 104'!B100 -> 6.4 | N100: ='Routine US101-S loc 104'!C100 -> 183 | O100: ='Routine US101-S loc 104'!D100 -> 63.7 | P100: ='Routine US101-S loc 104'!E100 -> 2 | Q100: ='Routine US101-S loc 104'!F100 -> 100 | R100: ='Routine US101-S loc 104'!G100 -> 22.9877551 | S100: ='Routine US101-S loc 104'!H100 -> 1098 | T100: ='Routine US101-S loc 104'!I100 -> 102.5154178 | U100: ='Routine US101-S loc 104'!J100 -> 14.28390023 | W100: ='Evac US101-S loc 78'!L4 -> 2019-10-27T02:00:00 | X100: ='Evac US101-S loc 78'!M4 -> 2.6 | Y100: ='Evac US101-S loc 78'!N4 -> 775 | Z100: ='Evac US101-S loc 78'!O4 -> 62.7 | AA100: ='Evac US101-S loc 78'!P4 -> 36 | AB100: ='Evac US101-S loc 78'!Q4 -> 0 | AC100: ='Evac US101-S loc 78'!R4 -> 9.33877551 | AD100: ='Evac US101-S loc 78'!S4 -> 258.3333333 | AE100: ='Evac US101-S loc 78'!T4 -> 100.9060706 | AF100: ='Evac US101-S loc 78'!U4 -> 5.802834467 | AH100: ='Routine US101-S Hopper Ave 2'!L28 -> 2019-10-22T02:00:00 | AI100: ='Routine US101-S Hopper Ave 2'!M28 -> 0.4 | AJ100: ='Routine US101-S Hopper Ave 2'!N28 -> 150 | AK100: ='Routine US101-S Hopper Ave 2'!O28 -> 66.9 | AL100: ='Routine US101-S Hopper Ave 2'!P28 -> 36 | AM100: ='Routine US101-S Hopper Ave 2'!Q28 -> 100 | AN100: ='Routine US101-S Hopper Ave 2'!R28 -> 1.436734694 | AO100: ='Routine US101-S Hopper Ave 2'!S28 -> 50 | AP100: ='Routine US101-S Hopper Ave 2'!T28 -> 107.6653289 | AQ100: ='Routine US101-S Hopper Ave 2'!U28 -> 0.8927437642 | AS100: =Theoretical!A100 -> 98 | AT100: =Theoretical!B100 -> 7.064220183 | AU100: =Theoretical!C100 -> 1 | AV100: =Theoretical!D100 -> 692.293578 | AW100: =Theoretical!E100 -> 60.89425505 | AX100: =Theoretical!F100 -> 11.3687831
A101: ='Evac US101-S loc 104'!A101 -> 2019-10-26T08:15:00 | B101: ='Evac US101-S loc 104'!B101 -> 2.3 | C101: ='Evac US101-S loc 104'!C101 -> 65 | D101: ='Evac US101-S loc 104'!D101 -> 67 | E101: ='Evac US101-S loc 104'!E101 -> 2 | F101: ='Evac US101-S loc 104'!F101 -> 0 | G101: ='Evac US101-S loc 104'!G101 -> 8.26122449 | H101: ='Evac US101-S loc 104'!H101 -> 390 | I101: ='Evac US101-S loc 104'!I101 -> 107.8262637 | J101: ='Evac US101-S loc 104'!J101 -> 5.133276644 | L101: ='Routine US101-S loc 104'!A101 -> 2019-10-16T08:15:00 | M101: ='Routine US101-S loc 104'!B101 -> 6.6 | N101: ='Routine US101-S loc 104'!C101 -> 181 | O101: ='Routine US101-S loc 104'!D101 -> 63 | P101: ='Routine US101-S loc 104'!E101 -> 2 | Q101: ='Routine US101-S loc 104'!F101 -> 100 | R101: ='Routine US101-S loc 104'!G101 -> 23.70612245 | S101: ='Routine US101-S loc 104'!H101 -> 1086 | T101: ='Routine US101-S loc 104'!I101 -> 101.3888748 | U101: ='Routine US101-S loc 104'!J101 -> 14.73027211 | W101: ='Evac US101-S loc 78'!L5 -> 2019-10-27T03:00:00 | X101: ='Evac US101-S loc 78'!M5 -> 2.7 | Y101: ='Evac US101-S loc 78'!N5 -> 850 | Z101: ='Evac US101-S loc 78'!O5 -> 62.7 | AA101: ='Evac US101-S loc 78'!P5 -> 36 | AB101: ='Evac US101-S loc 78'!Q5 -> 0 | AC101: ='Evac US101-S loc 78'!R5 -> 9.697959184 | AD101: ='Evac US101-S loc 78'!S5 -> 283.3333333 | AE101: ='Evac US101-S loc 78'!T5 -> 100.9060706 | AF101: ='Evac US101-S loc 78'!U5 -> 6.026020408 | AH101: ='Routine US101-S Hopper Ave 2'!L29 -> 2019-10-22T03:00:00 | AI101: ='Routine US101-S Hopper Ave 2'!M29 -> 0.8 | AJ101: ='Routine US101-S Hopper Ave 2'!N29 -> 294 | AK101: ='Routine US101-S Hopper Ave 2'!O29 -> 66.9 | AL101: ='Routine US101-S Hopper Ave 2'!P29 -> 36 | AM101: ='Routine US101-S Hopper Ave 2'!Q29 -> 100 | AN101: ='Routine US101-S Hopper Ave 2'!R29 -> 2.873469388 | AO101: ='Routine US101-S Hopper Ave 2'!S29 -> 98 | AP101: ='Routine US101-S Hopper Ave 2'!T29 -> 107.6653289 | AQ101: ='Routine US101-S Hopper Ave 2'!U29 -> 1.785487528 | AS101: =Theoretical!A101 -> 99 | AT101: =Theoretical!B101 -> 6.422018349 | AU101: =Theoretical!C101 -> 1 | AV101: =Theoretical!D101 -> 635.7798165 | AW101: =Theoretical!E101 -> 61.515625 | AX101: =Theoretical!F101 -> 10.33525737
A102: ='Evac US101-S loc 104'!A102 -> 2019-10-26T08:20:00 | B102: ='Evac US101-S loc 104'!B102 -> 2.2 | C102: ='Evac US101-S loc 104'!C102 -> 60 | D102: ='Evac US101-S loc 104'!D102 -> 67.8 | E102: ='Evac US101-S loc 104'!E102 -> 2 | F102: ='Evac US101-S loc 104'!F102 -> 100 | G102: ='Evac US101-S loc 104'!G102 -> 7.902040816 | H102: ='Evac US101-S loc 104'!H102 -> 360 | I102: ='Evac US101-S loc 104'!I102 -> 109.1137414 | J102: ='Evac US101-S loc 104'!J102 -> 4.910090703 | L102: ='Routine US101-S loc 104'!A102 -> 2019-10-16T08:20:00 | M102: ='Routine US101-S loc 104'!B102 -> 5.9 | N102: ='Routine US101-S loc 104'!C102 -> 175 | O102: ='Routine US101-S loc 104'!D102 -> 63.8 | P102: ='Routine US101-S loc 104'!E102 -> 2 | Q102: ='Routine US101-S loc 104'!F102 -> 100 | R102: ='Routine US101-S loc 104'!G102 -> 21.19183673 | S102: ='Routine US101-S loc 104'!H102 -> 1050 | T102: ='Routine US101-S loc 104'!I102 -> 102.6763526 | U102: ='Routine US101-S loc 104'!J102 -> 13.16797052 | W102: ='Evac US101-S loc 78'!L6 -> 2019-10-27T04:00:00 | X102: ='Evac US101-S loc 78'!M6 -> 6.3 | Y102: ='Evac US101-S loc 78'!N6 -> 2388 | Z102: ='Evac US101-S loc 78'!O6 -> 54.3 | AA102: ='Evac US101-S loc 78'!P6 -> 36 | AB102: ='Evac US101-S loc 78'!Q6 -> 0 | AC102: ='Evac US101-S loc 78'!R6 -> 22.62857143 | AD102: ='Evac US101-S loc 78'!S6 -> 796 | AE102: ='Evac US101-S loc 78'!T6 -> 87.38755398 | AF102: ='Evac US101-S loc 78'!U6 -> 14.06071429 | AH102: ='Routine US101-S Hopper Ave 2'!L30 -> 2019-10-22T04:00:00 | AI102: ='Routine US101-S Hopper Ave 2'!M30 -> 1.5 | AJ102: ='Routine US101-S Hopper Ave 2'!N30 -> 565 | AK102: ='Routine US101-S Hopper Ave 2'!O30 -> 66.7 | AL102: ='Routine US101-S Hopper Ave 2'!P30 -> 36 | AM102: ='Routine US101-S Hopper Ave 2'!Q30 -> 100 | AN102: ='Routine US101-S Hopper Ave 2'!R30 -> 5.387755102 | AO102: ='Routine US101-S Hopper Ave 2'!S30 -> 188.3333333 | AP102: ='Routine US101-S Hopper Ave 2'!T30 -> 107.3434595 | AQ102: ='Routine US101-S Hopper Ave 2'!U30 -> 3.347789116 | AS102: =Theoretical!A102 -> 100 | AT102: =Theoretical!B102 -> 5.779816514 | AU102: =Theoretical!C102 -> 1 | AV102: =Theoretical!D102 -> 577.9816514 | AW102: =Theoretical!E102 -> 62.13699495 | AX102: =Theoretical!F102 -> 9.301731631
A103: ='Evac US101-S loc 104'!A103 -> 2019-10-26T08:25:00 | B103: ='Evac US101-S loc 104'!B103 -> 2.8 | C103: ='Evac US101-S loc 104'!C103 -> 86 | D103: ='Evac US101-S loc 104'!D103 -> 67.5 | E103: ='Evac US101-S loc 104'!E103 -> 2 | F103: ='Evac US101-S loc 104'!F103 -> 100 | G103: ='Evac US101-S loc 104'!G103 -> 10.05714286 | H103: ='Evac US101-S loc 104'!H103 -> 516 | I103: ='Evac US101-S loc 104'!I103 -> 108.6309373 | J103: ='Evac US101-S loc 104'!J103 -> 6.249206349 | L103: ='Routine US101-S loc 104'!A103 -> 2019-10-16T08:25:00 | M103: ='Routine US101-S loc 104'!B103 -> 4.4 | N103: ='Routine US101-S loc 104'!C103 -> 138 | O103: ='Routine US101-S loc 104'!D103 -> 65.8 | P103: ='Routine US101-S loc 104'!E103 -> 2 | Q103: ='Routine US101-S loc 104'!F103 -> 100 | R103: ='Routine US101-S loc 104'!G103 -> 15.80408163 | S103: ='Routine US101-S loc 104'!H103 -> 828 | T103: ='Routine US101-S loc 104'!I103 -> 105.895047 | U103: ='Routine US101-S loc 104'!J103 -> 9.820181406 | W103: ='Evac US101-S loc 78'!L7 -> 2019-10-27T05:00:00 | X103: ='Evac US101-S loc 78'!M7 -> 9.9 | Y103: ='Evac US101-S loc 78'!N7 -> 3507 | Z103: ='Evac US101-S loc 78'!O7 -> 49.1 | AA103: ='Evac US101-S loc 78'!P7 -> 36 | AB103: ='Evac US101-S loc 78'!Q7 -> 0 | AC103: ='Evac US101-S loc 78'!R7 -> 35.55918367 | AD103: ='Evac US101-S loc 78'!S7 -> 1169 | AE103: ='Evac US101-S loc 78'!T7 -> 79.01894844 | AF103: ='Evac US101-S loc 78'!U7 -> 22.09540816 | AH103: ='Routine US101-S Hopper Ave 2'!L31 -> 2019-10-22T05:00:00 | AI103: ='Routine US101-S Hopper Ave 2'!M31 -> 2.6 | AJ103: ='Routine US101-S Hopper Ave 2'!N31 -> 1129 | AK103: ='Routine US101-S Hopper Ave 2'!O31 -> 68.5 | AL103: ='Routine US101-S Hopper Ave 2'!P31 -> 36 | AM103: ='Routine US101-S Hopper Ave 2'!Q31 -> 100 | AN103: ='Routine US101-S Hopper Ave 2'!R31 -> 9.33877551 | AO103: ='Routine US101-S Hopper Ave 2'!S31 -> 376.3333333 | AP103: ='Routine US101-S Hopper Ave 2'!T31 -> 110.2402845 | AQ103: ='Routine US101-S Hopper Ave 2'!U31 -> 5.802834467 | AS103: =Theoretical!A103 -> 101 | AT103: =Theoretical!B103 -> 5.137614679 | AU103: =Theoretical!C103 -> 1 | AV103: =Theoretical!D103 -> 518.8990826 | AW103: =Theoretical!E103 -> 62.7583649 | AX103: =Theoretical!F103 -> 8.268205894
A104: ='Evac US101-S loc 104'!A104 -> 2019-10-26T08:30:00 | B104: ='Evac US101-S loc 104'!B104 -> 2.5 | C104: ='Evac US101-S loc 104'!C104 -> 75 | D104: ='Evac US101-S loc 104'!D104 -> 67.2 | E104: ='Evac US101-S loc 104'!E104 -> 2 | F104: ='Evac US101-S loc 104'!F104 -> 100 | G104: ='Evac US101-S loc 104'!G104 -> 8.979591837 | H104: ='Evac US101-S loc 104'!H104 -> 450 | I104: ='Evac US101-S loc 104'!I104 -> 108.1481331 | J104: ='Evac US101-S loc 104'!J104 -> 5.579648526 | L104: ='Routine US101-S loc 104'!A104 -> 2019-10-16T08:30:00 | M104: ='Routine US101-S loc 104'!B104 -> 5.8 | N104: ='Routine US101-S loc 104'!C104 -> 161 | O104: ='Routine US101-S loc 104'!D104 -> 64.6 | P104: ='Routine US101-S loc 104'!E104 -> 2 | Q104: ='Routine US101-S loc 104'!F104 -> 100 | R104: ='Routine US101-S loc 104'!G104 -> 20.83265306 | S104: ='Routine US101-S loc 104'!H104 -> 966 | T104: ='Routine US101-S loc 104'!I104 -> 103.9638303 | U104: ='Routine US101-S loc 104'!J104 -> 12.94478458 | W104: ='Evac US101-S loc 78'!L8 -> 2019-10-27T06:00:00 | X104: ='Evac US101-S loc 78'!M8 -> 16.1 | Y104: ='Evac US101-S loc 78'!N8 -> 2621 | Z104: ='Evac US101-S loc 78'!O8 -> 30.2 | AA104: ='Evac US101-S loc 78'!P8 -> 36 | AB104: ='Evac US101-S loc 78'!Q8 -> 0 | AC104: ='Evac US101-S loc 78'!R8 -> 57.82857143 | AD104: ='Evac US101-S loc 78'!S8 -> 873.6666667 | AE104: ='Evac US101-S loc 78'!T8 -> 48.602286 | AF104: ='Evac US101-S loc 78'!U8 -> 35.93293651 | AH104: ='Routine US101-S Hopper Ave 2'!L32 -> 2019-10-22T06:00:00 | AI104: ='Routine US101-S Hopper Ave 2'!M32 -> 4 | AJ104: ='Routine US101-S Hopper Ave 2'!N32 -> 1777 | AK104: ='Routine US101-S Hopper Ave 2'!O32 -> 68.4 | AL104: ='Routine US101-S Hopper Ave 2'!P32 -> 36 | AM104: ='Routine US101-S Hopper Ave 2'!Q32 -> 100 | AN104: ='Routine US101-S Hopper Ave 2'!R32 -> 14.36734694 | AO104: ='Routine US101-S Hopper Ave 2'!S32 -> 592.3333333 | AP104: ='Routine US101-S Hopper Ave 2'!T32 -> 110.0793498 | AQ104: ='Routine US101-S Hopper Ave 2'!U32 -> 8.927437642 | AS104: =Theoretical!A104 -> 102 | AT104: =Theoretical!B104 -> 4.495412844 | AU104: =Theoretical!C104 -> 1 | AV104: =Theoretical!D104 -> 458.5321101 | AW104: =Theoretical!E104 -> 63.37973485 | AX104: =Theoretical!F104 -> 7.234680157
A105: ='Evac US101-S loc 104'!A105 -> 2019-10-26T08:35:00 | B105: ='Evac US101-S loc 104'!B105 -> 1.9 | C105: ='Evac US101-S loc 104'!C105 -> 57 | D105: ='Evac US101-S loc 104'!D105 -> 67.1 | E105: ='Evac US101-S loc 104'!E105 -> 2 | F105: ='Evac US101-S loc 104'!F105 -> 100 | G105: ='Evac US101-S loc 104'!G105 -> 6.824489796 | H105: ='Evac US101-S loc 104'!H105 -> 342 | I105: ='Evac US101-S loc 104'!I105 -> 107.9871984 | J105: ='Evac US101-S loc 104'!J105 -> 4.24053288 | L105: ='Routine US101-S loc 104'!A105 -> 2019-10-16T08:35:00 | M105: ='Routine US101-S loc 104'!B105 -> 5.5 | N105: ='Routine US101-S loc 104'!C105 -> 164 | O105: ='Routine US101-S loc 104'!D105 -> 64.8 | P105: ='Routine US101-S loc 104'!E105 -> 2 | Q105: ='Routine US101-S loc 104'!F105 -> 100 | R105: ='Routine US101-S loc 104'!G105 -> 19.75510204 | S105: ='Routine US101-S loc 104'!H105 -> 984 | T105: ='Routine US101-S loc 104'!I105 -> 104.2856998 | U105: ='Routine US101-S loc 104'!J105 -> 12.27522676 | W105: ='Evac US101-S loc 78'!L9 -> 2019-10-27T07:00:00 | X105: ='Evac US101-S loc 78'!M9 -> 19.8 | Y105: ='Evac US101-S loc 78'!N9 -> 2618 | Z105: ='Evac US101-S loc 78'!O9 -> 30.3 | AA105: ='Evac US101-S loc 78'!P9 -> 36 | AB105: ='Evac US101-S loc 78'!Q9 -> 0 | AC105: ='Evac US101-S loc 78'!R9 -> 71.11836735 | AD105: ='Evac US101-S loc 78'!S9 -> 872.6666667 | AE105: ='Evac US101-S loc 78'!T9 -> 48.76322073 | AF105: ='Evac US101-S loc 78'!U9 -> 44.19081633 | AH105: ='Routine US101-S Hopper Ave 2'!L33 -> 2019-10-22T07:00:00 | AI105: ='Routine US101-S Hopper Ave 2'!M33 -> 7.3 | AJ105: ='Routine US101-S Hopper Ave 2'!N33 -> 3007 | AK105: ='Routine US101-S Hopper Ave 2'!O33 -> 61.5 | AL105: ='Routine US101-S Hopper Ave 2'!P33 -> 36 | AM105: ='Routine US101-S Hopper Ave 2'!Q33 -> 100 | AN105: ='Routine US101-S Hopper Ave 2'!R33 -> 26.22040816 | AO105: ='Routine US101-S Hopper Ave 2'!S33 -> 1002.333333 | AP105: ='Routine US101-S Hopper Ave 2'!T33 -> 98.97485395 | AQ105: ='Routine US101-S Hopper Ave 2'!U33 -> 16.2925737 | AS105: =Theoretical!A105 -> 103 | AT105: =Theoretical!B105 -> 3.853211009 | AU105: =Theoretical!C105 -> 1 | AV105: =Theoretical!D105 -> 396.8807339 | AW105: =Theoretical!E105 -> 64.0011048 | AX105: =Theoretical!F105 -> 6.201154421
A106: ='Evac US101-S loc 104'!A106 -> 2019-10-26T08:40:00 | B106: ='Evac US101-S loc 104'!B106 -> 3.4 | C106: ='Evac US101-S loc 104'!C106 -> 101 | D106: ='Evac US101-S loc 104'!D106 -> 66 | E106: ='Evac US101-S loc 104'!E106 -> 2 | F106: ='Evac US101-S loc 104'!F106 -> 100 | G106: ='Evac US101-S loc 104'!G106 -> 12.2122449 | H106: ='Evac US101-S loc 104'!H106 -> 606 | I106: ='Evac US101-S loc 104'!I106 -> 106.2169164 | J106: ='Evac US101-S loc 104'!J106 -> 7.588321995 | L106: ='Routine US101-S loc 104'!A106 -> 2019-10-16T08:40:00 | M106: ='Routine US101-S loc 104'!B106 -> 4.7 | N106: ='Routine US101-S loc 104'!C106 -> 123 | O106: ='Routine US101-S loc 104'!D106 -> 61.9 | P106: ='Routine US101-S loc 104'!E106 -> 2 | Q106: ='Routine US101-S loc 104'!F106 -> 100 | R106: ='Routine US101-S loc 104'!G106 -> 16.88163265 | S106: ='Routine US101-S loc 104'!H106 -> 738 | T106: ='Routine US101-S loc 104'!I106 -> 99.61859284 | U106: ='Routine US101-S loc 104'!J106 -> 10.48973923 | W106: ='Evac US101-S loc 78'!L10 -> 2019-10-27T08:00:00 | X106: ='Evac US101-S loc 78'!M10 -> 9 | Y106: ='Evac US101-S loc 78'!N10 -> 2532 | Z106: ='Evac US101-S loc 78'!O10 -> 42.2 | AA106: ='Evac US101-S loc 78'!P10 -> 36 | AB106: ='Evac US101-S loc 78'!Q10 -> 0 | AC106: ='Evac US101-S loc 78'!R10 -> 32.32653061 | AD106: ='Evac US101-S loc 78'!S10 -> 844 | AE106: ='Evac US101-S loc 78'!T10 -> 67.91445263 | AF106: ='Evac US101-S loc 78'!U10 -> 20.08673469 | AH106: ='Routine US101-S Hopper Ave 2'!L34 -> 2019-10-22T08:00:00 | AI106: ='Routine US101-S Hopper Ave 2'!M34 -> 7.5 | AJ106: ='Routine US101-S Hopper Ave 2'!N34 -> 3027 | AK106: ='Routine US101-S Hopper Ave 2'!O34 -> 59.9 | AL106: ='Routine US101-S Hopper Ave 2'!P34 -> 36 | AM106: ='Routine US101-S Hopper Ave 2'!Q34 -> 100 | AN106: ='Routine US101-S Hopper Ave 2'!R34 -> 26.93877551 | AO106: ='Routine US101-S Hopper Ave 2'!S34 -> 1009 | AP106: ='Routine US101-S Hopper Ave 2'!T34 -> 96.3998984 | AQ106: ='Routine US101-S Hopper Ave 2'!U34 -> 16.73894558 | AS106: =Theoretical!A106 -> 104 | AT106: =Theoretical!B106 -> 3.211009174 | AU106: =Theoretical!C106 -> 1 | AV106: =Theoretical!D106 -> 333.9449541 | AW106: =Theoretical!E106 -> 64.62247475 | AX106: =Theoretical!F106 -> 5.167628684
A107: ='Evac US101-S loc 104'!A107 -> 2019-10-26T08:45:00 | B107: ='Evac US101-S loc 104'!B107 -> 3.5 | C107: ='Evac US101-S loc 104'!C107 -> 102 | D107: ='Evac US101-S loc 104'!D107 -> 65.7 | E107: ='Evac US101-S loc 104'!E107 -> 2 | F107: ='Evac US101-S loc 104'!F107 -> 100 | G107: ='Evac US101-S loc 104'!G107 -> 12.57142857 | H107: ='Evac US101-S loc 104'!H107 -> 612 | I107: ='Evac US101-S loc 104'!I107 -> 105.7341123 | J107: ='Evac US101-S loc 104'!J107 -> 7.811507937 | L107: ='Routine US101-S loc 104'!A107 -> 2019-10-16T08:45:00 | M107: ='Routine US101-S loc 104'!B107 -> 5.3 | N107: ='Routine US101-S loc 104'!C107 -> 160 | O107: ='Routine US101-S loc 104'!D107 -> 64.2 | P107: ='Routine US101-S loc 104'!E107 -> 2 | Q107: ='Routine US101-S loc 104'!F107 -> 100 | R107: ='Routine US101-S loc 104'!G107 -> 19.03673469 | S107: ='Routine US101-S loc 104'!H107 -> 960 | T107: ='Routine US101-S loc 104'!I107 -> 103.3200914 | U107: ='Routine US101-S loc 104'!J107 -> 11.82885488 | W107: ='Evac US101-S loc 78'!L11 -> 2019-10-27T09:00:00 | X107: ='Evac US101-S loc 78'!M11 -> 5 | Y107: ='Evac US101-S loc 78'!N11 -> 2124 | Z107: ='Evac US101-S loc 78'!O11 -> 61.8 | AA107: ='Evac US101-S loc 78'!P11 -> 36 | AB107: ='Evac US101-S loc 78'!Q11 -> 0 | AC107: ='Evac US101-S loc 78'!R11 -> 17.95918367 | AD107: ='Evac US101-S loc 78'!S11 -> 708 | AE107: ='Evac US101-S loc 78'!T11 -> 99.45765812 | AF107: ='Evac US101-S loc 78'!U11 -> 11.15929705 | AH107: ='Routine US101-S Hopper Ave 2'!L35 -> 2019-10-22T09:00:00 | AI107: ='Routine US101-S Hopper Ave 2'!M35 -> 5.1 | AJ107: ='Routine US101-S Hopper Ave 2'!N35 -> 2141 | AK107: ='Routine US101-S Hopper Ave 2'!O35 -> 65 | AL107: ='Routine US101-S Hopper Ave 2'!P35 -> 36 | AM107: ='Routine US101-S Hopper Ave 2'!Q35 -> 100 | AN107: ='Routine US101-S Hopper Ave 2'!R35 -> 18.31836735 | AO107: ='Routine US101-S Hopper Ave 2'!S35 -> 713.6666667 | AP107: ='Routine US101-S Hopper Ave 2'!T35 -> 104.6075692 | AQ107: ='Routine US101-S Hopper Ave 2'!U35 -> 11.38248299 | AS107: =Theoretical!A107 -> 105 | AT107: =Theoretical!B107 -> 2.568807339 | AU107: =Theoretical!C107 -> 1 | AV107: =Theoretical!D107 -> 269.7247706 | AW107: =Theoretical!E107 -> 65.2438447 | AX107: =Theoretical!F107 -> 4.134102947
A108: ='Evac US101-S loc 104'!A108 -> 2019-10-26T08:50:00 | B108: ='Evac US101-S loc 104'!B108 -> 3 | C108: ='Evac US101-S loc 104'!C108 -> 90 | D108: ='Evac US101-S loc 104'!D108 -> 65.7 | E108: ='Evac US101-S loc 104'!E108 -> 2 | F108: ='Evac US101-S loc 104'!F108 -> 100 | G108: ='Evac US101-S loc 104'!G108 -> 10.7755102 | H108: ='Evac US101-S loc 104'!H108 -> 540 | I108: ='Evac US101-S loc 104'!I108 -> 105.7341123 | J108: ='Evac US101-S loc 104'!J108 -> 6.695578231 | L108: ='Routine US101-S loc 104'!A108 -> 2019-10-16T08:50:00 | M108: ='Routine US101-S loc 104'!B108 -> 4.3 | N108: ='Routine US101-S loc 104'!C108 -> 122 | O108: ='Routine US101-S loc 104'!D108 -> 64.1 | P108: ='Routine US101-S loc 104'!E108 -> 2 | Q108: ='Routine US101-S loc 104'!F108 -> 100 | R108: ='Routine US101-S loc 104'!G108 -> 15.44489796 | S108: ='Routine US101-S loc 104'!H108 -> 732 | T108: ='Routine US101-S loc 104'!I108 -> 103.1591567 | U108: ='Routine US101-S loc 104'!J108 -> 9.596995465 | W108: ='Evac US101-S loc 78'!L12 -> 2019-10-27T10:00:00 | X108: ='Evac US101-S loc 78'!M12 -> 5.4 | Y108: ='Evac US101-S loc 78'!N12 -> 2254 | Z108: ='Evac US101-S loc 78'!O12 -> 61.2 | AA108: ='Evac US101-S loc 78'!P12 -> 36 | AB108: ='Evac US101-S loc 78'!Q12 -> 0 | AC108: ='Evac US101-S loc 78'!R12 -> 19.39591837 | AD108: ='Evac US101-S loc 78'!S12 -> 751.3333333 | AE108: ='Evac US101-S loc 78'!T12 -> 98.49204978 | AF108: ='Evac US101-S loc 78'!U12 -> 12.05204082 | AH108: ='Routine US101-S Hopper Ave 2'!L36 -> 2019-10-22T10:00:00 | AI108: ='Routine US101-S Hopper Ave 2'!M36 -> 5.3 | AJ108: ='Routine US101-S Hopper Ave 2'!N36 -> 2234 | AK108: ='Routine US101-S Hopper Ave 2'!O36 -> 65.7 | AL108: ='Routine US101-S Hopper Ave 2'!P36 -> 36 | AM108: ='Routine US101-S Hopper Ave 2'!Q36 -> 100 | AN108: ='Routine US101-S Hopper Ave 2'!R36 -> 19.03673469 | AO108: ='Routine US101-S Hopper Ave 2'!S36 -> 744.6666667 | AP108: ='Routine US101-S Hopper Ave 2'!T36 -> 105.7341123 | AQ108: ='Routine US101-S Hopper Ave 2'!U36 -> 11.82885488 | AS108: =Theoretical!A108 -> 106 | AT108: =Theoretical!B108 -> 1.926605505 | AU108: =Theoretical!C108 -> 1 | AV108: =Theoretical!D108 -> 204.2201835 | AW108: =Theoretical!E108 -> 65.86521465 | AX108: =Theoretical!F108 -> 3.10057721
A109: ='Evac US101-S loc 104'!A109 -> 2019-10-26T08:55:00 | B109: ='Evac US101-S loc 104'!B109 -> 2.5 | C109: ='Evac US101-S loc 104'!C109 -> 81 | D109: ='Evac US101-S loc 104'!D109 -> 67.1 | E109: ='Evac US101-S loc 104'!E109 -> 2 | F109: ='Evac US101-S loc 104'!F109 -> 100 | G109: ='Evac US101-S loc 104'!G109 -> 8.979591837 | H109: ='Evac US101-S loc 104'!H109 -> 486 | I109: ='Evac US101-S loc 104'!I109 -> 107.9871984 | J109: ='Evac US101-S loc 104'!J109 -> 5.579648526 | L109: ='Routine US101-S loc 104'!A109 -> 2019-10-16T08:55:00 | M109: ='Routine US101-S loc 104'!B109 -> 5.5 | N109: ='Routine US101-S loc 104'!C109 -> 154 | O109: ='Routine US101-S loc 104'!D109 -> 62.7 | P109: ='Routine US101-S loc 104'!E109 -> 2 | Q109: ='Routine US101-S loc 104'!F109 -> 100 | R109: ='Routine US101-S loc 104'!G109 -> 19.75510204 | S109: ='Routine US101-S loc 104'!H109 -> 924 | T109: ='Routine US101-S loc 104'!I109 -> 100.9060706 | U109: ='Routine US101-S loc 104'!J109 -> 12.27522676 | W109: ='Evac US101-S loc 78'!L13 -> 2019-10-27T11:00:00 | X109: ='Evac US101-S loc 78'!M13 -> 5.7 | Y109: ='Evac US101-S loc 78'!N13 -> 2457 | Z109: ='Evac US101-S loc 78'!O13 -> 58.9 | AA109: ='Evac US101-S loc 78'!P13 -> 36 | AB109: ='Evac US101-S loc 78'!Q13 -> 0 | AC109: ='Evac US101-S loc 78'!R13 -> 20.47346939 | AD109: ='Evac US101-S loc 78'!S13 -> 819 | AE109: ='Evac US101-S loc 78'!T13 -> 94.79055118 | AF109: ='Evac US101-S loc 78'!U13 -> 12.72159864 | AH109: ='Routine US101-S Hopper Ave 2'!L37 -> 2019-10-22T11:00:00 | AI109: ='Routine US101-S Hopper Ave 2'!M37 -> 5.1 | AJ109: ='Routine US101-S Hopper Ave 2'!N37 -> 2087 | AK109: ='Routine US101-S Hopper Ave 2'!O37 -> 64.1 | AL109: ='Routine US101-S Hopper Ave 2'!P37 -> 36 | AM109: ='Routine US101-S Hopper Ave 2'!Q37 -> 100 | AN109: ='Routine US101-S Hopper Ave 2'!R37 -> 18.31836735 | AO109: ='Routine US101-S Hopper Ave 2'!S37 -> 695.6666667 | AP109: ='Routine US101-S Hopper Ave 2'!T37 -> 103.1591567 | AQ109: ='Routine US101-S Hopper Ave 2'!U37 -> 11.38248299 | AS109: =Theoretical!A109 -> 107 | AT109: =Theoretical!B109 -> 1.28440367 | AU109: =Theoretical!C109 -> 1 | AV109: =Theoretical!D109 -> 137.4311927 | AW109: =Theoretical!E109 -> 66.4865846 | AX109: =Theoretical!F109 -> 2.067051474
A110: ='Evac US101-S loc 104'!A110 -> 2019-10-26T09:00:00 | B110: ='Evac US101-S loc 104'!B110 -> 3.5 | C110: ='Evac US101-S loc 104'!C110 -> 98 | D110: ='Evac US101-S loc 104'!D110 -> 65.4 | E110: ='Evac US101-S loc 104'!E110 -> 2 | F110: ='Evac US101-S loc 104'!F110 -> 100 | G110: ='Evac US101-S loc 104'!G110 -> 12.57142857 | H110: ='Evac US101-S loc 104'!H110 -> 588 | I110: ='Evac US101-S loc 104'!I110 -> 105.2513081 | J110: ='Evac US101-S loc 104'!J110 -> 7.811507937 | L110: ='Routine US101-S loc 104'!A110 -> 2019-10-16T09:00:00 | M110: ='Routine US101-S loc 104'!B110 -> 5.6 | N110: ='Routine US101-S loc 104'!C110 -> 159 | O110: ='Routine US101-S loc 104'!D110 -> 62.8 | P110: ='Routine US101-S loc 104'!E110 -> 2 | Q110: ='Routine US101-S loc 104'!F110 -> 100 | R110: ='Routine US101-S loc 104'!G110 -> 20.11428571 | S110: ='Routine US101-S loc 104'!H110 -> 954 | T110: ='Routine US101-S loc 104'!I110 -> 101.0670053 | U110: ='Routine US101-S loc 104'!J110 -> 12.4984127 | W110: ='Evac US101-S loc 78'!L14 -> 2019-10-27T12:00:00 | X110: ='Evac US101-S loc 78'!M14 -> 5.4 | Y110: ='Evac US101-S loc 78'!N14 -> 2279 | Z110: ='Evac US101-S loc 78'!O14 -> 59.8 | AA110: ='Evac US101-S loc 78'!P14 -> 36 | AB110: ='Evac US101-S loc 78'!Q14 -> 0 | AC110: ='Evac US101-S loc 78'!R14 -> 19.39591837 | AD110: ='Evac US101-S loc 78'!S14 -> 759.6666667 | AE110: ='Evac US101-S loc 78'!T14 -> 96.23896368 | AF110: ='Evac US101-S loc 78'!U14 -> 12.05204082 | AH110: ='Routine US101-S Hopper Ave 2'!L38 -> 2019-10-22T12:00:00 | AI110: ='Routine US101-S Hopper Ave 2'!M38 -> 5.3 | AJ110: ='Routine US101-S Hopper Ave 2'!N38 -> 2208 | AK110: ='Routine US101-S Hopper Ave 2'!O38 -> 65.2 | AL110: ='Routine US101-S Hopper Ave 2'!P38 -> 36 | AM110: ='Routine US101-S Hopper Ave 2'!Q38 -> 100 | AN110: ='Routine US101-S Hopper Ave 2'!R38 -> 19.03673469 | AO110: ='Routine US101-S Hopper Ave 2'!S38 -> 736 | AP110: ='Routine US101-S Hopper Ave 2'!T38 -> 104.9294387 | AQ110: ='Routine US101-S Hopper Ave 2'!U38 -> 11.82885488 | AS110: =Theoretical!A110 -> 108 | AT110: =Theoretical!B110 -> 0.6422018349 | AU110: =Theoretical!C110 -> 1 | AV110: =Theoretical!D110 -> 69.35779817 | AW110: =Theoretical!E110 -> 67.10795455 | AX110: =Theoretical!F110 -> 1.033525737
A111: ='Evac US101-S loc 104'!A111 -> 2019-10-26T09:05:00 | B111: ='Evac US101-S loc 104'!B111 -> 2.9 | C111: ='Evac US101-S loc 104'!C111 -> 85 | D111: ='Evac US101-S loc 104'!D111 -> 65.7 | E111: ='Evac US101-S loc 104'!E111 -> 2 | F111: ='Evac US101-S loc 104'!F111 -> 100 | G111: ='Evac US101-S loc 104'!G111 -> 10.41632653 | H111: ='Evac US101-S loc 104'!H111 -> 510 | I111: ='Evac US101-S loc 104'!I111 -> 105.7341123 | J111: ='Evac US101-S loc 104'!J111 -> 6.47239229 | L111: ='Routine US101-S loc 104'!A111 -> 2019-10-16T09:05:00 | M111: ='Routine US101-S loc 104'!B111 -> 4.5 | N111: ='Routine US101-S loc 104'!C111 -> 137 | O111: ='Routine US101-S loc 104'!D111 -> 64.2 | P111: ='Routine US101-S loc 104'!E111 -> 2 | Q111: ='Routine US101-S loc 104'!F111 -> 100 | R111: ='Routine US101-S loc 104'!G111 -> 16.16326531 | S111: ='Routine US101-S loc 104'!H111 -> 822 | T111: ='Routine US101-S loc 104'!I111 -> 103.3200914 | U111: ='Routine US101-S loc 104'!J111 -> 10.04336735 | W111: ='Evac US101-S loc 78'!L15 -> 2019-10-27T13:00:00 | X111: ='Evac US101-S loc 78'!M15 -> 5.2 | Y111: ='Evac US101-S loc 78'!N15 -> 2266 | Z111: ='Evac US101-S loc 78'!O15 -> 60.7 | AA111: ='Evac US101-S loc 78'!P15 -> 36 | AB111: ='Evac US101-S loc 78'!Q15 -> 0 | AC111: ='Evac US101-S loc 78'!R15 -> 18.67755102 | AD111: ='Evac US101-S loc 78'!S15 -> 755.3333333 | AE111: ='Evac US101-S loc 78'!T15 -> 97.68737617 | AF111: ='Evac US101-S loc 78'!U15 -> 11.60566893 | AH111: ='Routine US101-S Hopper Ave 2'!L39 -> 2019-10-22T13:00:00 | AI111: ='Routine US101-S Hopper Ave 2'!M39 -> 5.4 | AJ111: ='Routine US101-S Hopper Ave 2'!N39 -> 2268 | AK111: ='Routine US101-S Hopper Ave 2'!O39 -> 65.7 | AL111: ='Routine US101-S Hopper Ave 2'!P39 -> 36 | AM111: ='Routine US101-S Hopper Ave 2'!Q39 -> 100 | AN111: ='Routine US101-S Hopper Ave 2'!R39 -> 19.39591837 | AO111: ='Routine US101-S Hopper Ave 2'!S39 -> 756 | AP111: ='Routine US101-S Hopper Ave 2'!T39 -> 105.7341123 | AQ111: ='Routine US101-S Hopper Ave 2'!U39 -> 12.05204082 | AS111: =Theoretical!A111 -> 109 | AT111: =Theoretical!B111 -> 0 | AU111: =Theoretical!C111 -> 1 | AV111: =Theoretical!D111 -> 0 | AW111: =Theoretical!E111 -> 67.72932449 | AX111: =Theoretical!F111 -> 0
A112: ='Evac US101-S loc 104'!A112 -> 2019-10-26T09:10:00 | B112: ='Evac US101-S loc 104'!B112 -> 2.6 | C112: ='Evac US101-S loc 104'!C112 -> 81 | D112: ='Evac US101-S loc 104'!D112 -> 67.4 | E112: ='Evac US101-S loc 104'!E112 -> 2 | F112: ='Evac US101-S loc 104'!F112 -> 100 | G112: ='Evac US101-S loc 104'!G112 -> 9.33877551 | H112: ='Evac US101-S loc 104'!H112 -> 486 | I112: ='Evac US101-S loc 104'!I112 -> 108.4700025 | J112: ='Evac US101-S loc 104'!J112 -> 5.802834467 | L112: ='Routine US101-S loc 104'!A112 -> 2019-10-16T09:10:00 | M112: ='Routine US101-S loc 104'!B112 -> 4 | N112: ='Routine US101-S loc 104'!C112 -> 115 | O112: ='Routine US101-S loc 104'!D112 -> 64.5 | P112: ='Routine US101-S loc 104'!E112 -> 2 | Q112: ='Routine US101-S loc 104'!F112 -> 100 | R112: ='Routine US101-S loc 104'!G112 -> 14.36734694 | S112: ='Routine US101-S loc 104'!H112 -> 690 | T112: ='Routine US101-S loc 104'!I112 -> 103.8028956 | U112: ='Routine US101-S loc 104'!J112 -> 8.927437642 | W112: ='Evac US101-S loc 78'!L16 -> 2019-10-27T14:00:00 | X112: ='Evac US101-S loc 78'!M16 -> 5.2 | Y112: ='Evac US101-S loc 78'!N16 -> 2194 | Z112: ='Evac US101-S loc 78'!O16 -> 60.5 | AA112: ='Evac US101-S loc 78'!P16 -> 36 | AB112: ='Evac US101-S loc 78'!Q16 -> 0 | AC112: ='Evac US101-S loc 78'!R16 -> 18.67755102 | AD112: ='Evac US101-S loc 78'!S16 -> 731.3333333 | AE112: ='Evac US101-S loc 78'!T16 -> 97.36550673 | AF112: ='Evac US101-S loc 78'!U16 -> 11.60566893 | AH112: ='Routine US101-S Hopper Ave 2'!L40 -> 2019-10-22T14:00:00 | AI112: ='Routine US101-S Hopper Ave 2'!M40 -> 6.6 | AJ112: ='Routine US101-S Hopper Ave 2'!N40 -> 2759 | AK112: ='Routine US101-S Hopper Ave 2'!O40 -> 61.2 | AL112: ='Routine US101-S Hopper Ave 2'!P40 -> 36 | AM112: ='Routine US101-S Hopper Ave 2'!Q40 -> 41.7 | AN112: ='Routine US101-S Hopper Ave 2'!R40 -> 23.70612245 | AO112: ='Routine US101-S Hopper Ave 2'!S40 -> 919.6666667 | AP112: ='Routine US101-S Hopper Ave 2'!T40 -> 98.49204978 | AQ112: ='Routine US101-S Hopper Ave 2'!U40 -> 14.73027211
A113: ='Evac US101-S loc 104'!A113 -> 2019-10-26T09:15:00 | B113: ='Evac US101-S loc 104'!B113 -> 2.9 | C113: ='Evac US101-S loc 104'!C113 -> 88 | D113: ='Evac US101-S loc 104'!D113 -> 67 | E113: ='Evac US101-S loc 104'!E113 -> 2 | F113: ='Evac US101-S loc 104'!F113 -> 100 | G113: ='Evac US101-S loc 104'!G113 -> 10.41632653 | H113: ='Evac US101-S loc 104'!H113 -> 528 | I113: ='Evac US101-S loc 104'!I113 -> 107.8262637 | J113: ='Evac US101-S loc 104'!J113 -> 6.47239229 | L113: ='Routine US101-S loc 104'!A113 -> 2019-10-16T09:15:00 | M113: ='Routine US101-S loc 104'!B113 -> 6 | N113: ='Routine US101-S loc 104'!C113 -> 176 | O113: ='Routine US101-S loc 104'!D113 -> 64.5 | P113: ='Routine US101-S loc 104'!E113 -> 2 | Q113: ='Routine US101-S loc 104'!F113 -> 100 | R113: ='Routine US101-S loc 104'!G113 -> 21.55102041 | S113: ='Routine US101-S loc 104'!H113 -> 1056 | T113: ='Routine US101-S loc 104'!I113 -> 103.8028956 | U113: ='Routine US101-S loc 104'!J113 -> 13.39115646 | W113: ='Evac US101-S loc 78'!L17 -> 2019-10-27T15:00:00 | X113: ='Evac US101-S loc 78'!M17 -> 4.8 | Y113: ='Evac US101-S loc 78'!N17 -> 2023 | Z113: ='Evac US101-S loc 78'!O17 -> 61.9 | AA113: ='Evac US101-S loc 78'!P17 -> 36 | AB113: ='Evac US101-S loc 78'!Q17 -> 0 | AC113: ='Evac US101-S loc 78'!R17 -> 17.24081633 | AD113: ='Evac US101-S loc 78'!S17 -> 674.3333333 | AE113: ='Evac US101-S loc 78'!T17 -> 99.61859284 | AF113: ='Evac US101-S loc 78'!U17 -> 10.71292517 | AH113: ='Routine US101-S Hopper Ave 2'!L41 -> 2019-10-22T15:00:00 | AI113: ='Routine US101-S Hopper Ave 2'!M41 -> 13.1 | AJ113: ='Routine US101-S Hopper Ave 2'!N41 -> 2773 | AK113: ='Routine US101-S Hopper Ave 2'!O41 -> 41.6 | AL113: ='Routine US101-S Hopper Ave 2'!P41 -> 36 | AM113: ='Routine US101-S Hopper Ave 2'!Q41 -> 100 | AN113: ='Routine US101-S Hopper Ave 2'!R41 -> 47.05306122 | AO113: ='Routine US101-S Hopper Ave 2'!S41 -> 924.3333333 | AP113: ='Routine US101-S Hopper Ave 2'!T41 -> 66.9488443 | AQ113: ='Routine US101-S Hopper Ave 2'!U41 -> 29.23735828
A114: ='Evac US101-S loc 104'!A114 -> 2019-10-26T09:20:00 | B114: ='Evac US101-S loc 104'!B114 -> 4.2 | C114: ='Evac US101-S loc 104'!C114 -> 119 | D114: ='Evac US101-S loc 104'!D114 -> 64.7 | E114: ='Evac US101-S loc 104'!E114 -> 2 | F114: ='Evac US101-S loc 104'!F114 -> 100 | G114: ='Evac US101-S loc 104'!G114 -> 15.08571429 | H114: ='Evac US101-S loc 104'!H114 -> 714 | I114: ='Evac US101-S loc 104'!I114 -> 104.124765 | J114: ='Evac US101-S loc 104'!J114 -> 9.373809524 | L114: ='Routine US101-S loc 104'!A114 -> 2019-10-16T09:20:00 | M114: ='Routine US101-S loc 104'!B114 -> 6 | N114: ='Routine US101-S loc 104'!C114 -> 166 | O114: ='Routine US101-S loc 104'!D114 -> 62.9 | P114: ='Routine US101-S loc 104'!E114 -> 2 | Q114: ='Routine US101-S loc 104'!F114 -> 100 | R114: ='Routine US101-S loc 104'!G114 -> 21.55102041 | S114: ='Routine US101-S loc 104'!H114 -> 996 | T114: ='Routine US101-S loc 104'!I114 -> 101.2279401 | U114: ='Routine US101-S loc 104'!J114 -> 13.39115646 | W114: ='Evac US101-S loc 78'!L18 -> 2019-10-27T16:00:00 | X114: ='Evac US101-S loc 78'!M18 -> 5.1 | Y114: ='Evac US101-S loc 78'!N18 -> 2189 | Z114: ='Evac US101-S loc 78'!O18 -> 61.7 | AA114: ='Evac US101-S loc 78'!P18 -> 36 | AB114: ='Evac US101-S loc 78'!Q18 -> 0 | AC114: ='Evac US101-S loc 78'!R18 -> 18.31836735 | AD114: ='Evac US101-S loc 78'!S18 -> 729.6666667 | AE114: ='Evac US101-S loc 78'!T18 -> 99.29672339 | AF114: ='Evac US101-S loc 78'!U18 -> 11.38248299 | AH114: ='Routine US101-S Hopper Ave 2'!L42 -> 2019-10-22T16:00:00 | AI114: ='Routine US101-S Hopper Ave 2'!M42 -> 19.7 | AJ114: ='Routine US101-S Hopper Ave 2'!N42 -> 2440 | AK114: ='Routine US101-S Hopper Ave 2'!O42 -> 28 | AL114: ='Routine US101-S Hopper Ave 2'!P42 -> 36 | AM114: ='Routine US101-S Hopper Ave 2'!Q42 -> 100 | AN114: ='Routine US101-S Hopper Ave 2'!R42 -> 70.75918367 | AO114: ='Routine US101-S Hopper Ave 2'!S42 -> 813.3333333 | AP114: ='Routine US101-S Hopper Ave 2'!T42 -> 45.06172212 | AQ114: ='Routine US101-S Hopper Ave 2'!U42 -> 43.96763039
A115: ='Evac US101-S loc 104'!A115 -> 2019-10-26T09:25:00 | B115: ='Evac US101-S loc 104'!B115 -> 3 | C115: ='Evac US101-S loc 104'!C115 -> 95 | D115: ='Evac US101-S loc 104'!D115 -> 66.5 | E115: ='Evac US101-S loc 104'!E115 -> 2 | F115: ='Evac US101-S loc 104'!F115 -> 100 | G115: ='Evac US101-S loc 104'!G115 -> 10.7755102 | H115: ='Evac US101-S loc 104'!H115 -> 570 | I115: ='Evac US101-S loc 104'!I115 -> 107.02159 | J115: ='Evac US101-S loc 104'!J115 -> 6.695578231 | L115: ='Routine US101-S loc 104'!A115 -> 2019-10-16T09:25:00 | M115: ='Routine US101-S loc 104'!B115 -> 4.5 | N115: ='Routine US101-S loc 104'!C115 -> 123 | O115: ='Routine US101-S loc 104'!D115 -> 61 | P115: ='Routine US101-S loc 104'!E115 -> 2 | Q115: ='Routine US101-S loc 104'!F115 -> 100 | R115: ='Routine US101-S loc 104'!G115 -> 16.16326531 | S115: ='Routine US101-S loc 104'!H115 -> 738 | T115: ='Routine US101-S loc 104'!I115 -> 98.17018034 | U115: ='Routine US101-S loc 104'!J115 -> 10.04336735 | W115: ='Evac US101-S loc 78'!L19 -> 2019-10-27T17:00:00 | X115: ='Evac US101-S loc 78'!M19 -> 5.1 | Y115: ='Evac US101-S loc 78'!N19 -> 2188 | Z115: ='Evac US101-S loc 78'!O19 -> 61.3 | AA115: ='Evac US101-S loc 78'!P19 -> 36 | AB115: ='Evac US101-S loc 78'!Q19 -> 0 | AC115: ='Evac US101-S loc 78'!R19 -> 18.31836735 | AD115: ='Evac US101-S loc 78'!S19 -> 729.3333333 | AE115: ='Evac US101-S loc 78'!T19 -> 98.65298451 | AF115: ='Evac US101-S loc 78'!U19 -> 11.38248299 | AH115: ='Routine US101-S Hopper Ave 2'!L43 -> 2019-10-22T17:00:00 | AI115: ='Routine US101-S Hopper Ave 2'!M43 -> 23 | AJ115: ='Routine US101-S Hopper Ave 2'!N43 -> 2343 | AK115: ='Routine US101-S Hopper Ave 2'!O43 -> 25.6 | AL115: ='Routine US101-S Hopper Ave 2'!P43 -> 36 | AM115: ='Routine US101-S Hopper Ave 2'!Q43 -> 100 | AN115: ='Routine US101-S Hopper Ave 2'!R43 -> 82.6122449 | AO115: ='Routine US101-S Hopper Ave 2'!S43 -> 781 | AP115: ='Routine US101-S Hopper Ave 2'!T43 -> 41.1992888 | AQ115: ='Routine US101-S Hopper Ave 2'!U43 -> 51.33276644
A116: ='Evac US101-S loc 104'!A116 -> 2019-10-26T09:30:00 | B116: ='Evac US101-S loc 104'!B116 -> 2.8 | C116: ='Evac US101-S loc 104'!C116 -> 91 | D116: ='Evac US101-S loc 104'!D116 -> 68 | E116: ='Evac US101-S loc 104'!E116 -> 2 | F116: ='Evac US101-S loc 104'!F116 -> 100 | G116: ='Evac US101-S loc 104'!G116 -> 10.05714286 | H116: ='Evac US101-S loc 104'!H116 -> 546 | I116: ='Evac US101-S loc 104'!I116 -> 109.4356109 | J116: ='Evac US101-S loc 104'!J116 -> 6.249206349 | L116: ='Routine US101-S loc 104'!A116 -> 2019-10-16T09:30:00 | M116: ='Routine US101-S loc 104'!B116 -> 4.5 | N116: ='Routine US101-S loc 104'!C116 -> 132 | O116: ='Routine US101-S loc 104'!D116 -> 63.5 | P116: ='Routine US101-S loc 104'!E116 -> 2 | Q116: ='Routine US101-S loc 104'!F116 -> 100 | R116: ='Routine US101-S loc 104'!G116 -> 16.16326531 | S116: ='Routine US101-S loc 104'!H116 -> 792 | T116: ='Routine US101-S loc 104'!I116 -> 102.1935484 | U116: ='Routine US101-S loc 104'!J116 -> 10.04336735 | W116: ='Evac US101-S loc 78'!L20 -> 2019-10-27T18:00:00 | X116: ='Evac US101-S loc 78'!M20 -> 4.8 | Y116: ='Evac US101-S loc 78'!N20 -> 2013 | Z116: ='Evac US101-S loc 78'!O20 -> 62.8 | AA116: ='Evac US101-S loc 78'!P20 -> 36 | AB116: ='Evac US101-S loc 78'!Q20 -> 0 | AC116: ='Evac US101-S loc 78'!R20 -> 17.24081633 | AD116: ='Evac US101-S loc 78'!S20 -> 671 | AE116: ='Evac US101-S loc 78'!T20 -> 101.0670053 | AF116: ='Evac US101-S loc 78'!U20 -> 10.71292517 | AH116: ='Routine US101-S Hopper Ave 2'!L44 -> 2019-10-22T18:00:00 | AI116: ='Routine US101-S Hopper Ave 2'!M44 -> 7.5 | AJ116: ='Routine US101-S Hopper Ave 2'!N44 -> 1793 | AK116: ='Routine US101-S Hopper Ave 2'!O44 -> 51.1 | AL116: ='Routine US101-S Hopper Ave 2'!P44 -> 33 | AM116: ='Routine US101-S Hopper Ave 2'!Q44 -> 100 | AN116: ='Routine US101-S Hopper Ave 2'!R44 -> 26.93877551 | AO116: ='Routine US101-S Hopper Ave 2'!S44 -> 652 | AP116: ='Routine US101-S Hopper Ave 2'!T44 -> 82.23764288 | AQ116: ='Routine US101-S Hopper Ave 2'!U44 -> 16.73894558
A117: ='Evac US101-S loc 104'!A117 -> 2019-10-26T09:35:00 | B117: ='Evac US101-S loc 104'!B117 -> 3.8 | C117: ='Evac US101-S loc 104'!C117 -> 110 | D117: ='Evac US101-S loc 104'!D117 -> 65.8 | E117: ='Evac US101-S loc 104'!E117 -> 2 | F117: ='Evac US101-S loc 104'!F117 -> 100 | G117: ='Evac US101-S loc 104'!G117 -> 13.64897959 | H117: ='Evac US101-S loc 104'!H117 -> 660 | I117: ='Evac US101-S loc 104'!I117 -> 105.895047 | J117: ='Evac US101-S loc 104'!J117 -> 8.48106576 | L117: ='Routine US101-S loc 104'!A117 -> 2019-10-16T09:35:00 | M117: ='Routine US101-S loc 104'!B117 -> 5.9 | N117: ='Routine US101-S loc 104'!C117 -> 133 | O117: ='Routine US101-S loc 104'!D117 -> 59.7 | P117: ='Routine US101-S loc 104'!E117 -> 2 | Q117: ='Routine US101-S loc 104'!F117 -> 100 | R117: ='Routine US101-S loc 104'!G117 -> 21.19183673 | S117: ='Routine US101-S loc 104'!H117 -> 798 | T117: ='Routine US101-S loc 104'!I117 -> 96.07802896 | U117: ='Routine US101-S loc 104'!J117 -> 13.16797052 | W117: ='Evac US101-S loc 78'!L21 -> 2019-10-27T19:00:00 | X117: ='Evac US101-S loc 78'!M21 -> 5 | Y117: ='Evac US101-S loc 78'!N21 -> 2117 | Z117: ='Evac US101-S loc 78'!O21 -> 61.9 | AA117: ='Evac US101-S loc 78'!P21 -> 36 | AB117: ='Evac US101-S loc 78'!Q21 -> 0 | AC117: ='Evac US101-S loc 78'!R21 -> 17.95918367 | AD117: ='Evac US101-S loc 78'!S21 -> 705.6666667 | AE117: ='Evac US101-S loc 78'!T21 -> 99.61859284 | AF117: ='Evac US101-S loc 78'!U21 -> 11.15929705 | AH117: ='Routine US101-S Hopper Ave 2'!L45 -> 2019-10-22T19:00:00 | AI117: ='Routine US101-S Hopper Ave 2'!M45 -> 3.5 | AJ117: ='Routine US101-S Hopper Ave 2'!N45 -> 1634 | AK117: ='Routine US101-S Hopper Ave 2'!O45 -> 68 | AL117: ='Routine US101-S Hopper Ave 2'!P45 -> 36 | AM117: ='Routine US101-S Hopper Ave 2'!Q45 -> 100 | AN117: ='Routine US101-S Hopper Ave 2'!R45 -> 12.57142857 | AO117: ='Routine US101-S Hopper Ave 2'!S45 -> 544.6666667 | AP117: ='Routine US101-S Hopper Ave 2'!T45 -> 109.4356109 | AQ117: ='Routine US101-S Hopper Ave 2'!U45 -> 7.811507937
A118: ='Evac US101-S loc 104'!A118 -> 2019-10-26T09:40:00 | B118: ='Evac US101-S loc 104'!B118 -> 3.8 | C118: ='Evac US101-S loc 104'!C118 -> 118 | D118: ='Evac US101-S loc 104'!D118 -> 66.8 | E118: ='Evac US101-S loc 104'!E118 -> 2 | F118: ='Evac US101-S loc 104'!F118 -> 100 | G118: ='Evac US101-S loc 104'!G118 -> 13.64897959 | H118: ='Evac US101-S loc 104'!H118 -> 708 | I118: ='Evac US101-S loc 104'!I118 -> 107.5043942 | J118: ='Evac US101-S loc 104'!J118 -> 8.48106576 | L118: ='Routine US101-S loc 104'!A118 -> 2019-10-16T09:40:00 | M118: ='Routine US101-S loc 104'!B118 -> 5.3 | N118: ='Routine US101-S loc 104'!C118 -> 150 | O118: ='Routine US101-S loc 104'!D118 -> 60.6 | P118: ='Routine US101-S loc 104'!E118 -> 2 | Q118: ='Routine US101-S loc 104'!F118 -> 100 | R118: ='Routine US101-S loc 104'!G118 -> 19.03673469 | S118: ='Routine US101-S loc 104'!H118 -> 900 | T118: ='Routine US101-S loc 104'!I118 -> 97.52644145 | U118: ='Routine US101-S loc 104'!J118 -> 11.82885488 | W118: ='Evac US101-S loc 78'!L22 -> 2019-10-27T20:00:00 | X118: ='Evac US101-S loc 78'!M22 -> 4.6 | Y118: ='Evac US101-S loc 78'!N22 -> 1892 | Z118: ='Evac US101-S loc 78'!O22 -> 61.9 | AA118: ='Evac US101-S loc 78'!P22 -> 36 | AB118: ='Evac US101-S loc 78'!Q22 -> 0 | AC118: ='Evac US101-S loc 78'!R22 -> 16.52244898 | AD118: ='Evac US101-S loc 78'!S22 -> 630.6666667 | AE118: ='Evac US101-S loc 78'!T22 -> 99.61859284 | AF118: ='Evac US101-S loc 78'!U22 -> 10.26655329 | AH118: ='Routine US101-S Hopper Ave 2'!L46 -> 2019-10-22T20:00:00 | AI118: ='Routine US101-S Hopper Ave 2'!M46 -> 2.4 | AJ118: ='Routine US101-S Hopper Ave 2'!N46 -> 1139 | AK118: ='Routine US101-S Hopper Ave 2'!O46 -> 68.2 | AL118: ='Routine US101-S Hopper Ave 2'!P46 -> 36 | AM118: ='Routine US101-S Hopper Ave 2'!Q46 -> 100 | AN118: ='Routine US101-S Hopper Ave 2'!R46 -> 8.620408163 | AO118: ='Routine US101-S Hopper Ave 2'!S46 -> 379.6666667 | AP118: ='Routine US101-S Hopper Ave 2'!T46 -> 109.7574803 | AQ118: ='Routine US101-S Hopper Ave 2'!U46 -> 5.356462585
A119: ='Evac US101-S loc 104'!A119 -> 2019-10-26T09:45:00 | B119: ='Evac US101-S loc 104'!B119 -> 4.7 | C119: ='Evac US101-S loc 104'!C119 -> 140 | D119: ='Evac US101-S loc 104'!D119 -> 66.2 | E119: ='Evac US101-S loc 104'!E119 -> 2 | F119: ='Evac US101-S loc 104'!F119 -> 100 | G119: ='Evac US101-S loc 104'!G119 -> 16.88163265 | H119: ='Evac US101-S loc 104'!H119 -> 840 | I119: ='Evac US101-S loc 104'!I119 -> 106.5387859 | J119: ='Evac US101-S loc 104'!J119 -> 10.48973923 | L119: ='Routine US101-S loc 104'!A119 -> 2019-10-16T09:45:00 | M119: ='Routine US101-S loc 104'!B119 -> 4.5 | N119: ='Routine US101-S loc 104'!C119 -> 133 | O119: ='Routine US101-S loc 104'!D119 -> 63.3 | P119: ='Routine US101-S loc 104'!E119 -> 2 | Q119: ='Routine US101-S loc 104'!F119 -> 100 | R119: ='Routine US101-S loc 104'!G119 -> 16.16326531 | S119: ='Routine US101-S loc 104'!H119 -> 798 | T119: ='Routine US101-S loc 104'!I119 -> 101.8716789 | U119: ='Routine US101-S loc 104'!J119 -> 10.04336735 | W119: ='Evac US101-S loc 78'!L23 -> 2019-10-27T21:00:00 | X119: ='Evac US101-S loc 78'!M23 -> 3.3 | Y119: ='Evac US101-S loc 78'!N23 -> 1208 | Z119: ='Evac US101-S loc 78'!O23 -> 63.8 | AA119: ='Evac US101-S loc 78'!P23 -> 36 | AB119: ='Evac US101-S loc 78'!Q23 -> 0 | AC119: ='Evac US101-S loc 78'!R23 -> 11.85306122 | AD119: ='Evac US101-S loc 78'!S23 -> 402.6666667 | AE119: ='Evac US101-S loc 78'!T23 -> 102.6763526 | AF119: ='Evac US101-S loc 78'!U23 -> 7.365136054 | AH119: ='Routine US101-S Hopper Ave 2'!L47 -> 2019-10-22T21:00:00 | AI119: ='Routine US101-S Hopper Ave 2'!M47 -> 1.9 | AJ119: ='Routine US101-S Hopper Ave 2'!N47 -> 908 | AK119: ='Routine US101-S Hopper Ave 2'!O47 -> 67.8 | AL119: ='Routine US101-S Hopper Ave 2'!P47 -> 36 | AM119: ='Routine US101-S Hopper Ave 2'!Q47 -> 100 | AN119: ='Routine US101-S Hopper Ave 2'!R47 -> 6.824489796 | AO119: ='Routine US101-S Hopper Ave 2'!S47 -> 302.6666667 | AP119: ='Routine US101-S Hopper Ave 2'!T47 -> 109.1137414 | AQ119: ='Routine US101-S Hopper Ave 2'!U47 -> 4.24053288
A120: ='Evac US101-S loc 104'!A120 -> 2019-10-26T09:50:00 | B120: ='Evac US101-S loc 104'!B120 -> 4.3 | C120: ='Evac US101-S loc 104'!C120 -> 136 | D120: ='Evac US101-S loc 104'!D120 -> 67.1 | E120: ='Evac US101-S loc 104'!E120 -> 2 | F120: ='Evac US101-S loc 104'!F120 -> 100 | G120: ='Evac US101-S loc 104'!G120 -> 15.44489796 | H120: ='Evac US101-S loc 104'!H120 -> 816 | I120: ='Evac US101-S loc 104'!I120 -> 107.9871984 | J120: ='Evac US101-S loc 104'!J120 -> 9.596995465 | L120: ='Routine US101-S loc 104'!A120 -> 2019-10-16T09:50:00 | M120: ='Routine US101-S loc 104'!B120 -> 4.9 | N120: ='Routine US101-S loc 104'!C120 -> 135 | O120: ='Routine US101-S loc 104'!D120 -> 62 | P120: ='Routine US101-S loc 104'!E120 -> 2 | Q120: ='Routine US101-S loc 104'!F120 -> 100 | R120: ='Routine US101-S loc 104'!G120 -> 17.6 | S120: ='Routine US101-S loc 104'!H120 -> 810 | T120: ='Routine US101-S loc 104'!I120 -> 99.77952756 | U120: ='Routine US101-S loc 104'!J120 -> 10.93611111 | W120: ='Evac US101-S loc 78'!L24 -> 2019-10-27T22:00:00 | X120: ='Evac US101-S loc 78'!M24 -> 2.7 | Y120: ='Evac US101-S loc 78'!N24 -> 865 | Z120: ='Evac US101-S loc 78'!O24 -> 64 | AA120: ='Evac US101-S loc 78'!P24 -> 36 | AB120: ='Evac US101-S loc 78'!Q24 -> 0 | AC120: ='Evac US101-S loc 78'!R24 -> 9.697959184 | AD120: ='Evac US101-S loc 78'!S24 -> 288.3333333 | AE120: ='Evac US101-S loc 78'!T24 -> 102.998222 | AF120: ='Evac US101-S loc 78'!U24 -> 6.026020408 | AH120: ='Routine US101-S Hopper Ave 2'!L48 -> 2019-10-22T22:00:00 | AI120: ='Routine US101-S Hopper Ave 2'!M48 -> 1.4 | AJ120: ='Routine US101-S Hopper Ave 2'!N48 -> 660 | AK120: ='Routine US101-S Hopper Ave 2'!O48 -> 67 | AL120: ='Routine US101-S Hopper Ave 2'!P48 -> 36 | AM120: ='Routine US101-S Hopper Ave 2'!Q48 -> 100 | AN120: ='Routine US101-S Hopper Ave 2'!R48 -> 5.028571429 | AO120: ='Routine US101-S Hopper Ave 2'!S48 -> 220 | AP120: ='Routine US101-S Hopper Ave 2'!T48 -> 107.8262637 | AQ120: ='Routine US101-S Hopper Ave 2'!U48 -> 3.124603175
A121: ='Evac US101-S loc 104'!A121 -> 2019-10-26T09:55:00 | B121: ='Evac US101-S loc 104'!B121 -> 5.1 | C121: ='Evac US101-S loc 104'!C121 -> 145 | D121: ='Evac US101-S loc 104'!D121 -> 64.8 | E121: ='Evac US101-S loc 104'!E121 -> 2 | F121: ='Evac US101-S loc 104'!F121 -> 100 | G121: ='Evac US101-S loc 104'!G121 -> 18.31836735 | H121: ='Evac US101-S loc 104'!H121 -> 870 | I121: ='Evac US101-S loc 104'!I121 -> 104.2856998 | J121: ='Evac US101-S loc 104'!J121 -> 11.38248299 | L121: ='Routine US101-S loc 104'!A121 -> 2019-10-16T09:55:00 | M121: ='Routine US101-S loc 104'!B121 -> 5.2 | N121: ='Routine US101-S loc 104'!C121 -> 148 | O121: ='Routine US101-S loc 104'!D121 -> 62.6 | P121: ='Routine US101-S loc 104'!E121 -> 2 | Q121: ='Routine US101-S loc 104'!F121 -> 100 | R121: ='Routine US101-S loc 104'!G121 -> 18.67755102 | S121: ='Routine US101-S loc 104'!H121 -> 888 | T121: ='Routine US101-S loc 104'!I121 -> 100.7451359 | U121: ='Routine US101-S loc 104'!J121 -> 11.60566893 | W121: ='Evac US101-S loc 78'!L25 -> 2019-10-27T23:00:00 | X121: ='Evac US101-S loc 78'!M25 -> 2.6 | Y121: ='Evac US101-S loc 78'!N25 -> 776 | Z121: ='Evac US101-S loc 78'!O25 -> 63.2 | AA121: ='Evac US101-S loc 78'!P25 -> 36 | AB121: ='Evac US101-S loc 78'!Q25 -> 0 | AC121: ='Evac US101-S loc 78'!R25 -> 9.33877551 | AD121: ='Evac US101-S loc 78'!S25 -> 258.6666667 | AE121: ='Evac US101-S loc 78'!T25 -> 101.7107442 | AF121: ='Evac US101-S loc 78'!U25 -> 5.802834467 | AH121: ='Routine US101-S Hopper Ave 2'!L49 -> 2019-10-22T23:00:00 | AI121: ='Routine US101-S Hopper Ave 2'!M49 -> 1.1 | AJ121: ='Routine US101-S Hopper Ave 2'!N49 -> 490 | AK121: ='Routine US101-S Hopper Ave 2'!O49 -> 66.6 | AL121: ='Routine US101-S Hopper Ave 2'!P49 -> 36 | AM121: ='Routine US101-S Hopper Ave 2'!Q49 -> 100 | AN121: ='Routine US101-S Hopper Ave 2'!R49 -> 3.951020408 | AO121: ='Routine US101-S Hopper Ave 2'!S49 -> 163.3333333 | AP121: ='Routine US101-S Hopper Ave 2'!T49 -> 107.1825248 | AQ121: ='Routine US101-S Hopper Ave 2'!U49 -> 2.455045351
A122: ='Evac US101-S loc 104'!A122 -> 2019-10-26T10:00:00 | B122: ='Evac US101-S loc 104'!B122 -> 4.6 | C122: ='Evac US101-S loc 104'!C122 -> 141 | D122: ='Evac US101-S loc 104'!D122 -> 65.5 | E122: ='Evac US101-S loc 104'!E122 -> 2 | F122: ='Evac US101-S loc 104'!F122 -> 100 | G122: ='Evac US101-S loc 104'!G122 -> 16.52244898 | H122: ='Evac US101-S loc 104'!H122 -> 846 | I122: ='Evac US101-S loc 104'!I122 -> 105.4122428 | J122: ='Evac US101-S loc 104'!J122 -> 10.26655329 | L122: ='Routine US101-S loc 104'!A122 -> 2019-10-16T10:00:00 | M122: ='Routine US101-S loc 104'!B122 -> 5.1 | N122: ='Routine US101-S loc 104'!C122 -> 142 | O122: ='Routine US101-S loc 104'!D122 -> 62.2 | P122: ='Routine US101-S loc 104'!E122 -> 2 | Q122: ='Routine US101-S loc 104'!F122 -> 100 | R122: ='Routine US101-S loc 104'!G122 -> 18.31836735 | S122: ='Routine US101-S loc 104'!H122 -> 852 | T122: ='Routine US101-S loc 104'!I122 -> 100.101397 | U122: ='Routine US101-S loc 104'!J122 -> 11.38248299 | W122: ='Evac US101-S loc 66 1'!L2 -> 2019-10-24 | X122: ='Evac US101-S loc 66 1'!M2 -> 2.3 | Y122: ='Evac US101-S loc 66 1'!N2 -> 412 | Z122: ='Evac US101-S loc 66 1'!O2 -> 65.3 | AA122: ='Evac US101-S loc 66 1'!P2 -> 24 | AB122: ='Evac US101-S loc 66 1'!Q2 -> 0 | AC122: ='Evac US101-S loc 66 1'!R2 -> 8.26122449 | AD122: ='Evac US101-S loc 66 1'!S2 -> 206 | AE122: ='Evac US101-S loc 66 1'!T2 -> 105.0903734 | AF122: ='Evac US101-S loc 66 1'!U2 -> 5.133276644 | AH122: ='Routine US101-N loc 78 '!L2 -> 2019-10-16 | AI122: ='Routine US101-N loc 78 '!M2 -> 3.1 | AJ122: ='Routine US101-N loc 78 '!N2 -> 916 | AK122: ='Routine US101-N loc 78 '!O2 -> 65.4 | AL122: ='Routine US101-N loc 78 '!P2 -> 36 | AM122: ='Routine US101-N loc 78 '!Q2 -> 0 | AN122: ='Routine US101-N loc 78 '!R2 -> 11.13469388 | AO122: ='Routine US101-N loc 78 '!S2 -> 305.3333333 | AP122: ='Routine US101-N loc 78 '!T2 -> 105.2513081 | AQ122: ='Routine US101-N loc 78 '!U2 -> 6.918764172
A123: ='Evac US101-S loc 104'!A123 -> 2019-10-26T10:05:00 | B123: ='Evac US101-S loc 104'!B123 -> 4.6 | C123: ='Evac US101-S loc 104'!C123 -> 131 | D123: ='Evac US101-S loc 104'!D123 -> 64 | E123: ='Evac US101-S loc 104'!E123 -> 2 | F123: ='Evac US101-S loc 104'!F123 -> 100 | G123: ='Evac US101-S loc 104'!G123 -> 16.52244898 | H123: ='Evac US101-S loc 104'!H123 -> 786 | I123: ='Evac US101-S loc 104'!I123 -> 102.998222 | J123: ='Evac US101-S loc 104'!J123 -> 10.26655329 | L123: ='Routine US101-S loc 104'!A123 -> 2019-10-16T10:05:00 | M123: ='Routine US101-S loc 104'!B123 -> 4.7 | N123: ='Routine US101-S loc 104'!C123 -> 123 | O123: ='Routine US101-S loc 104'!D123 -> 61.2 | P123: ='Routine US101-S loc 104'!E123 -> 2 | Q123: ='Routine US101-S loc 104'!F123 -> 100 | R123: ='Routine US101-S loc 104'!G123 -> 16.88163265 | S123: ='Routine US101-S loc 104'!H123 -> 738 | T123: ='Routine US101-S loc 104'!I123 -> 98.49204978 | U123: ='Routine US101-S loc 104'!J123 -> 10.48973923 | W123: ='Evac US101-S loc 66 1'!L3 -> 2019-10-24T01:00:00 | X123: ='Evac US101-S loc 66 1'!M3 -> 2.3 | Y123: ='Evac US101-S loc 66 1'!N3 -> 402 | Z123: ='Evac US101-S loc 66 1'!O3 -> 65.4 | AA123: ='Evac US101-S loc 66 1'!P3 -> 24 | AB123: ='Evac US101-S loc 66 1'!Q3 -> 0 | AC123: ='Evac US101-S loc 66 1'!R3 -> 8.26122449 | AD123: ='Evac US101-S loc 66 1'!S3 -> 201 | AE123: ='Evac US101-S loc 66 1'!T3 -> 105.2513081 | AF123: ='Evac US101-S loc 66 1'!U3 -> 5.133276644 | AH123: ='Routine US101-N loc 78 '!L3 -> 2019-10-16T01:00:00 | AI123: ='Routine US101-N loc 78 '!M3 -> 2.7 | AJ123: ='Routine US101-N loc 78 '!N3 -> 755 | AK123: ='Routine US101-N loc 78 '!O3 -> 65.1 | AL123: ='Routine US101-N loc 78 '!P3 -> 36 | AM123: ='Routine US101-N loc 78 '!Q3 -> 0 | AN123: ='Routine US101-N loc 78 '!R3 -> 9.697959184 | AO123: ='Routine US101-N loc 78 '!S3 -> 251.6666667 | AP123: ='Routine US101-N loc 78 '!T3 -> 104.7685039 | AQ123: ='Routine US101-N loc 78 '!U3 -> 6.026020408
A124: ='Evac US101-S loc 104'!A124 -> 2019-10-26T10:10:00 | B124: ='Evac US101-S loc 104'!B124 -> 4.2 | C124: ='Evac US101-S loc 104'!C124 -> 129 | D124: ='Evac US101-S loc 104'!D124 -> 65.3 | E124: ='Evac US101-S loc 104'!E124 -> 2 | F124: ='Evac US101-S loc 104'!F124 -> 100 | G124: ='Evac US101-S loc 104'!G124 -> 15.08571429 | H124: ='Evac US101-S loc 104'!H124 -> 774 | I124: ='Evac US101-S loc 104'!I124 -> 105.0903734 | J124: ='Evac US101-S loc 104'!J124 -> 9.373809524 | L124: ='Routine US101-S loc 104'!A124 -> 2019-10-16T10:10:00 | M124: ='Routine US101-S loc 104'!B124 -> 5 | N124: ='Routine US101-S loc 104'!C124 -> 145 | O124: ='Routine US101-S loc 104'!D124 -> 61.7 | P124: ='Routine US101-S loc 104'!E124 -> 2 | Q124: ='Routine US101-S loc 104'!F124 -> 100 | R124: ='Routine US101-S loc 104'!G124 -> 17.95918367 | S124: ='Routine US101-S loc 104'!H124 -> 870 | T124: ='Routine US101-S loc 104'!I124 -> 99.29672339 | U124: ='Routine US101-S loc 104'!J124 -> 11.15929705 | W124: ='Evac US101-S loc 66 1'!L4 -> 2019-10-24T02:00:00 | X124: ='Evac US101-S loc 66 1'!M4 -> 2.4 | Y124: ='Evac US101-S loc 66 1'!N4 -> 420 | Z124: ='Evac US101-S loc 66 1'!O4 -> 65.1 | AA124: ='Evac US101-S loc 66 1'!P4 -> 24 | AB124: ='Evac US101-S loc 66 1'!Q4 -> 0 | AC124: ='Evac US101-S loc 66 1'!R4 -> 8.620408163 | AD124: ='Evac US101-S loc 66 1'!S4 -> 210 | AE124: ='Evac US101-S loc 66 1'!T4 -> 104.7685039 | AF124: ='Evac US101-S loc 66 1'!U4 -> 5.356462585 | AH124: ='Routine US101-N loc 78 '!L4 -> 2019-10-16T02:00:00 | AI124: ='Routine US101-N loc 78 '!M4 -> 2.7 | AJ124: ='Routine US101-N loc 78 '!N4 -> 743 | AK124: ='Routine US101-N loc 78 '!O4 -> 65.1 | AL124: ='Routine US101-N loc 78 '!P4 -> 36 | AM124: ='Routine US101-N loc 78 '!Q4 -> 0 | AN124: ='Routine US101-N loc 78 '!R4 -> 9.697959184 | AO124: ='Routine US101-N loc 78 '!S4 -> 247.6666667 | AP124: ='Routine US101-N loc 78 '!T4 -> 104.7685039 | AQ124: ='Routine US101-N loc 78 '!U4 -> 6.026020408
A125: ='Evac US101-S loc 104'!A125 -> 2019-10-26T10:15:00 | B125: ='Evac US101-S loc 104'!B125 -> 4.8 | C125: ='Evac US101-S loc 104'!C125 -> 140 | D125: ='Evac US101-S loc 104'!D125 -> 64.7 | E125: ='Evac US101-S loc 104'!E125 -> 2 | F125: ='Evac US101-S loc 104'!F125 -> 100 | G125: ='Evac US101-S loc 104'!G125 -> 17.24081633 | H125: ='Evac US101-S loc 104'!H125 -> 840 | I125: ='Evac US101-S loc 104'!I125 -> 104.124765 | J125: ='Evac US101-S loc 104'!J125 -> 10.71292517 | L125: ='Routine US101-S loc 104'!A125 -> 2019-10-16T10:15:00 | M125: ='Routine US101-S loc 104'!B125 -> 5.9 | N125: ='Routine US101-S loc 104'!C125 -> 160 | O125: ='Routine US101-S loc 104'!D125 -> 62.1 | P125: ='Routine US101-S loc 104'!E125 -> 2 | Q125: ='Routine US101-S loc 104'!F125 -> 100 | R125: ='Routine US101-S loc 104'!G125 -> 21.19183673 | S125: ='Routine US101-S loc 104'!H125 -> 960 | T125: ='Routine US101-S loc 104'!I125 -> 99.94046228 | U125: ='Routine US101-S loc 104'!J125 -> 13.16797052 | W125: ='Evac US101-S loc 66 1'!L5 -> 2019-10-24T03:00:00 | X125: ='Evac US101-S loc 66 1'!M5 -> 2.9 | Y125: ='Evac US101-S loc 66 1'!N5 -> 585 | Z125: ='Evac US101-S loc 66 1'!O5 -> 65.5 | AA125: ='Evac US101-S loc 66 1'!P5 -> 24 | AB125: ='Evac US101-S loc 66 1'!Q5 -> 0 | AC125: ='Evac US101-S loc 66 1'!R5 -> 10.41632653 | AD125: ='Evac US101-S loc 66 1'!S5 -> 292.5 | AE125: ='Evac US101-S loc 66 1'!T5 -> 105.4122428 | AF125: ='Evac US101-S loc 66 1'!U5 -> 6.47239229 | AH125: ='Routine US101-N loc 78 '!L5 -> 2019-10-16T03:00:00 | AI125: ='Routine US101-N loc 78 '!M5 -> 2.8 | AJ125: ='Routine US101-N loc 78 '!N5 -> 712 | AK125: ='Routine US101-N loc 78 '!O5 -> 64.9 | AL125: ='Routine US101-N loc 78 '!P5 -> 36 | AM125: ='Routine US101-N loc 78 '!Q5 -> 0 | AN125: ='Routine US101-N loc 78 '!R5 -> 10.05714286 | AO125: ='Routine US101-N loc 78 '!S5 -> 237.3333333 | AP125: ='Routine US101-N loc 78 '!T5 -> 104.4466345 | AQ125: ='Routine US101-N loc 78 '!U5 -> 6.249206349
A126: ='Evac US101-S loc 104'!A126 -> 2019-10-26T10:20:00 | B126: ='Evac US101-S loc 104'!B126 -> 3.6 | C126: ='Evac US101-S loc 104'!C126 -> 111 | D126: ='Evac US101-S loc 104'!D126 -> 65.6 | E126: ='Evac US101-S loc 104'!E126 -> 2 | F126: ='Evac US101-S loc 104'!F126 -> 100 | G126: ='Evac US101-S loc 104'!G126 -> 12.93061224 | H126: ='Evac US101-S loc 104'!H126 -> 666 | I126: ='Evac US101-S loc 104'!I126 -> 105.5731775 | J126: ='Evac US101-S loc 104'!J126 -> 8.034693878 | L126: ='Routine US101-S loc 104'!A126 -> 2019-10-16T10:20:00 | M126: ='Routine US101-S loc 104'!B126 -> 3.9 | N126: ='Routine US101-S loc 104'!C126 -> 108 | O126: ='Routine US101-S loc 104'!D126 -> 61.4 | P126: ='Routine US101-S loc 104'!E126 -> 2 | Q126: ='Routine US101-S loc 104'!F126 -> 100 | R126: ='Routine US101-S loc 104'!G126 -> 14.00816327 | S126: ='Routine US101-S loc 104'!H126 -> 648 | T126: ='Routine US101-S loc 104'!I126 -> 98.81391923 | U126: ='Routine US101-S loc 104'!J126 -> 8.704251701 | W126: ='Evac US101-S loc 66 1'!L6 -> 2019-10-24T04:00:00 | X126: ='Evac US101-S loc 66 1'!M6 -> 4.3 | Y126: ='Evac US101-S loc 66 1'!N6 -> 1088 | Z126: ='Evac US101-S loc 66 1'!O6 -> 64.4 | AA126: ='Evac US101-S loc 66 1'!P6 -> 24 | AB126: ='Evac US101-S loc 66 1'!Q6 -> 0 | AC126: ='Evac US101-S loc 66 1'!R6 -> 15.44489796 | AD126: ='Evac US101-S loc 66 1'!S6 -> 544 | AE126: ='Evac US101-S loc 66 1'!T6 -> 103.6419609 | AF126: ='Evac US101-S loc 66 1'!U6 -> 9.596995465 | AH126: ='Routine US101-N loc 78 '!L6 -> 2019-10-16T04:00:00 | AI126: ='Routine US101-N loc 78 '!M6 -> 3.2 | AJ126: ='Routine US101-N loc 78 '!N6 -> 822 | AK126: ='Routine US101-N loc 78 '!O6 -> 64.8 | AL126: ='Routine US101-N loc 78 '!P6 -> 36 | AM126: ='Routine US101-N loc 78 '!Q6 -> 0 | AN126: ='Routine US101-N loc 78 '!R6 -> 11.49387755 | AO126: ='Routine US101-N loc 78 '!S6 -> 274 | AP126: ='Routine US101-N loc 78 '!T6 -> 104.2856998 | AQ126: ='Routine US101-N loc 78 '!U6 -> 7.141950113
A127: ='Evac US101-S loc 104'!A127 -> 2019-10-26T10:25:00 | B127: ='Evac US101-S loc 104'!B127 -> 4.3 | C127: ='Evac US101-S loc 104'!C127 -> 138 | D127: ='Evac US101-S loc 104'!D127 -> 67.2 | E127: ='Evac US101-S loc 104'!E127 -> 2 | F127: ='Evac US101-S loc 104'!F127 -> 100 | G127: ='Evac US101-S loc 104'!G127 -> 15.44489796 | H127: ='Evac US101-S loc 104'!H127 -> 828 | I127: ='Evac US101-S loc 104'!I127 -> 108.1481331 | J127: ='Evac US101-S loc 104'!J127 -> 9.596995465 | L127: ='Routine US101-S loc 104'!A127 -> 2019-10-16T10:25:00 | M127: ='Routine US101-S loc 104'!B127 -> 4.9 | N127: ='Routine US101-S loc 104'!C127 -> 136 | O127: ='Routine US101-S loc 104'!D127 -> 61.5 | P127: ='Routine US101-S loc 104'!E127 -> 2 | Q127: ='Routine US101-S loc 104'!F127 -> 100 | R127: ='Routine US101-S loc 104'!G127 -> 17.6 | S127: ='Routine US101-S loc 104'!H127 -> 816 | T127: ='Routine US101-S loc 104'!I127 -> 98.97485395 | U127: ='Routine US101-S loc 104'!J127 -> 10.93611111 | W127: ='Evac US101-S loc 66 1'!L7 -> 2019-10-24T05:00:00 | X127: ='Evac US101-S loc 66 1'!M7 -> 5.9 | Y127: ='Evac US101-S loc 66 1'!N7 -> 1665 | Z127: ='Evac US101-S loc 66 1'!O7 -> 65.7 | AA127: ='Evac US101-S loc 66 1'!P7 -> 24 | AB127: ='Evac US101-S loc 66 1'!Q7 -> 0 | AC127: ='Evac US101-S loc 66 1'!R7 -> 21.19183673 | AD127: ='Evac US101-S loc 66 1'!S7 -> 832.5 | AE127: ='Evac US101-S loc 66 1'!T7 -> 105.7341123 | AF127: ='Evac US101-S loc 66 1'!U7 -> 13.16797052 | AH127: ='Routine US101-N loc 78 '!L7 -> 2019-10-16T05:00:00 | AI127: ='Routine US101-N loc 78 '!M7 -> 4.3 | AJ127: ='Routine US101-N loc 78 '!N7 -> 1249 | AK127: ='Routine US101-N loc 78 '!O7 -> 64.1 | AL127: ='Routine US101-N loc 78 '!P7 -> 36 | AM127: ='Routine US101-N loc 78 '!Q7 -> 0 | AN127: ='Routine US101-N loc 78 '!R7 -> 15.44489796 | AO127: ='Routine US101-N loc 78 '!S7 -> 416.3333333 | AP127: ='Routine US101-N loc 78 '!T7 -> 103.1591567 | AQ127: ='Routine US101-N loc 78 '!U7 -> 9.596995465
A128: ='Evac US101-S loc 104'!A128 -> 2019-10-26T10:30:00 | B128: ='Evac US101-S loc 104'!B128 -> 5.2 | C128: ='Evac US101-S loc 104'!C128 -> 150 | D128: ='Evac US101-S loc 104'!D128 -> 64.6 | E128: ='Evac US101-S loc 104'!E128 -> 2 | F128: ='Evac US101-S loc 104'!F128 -> 100 | G128: ='Evac US101-S loc 104'!G128 -> 18.67755102 | H128: ='Evac US101-S loc 104'!H128 -> 900 | I128: ='Evac US101-S loc 104'!I128 -> 103.9638303 | J128: ='Evac US101-S loc 104'!J128 -> 11.60566893 | L128: ='Routine US101-S loc 104'!A128 -> 2019-10-16T10:30:00 | M128: ='Routine US101-S loc 104'!B128 -> 5 | N128: ='Routine US101-S loc 104'!C128 -> 138 | O128: ='Routine US101-S loc 104'!D128 -> 61.7 | P128: ='Routine US101-S loc 104'!E128 -> 2 | Q128: ='Routine US101-S loc 104'!F128 -> 100 | R128: ='Routine US101-S loc 104'!G128 -> 17.95918367 | S128: ='Routine US101-S loc 104'!H128 -> 828 | T128: ='Routine US101-S loc 104'!I128 -> 99.29672339 | U128: ='Routine US101-S loc 104'!J128 -> 11.15929705 | W128: ='Evac US101-S loc 66 1'!L8 -> 2019-10-24T06:00:00 | X128: ='Evac US101-S loc 66 1'!M8 -> 6.8 | Y128: ='Evac US101-S loc 66 1'!N8 -> 2169 | Z128: ='Evac US101-S loc 66 1'!O8 -> 61.8 | AA128: ='Evac US101-S loc 66 1'!P8 -> 24 | AB128: ='Evac US101-S loc 66 1'!Q8 -> 0 | AC128: ='Evac US101-S loc 66 1'!R8 -> 24.4244898 | AD128: ='Evac US101-S loc 66 1'!S8 -> 1084.5 | AE128: ='Evac US101-S loc 66 1'!T8 -> 99.45765812 | AF128: ='Evac US101-S loc 66 1'!U8 -> 15.17664399 | AH128: ='Routine US101-N loc 78 '!L8 -> 2019-10-16T06:00:00 | AI128: ='Routine US101-N loc 78 '!M8 -> 6.9 | AJ128: ='Routine US101-N loc 78 '!N8 -> 2255 | AK128: ='Routine US101-N loc 78 '!O8 -> 61 | AL128: ='Routine US101-N loc 78 '!P8 -> 36 | AM128: ='Routine US101-N loc 78 '!Q8 -> 0 | AN128: ='Routine US101-N loc 78 '!R8 -> 24.78367347 | AO128: ='Routine US101-N loc 78 '!S8 -> 751.6666667 | AP128: ='Routine US101-N loc 78 '!T8 -> 98.17018034 | AQ128: ='Routine US101-N loc 78 '!U8 -> 15.39982993
A129: ='Evac US101-S loc 104'!A129 -> 2019-10-26T10:35:00 | B129: ='Evac US101-S loc 104'!B129 -> 6.2 | C129: ='Evac US101-S loc 104'!C129 -> 190 | D129: ='Evac US101-S loc 104'!D129 -> 65.1 | E129: ='Evac US101-S loc 104'!E129 -> 2 | F129: ='Evac US101-S loc 104'!F129 -> 100 | G129: ='Evac US101-S loc 104'!G129 -> 22.26938776 | H129: ='Evac US101-S loc 104'!H129 -> 1140 | I129: ='Evac US101-S loc 104'!I129 -> 104.7685039 | J129: ='Evac US101-S loc 104'!J129 -> 13.83752834 | L129: ='Routine US101-S loc 104'!A129 -> 2019-10-16T10:35:00 | M129: ='Routine US101-S loc 104'!B129 -> 5.5 | N129: ='Routine US101-S loc 104'!C129 -> 155 | O129: ='Routine US101-S loc 104'!D129 -> 61.6 | P129: ='Routine US101-S loc 104'!E129 -> 2 | Q129: ='Routine US101-S loc 104'!F129 -> 100 | R129: ='Routine US101-S loc 104'!G129 -> 19.75510204 | S129: ='Routine US101-S loc 104'!H129 -> 930 | T129: ='Routine US101-S loc 104'!I129 -> 99.13578867 | U129: ='Routine US101-S loc 104'!J129 -> 12.27522676 | W129: ='Evac US101-S loc 66 1'!L9 -> 2019-10-24T07:00:00 | X129: ='Evac US101-S loc 66 1'!M9 -> 8.7 | Y129: ='Evac US101-S loc 66 1'!N9 -> 2552 | Z129: ='Evac US101-S loc 66 1'!O9 -> 58.2 | AA129: ='Evac US101-S loc 66 1'!P9 -> 24 | AB129: ='Evac US101-S loc 66 1'!Q9 -> 0 | AC129: ='Evac US101-S loc 66 1'!R9 -> 31.24897959 | AD129: ='Evac US101-S loc 66 1'!S9 -> 1276 | AE129: ='Evac US101-S loc 66 1'!T9 -> 93.66400813 | AF129: ='Evac US101-S loc 66 1'!U9 -> 19.41717687 | AH129: ='Routine US101-N loc 78 '!L9 -> 2019-10-16T07:00:00 | AI129: ='Routine US101-N loc 78 '!M9 -> 14.7 | AJ129: ='Routine US101-N loc 78 '!N9 -> 3196 | AK129: ='Routine US101-N loc 78 '!O9 -> 44.6 | AL129: ='Routine US101-N loc 78 '!P9 -> 36 | AM129: ='Routine US101-N loc 78 '!Q9 -> 0 | AN129: ='Routine US101-N loc 78 '!R9 -> 52.8 | AO129: ='Routine US101-N loc 78 '!S9 -> 1065.333333 | AP129: ='Routine US101-N loc 78 '!T9 -> 71.77688595 | AQ129: ='Routine US101-N loc 78 '!U9 -> 32.80833333
A130: ='Evac US101-S loc 104'!A130 -> 2019-10-26T10:40:00 | B130: ='Evac US101-S loc 104'!B130 -> 6.8 | C130: ='Evac US101-S loc 104'!C130 -> 197 | D130: ='Evac US101-S loc 104'!D130 -> 64.1 | E130: ='Evac US101-S loc 104'!E130 -> 2 | F130: ='Evac US101-S loc 104'!F130 -> 100 | G130: ='Evac US101-S loc 104'!G130 -> 24.4244898 | H130: ='Evac US101-S loc 104'!H130 -> 1182 | I130: ='Evac US101-S loc 104'!I130 -> 103.1591567 | J130: ='Evac US101-S loc 104'!J130 -> 15.17664399 | L130: ='Routine US101-S loc 104'!A130 -> 2019-10-16T10:40:00 | M130: ='Routine US101-S loc 104'!B130 -> 4.4 | N130: ='Routine US101-S loc 104'!C130 -> 118 | O130: ='Routine US101-S loc 104'!D130 -> 60.7 | P130: ='Routine US101-S loc 104'!E130 -> 2 | Q130: ='Routine US101-S loc 104'!F130 -> 100 | R130: ='Routine US101-S loc 104'!G130 -> 15.80408163 | S130: ='Routine US101-S loc 104'!H130 -> 708 | T130: ='Routine US101-S loc 104'!I130 -> 97.68737617 | U130: ='Routine US101-S loc 104'!J130 -> 9.820181406 | W130: ='Evac US101-S loc 66 1'!L10 -> 2019-10-24T08:00:00 | X130: ='Evac US101-S loc 66 1'!M10 -> 20.5 | Y130: ='Evac US101-S loc 66 1'!N10 -> 2091 | Z130: ='Evac US101-S loc 66 1'!O10 -> 34.8 | AA130: ='Evac US101-S loc 66 1'!P10 -> 24 | AB130: ='Evac US101-S loc 66 1'!Q10 -> 0 | AC130: ='Evac US101-S loc 66 1'!R10 -> 73.63265306 | AD130: ='Evac US101-S loc 66 1'!S10 -> 1045.5 | AE130: ='Evac US101-S loc 66 1'!T10 -> 56.00528321 | AF130: ='Evac US101-S loc 66 1'!U10 -> 45.75311791 | AH130: ='Routine US101-N loc 78 '!L10 -> 2019-10-16T08:00:00 | AI130: ='Routine US101-N loc 78 '!M10 -> 11.8 | AJ130: ='Routine US101-N loc 78 '!N10 -> 2778 | AK130: ='Routine US101-N loc 78 '!O10 -> 47.4 | AL130: ='Routine US101-N loc 78 '!P10 -> 36 | AM130: ='Routine US101-N loc 78 '!Q10 -> 0 | AN130: ='Routine US101-N loc 78 '!R10 -> 42.38367347 | AO130: ='Routine US101-N loc 78 '!S10 -> 926 | AP130: ='Routine US101-N loc 78 '!T10 -> 76.28305817 | AQ130: ='Routine US101-N loc 78 '!U10 -> 26.33594104
A131: ='Evac US101-S loc 104'!A131 -> 2019-10-26T10:45:00 | B131: ='Evac US101-S loc 104'!B131 -> 6 | C131: ='Evac US101-S loc 104'!C131 -> 184 | D131: ='Evac US101-S loc 104'!D131 -> 64.8 | E131: ='Evac US101-S loc 104'!E131 -> 2 | F131: ='Evac US101-S loc 104'!F131 -> 100 | G131: ='Evac US101-S loc 104'!G131 -> 21.55102041 | H131: ='Evac US101-S loc 104'!H131 -> 1104 | I131: ='Evac US101-S loc 104'!I131 -> 104.2856998 | J131: ='Evac US101-S loc 104'!J131 -> 13.39115646 | L131: ='Routine US101-S loc 104'!A131 -> 2019-10-16T10:45:00 | M131: ='Routine US101-S loc 104'!B131 -> 5.3 | N131: ='Routine US101-S loc 104'!C131 -> 148 | O131: ='Routine US101-S loc 104'!D131 -> 61.7 | P131: ='Routine US101-S loc 104'!E131 -> 2 | Q131: ='Routine US101-S loc 104'!F131 -> 100 | R131: ='Routine US101-S loc 104'!G131 -> 19.03673469 | S131: ='Routine US101-S loc 104'!H131 -> 888 | T131: ='Routine US101-S loc 104'!I131 -> 99.29672339 | U131: ='Routine US101-S loc 104'!J131 -> 11.82885488 | W131: ='Evac US101-S loc 66 1'!L11 -> 2019-10-24T09:00:00 | X131: ='Evac US101-S loc 66 1'!M11 -> 10 | Y131: ='Evac US101-S loc 66 1'!N11 -> 2001 | Z131: ='Evac US101-S loc 66 1'!O11 -> 46.2 | AA131: ='Evac US101-S loc 66 1'!P11 -> 24 | AB131: ='Evac US101-S loc 66 1'!Q11 -> 0 | AC131: ='Evac US101-S loc 66 1'!R11 -> 35.91836735 | AD131: ='Evac US101-S loc 66 1'!S11 -> 1000.5 | AE131: ='Evac US101-S loc 66 1'!T11 -> 74.3518415 | AF131: ='Evac US101-S loc 66 1'!U11 -> 22.3185941 | AH131: ='Routine US101-N loc 78 '!L11 -> 2019-10-16T09:00:00 | AI131: ='Routine US101-N loc 78 '!M11 -> 7.6 | AJ131: ='Routine US101-N loc 78 '!N11 -> 2568 | AK131: ='Routine US101-N loc 78 '!O11 -> 58.1 | AL131: ='Routine US101-N loc 78 '!P11 -> 36 | AM131: ='Routine US101-N loc 78 '!Q11 -> 0 | AN131: ='Routine US101-N loc 78 '!R11 -> 27.29795918 | AO131: ='Routine US101-N loc 78 '!S11 -> 856 | AP131: ='Routine US101-N loc 78 '!T11 -> 93.50307341 | AQ131: ='Routine US101-N loc 78 '!U11 -> 16.96213152
A132: ='Evac US101-S loc 104'!A132 -> 2019-10-26T10:50:00 | B132: ='Evac US101-S loc 104'!B132 -> 8 | C132: ='Evac US101-S loc 104'!C132 -> 244 | D132: ='Evac US101-S loc 104'!D132 -> 65.4 | E132: ='Evac US101-S loc 104'!E132 -> 2 | F132: ='Evac US101-S loc 104'!F132 -> 100 | G132: ='Evac US101-S loc 104'!G132 -> 28.73469388 | H132: ='Evac US101-S loc 104'!H132 -> 1464 | I132: ='Evac US101-S loc 104'!I132 -> 105.2513081 | J132: ='Evac US101-S loc 104'!J132 -> 17.85487528 | L132: ='Routine US101-S loc 104'!A132 -> 2019-10-16T10:50:00 | M132: ='Routine US101-S loc 104'!B132 -> 4.7 | N132: ='Routine US101-S loc 104'!C132 -> 129 | O132: ='Routine US101-S loc 104'!D132 -> 61.8 | P132: ='Routine US101-S loc 104'!E132 -> 2 | Q132: ='Routine US101-S loc 104'!F132 -> 100 | R132: ='Routine US101-S loc 104'!G132 -> 16.88163265 | S132: ='Routine US101-S loc 104'!H132 -> 774 | T132: ='Routine US101-S loc 104'!I132 -> 99.45765812 | U132: ='Routine US101-S loc 104'!J132 -> 10.48973923 | W132: ='Evac US101-S loc 66 1'!L12 -> 2019-10-24T10:00:00 | X132: ='Evac US101-S loc 66 1'!M12 -> 6.4 | Y132: ='Evac US101-S loc 66 1'!N12 -> 1847 | Z132: ='Evac US101-S loc 66 1'!O12 -> 57.4 | AA132: ='Evac US101-S loc 66 1'!P12 -> 24 | AB132: ='Evac US101-S loc 66 1'!Q12 -> 0 | AC132: ='Evac US101-S loc 66 1'!R12 -> 22.9877551 | AD132: ='Evac US101-S loc 66 1'!S12 -> 923.5 | AE132: ='Evac US101-S loc 66 1'!T12 -> 92.37653035 | AF132: ='Evac US101-S loc 66 1'!U12 -> 14.28390023 | AH132: ='Routine US101-N loc 78 '!L12 -> 2019-10-16T10:00:00 | AI132: ='Routine US101-N loc 78 '!M12 -> 7.8 | AJ132: ='Routine US101-N loc 78 '!N12 -> 2758 | AK132: ='Routine US101-N loc 78 '!O12 -> 58.9 | AL132: ='Routine US101-N loc 78 '!P12 -> 36 | AM132: ='Routine US101-N loc 78 '!Q12 -> 0 | AN132: ='Routine US101-N loc 78 '!R12 -> 28.01632653 | AO132: ='Routine US101-N loc 78 '!S12 -> 919.3333333 | AP132: ='Routine US101-N loc 78 '!T12 -> 94.79055118 | AQ132: ='Routine US101-N loc 78 '!U12 -> 17.4085034
A133: ='Evac US101-S loc 104'!A133 -> 2019-10-26T10:55:00 | B133: ='Evac US101-S loc 104'!B133 -> 7.5 | C133: ='Evac US101-S loc 104'!C133 -> 227 | D133: ='Evac US101-S loc 104'!D133 -> 65.2 | E133: ='Evac US101-S loc 104'!E133 -> 2 | F133: ='Evac US101-S loc 104'!F133 -> 100 | G133: ='Evac US101-S loc 104'!G133 -> 26.93877551 | H133: ='Evac US101-S loc 104'!H133 -> 1362 | I133: ='Evac US101-S loc 104'!I133 -> 104.9294387 | J133: ='Evac US101-S loc 104'!J133 -> 16.73894558 | L133: ='Routine US101-S loc 104'!A133 -> 2019-10-16T10:55:00 | M133: ='Routine US101-S loc 104'!B133 -> 4.3 | N133: ='Routine US101-S loc 104'!C133 -> 131 | O133: ='Routine US101-S loc 104'!D133 -> 63.8 | P133: ='Routine US101-S loc 104'!E133 -> 2 | Q133: ='Routine US101-S loc 104'!F133 -> 100 | R133: ='Routine US101-S loc 104'!G133 -> 15.44489796 | S133: ='Routine US101-S loc 104'!H133 -> 786 | T133: ='Routine US101-S loc 104'!I133 -> 102.6763526 | U133: ='Routine US101-S loc 104'!J133 -> 9.596995465 | W133: ='Evac US101-S loc 66 1'!L13 -> 2019-10-24T11:00:00 | X133: ='Evac US101-S loc 66 1'!M13 -> 6.8 | Y133: ='Evac US101-S loc 66 1'!N13 -> 1989 | Z133: ='Evac US101-S loc 66 1'!O13 -> 57.3 | AA133: ='Evac US101-S loc 66 1'!P13 -> 24 | AB133: ='Evac US101-S loc 66 1'!Q13 -> 0 | AC133: ='Evac US101-S loc 66 1'!R13 -> 24.4244898 | AD133: ='Evac US101-S loc 66 1'!S13 -> 994.5 | AE133: ='Evac US101-S loc 66 1'!T13 -> 92.21559563 | AF133: ='Evac US101-S loc 66 1'!U13 -> 15.17664399 | AH133: ='Routine US101-N loc 78 '!L13 -> 2019-10-16T11:00:00 | AI133: ='Routine US101-N loc 78 '!M13 -> 8.3 | AJ133: ='Routine US101-N loc 78 '!N13 -> 3070 | AK133: ='Routine US101-N loc 78 '!O13 -> 59.8 | AL133: ='Routine US101-N loc 78 '!P13 -> 36 | AM133: ='Routine US101-N loc 78 '!Q13 -> 0 | AN133: ='Routine US101-N loc 78 '!R13 -> 29.8122449 | AO133: ='Routine US101-N loc 78 '!S13 -> 1023.333333 | AP133: ='Routine US101-N loc 78 '!T13 -> 96.23896368 | AQ133: ='Routine US101-N loc 78 '!U13 -> 18.52443311
A134: ='Evac US101-S loc 104'!A134 -> 2019-10-26T11:00:00 | B134: ='Evac US101-S loc 104'!B134 -> 8.6 | C134: ='Evac US101-S loc 104'!C134 -> 255 | D134: ='Evac US101-S loc 104'!D134 -> 64.5 | E134: ='Evac US101-S loc 104'!E134 -> 2 | F134: ='Evac US101-S loc 104'!F134 -> 100 | G134: ='Evac US101-S loc 104'!G134 -> 30.88979592 | H134: ='Evac US101-S loc 104'!H134 -> 1530 | I134: ='Evac US101-S loc 104'!I134 -> 103.8028956 | J134: ='Evac US101-S loc 104'!J134 -> 19.19399093 | L134: ='Routine US101-S loc 104'!A134 -> 2019-10-16T11:00:00 | M134: ='Routine US101-S loc 104'!B134 -> 3.6 | N134: ='Routine US101-S loc 104'!C134 -> 92 | O134: ='Routine US101-S loc 104'!D134 -> 61.3 | P134: ='Routine US101-S loc 104'!E134 -> 2 | Q134: ='Routine US101-S loc 104'!F134 -> 100 | R134: ='Routine US101-S loc 104'!G134 -> 12.93061224 | S134: ='Routine US101-S loc 104'!H134 -> 552 | T134: ='Routine US101-S loc 104'!I134 -> 98.65298451 | U134: ='Routine US101-S loc 104'!J134 -> 8.034693878 | W134: ='Evac US101-S loc 66 1'!L14 -> 2019-10-24T12:00:00 | X134: ='Evac US101-S loc 66 1'!M14 -> 7.2 | Y134: ='Evac US101-S loc 66 1'!N14 -> 2109 | Z134: ='Evac US101-S loc 66 1'!O14 -> 57.7 | AA134: ='Evac US101-S loc 66 1'!P14 -> 24 | AB134: ='Evac US101-S loc 66 1'!Q14 -> 0 | AC134: ='Evac US101-S loc 66 1'!R14 -> 25.86122449 | AD134: ='Evac US101-S loc 66 1'!S14 -> 1054.5 | AE134: ='Evac US101-S loc 66 1'!T14 -> 92.85933452 | AF134: ='Evac US101-S loc 66 1'!U14 -> 16.06938776 | AH134: ='Routine US101-N loc 78 '!L14 -> 2019-10-16T12:00:00 | AI134: ='Routine US101-N loc 78 '!M14 -> 8.1 | AJ134: ='Routine US101-N loc 78 '!N14 -> 3010 | AK134: ='Routine US101-N loc 78 '!O14 -> 60.4 | AL134: ='Routine US101-N loc 78 '!P14 -> 36 | AM134: ='Routine US101-N loc 78 '!Q14 -> 0 | AN134: ='Routine US101-N loc 78 '!R14 -> 29.09387755 | AO134: ='Routine US101-N loc 78 '!S14 -> 1003.333333 | AP134: ='Routine US101-N loc 78 '!T14 -> 97.20457201 | AQ134: ='Routine US101-N loc 78 '!U14 -> 18.07806122
A135: ='Evac US101-S loc 104'!A135 -> 2019-10-26T11:05:00 | B135: ='Evac US101-S loc 104'!B135 -> 7.3 | C135: ='Evac US101-S loc 104'!C135 -> 220 | D135: ='Evac US101-S loc 104'!D135 -> 64.2 | E135: ='Evac US101-S loc 104'!E135 -> 2 | F135: ='Evac US101-S loc 104'!F135 -> 100 | G135: ='Evac US101-S loc 104'!G135 -> 26.22040816 | H135: ='Evac US101-S loc 104'!H135 -> 1320 | I135: ='Evac US101-S loc 104'!I135 -> 103.3200914 | J135: ='Evac US101-S loc 104'!J135 -> 16.2925737 | L135: ='Routine US101-S loc 104'!A135 -> 2019-10-16T11:05:00 | M135: ='Routine US101-S loc 104'!B135 -> 4.7 | N135: ='Routine US101-S loc 104'!C135 -> 128 | O135: ='Routine US101-S loc 104'!D135 -> 61.4 | P135: ='Routine US101-S loc 104'!E135 -> 2 | Q135: ='Routine US101-S loc 104'!F135 -> 100 | R135: ='Routine US101-S loc 104'!G135 -> 16.88163265 | S135: ='Routine US101-S loc 104'!H135 -> 768 | T135: ='Routine US101-S loc 104'!I135 -> 98.81391923 | U135: ='Routine US101-S loc 104'!J135 -> 10.48973923 | W135: ='Evac US101-S loc 66 1'!L15 -> 2019-10-24T13:00:00 | X135: ='Evac US101-S loc 66 1'!M15 -> 6.7 | Y135: ='Evac US101-S loc 66 1'!N15 -> 2006 | Z135: ='Evac US101-S loc 66 1'!O15 -> 58 | AA135: ='Evac US101-S loc 66 1'!P15 -> 24 | AB135: ='Evac US101-S loc 66 1'!Q15 -> 0 | AC135: ='Evac US101-S loc 66 1'!R15 -> 24.06530612 | AD135: ='Evac US101-S loc 66 1'!S15 -> 1003 | AE135: ='Evac US101-S loc 66 1'!T15 -> 93.34213868 | AF135: ='Evac US101-S loc 66 1'!U15 -> 14.95345805 | AH135: ='Routine US101-N loc 78 '!L15 -> 2019-10-16T13:00:00 | AI135: ='Routine US101-N loc 78 '!M15 -> 8.7 | AJ135: ='Routine US101-N loc 78 '!N15 -> 3206 | AK135: ='Routine US101-N loc 78 '!O15 -> 60.9 | AL135: ='Routine US101-N loc 78 '!P15 -> 36 | AM135: ='Routine US101-N loc 78 '!Q15 -> 0 | AN135: ='Routine US101-N loc 78 '!R15 -> 31.24897959 | AO135: ='Routine US101-N loc 78 '!S15 -> 1068.666667 | AP135: ='Routine US101-N loc 78 '!T15 -> 98.00924562 | AQ135: ='Routine US101-N loc 78 '!U15 -> 19.41717687
A136: ='Evac US101-S loc 104'!A136 -> 2019-10-26T11:10:00 | B136: ='Evac US101-S loc 104'!B136 -> 8.7 | C136: ='Evac US101-S loc 104'!C136 -> 247 | D136: ='Evac US101-S loc 104'!D136 -> 62.7 | E136: ='Evac US101-S loc 104'!E136 -> 2 | F136: ='Evac US101-S loc 104'!F136 -> 100 | G136: ='Evac US101-S loc 104'!G136 -> 31.24897959 | H136: ='Evac US101-S loc 104'!H136 -> 1482 | I136: ='Evac US101-S loc 104'!I136 -> 100.9060706 | J136: ='Evac US101-S loc 104'!J136 -> 19.41717687 | L136: ='Routine US101-S loc 104'!A136 -> 2019-10-16T11:10:00 | M136: ='Routine US101-S loc 104'!B136 -> 4.9 | N136: ='Routine US101-S loc 104'!C136 -> 135 | O136: ='Routine US101-S loc 104'!D136 -> 61.2 | P136: ='Routine US101-S loc 104'!E136 -> 2 | Q136: ='Routine US101-S loc 104'!F136 -> 100 | R136: ='Routine US101-S loc 104'!G136 -> 17.6 | S136: ='Routine US101-S loc 104'!H136 -> 810 | T136: ='Routine US101-S loc 104'!I136 -> 98.49204978 | U136: ='Routine US101-S loc 104'!J136 -> 10.93611111 | W136: ='Evac US101-S loc 66 1'!L16 -> 2019-10-24T14:00:00 | X136: ='Evac US101-S loc 66 1'!M16 -> 6.8 | Y136: ='Evac US101-S loc 66 1'!N16 -> 2093 | Z136: ='Evac US101-S loc 66 1'!O16 -> 59.8 | AA136: ='Evac US101-S loc 66 1'!P16 -> 24 | AB136: ='Evac US101-S loc 66 1'!Q16 -> 0 | AC136: ='Evac US101-S loc 66 1'!R16 -> 24.4244898 | AD136: ='Evac US101-S loc 66 1'!S16 -> 1046.5 | AE136: ='Evac US101-S loc 66 1'!T16 -> 96.23896368 | AF136: ='Evac US101-S loc 66 1'!U16 -> 15.17664399 | AH136: ='Routine US101-N loc 78 '!L16 -> 2019-10-16T14:00:00 | AI136: ='Routine US101-N loc 78 '!M16 -> 8.6 | AJ136: ='Routine US101-N loc 78 '!N16 -> 3263 | AK136: ='Routine US101-N loc 78 '!O16 -> 61 | AL136: ='Routine US101-N loc 78 '!P16 -> 36 | AM136: ='Routine US101-N loc 78 '!Q16 -> 0 | AN136: ='Routine US101-N loc 78 '!R16 -> 30.88979592 | AO136: ='Routine US101-N loc 78 '!S16 -> 1087.666667 | AP136: ='Routine US101-N loc 78 '!T16 -> 98.17018034 | AQ136: ='Routine US101-N loc 78 '!U16 -> 19.19399093
A137: ='Evac US101-S loc 104'!A137 -> 2019-10-26T11:15:00 | B137: ='Evac US101-S loc 104'!B137 -> 8.9 | C137: ='Evac US101-S loc 104'!C137 -> 244 | D137: ='Evac US101-S loc 104'!D137 -> 60.9 | E137: ='Evac US101-S loc 104'!E137 -> 2 | F137: ='Evac US101-S loc 104'!F137 -> 100 | G137: ='Evac US101-S loc 104'!G137 -> 31.96734694 | H137: ='Evac US101-S loc 104'!H137 -> 1464 | I137: ='Evac US101-S loc 104'!I137 -> 98.00924562 | J137: ='Evac US101-S loc 104'!J137 -> 19.86354875 | L137: ='Routine US101-S loc 104'!A137 -> 2019-10-16T11:15:00 | M137: ='Routine US101-S loc 104'!B137 -> 4.6 | N137: ='Routine US101-S loc 104'!C137 -> 132 | O137: ='Routine US101-S loc 104'!D137 -> 62.6 | P137: ='Routine US101-S loc 104'!E137 -> 2 | Q137: ='Routine US101-S loc 104'!F137 -> 100 | R137: ='Routine US101-S loc 104'!G137 -> 16.52244898 | S137: ='Routine US101-S loc 104'!H137 -> 792 | T137: ='Routine US101-S loc 104'!I137 -> 100.7451359 | U137: ='Routine US101-S loc 104'!J137 -> 10.26655329 | W137: ='Evac US101-S loc 66 1'!L17 -> 2019-10-24T15:00:00 | X137: ='Evac US101-S loc 66 1'!M17 -> 7.5 | Y137: ='Evac US101-S loc 66 1'!N17 -> 2390 | Z137: ='Evac US101-S loc 66 1'!O17 -> 61.1 | AA137: ='Evac US101-S loc 66 1'!P17 -> 24 | AB137: ='Evac US101-S loc 66 1'!Q17 -> 0 | AC137: ='Evac US101-S loc 66 1'!R17 -> 26.93877551 | AD137: ='Evac US101-S loc 66 1'!S17 -> 1195 | AE137: ='Evac US101-S loc 66 1'!T17 -> 98.33111506 | AF137: ='Evac US101-S loc 66 1'!U17 -> 16.73894558 | AH137: ='Routine US101-N loc 78 '!L17 -> 2019-10-16T15:00:00 | AI137: ='Routine US101-N loc 78 '!M17 -> 10.2 | AJ137: ='Routine US101-N loc 78 '!N17 -> 3548 | AK137: ='Routine US101-N loc 78 '!O17 -> 56.3 | AL137: ='Routine US101-N loc 78 '!P17 -> 36 | AM137: ='Routine US101-N loc 78 '!Q17 -> 0 | AN137: ='Routine US101-N loc 78 '!R17 -> 36.63673469 | AO137: ='Routine US101-N loc 78 '!S17 -> 1182.666667 | AP137: ='Routine US101-N loc 78 '!T17 -> 90.60624841 | AQ137: ='Routine US101-N loc 78 '!U17 -> 22.76496599
A138: ='Evac US101-S loc 104'!A138 -> 2019-10-26T11:20:00 | B138: ='Evac US101-S loc 104'!B138 -> 8.8 | C138: ='Evac US101-S loc 104'!C138 -> 239 | D138: ='Evac US101-S loc 104'!D138 -> 59.3 | E138: ='Evac US101-S loc 104'!E138 -> 2 | F138: ='Evac US101-S loc 104'!F138 -> 100 | G138: ='Evac US101-S loc 104'!G138 -> 31.60816327 | H138: ='Evac US101-S loc 104'!H138 -> 1434 | I138: ='Evac US101-S loc 104'!I138 -> 95.43429007 | J138: ='Evac US101-S loc 104'!J138 -> 19.64036281 | L138: ='Routine US101-S loc 104'!A138 -> 2019-10-16T11:20:00 | M138: ='Routine US101-S loc 104'!B138 -> 3.7 | N138: ='Routine US101-S loc 104'!C138 -> 115 | O138: ='Routine US101-S loc 104'!D138 -> 65 | P138: ='Routine US101-S loc 104'!E138 -> 2 | Q138: ='Routine US101-S loc 104'!F138 -> 100 | R138: ='Routine US101-S loc 104'!G138 -> 13.28979592 | S138: ='Routine US101-S loc 104'!H138 -> 690 | T138: ='Routine US101-S loc 104'!I138 -> 104.6075692 | U138: ='Routine US101-S loc 104'!J138 -> 8.257879819 | W138: ='Evac US101-S loc 66 1'!L18 -> 2019-10-24T16:00:00 | X138: ='Evac US101-S loc 66 1'!M18 -> 8 | Y138: ='Evac US101-S loc 66 1'!N18 -> 2584 | Z138: ='Evac US101-S loc 66 1'!O18 -> 62.5 | AA138: ='Evac US101-S loc 66 1'!P18 -> 24 | AB138: ='Evac US101-S loc 66 1'!Q18 -> 0 | AC138: ='Evac US101-S loc 66 1'!R18 -> 28.73469388 | AD138: ='Evac US101-S loc 66 1'!S18 -> 1292 | AE138: ='Evac US101-S loc 66 1'!T18 -> 100.5842012 | AF138: ='Evac US101-S loc 66 1'!U18 -> 17.85487528 | AH138: ='Routine US101-N loc 78 '!L18 -> 2019-10-16T16:00:00 | AI138: ='Routine US101-N loc 78 '!M18 -> 14.3 | AJ138: ='Routine US101-N loc 78 '!N18 -> 3300 | AK138: ='Routine US101-N loc 78 '!O18 -> 43.4 | AL138: ='Routine US101-N loc 78 '!P18 -> 36 | AM138: ='Routine US101-N loc 78 '!Q18 -> 0 | AN138: ='Routine US101-N loc 78 '!R18 -> 51.36326531 | AO138: ='Routine US101-N loc 78 '!S18 -> 1100 | AP138: ='Routine US101-N loc 78 '!T18 -> 69.84566929 | AQ138: ='Routine US101-N loc 78 '!U18 -> 31.91558957
A139: ='Evac US101-S loc 104'!A139 -> 2019-10-26T11:25:00 | B139: ='Evac US101-S loc 104'!B139 -> 8.3 | C139: ='Evac US101-S loc 104'!C139 -> 231 | D139: ='Evac US101-S loc 104'!D139 -> 59.4 | E139: ='Evac US101-S loc 104'!E139 -> 2 | F139: ='Evac US101-S loc 104'!F139 -> 100 | G139: ='Evac US101-S loc 104'!G139 -> 29.8122449 | H139: ='Evac US101-S loc 104'!H139 -> 1386 | I139: ='Evac US101-S loc 104'!I139 -> 95.59522479 | J139: ='Evac US101-S loc 104'!J139 -> 18.52443311 | L139: ='Routine US101-S loc 104'!A139 -> 2019-10-16T11:25:00 | M139: ='Routine US101-S loc 104'!B139 -> 5 | N139: ='Routine US101-S loc 104'!C139 -> 146 | O139: ='Routine US101-S loc 104'!D139 -> 64.7 | P139: ='Routine US101-S loc 104'!E139 -> 2 | Q139: ='Routine US101-S loc 104'!F139 -> 100 | R139: ='Routine US101-S loc 104'!G139 -> 17.95918367 | S139: ='Routine US101-S loc 104'!H139 -> 876 | T139: ='Routine US101-S loc 104'!I139 -> 104.124765 | U139: ='Routine US101-S loc 104'!J139 -> 11.15929705 | W139: ='Evac US101-S loc 66 1'!L19 -> 2019-10-24T17:00:00 | X139: ='Evac US101-S loc 66 1'!M19 -> 7.9 | Y139: ='Evac US101-S loc 66 1'!N19 -> 2552 | Z139: ='Evac US101-S loc 66 1'!O19 -> 64.3 | AA139: ='Evac US101-S loc 66 1'!P19 -> 24 | AB139: ='Evac US101-S loc 66 1'!Q19 -> 0 | AC139: ='Evac US101-S loc 66 1'!R19 -> 28.3755102 | AD139: ='Evac US101-S loc 66 1'!S19 -> 1276 | AE139: ='Evac US101-S loc 66 1'!T19 -> 103.4810262 | AF139: ='Evac US101-S loc 66 1'!U19 -> 17.63168934 | AH139: ='Routine US101-N loc 78 '!L19 -> 2019-10-16T17:00:00 | AI139: ='Routine US101-N loc 78 '!M19 -> 19.7 | AJ139: ='Routine US101-N loc 78 '!N19 -> 3088 | AK139: ='Routine US101-N loc 78 '!O19 -> 33.1 | AL139: ='Routine US101-N loc 78 '!P19 -> 36 | AM139: ='Routine US101-N loc 78 '!Q19 -> 0 | AN139: ='Routine US101-N loc 78 '!R19 -> 70.75918367 | AO139: ='Routine US101-N loc 78 '!S19 -> 1029.333333 | AP139: ='Routine US101-N loc 78 '!T19 -> 53.26939294 | AQ139: ='Routine US101-N loc 78 '!U19 -> 43.96763039
